Workbook

Sheet Table 3_L (hidden)
A1: Table 3. Ranges of values of basin characteristics used to develop regional regression equations.
A2: [A, contributing drainage area, in square miles; P, mean annual precipitation, in inches; SLP50, percent of basin with slope greater than 50 percent; Min, minimum; Max, maximum; --, not used in regression equations for indicated region]
B3: A | D3: P | F3: SLP50
A4: Hydrologic region (ordered clockwise from northwestern Montana) | B4: Min | C4: Max | D4: Min | E4: Max | F4: Min | G4: Max
A5: West | B5: =MIN('Table 1-2_Lookup'!F6:F58) -> 6.4 | C5: =MAX('Table 1-2_Lookup'!F6:F58) -> 2516 | D5: -- | E5: -- | F5: =MIN('Table 1-2_Lookup'!H6:H58) -> 1.869 | G5: =MAX('Table 1-2_Lookup'!H6:H58) -> 67.474
A6: Northwest | B6: =MIN('Table 1-2_Lookup'!F60:F85) -> 7.74 | C6: =MAX('Table 1-2_Lookup'!F60:F85) -> 1556 | D6: =MIN('Table 1-2_Lookup'!G60:G85) -> 20.742 | E6: =MAX('Table 1-2_Lookup'!G60:G85) -> 83.156 | F6: =MIN('Table 1-2_Lookup'!H60:H85) -> 0.057 | G6: =MAX('Table 1-2_Lookup'!H60:H85) -> 65.94
A7: Upper Yellowstone-Central Mountain | B7: =MIN('Table 1-2_Lookup'!F87:F135) -> 28.1 | C7: =MAX('Table 1-2_Lookup'!F87:F135) -> 2616 | D7: =MIN('Table 1-2_Lookup'!G87:G135) -> 16.454 | E7: =MAX('Table 1-2_Lookup'!G87:G135) -> 38.847 | F7: -- | G7: --
A8: Southwest | B8: =MIN('Table 1-2_Lookup'!F137:F160) -> 24.4 | C8: =MAX('Table 1-2_Lookup'!F137:F160) -> 2472 | D8: =MIN('Table 1-2_Lookup'!G137:G160) -> 16.738 | E8: =MAX('Table 1-2_Lookup'!G137:G160) -> 37.018 | F8: =MIN('Table 1-2_Lookup'!H137:H160) -> 0.962 | G8: =MAX('Table 1-2_Lookup'!H137:H160) -> 22.553

Sheet Table 1-1_Lookup (hidden)
A1: Table 1–2. Streamflow characteristics for streamflow-gaging stations used in developing the regional regression equations.
A2: [NR, not reported]
A3: Map number (fig. 1) | B3: Station identification | C3: Station name | D3: Analysis period of record, in water years | E3: Streamflow for inidcated streamflow characteristic (Q), in cubic feet per second
E4: QAL7Q10 | F4: QS214Q5 | G4: QA0.2 | H4: QA0.5 | I4: QA0.8 | J4: QAMEAN | K4: QJAN0.2 | L4: QJAN0.5 | M4: QJAN0.8 | N4: QJANMEAN | O4: QFEB0.2 | P4: QFEB0.5 | Q4: QFEB0.8 | R4: QFEBMEAN | S4: QMAR0.2 | T4: QMAR0.5 | U4: QMAR0.8 | V4: QMARMEAN | W4: QAPR0.2 | X4: QAPR0.5 | Y4: QAPR0.8 | Z4: QAPRMEAN | AA4: QMAY0.2 | AB4: QMAY0.5 | AC4: QMAY0.8 | AD4: QMAYMEAN | AE4: QJUN0.2 | AF4: QJUN0.5 | AG4: QJUN0.8 | AH4: QJUNMEAN | AI4: QJUL0.2 | AJ4: QJUL0.5 | AK4: QJUL0.8 | AL4: QJULMEAN | AM4: QAUG0.2 | AN4: QAUG0.5 | AO4: QAUG0.8 | AP4: QAUGMEAN | AQ4: QSEP0.2 | AR4: QSEP0.5 | AS4: QSEP0.8 | AT4: QSEPMEAN | AU4: QOCT0.2 | AV4: QOCT0.5 | AW4: QOCT0.8 | AX4: QOCTMEAN | AY4: QNOV0.2 | AZ4: QNOV0.5 | BA4: QNOV0.8 | BB4: QNOVMEAN | BC4: QDEC0.2 | BD4: QDEC0.5 | BE4: QDEC0.8 | BF4: QDECMEAN
E6: =RIGHT(E4,LEN(E4)-1) -> AL7Q10 | F6: =RIGHT(F4,LEN(F4)-1) -> S214Q5 | G6: =RIGHT(G4,LEN(G4)-1) -> A0.2 | H6: A0.5 | I6: A0.8 | J6: AMEAN | K6: =RIGHT(K4,LEN(K4)-1) -> JAN0.2 | L6: JAN0.5 | M6: JAN0.8 | N6: JANMEAN | O6: FEB0.2 | P6: FEB0.5 | Q6: FEB0.8 | R6: FEBMEAN | S6: MAR0.2 | T6: MAR0.5 | U6: MAR0.8 | V6: MARMEAN | W6: APR0.2 | X6: APR0.5 | Y6: APR0.8 | Z6: APRMEAN | AA6: =RIGHT(AA4,LEN(AA4)-1) -> MAY0.2 | AB6: MAY0.5 | AC6: MAY0.8 | AD6: MAYMEAN | AE6: JUN0.2 | AF6: JUN0.5 | AG6: JUN0.8 | AH6: JUNMEAN | AI6: JUL0.2 | AJ6: JUL0.5 | AK6: JUL0.8 | AL6: JULMEAN | AM6: AUG0.2 | AN6: AUG0.5 | AO6: AUG0.8 | AP6: AUGMEAN | AQ6: =RIGHT(AQ4,LEN(AQ4)-1) -> SEP0.2 | AR6: SEP0.5 | AS6: SEP0.8 | AT6: SEPMEAN | AU6: OCT0.2 | AV6: OCT0.5 | AW6: OCT0.8 | AX6: OCTMEAN | AY6: NOV0.2 | AZ6: NOV0.5 | BA6: NOV0.8 | BB6: NOVMEAN | BC6: DEC0.2 | BD6: DEC0.5 | BE6: DEC0.8 | BF6: DECMEAN
E7: 18 | F7: 119 | G7: =MATCH(G6,[1]FlowData!$2:$2,0) -> 230 | H7: =MATCH(H6,[1]FlowData!$2:$2,0) -> 227 | I7: =MATCH(I6,[1]FlowData!$2:$2,0) -> 224 | J7: =MATCH(J6,[1]FlowData!$2:$2,0) -> 415 | K7: =MATCH(K6,[1]FlowData!$2:$2,0) -> 245 | L7: =MATCH(L6,[1]FlowData!$2:$2,0) -> 242 | M7: =MATCH(M6,[1]FlowData!$2:$2,0) -> 239 | N7: =MATCH(N6,[1]FlowData!$2:$2,0) -> 416 | O7: =MATCH(O6,[1]FlowData!$2:$2,0) -> 260 | P7: =MATCH(P6,[1]FlowData!$2:$2,0) -> 257 | Q7: =MATCH(Q6,[1]FlowData!$2:$2,0) -> 254 | R7: =MATCH(R6,[1]FlowData!$2:$2,0) -> 417 | S7: =MATCH(S6,[1]FlowData!$2:$2,0) -> 275 | T7: =MATCH(T6,[1]FlowData!$2:$2,0) -> 272 | U7: =MATCH(U6,[1]FlowData!$2:$2,0) -> 269 | V7: =MATCH(V6,[1]FlowData!$2:$2,0) -> 418 | W7: =MATCH(W6,[1]FlowData!$2:$2,0) -> 290 | X7: =MATCH(X6,[1]FlowData!$2:$2,0) -> 287 | Y7: =MATCH(Y6,[1]FlowData!$2:$2,0) -> 284 | Z7: =MATCH(Z6,[1]FlowData!$2:$2,0) -> 419 | AA7: =MATCH(AA6,[1]FlowData!$2:$2,0) -> 305 | AB7: =MATCH(AB6,[1]FlowData!$2:$2,0) -> 302 | AC7: =MATCH(AC6,[1]FlowData!$2:$2,0) -> 299 | AD7: =MATCH(AD6,[1]FlowData!$2:$2,0) -> 420 | AE7: =MATCH(AE6,[1]FlowData!$2:$2,0) -> 320 | AF7: =MATCH(AF6,[1]FlowData!$2:$2,0) -> 317 | AG7: =MATCH(AG6,[1]FlowData!$2:$2,0) -> 314 | AH7: =MATCH(AH6,[1]FlowData!$2:$2,0) -> 421 | AI7: =MATCH(AI6,[1]FlowData!$2:$2,0) -> 335 | AJ7: =MATCH(AJ6,[1]FlowData!$2:$2,0) -> 332 | AK7: =MATCH(AK6,[1]FlowData!$2:$2,0) -> 329 | AL7: =MATCH(AL6,[1]FlowData!$2:$2,0) -> 422 | AM7: =MATCH(AM6,[1]FlowData!$2:$2,0) -> 350 | AN7: =MATCH(AN6,[1]FlowData!$2:$2,0) -> 347 | AO7: =MATCH(AO6,[1]FlowData!$2:$2,0) -> 344 | AP7: =MATCH(AP6,[1]FlowData!$2:$2,0) -> 423 | AQ7: =MATCH(AQ6,[1]FlowData!$2:$2,0) -> 365 | AR7: =MATCH(AR6,[1]FlowData!$2:$2,0) -> 362 | AS7: =MATCH(AS6,[1]FlowData!$2:$2,0) -> 359 | AT7: =MATCH(AT6,[1]FlowData!$2:$2,0) -> 424 | AU7: =MATCH(AU6,[1]FlowData!$2:$2,0) -> 380 | AV7: =MATCH(AV6,[1]FlowData!$2:$2,0) -> 377 | AW7: =MATCH(AW6,[1]FlowData!$2:$2,0) -> 374 | AX7: =MATCH(AX6,[1]FlowData!$2:$2,0) -> 425 | AY7: =MATCH(AY6,[1]FlowData!$2:$2,0) -> 395 | AZ7: =MATCH(AZ6,[1]FlowData!$2:$2,0) -> 392 | BA7: =MATCH(BA6,[1]FlowData!$2:$2,0) -> 389 | BB7: =MATCH(BB6,[1]FlowData!$2:$2,0) -> 426 | BC7: =MATCH(BC6,[1]FlowData!$2:$2,0) -> 410 | BD7: =MATCH(BD6,[1]FlowData!$2:$2,0) -> 407 | BE7: =MATCH(BE6,[1]FlowData!$2:$2,0) -> 404 | BF7: =MATCH(BF6,[1]FlowData!$2:$2,0) -> 427
A8: West hydrologic region
A9: =VLOOKUP(B9,'[2]Gages and BCs'!$A$4:$BJ$973,62,FALSE) -> 596 | B9: 12301300 | C9: =VLOOKUP(B9,'[2]Gages and BCs'!$A$4:$BJ$973,60,FALSE) -> Tobacco River near Eureka, Montana | D9: 1959–2009 | E9: =VLOOKUP($B9,[1]FlowData!$A$3:$PL$215,E$7,FALSE) -> 37.595 | F9: =VLOOKUP($B9,[1]FlowData!$A$3:$PL$215,F$7,FALSE) -> 56.111 | G9: =VLOOKUP($B9,[1]FlowData!$A$3:$PL$215,G$7,FALSE) -> 415 | H9: =VLOOKUP($B9,[1]FlowData!$A$3:$PL$215,H$7,FALSE) -> 147 | I9: =VLOOKUP($B9,[1]FlowData!$A$3:$PL$215,I$7,FALSE) -> 66 | J9: =VLOOKUP($B9,[1]FlowData!$A$3:$PL$215,J$7,FALSE) -> 263 | K9: =VLOOKUP($B9,[1]FlowData!$A$3:$PL$215,K$7,FALSE) -> 130 | L9: =VLOOKUP($B9,[1]FlowData!$A$3:$PL$215,L$7,FALSE) -> 90 | M9: =VLOOKUP($B9,[1]FlowData!$A$3:$PL$215,M$7,FALSE) -> 63 | N9: =VLOOKUP($B9,[1]FlowData!$A$3:$PL$215,N$7,FALSE) -> 102 | O9: =VLOOKUP($B9,[1]FlowData!$A$3:$PL$215,O$7,FALSE) -> 130 | P9: =VLOOKUP($B9,[1]FlowData!$A$3:$PL$215,P$7,FALSE) -> 97 | Q9: =VLOOKUP($B9,[1]FlowData!$A$3:$PL$215,Q$7,FALSE) -> 57 | R9: =VLOOKUP($B9,[1]FlowData!$A$3:$PL$215,R$7,FALSE) -> 109 | S9: =VLOOKUP($B9,[1]FlowData!$A$3:$PL$215,S$7,FALSE) -> 191 | T9: =VLOOKUP($B9,[1]FlowData!$A$3:$PL$215,T$7,FALSE) -> 124 | U9: =VLOOKUP($B9,[1]FlowData!$A$3:$PL$215,U$7,FALSE) -> 87 | V9: =VLOOKUP($B9,[1]FlowData!$A$3:$PL$215,V$7,FALSE) -> 156 | W9: =VLOOKUP($B9,[1]FlowData!$A$3:$PL$215,W$7,FALSE) -> 599 | X9: =VLOOKUP($B9,[1]FlowData!$A$3:$PL$215,X$7,FALSE) -> 340 | Y9: =VLOOKUP($B9,[1]FlowData!$A$3:$PL$215,Y$7,FALSE) -> 186 | Z9: =VLOOKUP($B9,[1]FlowData!$A$3:$PL$215,Z$7,FALSE) -> 415 | AA9: =VLOOKUP($B9,[1]FlowData!$A$3:$PL$215,AA$7,FALSE) -> 1020 | AB9: =VLOOKUP($B9,[1]FlowData!$A$3:$PL$215,AB$7,FALSE) -> 687 | AC9: =VLOOKUP($B9,[1]FlowData!$A$3:$PL$215,AC$7,FALSE) -> 471 | AD9: =VLOOKUP($B9,[1]FlowData!$A$3:$PL$215,AD$7,FALSE) -> 756 | AE9: =VLOOKUP($B9,[1]FlowData!$A$3:$PL$215,AE$7,FALSE) -> 980 | AF9: =VLOOKUP($B9,[1]FlowData!$A$3:$PL$215,AF$7,FALSE) -> 700 | AG9: =VLOOKUP($B9,[1]FlowData!$A$3:$PL$215,AG$7,FALSE) -> 433 | AH9: =VLOOKUP($B9,[1]FlowData!$A$3:$PL$215,AH$7,FALSE) -> 727 | AI9: =VLOOKUP($B9,[1]FlowData!$A$3:$PL$215,AI$7,FALSE) -> 443 | AJ9: =VLOOKUP($B9,[1]FlowData!$A$3:$PL$215,AJ$7,FALSE) -> 253 | AK9: =VLOOKUP($B9,[1]FlowData!$A$3:$PL$215,AK$7,FALSE) -> 149 | AL9: =VLOOKUP($B9,[1]FlowData!$A$3:$PL$215,AL$7,FALSE) -> 298 | AM9: =VLOOKUP($B9,[1]FlowData!$A$3:$PL$215,AM$7,FALSE) -> 170 | AN9: =VLOOKUP($B9,[1]FlowData!$A$3:$PL$215,AN$7,FALSE) -> 114 | AO9: =VLOOKUP($B9,[1]FlowData!$A$3:$PL$215,AO$7,FALSE) -> 71 | AP9: =VLOOKUP($B9,[1]FlowData!$A$3:$PL$215,AP$7,FALSE) -> 122 | AQ9: =VLOOKUP($B9,[1]FlowData!$A$3:$PL$215,AQ$7,FALSE) -> 137 | AR9: =VLOOKUP($B9,[1]FlowData!$A$3:$PL$215,AR$7,FALSE) -> 102 | AS9: =VLOOKUP($B9,[1]FlowData!$A$3:$PL$215,AS$7,FALSE) -> 70 | AT9: =VLOOKUP($B9,[1]FlowData!$A$3:$PL$215,AT$7,FALSE) -> 107 | AU9: =VLOOKUP($B9,[1]FlowData!$A$3:$PL$215,AU$7,FALSE) -> 139 | AV9: =VLOOKUP($B9,[1]FlowData!$A$3:$PL$215,AV$7,FALSE) -> 103 | AW9: =VLOOKUP($B9,[1]FlowData!$A$3:$PL$215,AW$7,FALSE) -> 76 | AX9: =VLOOKUP($B9,[1]FlowData!$A$3:$PL$215,AX$7,FALSE) -> 112 | AY9: =VLOOKUP($B9,[1]FlowData!$A$3:$PL$215,AY$7,FALSE) -> 157 | AZ9: =VLOOKUP($B9,[1]FlowData!$A$3:$PL$215,AZ$7,FALSE) -> 110 | BA9: =VLOOKUP($B9,[1]FlowData!$A$3:$PL$215,BA$7,FALSE) -> 81 | BB9: =VLOOKUP($B9,[1]FlowData!$A$3:$PL$215,BB$7,FALSE) -> 131 | BC9: =VLOOKUP($B9,[1]FlowData!$A$3:$PL$215,BC$7,FALSE) -> 137 | BD9: =VLOOKUP($B9,[1]FlowData!$A$3:$PL$215,BD$7,FALSE) -> 96 | BE9: =VLOOKUP($B9,[1]FlowData!$A$3:$PL$215,BE$7,FALSE) -> 71 | BF9: =VLOOKUP($B9,[1]FlowData!$A$3:$PL$215,BF$7,FALSE) -> 113
A10: =VLOOKUP(B10,'[2]Gages and BCs'!$A$4:$BJ$973,62,FALSE) -> 605 | B10: 12301999 | C10: =VLOOKUP(B10,'[2]Gages and BCs'!$A$4:$BJ$973,60,FALSE) -> Wolf Creek near Libby, Montana | D10: 1968–77 | E10: =VLOOKUP($B10,[1]FlowData!$A$3:$PL$215,E$7,FALSE) ->  | F10: =VLOOKUP($B10,[1]FlowData!$A$3:$PL$215,F$7,FALSE) ->  | G10: =VLOOKUP($B10,[1]FlowData!$A$3:$PL$215,G$7,FALSE) -> 75 | H10: =VLOOKUP($B10,[1]FlowData!$A$3:$PL$215,H$7,FALSE) -> 33 | I10: =VLOOKUP($B10,[1]FlowData!$A$3:$PL$215,I$7,FALSE) -> 15 | J10: =VLOOKUP($B10,[1]FlowData!$A$3:$PL$215,J$7,FALSE) -> 70 | K10: =VLOOKUP($B10,[1]FlowData!$A$3:$PL$215,K$7,FALSE) -> 19 | L10: =VLOOKUP($B10,[1]FlowData!$A$3:$PL$215,L$7,FALSE) -> 11 | M10: =VLOOKUP($B10,[1]FlowData!$A$3:$PL$215,M$7,FALSE) -> 5.7 | N10: =VLOOKUP($B10,[1]FlowData!$A$3:$PL$215,N$7,FALSE) -> 22 | O10: =VLOOKUP($B10,[1]FlowData!$A$3:$PL$215,O$7,FALSE) -> 37 | P10: =VLOOKUP($B10,[1]FlowData!$A$3:$PL$215,P$7,FALSE) -> 14 | Q10: =VLOOKUP($B10,[1]FlowData!$A$3:$PL$215,Q$7,FALSE) -> 6.6 | R10: =VLOOKUP($B10,[1]FlowData!$A$3:$PL$215,R$7,FALSE) -> 27 | S10: =VLOOKUP($B10,[1]FlowData!$A$3:$PL$215,S$7,FALSE) -> 69 | T10: =VLOOKUP($B10,[1]FlowData!$A$3:$PL$215,T$7,FALSE) -> 33 | U10: =VLOOKUP($B10,[1]FlowData!$A$3:$PL$215,U$7,FALSE) -> 16 | V10: =VLOOKUP($B10,[1]FlowData!$A$3:$PL$215,V$7,FALSE) -> 69 | W10: =VLOOKUP($B10,[1]FlowData!$A$3:$PL$215,W$7,FALSE) -> 479 | X10: =VLOOKUP($B10,[1]FlowData!$A$3:$PL$215,X$7,FALSE) -> 136 | Y10: =VLOOKUP($B10,[1]FlowData!$A$3:$PL$215,Y$7,FALSE) -> 51 | Z10: =VLOOKUP($B10,[1]FlowData!$A$3:$PL$215,Z$7,FALSE) -> 263 | AA10: =VLOOKUP($B10,[1]FlowData!$A$3:$PL$215,AA$7,FALSE) -> 463 | AB10: =VLOOKUP($B10,[1]FlowData!$A$3:$PL$215,AB$7,FALSE) -> 262 | AC10: =VLOOKUP($B10,[1]FlowData!$A$3:$PL$215,AC$7,FALSE) -> 117 | AD10: =VLOOKUP($B10,[1]FlowData!$A$3:$PL$215,AD$7,FALSE) -> 296 | AE10: =VLOOKUP($B10,[1]FlowData!$A$3:$PL$215,AE$7,FALSE) -> 122 | AF10: =VLOOKUP($B10,[1]FlowData!$A$3:$PL$215,AF$7,FALSE) -> 65 | AG10: =VLOOKUP($B10,[1]FlowData!$A$3:$PL$215,AG$7,FALSE) -> 37 | AH10: =VLOOKUP($B10,[1]FlowData!$A$3:$PL$215,AH$7,FALSE) -> 82 | AI10: =VLOOKUP($B10,[1]FlowData!$A$3:$PL$215,AI$7,FALSE) -> 36 | AJ10: =VLOOKUP($B10,[1]FlowData!$A$3:$PL$215,AJ$7,FALSE) -> 22 | AK10: =VLOOKUP($B10,[1]FlowData!$A$3:$PL$215,AK$7,FALSE) -> 11 | AL10: =VLOOKUP($B10,[1]FlowData!$A$3:$PL$215,AL$7,FALSE) -> 30 | AM10: =VLOOKUP($B10,[1]FlowData!$A$3:$PL$215,AM$7,FALSE) -> 14 | AN10: =VLOOKUP($B10,[1]FlowData!$A$3:$PL$215,AN$7,FALSE) -> 12 | AO10: =VLOOKUP($B10,[1]FlowData!$A$3:$PL$215,AO$7,FALSE) -> 7.4 | AP10: =VLOOKUP($B10,[1]FlowData!$A$3:$PL$215,AP$7,FALSE) -> 11 | AQ10: =VLOOKUP($B10,[1]FlowData!$A$3:$PL$215,AQ$7,FALSE) -> 12 | AR10: =VLOOKUP($B10,[1]FlowData!$A$3:$PL$215,AR$7,FALSE) -> 9.2 | AS10: =VLOOKUP($B10,[1]FlowData!$A$3:$PL$215,AS$7,FALSE) -> 6.9 | AT10: =VLOOKUP($B10,[1]FlowData!$A$3:$PL$215,AT$7,FALSE) -> 9.2 | AU10: =VLOOKUP($B10,[1]FlowData!$A$3:$PL$215,AU$7,FALSE) -> 12 | AV10: =VLOOKUP($B10,[1]FlowData!$A$3:$PL$215,AV$7,FALSE) -> 10 | AW10: =VLOOKUP($B10,[1]FlowData!$A$3:$PL$215,AW$7,FALSE) -> 8.6 | AX10: =VLOOKUP($B10,[1]FlowData!$A$3:$PL$215,AX$7,FALSE) -> 11 | AY10: =VLOOKUP($B10,[1]FlowData!$A$3:$PL$215,AY$7,FALSE) -> 13 | AZ10: =VLOOKUP($B10,[1]FlowData!$A$3:$PL$215,AZ$7,FALSE) -> 11 | BA10: =VLOOKUP($B10,[1]FlowData!$A$3:$PL$215,BA$7,FALSE) -> 8.6 | BB10: =VLOOKUP($B10,[1]FlowData!$A$3:$PL$215,BB$7,FALSE) -> 11 | BC10: =VLOOKUP($B10,[1]FlowData!$A$3:$PL$215,BC$7,FALSE) -> 15 | BD10: =VLOOKUP($B10,[1]FlowData!$A$3:$PL$215,BD$7,FALSE) -> 9.6 | BE10: =VLOOKUP($B10,[1]FlowData!$A$3:$PL$215,BE$7,FALSE) -> 7.9 | BF10: =VLOOKUP($B10,[1]FlowData!$A$3:$PL$215,BF$7,FALSE) -> 12
A11: =VLOOKUP(B11,'[2]Gages and BCs'!$A$4:$BJ$973,62,FALSE) -> 607 | B11: 12302055 | C11: =VLOOKUP(B11,'[2]Gages and BCs'!$A$4:$BJ$973,60,FALSE) -> Fisher River near Libby, Montana | D11: 1968–2009 | E11: =VLOOKUP($B11,[1]FlowData!$A$3:$PL$215,E$7,FALSE) -> 57.314 | F11: =VLOOKUP($B11,[1]FlowData!$A$3:$PL$215,F$7,FALSE) -> 73.902 | G11: =VLOOKUP($B11,[1]FlowData!$A$3:$PL$215,G$7,FALSE) -> 735 | H11: =VLOOKUP($B11,[1]FlowData!$A$3:$PL$215,H$7,FALSE) -> 255 | I11: =VLOOKUP($B11,[1]FlowData!$A$3:$PL$215,I$7,FALSE) -> 121 | J11: =VLOOKUP($B11,[1]FlowData!$A$3:$PL$215,J$7,FALSE) -> 468 | K11: =VLOOKUP($B11,[1]FlowData!$A$3:$PL$215,K$7,FALSE) -> 323 | L11: =VLOOKUP($B11,[1]FlowData!$A$3:$PL$215,L$7,FALSE) -> 201 | M11: =VLOOKUP($B11,[1]FlowData!$A$3:$PL$215,M$7,FALSE) -> 99 | N11: =VLOOKUP($B11,[1]FlowData!$A$3:$PL$215,N$7,FALSE) -> 248 | O11: =VLOOKUP($B11,[1]FlowData!$A$3:$PL$215,O$7,FALSE) -> 351 | P11: =VLOOKUP($B11,[1]FlowData!$A$3:$PL$215,P$7,FALSE) -> 224 | Q11: =VLOOKUP($B11,[1]FlowData!$A$3:$PL$215,Q$7,FALSE) -> 117 | R11: =VLOOKUP($B11,[1]FlowData!$A$3:$PL$215,R$7,FALSE) -> 327 | S11: =VLOOKUP($B11,[1]FlowData!$A$3:$PL$215,S$7,FALSE) -> 758 | T11: =VLOOKUP($B11,[1]FlowData!$A$3:$PL$215,T$7,FALSE) -> 379 | U11: =VLOOKUP($B11,[1]FlowData!$A$3:$PL$215,U$7,FALSE) -> 187 | V11: =VLOOKUP($B11,[1]FlowData!$A$3:$PL$215,V$7,FALSE) -> 570 | W11: =VLOOKUP($B11,[1]FlowData!$A$3:$PL$215,W$7,FALSE) -> 1740 | X11: =VLOOKUP($B11,[1]FlowData!$A$3:$PL$215,X$7,FALSE) -> 940 | Y11: =VLOOKUP($B11,[1]FlowData!$A$3:$PL$215,Y$7,FALSE) -> 532 | Z11: =VLOOKUP($B11,[1]FlowData!$A$3:$PL$215,Z$7,FALSE) -> 1180 | AA11: =VLOOKUP($B11,[1]FlowData!$A$3:$PL$215,AA$7,FALSE) -> 1930 | AB11: =VLOOKUP($B11,[1]FlowData!$A$3:$PL$215,AB$7,FALSE) -> 1190 | AC11: =VLOOKUP($B11,[1]FlowData!$A$3:$PL$215,AC$7,FALSE) -> 731 | AD11: =VLOOKUP($B11,[1]FlowData!$A$3:$PL$215,AD$7,FALSE) -> 1380 | AE11: =VLOOKUP($B11,[1]FlowData!$A$3:$PL$215,AE$7,FALSE) -> 1160 | AF11: =VLOOKUP($B11,[1]FlowData!$A$3:$PL$215,AF$7,FALSE) -> 745 | AG11: =VLOOKUP($B11,[1]FlowData!$A$3:$PL$215,AG$7,FALSE) -> 354 | AH11: =VLOOKUP($B11,[1]FlowData!$A$3:$PL$215,AH$7,FALSE) -> 799 | AI11: =VLOOKUP($B11,[1]FlowData!$A$3:$PL$215,AI$7,FALSE) -> 402 | AJ11: =VLOOKUP($B11,[1]FlowData!$A$3:$PL$215,AJ$7,FALSE) -> 236 | AK11: =VLOOKUP($B11,[1]FlowData!$A$3:$PL$215,AK$7,FALSE) -> 142 | AL11: =VLOOKUP($B11,[1]FlowData!$A$3:$PL$215,AL$7,FALSE) -> 281 | AM11: =VLOOKUP($B11,[1]FlowData!$A$3:$PL$215,AM$7,FALSE) -> 176 | AN11: =VLOOKUP($B11,[1]FlowData!$A$3:$PL$215,AN$7,FALSE) -> 128 | AO11: =VLOOKUP($B11,[1]FlowData!$A$3:$PL$215,AO$7,FALSE) -> 86 | AP11: =VLOOKUP($B11,[1]FlowData!$A$3:$PL$215,AP$7,FALSE) -> 134 | AQ11: =VLOOKUP($B11,[1]FlowData!$A$3:$PL$215,AQ$7,FALSE) -> 140 | AR11: =VLOOKUP($B11,[1]FlowData!$A$3:$PL$215,AR$7,FALSE) -> 112 | AS11: =VLOOKUP($B11,[1]FlowData!$A$3:$PL$215,AS$7,FALSE) -> 81 | AT11: =VLOOKUP($B11,[1]FlowData!$A$3:$PL$215,AT$7,FALSE) -> 114 | AU11: =VLOOKUP($B11,[1]FlowData!$A$3:$PL$215,AU$7,FALSE) -> 155 | AV11: =VLOOKUP($B11,[1]FlowData!$A$3:$PL$215,AV$7,FALSE) -> 117 | AW11: =VLOOKUP($B11,[1]FlowData!$A$3:$PL$215,AW$7,FALSE) -> 93 | AX11: =VLOOKUP($B11,[1]FlowData!$A$3:$PL$215,AX$7,FALSE) -> 131 | AY11: =VLOOKUP($B11,[1]FlowData!$A$3:$PL$215,AY$7,FALSE) -> 273 | AZ11: =VLOOKUP($B11,[1]FlowData!$A$3:$PL$215,AZ$7,FALSE) -> 161 | BA11: =VLOOKUP($B11,[1]FlowData!$A$3:$PL$215,BA$7,FALSE) -> 89 | BB11: =VLOOKUP($B11,[1]FlowData!$A$3:$PL$215,BB$7,FALSE) -> 223 | BC11: =VLOOKUP($B11,[1]FlowData!$A$3:$PL$215,BC$7,FALSE) -> 283 | BD11: =VLOOKUP($B11,[1]FlowData!$A$3:$PL$215,BD$7,FALSE) -> 160 | BE11: =VLOOKUP($B11,[1]FlowData!$A$3:$PL$215,BE$7,FALSE) -> 87 | BF11: =VLOOKUP($B11,[1]FlowData!$A$3:$PL$215,BF$7,FALSE) -> 234
A12: =VLOOKUP(B12,'[2]Gages and BCs'!$A$4:$BJ$973,62,FALSE) -> 609 | B12: 12302500 | C12: =VLOOKUP(B12,'[2]Gages and BCs'!$A$4:$BJ$973,60,FALSE) -> Granite Creek near Libby, Montana | D12: 1933, 1937–43, 1961–69 | E12: =VLOOKUP($B12,[1]FlowData!$A$3:$PL$215,E$7,FALSE) -> 5.371 | F12: =VLOOKUP($B12,[1]FlowData!$A$3:$PL$215,F$7,FALSE) -> 6.459 | G12: =VLOOKUP($B12,[1]FlowData!$A$3:$PL$215,G$7,FALSE) -> 115 | H12: =VLOOKUP($B12,[1]FlowData!$A$3:$PL$215,H$7,FALSE) -> 53 | I12: =VLOOKUP($B12,[1]FlowData!$A$3:$PL$215,I$7,FALSE) -> 24 | J12: =VLOOKUP($B12,[1]FlowData!$A$3:$PL$215,J$7,FALSE) -> 71 | K12: =VLOOKUP($B12,[1]FlowData!$A$3:$PL$215,K$7,FALSE) -> 26 | L12: =VLOOKUP($B12,[1]FlowData!$A$3:$PL$215,L$7,FALSE) -> 19 | M12: =VLOOKUP($B12,[1]FlowData!$A$3:$PL$215,M$7,FALSE) -> 13 | N12: =VLOOKUP($B12,[1]FlowData!$A$3:$PL$215,N$7,FALSE) -> 20 | O12: =VLOOKUP($B12,[1]FlowData!$A$3:$PL$215,O$7,FALSE) -> 35 | P12: =VLOOKUP($B12,[1]FlowData!$A$3:$PL$215,P$7,FALSE) -> 17 | Q12: =VLOOKUP($B12,[1]FlowData!$A$3:$PL$215,Q$7,FALSE) -> 9.3 | R12: =VLOOKUP($B12,[1]FlowData!$A$3:$PL$215,R$7,FALSE) -> 26 | S12: =VLOOKUP($B12,[1]FlowData!$A$3:$PL$215,S$7,FALSE) -> 42 | T12: =VLOOKUP($B12,[1]FlowData!$A$3:$PL$215,T$7,FALSE) -> 23 | U12: =VLOOKUP($B12,[1]FlowData!$A$3:$PL$215,U$7,FALSE) -> 15 | V12: =VLOOKUP($B12,[1]FlowData!$A$3:$PL$215,V$7,FALSE) -> 31 | W12: =VLOOKUP($B12,[1]FlowData!$A$3:$PL$215,W$7,FALSE) -> 153 | X12: =VLOOKUP($B12,[1]FlowData!$A$3:$PL$215,X$7,FALSE) -> 84 | Y12: =VLOOKUP($B12,[1]FlowData!$A$3:$PL$215,Y$7,FALSE) -> 44 | Z12: =VLOOKUP($B12,[1]FlowData!$A$3:$PL$215,Z$7,FALSE) -> 116 | AA12: =VLOOKUP($B12,[1]FlowData!$A$3:$PL$215,AA$7,FALSE) -> 325 | AB12: =VLOOKUP($B12,[1]FlowData!$A$3:$PL$215,AB$7,FALSE) -> 216 | AC12: =VLOOKUP($B12,[1]FlowData!$A$3:$PL$215,AC$7,FALSE) -> 135 | AD12: =VLOOKUP($B12,[1]FlowData!$A$3:$PL$215,AD$7,FALSE) -> 234 | AE12: =VLOOKUP($B12,[1]FlowData!$A$3:$PL$215,AE$7,FALSE) -> 306 | AF12: =VLOOKUP($B12,[1]FlowData!$A$3:$PL$215,AF$7,FALSE) -> 210 | AG12: =VLOOKUP($B12,[1]FlowData!$A$3:$PL$215,AG$7,FALSE) -> 125 | AH12: =VLOOKUP($B12,[1]FlowData!$A$3:$PL$215,AH$7,FALSE) -> 224 | AI12: =VLOOKUP($B12,[1]FlowData!$A$3:$PL$215,AI$7,FALSE) -> 104 | AJ12: =VLOOKUP($B12,[1]FlowData!$A$3:$PL$215,AJ$7,FALSE) -> 57 | AK12: =VLOOKUP($B12,[1]FlowData!$A$3:$PL$215,AK$7,FALSE) -> 34 | AL12: =VLOOKUP($B12,[1]FlowData!$A$3:$PL$215,AL$7,FALSE) -> 72 | AM12: =VLOOKUP($B12,[1]FlowData!$A$3:$PL$215,AM$7,FALSE) -> 29 | AN12: =VLOOKUP($B12,[1]FlowData!$A$3:$PL$215,AN$7,FALSE) -> 21 | AO12: =VLOOKUP($B12,[1]FlowData!$A$3:$PL$215,AO$7,FALSE) -> 12 | AP12: =VLOOKUP($B12,[1]FlowData!$A$3:$PL$215,AP$7,FALSE) -> 22 | AQ12: =VLOOKUP($B12,[1]FlowData!$A$3:$PL$215,AQ$7,FALSE) -> 24 | AR12: =VLOOKUP($B12,[1]FlowData!$A$3:$PL$215,AR$7,FALSE) -> 13 | AS12: =VLOOKUP($B12,[1]FlowData!$A$3:$PL$215,AS$7,FALSE) -> 7.5 | AT12: =VLOOKUP($B12,[1]FlowData!$A$3:$PL$215,AT$7,FALSE) -> 18 | AU12: =VLOOKUP($B12,[1]FlowData!$A$3:$PL$215,AU$7,FALSE) -> 41 | AV12: =VLOOKUP($B12,[1]FlowData!$A$3:$PL$215,AV$7,FALSE) -> 19 | AW12: =VLOOKUP($B12,[1]FlowData!$A$3:$PL$215,AW$7,FALSE) -> 8.6 | AX12: =VLOOKUP($B12,[1]FlowData!$A$3:$PL$215,AX$7,FALSE) -> 27 | AY12: =VLOOKUP($B12,[1]FlowData!$A$3:$PL$215,AY$7,FALSE) -> 46 | AZ12: =VLOOKUP($B12,[1]FlowData!$A$3:$PL$215,AZ$7,FALSE) -> 25 | BA12: =VLOOKUP($B12,[1]FlowData!$A$3:$PL$215,BA$7,FALSE) -> 12 | BB12: =VLOOKUP($B12,[1]FlowData!$A$3:$PL$215,BB$7,FALSE) -> 33 | BC12: =VLOOKUP($B12,[1]FlowData!$A$3:$PL$215,BC$7,FALSE) -> 47 | BD12: =VLOOKUP($B12,[1]FlowData!$A$3:$PL$215,BD$7,FALSE) -> 31 | BE12: =VLOOKUP($B12,[1]FlowData!$A$3:$PL$215,BE$7,FALSE) -> 15 | BF12: =VLOOKUP($B12,[1]FlowData!$A$3:$PL$215,BF$7,FALSE) -> 39
A13: =VLOOKUP(B13,'[2]Gages and BCs'!$A$4:$BJ$973,62,FALSE) -> 611 | B13: 12303100 | C13: =VLOOKUP(B13,'[2]Gages and BCs'!$A$4:$BJ$973,60,FALSE) -> Flower Creek near Libby, Montana | D13: 1961–92 | E13: =VLOOKUP($B13,[1]FlowData!$A$3:$PL$215,E$7,FALSE) -> 3.837 | F13: =VLOOKUP($B13,[1]FlowData!$A$3:$PL$215,F$7,FALSE) -> 4.917 | G13: =VLOOKUP($B13,[1]FlowData!$A$3:$PL$215,G$7,FALSE) -> 37 | H13: =VLOOKUP($B13,[1]FlowData!$A$3:$PL$215,H$7,FALSE) -> 13 | I13: =VLOOKUP($B13,[1]FlowData!$A$3:$PL$215,I$7,FALSE) -> 6.9 | J13: =VLOOKUP($B13,[1]FlowData!$A$3:$PL$215,J$7,FALSE) -> 26 | K13: =VLOOKUP($B13,[1]FlowData!$A$3:$PL$215,K$7,FALSE) -> 14 | L13: =VLOOKUP($B13,[1]FlowData!$A$3:$PL$215,L$7,FALSE) -> 9.8 | M13: =VLOOKUP($B13,[1]FlowData!$A$3:$PL$215,M$7,FALSE) -> 5.7 | N13: =VLOOKUP($B13,[1]FlowData!$A$3:$PL$215,N$7,FALSE) -> 9.1 | O13: =VLOOKUP($B13,[1]FlowData!$A$3:$PL$215,O$7,FALSE) -> 12 | P13: =VLOOKUP($B13,[1]FlowData!$A$3:$PL$215,P$7,FALSE) -> 7.3 | Q13: =VLOOKUP($B13,[1]FlowData!$A$3:$PL$215,Q$7,FALSE) -> 4.7 | R13: =VLOOKUP($B13,[1]FlowData!$A$3:$PL$215,R$7,FALSE) -> 9.3 | S13: =VLOOKUP($B13,[1]FlowData!$A$3:$PL$215,S$7,FALSE) -> 15 | T13: =VLOOKUP($B13,[1]FlowData!$A$3:$PL$215,T$7,FALSE) -> 9 | U13: =VLOOKUP($B13,[1]FlowData!$A$3:$PL$215,U$7,FALSE) -> 5.4 | V13: =VLOOKUP($B13,[1]FlowData!$A$3:$PL$215,V$7,FALSE) -> 11 | W13: =VLOOKUP($B13,[1]FlowData!$A$3:$PL$215,W$7,FALSE) -> 43 | X13: =VLOOKUP($B13,[1]FlowData!$A$3:$PL$215,X$7,FALSE) -> 22 | Y13: =VLOOKUP($B13,[1]FlowData!$A$3:$PL$215,Y$7,FALSE) -> 12 | Z13: =VLOOKUP($B13,[1]FlowData!$A$3:$PL$215,Z$7,FALSE) -> 31 | AA13: =VLOOKUP($B13,[1]FlowData!$A$3:$PL$215,AA$7,FALSE) -> 123 | AB13: =VLOOKUP($B13,[1]FlowData!$A$3:$PL$215,AB$7,FALSE) -> 73 | AC13: =VLOOKUP($B13,[1]FlowData!$A$3:$PL$215,AC$7,FALSE) -> 41 | AD13: =VLOOKUP($B13,[1]FlowData!$A$3:$PL$215,AD$7,FALSE) -> 84 | AE13: =VLOOKUP($B13,[1]FlowData!$A$3:$PL$215,AE$7,FALSE) -> 125 | AF13: =VLOOKUP($B13,[1]FlowData!$A$3:$PL$215,AF$7,FALSE) -> 81 | AG13: =VLOOKUP($B13,[1]FlowData!$A$3:$PL$215,AG$7,FALSE) -> 46 | AH13: =VLOOKUP($B13,[1]FlowData!$A$3:$PL$215,AH$7,FALSE) -> 88 | AI13: =VLOOKUP($B13,[1]FlowData!$A$3:$PL$215,AI$7,FALSE) -> 43 | AJ13: =VLOOKUP($B13,[1]FlowData!$A$3:$PL$215,AJ$7,FALSE) -> 23 | AK13: =VLOOKUP($B13,[1]FlowData!$A$3:$PL$215,AK$7,FALSE) -> 13 | AL13: =VLOOKUP($B13,[1]FlowData!$A$3:$PL$215,AL$7,FALSE) -> 29 | AM13: =VLOOKUP($B13,[1]FlowData!$A$3:$PL$215,AM$7,FALSE) -> 13 | AN13: =VLOOKUP($B13,[1]FlowData!$A$3:$PL$215,AN$7,FALSE) -> 9.6 | AO13: =VLOOKUP($B13,[1]FlowData!$A$3:$PL$215,AO$7,FALSE) -> 6.8 | AP13: =VLOOKUP($B13,[1]FlowData!$A$3:$PL$215,AP$7,FALSE) -> 10 | AQ13: =VLOOKUP($B13,[1]FlowData!$A$3:$PL$215,AQ$7,FALSE) -> 9.8 | AR13: =VLOOKUP($B13,[1]FlowData!$A$3:$PL$215,AR$7,FALSE) -> 7.7 | AS13: =VLOOKUP($B13,[1]FlowData!$A$3:$PL$215,AS$7,FALSE) -> 6.1 | AT13: =VLOOKUP($B13,[1]FlowData!$A$3:$PL$215,AT$7,FALSE) -> 8.4 | AU13: =VLOOKUP($B13,[1]FlowData!$A$3:$PL$215,AU$7,FALSE) -> 12 | AV13: =VLOOKUP($B13,[1]FlowData!$A$3:$PL$215,AV$7,FALSE) -> 8 | AW13: =VLOOKUP($B13,[1]FlowData!$A$3:$PL$215,AW$7,FALSE) -> 5.5 | AX13: =VLOOKUP($B13,[1]FlowData!$A$3:$PL$215,AX$7,FALSE) -> 9.1 | AY13: =VLOOKUP($B13,[1]FlowData!$A$3:$PL$215,AY$7,FALSE) -> 16 | AZ13: =VLOOKUP($B13,[1]FlowData!$A$3:$PL$215,AZ$7,FALSE) -> 8.8 | BA13: =VLOOKUP($B13,[1]FlowData!$A$3:$PL$215,BA$7,FALSE) -> 5.2 | BB13: =VLOOKUP($B13,[1]FlowData!$A$3:$PL$215,BB$7,FALSE) -> 13 | BC13: =VLOOKUP($B13,[1]FlowData!$A$3:$PL$215,BC$7,FALSE) -> 14 | BD13: =VLOOKUP($B13,[1]FlowData!$A$3:$PL$215,BD$7,FALSE) -> 10 | BE13: =VLOOKUP($B13,[1]FlowData!$A$3:$PL$215,BE$7,FALSE) -> 6 | BF13: =VLOOKUP($B13,[1]FlowData!$A$3:$PL$215,BF$7,FALSE) -> 10
A14: =VLOOKUP(B14,'[2]Gages and BCs'!$A$4:$BJ$973,62,FALSE) -> 614 | B14: 12303500 | C14: =VLOOKUP(B14,'[2]Gages and BCs'!$A$4:$BJ$973,60,FALSE) -> Lake Creek at Troy, Montana | D14: 1945–57, 1983–96 | E14: =VLOOKUP($B14,[1]FlowData!$A$3:$PL$215,E$7,FALSE) -> 76.084 | F14: =VLOOKUP($B14,[1]FlowData!$A$3:$PL$215,F$7,FALSE) -> 102.337 | G14: =VLOOKUP($B14,[1]FlowData!$A$3:$PL$215,G$7,FALSE) -> 649 | H14: =VLOOKUP($B14,[1]FlowData!$A$3:$PL$215,H$7,FALSE) -> 258 | I14: =VLOOKUP($B14,[1]FlowData!$A$3:$PL$215,I$7,FALSE) -> 131 | J14: =VLOOKUP($B14,[1]FlowData!$A$3:$PL$215,J$7,FALSE) -> 428 | K14: =VLOOKUP($B14,[1]FlowData!$A$3:$PL$215,K$7,FALSE) -> 331 | L14: =VLOOKUP($B14,[1]FlowData!$A$3:$PL$215,L$7,FALSE) -> 188 | M14: =VLOOKUP($B14,[1]FlowData!$A$3:$PL$215,M$7,FALSE) -> 113 | N14: =VLOOKUP($B14,[1]FlowData!$A$3:$PL$215,N$7,FALSE) -> 232 | O14: =VLOOKUP($B14,[1]FlowData!$A$3:$PL$215,O$7,FALSE) -> 364 | P14: =VLOOKUP($B14,[1]FlowData!$A$3:$PL$215,P$7,FALSE) -> 203 | Q14: =VLOOKUP($B14,[1]FlowData!$A$3:$PL$215,Q$7,FALSE) -> 114 | R14: =VLOOKUP($B14,[1]FlowData!$A$3:$PL$215,R$7,FALSE) -> 286 | S14: =VLOOKUP($B14,[1]FlowData!$A$3:$PL$215,S$7,FALSE) -> 451 | T14: =VLOOKUP($B14,[1]FlowData!$A$3:$PL$215,T$7,FALSE) -> 266 | U14: =VLOOKUP($B14,[1]FlowData!$A$3:$PL$215,U$7,FALSE) -> 166 | V14: =VLOOKUP($B14,[1]FlowData!$A$3:$PL$215,V$7,FALSE) -> 305 | W14: =VLOOKUP($B14,[1]FlowData!$A$3:$PL$215,W$7,FALSE) -> 850 | X14: =VLOOKUP($B14,[1]FlowData!$A$3:$PL$215,X$7,FALSE) -> 559 | Y14: =VLOOKUP($B14,[1]FlowData!$A$3:$PL$215,Y$7,FALSE) -> 312 | Z14: =VLOOKUP($B14,[1]FlowData!$A$3:$PL$215,Z$7,FALSE) -> 611 | AA14: =VLOOKUP($B14,[1]FlowData!$A$3:$PL$215,AA$7,FALSE) -> 1590 | AB14: =VLOOKUP($B14,[1]FlowData!$A$3:$PL$215,AB$7,FALSE) -> 1120 | AC14: =VLOOKUP($B14,[1]FlowData!$A$3:$PL$215,AC$7,FALSE) -> 722 | AD14: =VLOOKUP($B14,[1]FlowData!$A$3:$PL$215,AD$7,FALSE) -> 1190 | AE14: =VLOOKUP($B14,[1]FlowData!$A$3:$PL$215,AE$7,FALSE) -> 1460 | AF14: =VLOOKUP($B14,[1]FlowData!$A$3:$PL$215,AF$7,FALSE) -> 966 | AG14: =VLOOKUP($B14,[1]FlowData!$A$3:$PL$215,AG$7,FALSE) -> 551 | AH14: =VLOOKUP($B14,[1]FlowData!$A$3:$PL$215,AH$7,FALSE) -> 1030 | AI14: =VLOOKUP($B14,[1]FlowData!$A$3:$PL$215,AI$7,FALSE) -> 607 | AJ14: =VLOOKUP($B14,[1]FlowData!$A$3:$PL$215,AJ$7,FALSE) -> 352 | AK14: =VLOOKUP($B14,[1]FlowData!$A$3:$PL$215,AK$7,FALSE) -> 233 | AL14: =VLOOKUP($B14,[1]FlowData!$A$3:$PL$215,AL$7,FALSE) -> 438 | AM14: =VLOOKUP($B14,[1]FlowData!$A$3:$PL$215,AM$7,FALSE) -> 255 | AN14: =VLOOKUP($B14,[1]FlowData!$A$3:$PL$215,AN$7,FALSE) -> 197 | AO14: =VLOOKUP($B14,[1]FlowData!$A$3:$PL$215,AO$7,FALSE) -> 151 | AP14: =VLOOKUP($B14,[1]FlowData!$A$3:$PL$215,AP$7,FALSE) -> 206 | AQ14: =VLOOKUP($B14,[1]FlowData!$A$3:$PL$215,AQ$7,FALSE) -> 175 | AR14: =VLOOKUP($B14,[1]FlowData!$A$3:$PL$215,AR$7,FALSE) -> 148 | AS14: =VLOOKUP($B14,[1]FlowData!$A$3:$PL$215,AS$7,FALSE) -> 123 | AT14: =VLOOKUP($B14,[1]FlowData!$A$3:$PL$215,AT$7,FALSE) -> 148 | AU14: =VLOOKUP($B14,[1]FlowData!$A$3:$PL$215,AU$7,FALSE) -> 212 | AV14: =VLOOKUP($B14,[1]FlowData!$A$3:$PL$215,AV$7,FALSE) -> 143 | AW14: =VLOOKUP($B14,[1]FlowData!$A$3:$PL$215,AW$7,FALSE) -> 106 | AX14: =VLOOKUP($B14,[1]FlowData!$A$3:$PL$215,AX$7,FALSE) -> 177 | AY14: =VLOOKUP($B14,[1]FlowData!$A$3:$PL$215,AY$7,FALSE) -> 358 | AZ14: =VLOOKUP($B14,[1]FlowData!$A$3:$PL$215,AZ$7,FALSE) -> 216 | BA14: =VLOOKUP($B14,[1]FlowData!$A$3:$PL$215,BA$7,FALSE) -> 112 | BB14: =VLOOKUP($B14,[1]FlowData!$A$3:$PL$215,BB$7,FALSE) -> 270 | BC14: =VLOOKUP($B14,[1]FlowData!$A$3:$PL$215,BC$7,FALSE) -> 382 | BD14: =VLOOKUP($B14,[1]FlowData!$A$3:$PL$215,BD$7,FALSE) -> 207 | BE14: =VLOOKUP($B14,[1]FlowData!$A$3:$PL$215,BE$7,FALSE) -> 124 | BF14: =VLOOKUP($B14,[1]FlowData!$A$3:$PL$215,BF$7,FALSE) -> 280
A15: =VLOOKUP(B15,'[2]Gages and BCs'!$A$4:$BJ$973,62,FALSE) -> 615 | B15: 12304040 | C15: =VLOOKUP(B15,'[2]Gages and BCs'!$A$4:$BJ$973,60,FALSE) -> Basin Creek near Yaak, Montana | D15: 1990–2000 | E15: =VLOOKUP($B15,[1]FlowData!$A$3:$PL$215,E$7,FALSE) ->  | F15: =VLOOKUP($B15,[1]FlowData!$A$3:$PL$215,F$7,FALSE) -> 6.48 | G15: =VLOOKUP($B15,[1]FlowData!$A$3:$PL$215,G$7,FALSE) -> 47 | H15: =VLOOKUP($B15,[1]FlowData!$A$3:$PL$215,H$7,FALSE) -> 16 | I15: =VLOOKUP($B15,[1]FlowData!$A$3:$PL$215,I$7,FALSE) -> 8.4 | J15: =VLOOKUP($B15,[1]FlowData!$A$3:$PL$215,J$7,FALSE) -> 32 | K15: =VLOOKUP($B15,[1]FlowData!$A$3:$PL$215,K$7,FALSE) -> 11 | L15: =VLOOKUP($B15,[1]FlowData!$A$3:$PL$215,L$7,FALSE) -> 7.2 | M15: =VLOOKUP($B15,[1]FlowData!$A$3:$PL$215,M$7,FALSE) -> 4.9 | N15: =VLOOKUP($B15,[1]FlowData!$A$3:$PL$215,N$7,FALSE) -> 9.7 | O15: =VLOOKUP($B15,[1]FlowData!$A$3:$PL$215,O$7,FALSE) -> 13 | P15: =VLOOKUP($B15,[1]FlowData!$A$3:$PL$215,P$7,FALSE) -> 8.1 | Q15: =VLOOKUP($B15,[1]FlowData!$A$3:$PL$215,Q$7,FALSE) -> 5.4 | R15: =VLOOKUP($B15,[1]FlowData!$A$3:$PL$215,R$7,FALSE) -> 12 | S15: =VLOOKUP($B15,[1]FlowData!$A$3:$PL$215,S$7,FALSE) -> 20 | T15: =VLOOKUP($B15,[1]FlowData!$A$3:$PL$215,T$7,FALSE) -> 12 | U15: =VLOOKUP($B15,[1]FlowData!$A$3:$PL$215,U$7,FALSE) -> 7.4 | V15: =VLOOKUP($B15,[1]FlowData!$A$3:$PL$215,V$7,FALSE) -> 15 | W15: =VLOOKUP($B15,[1]FlowData!$A$3:$PL$215,W$7,FALSE) -> 83 | X15: =VLOOKUP($B15,[1]FlowData!$A$3:$PL$215,X$7,FALSE) -> 36 | Y15: =VLOOKUP($B15,[1]FlowData!$A$3:$PL$215,Y$7,FALSE) -> 22 | Z15: =VLOOKUP($B15,[1]FlowData!$A$3:$PL$215,Z$7,FALSE) -> 53 | AA15: =VLOOKUP($B15,[1]FlowData!$A$3:$PL$215,AA$7,FALSE) -> 178 | AB15: =VLOOKUP($B15,[1]FlowData!$A$3:$PL$215,AB$7,FALSE) -> 101 | AC15: =VLOOKUP($B15,[1]FlowData!$A$3:$PL$215,AC$7,FALSE) -> 64 | AD15: =VLOOKUP($B15,[1]FlowData!$A$3:$PL$215,AD$7,FALSE) -> 122 | AE15: =VLOOKUP($B15,[1]FlowData!$A$3:$PL$215,AE$7,FALSE) -> 133 | AF15: =VLOOKUP($B15,[1]FlowData!$A$3:$PL$215,AF$7,FALSE) -> 72 | AG15: =VLOOKUP($B15,[1]FlowData!$A$3:$PL$215,AG$7,FALSE) -> 38 | AH15: =VLOOKUP($B15,[1]FlowData!$A$3:$PL$215,AH$7,FALSE) -> 85 | AI15: =VLOOKUP($B15,[1]FlowData!$A$3:$PL$215,AI$7,FALSE) -> 43 | AJ15: =VLOOKUP($B15,[1]FlowData!$A$3:$PL$215,AJ$7,FALSE) -> 26 | AK15: =VLOOKUP($B15,[1]FlowData!$A$3:$PL$215,AK$7,FALSE) -> 17 | AL15: =VLOOKUP($B15,[1]FlowData!$A$3:$PL$215,AL$7,FALSE) -> 30 | AM15: =VLOOKUP($B15,[1]FlowData!$A$3:$PL$215,AM$7,FALSE) -> 17 | AN15: =VLOOKUP($B15,[1]FlowData!$A$3:$PL$215,AN$7,FALSE) -> 13 | AO15: =VLOOKUP($B15,[1]FlowData!$A$3:$PL$215,AO$7,FALSE) -> 8.8 | AP15: =VLOOKUP($B15,[1]FlowData!$A$3:$PL$215,AP$7,FALSE) -> 14 | AQ15: =VLOOKUP($B15,[1]FlowData!$A$3:$PL$215,AQ$7,FALSE) -> 11 | AR15: =VLOOKUP($B15,[1]FlowData!$A$3:$PL$215,AR$7,FALSE) -> 8.8 | AS15: =VLOOKUP($B15,[1]FlowData!$A$3:$PL$215,AS$7,FALSE) -> 7.1 | AT15: =VLOOKUP($B15,[1]FlowData!$A$3:$PL$215,AT$7,FALSE) -> 9.5 | AU15: =VLOOKUP($B15,[1]FlowData!$A$3:$PL$215,AU$7,FALSE) -> 12 | AV15: =VLOOKUP($B15,[1]FlowData!$A$3:$PL$215,AV$7,FALSE) -> 8.4 | AW15: =VLOOKUP($B15,[1]FlowData!$A$3:$PL$215,AW$7,FALSE) -> 6.8 | AX15: =VLOOKUP($B15,[1]FlowData!$A$3:$PL$215,AX$7,FALSE) -> 9.4 | AY15: =VLOOKUP($B15,[1]FlowData!$A$3:$PL$215,AY$7,FALSE) -> 16 | AZ15: =VLOOKUP($B15,[1]FlowData!$A$3:$PL$215,AZ$7,FALSE) -> 10 | BA15: =VLOOKUP($B15,[1]FlowData!$A$3:$PL$215,BA$7,FALSE) -> 6.5 | BB15: =VLOOKUP($B15,[1]FlowData!$A$3:$PL$215,BB$7,FALSE) -> 16 | BC15: =VLOOKUP($B15,[1]FlowData!$A$3:$PL$215,BC$7,FALSE) -> 17 | BD15: =VLOOKUP($B15,[1]FlowData!$A$3:$PL$215,BD$7,FALSE) -> 8.7 | BE15: =VLOOKUP($B15,[1]FlowData!$A$3:$PL$215,BE$7,FALSE) -> 5.4 | BF15: =VLOOKUP($B15,[1]FlowData!$A$3:$PL$215,BF$7,FALSE) -> 16
A16: =VLOOKUP(B16,'[2]Gages and BCs'!$A$4:$BJ$973,62,FALSE) -> 621 | B16: 12304500 | C16: =VLOOKUP(B16,'[2]Gages and BCs'!$A$4:$BJ$973,60,FALSE) -> Yaak River near Troy, Montana | D16: 1956–2009 | E16: =VLOOKUP($B16,[1]FlowData!$A$3:$PL$215,E$7,FALSE) -> 68.603 | F16: =VLOOKUP($B16,[1]FlowData!$A$3:$PL$215,F$7,FALSE) -> 93.624 | G16: =VLOOKUP($B16,[1]FlowData!$A$3:$PL$215,G$7,FALSE) -> 1260 | H16: =VLOOKUP($B16,[1]FlowData!$A$3:$PL$215,H$7,FALSE) -> 376 | I16: =VLOOKUP($B16,[1]FlowData!$A$3:$PL$215,I$7,FALSE) -> 177 | J16: =VLOOKUP($B16,[1]FlowData!$A$3:$PL$215,J$7,FALSE) -> 836 | K16: =VLOOKUP($B16,[1]FlowData!$A$3:$PL$215,K$7,FALSE) -> 386 | L16: =VLOOKUP($B16,[1]FlowData!$A$3:$PL$215,L$7,FALSE) -> 242 | M16: =VLOOKUP($B16,[1]FlowData!$A$3:$PL$215,M$7,FALSE) -> 127 | N16: =VLOOKUP($B16,[1]FlowData!$A$3:$PL$215,N$7,FALSE) -> 291 | O16: =VLOOKUP($B16,[1]FlowData!$A$3:$PL$215,O$7,FALSE) -> 469 | P16: =VLOOKUP($B16,[1]FlowData!$A$3:$PL$215,P$7,FALSE) -> 254 | Q16: =VLOOKUP($B16,[1]FlowData!$A$3:$PL$215,Q$7,FALSE) -> 134 | R16: =VLOOKUP($B16,[1]FlowData!$A$3:$PL$215,R$7,FALSE) -> 344 | S16: =VLOOKUP($B16,[1]FlowData!$A$3:$PL$215,S$7,FALSE) -> 845 | T16: =VLOOKUP($B16,[1]FlowData!$A$3:$PL$215,T$7,FALSE) -> 421 | U16: =VLOOKUP($B16,[1]FlowData!$A$3:$PL$215,U$7,FALSE) -> 202 | V16: =VLOOKUP($B16,[1]FlowData!$A$3:$PL$215,V$7,FALSE) -> 601 | W16: =VLOOKUP($B16,[1]FlowData!$A$3:$PL$215,W$7,FALSE) -> 2750 | X16: =VLOOKUP($B16,[1]FlowData!$A$3:$PL$215,X$7,FALSE) -> 1540 | Y16: =VLOOKUP($B16,[1]FlowData!$A$3:$PL$215,Y$7,FALSE) -> 821 | Z16: =VLOOKUP($B16,[1]FlowData!$A$3:$PL$215,Z$7,FALSE) -> 1900 | AA16: =VLOOKUP($B16,[1]FlowData!$A$3:$PL$215,AA$7,FALSE) -> 4780 | AB16: =VLOOKUP($B16,[1]FlowData!$A$3:$PL$215,AB$7,FALSE) -> 3070 | AC16: =VLOOKUP($B16,[1]FlowData!$A$3:$PL$215,AC$7,FALSE) -> 1950 | AD16: =VLOOKUP($B16,[1]FlowData!$A$3:$PL$215,AD$7,FALSE) -> 3450 | AE16: =VLOOKUP($B16,[1]FlowData!$A$3:$PL$215,AE$7,FALSE) -> 2830 | AF16: =VLOOKUP($B16,[1]FlowData!$A$3:$PL$215,AF$7,FALSE) -> 1580 | AG16: =VLOOKUP($B16,[1]FlowData!$A$3:$PL$215,AG$7,FALSE) -> 817 | AH16: =VLOOKUP($B16,[1]FlowData!$A$3:$PL$215,AH$7,FALSE) -> 1870 | AI16: =VLOOKUP($B16,[1]FlowData!$A$3:$PL$215,AI$7,FALSE) -> 683 | AJ16: =VLOOKUP($B16,[1]FlowData!$A$3:$PL$215,AJ$7,FALSE) -> 394 | AK16: =VLOOKUP($B16,[1]FlowData!$A$3:$PL$215,AK$7,FALSE) -> 240 | AL16: =VLOOKUP($B16,[1]FlowData!$A$3:$PL$215,AL$7,FALSE) -> 479 | AM16: =VLOOKUP($B16,[1]FlowData!$A$3:$PL$215,AM$7,FALSE) -> 250 | AN16: =VLOOKUP($B16,[1]FlowData!$A$3:$PL$215,AN$7,FALSE) -> 178 | AO16: =VLOOKUP($B16,[1]FlowData!$A$3:$PL$215,AO$7,FALSE) -> 121 | AP16: =VLOOKUP($B16,[1]FlowData!$A$3:$PL$215,AP$7,FALSE) -> 190 | AQ16: =VLOOKUP($B16,[1]FlowData!$A$3:$PL$215,AQ$7,FALSE) -> 195 | AR16: =VLOOKUP($B16,[1]FlowData!$A$3:$PL$215,AR$7,FALSE) -> 143 | AS16: =VLOOKUP($B16,[1]FlowData!$A$3:$PL$215,AS$7,FALSE) -> 103 | AT16: =VLOOKUP($B16,[1]FlowData!$A$3:$PL$215,AT$7,FALSE) -> 157 | AU16: =VLOOKUP($B16,[1]FlowData!$A$3:$PL$215,AU$7,FALSE) -> 225 | AV16: =VLOOKUP($B16,[1]FlowData!$A$3:$PL$215,AV$7,FALSE) -> 158 | AW16: =VLOOKUP($B16,[1]FlowData!$A$3:$PL$215,AW$7,FALSE) -> 114 | AX16: =VLOOKUP($B16,[1]FlowData!$A$3:$PL$215,AX$7,FALSE) -> 192 | AY16: =VLOOKUP($B16,[1]FlowData!$A$3:$PL$215,AY$7,FALSE) -> 414 | AZ16: =VLOOKUP($B16,[1]FlowData!$A$3:$PL$215,AZ$7,FALSE) -> 216 | BA16: =VLOOKUP($B16,[1]FlowData!$A$3:$PL$215,BA$7,FALSE) -> 116 | BB16: =VLOOKUP($B16,[1]FlowData!$A$3:$PL$215,BB$7,FALSE) -> 312 | BC16: =VLOOKUP($B16,[1]FlowData!$A$3:$PL$215,BC$7,FALSE) -> 412 | BD16: =VLOOKUP($B16,[1]FlowData!$A$3:$PL$215,BD$7,FALSE) -> 228 | BE16: =VLOOKUP($B16,[1]FlowData!$A$3:$PL$215,BE$7,FALSE) -> 118 | BF16: =VLOOKUP($B16,[1]FlowData!$A$3:$PL$215,BF$7,FALSE) -> 311
A17: =VLOOKUP(B17,'[2]Gages and BCs'!$A$4:$BJ$973,62,FALSE) -> 624 | B17: 12323240 | C17: =VLOOKUP(B17,'[2]Gages and BCs'!$A$4:$BJ$973,60,FALSE) -> Blacktail Creek at Butte, Montana | D17: 1989–2009 | E17: =VLOOKUP($B17,[1]FlowData!$A$3:$PL$215,E$7,FALSE) -> 4.754 | F17: =VLOOKUP($B17,[1]FlowData!$A$3:$PL$215,F$7,FALSE) -> 5.541 | G17: =VLOOKUP($B17,[1]FlowData!$A$3:$PL$215,G$7,FALSE) -> 17 | H17: =VLOOKUP($B17,[1]FlowData!$A$3:$PL$215,H$7,FALSE) -> 9.7 | I17: =VLOOKUP($B17,[1]FlowData!$A$3:$PL$215,I$7,FALSE) -> 6.1 | J17: =VLOOKUP($B17,[1]FlowData!$A$3:$PL$215,J$7,FALSE) -> 13 | K17: =VLOOKUP($B17,[1]FlowData!$A$3:$PL$215,K$7,FALSE) -> 9.9 | L17: =VLOOKUP($B17,[1]FlowData!$A$3:$PL$215,L$7,FALSE) -> 8.1 | M17: =VLOOKUP($B17,[1]FlowData!$A$3:$PL$215,M$7,FALSE) -> 7.2 | N17: =VLOOKUP($B17,[1]FlowData!$A$3:$PL$215,N$7,FALSE) -> 8.6 | O17: =VLOOKUP($B17,[1]FlowData!$A$3:$PL$215,O$7,FALSE) -> 12 | P17: =VLOOKUP($B17,[1]FlowData!$A$3:$PL$215,P$7,FALSE) -> 9.3 | Q17: =VLOOKUP($B17,[1]FlowData!$A$3:$PL$215,Q$7,FALSE) -> 6.9 | R17: =VLOOKUP($B17,[1]FlowData!$A$3:$PL$215,R$7,FALSE) -> 10 | S17: =VLOOKUP($B17,[1]FlowData!$A$3:$PL$215,S$7,FALSE) -> 17 | T17: =VLOOKUP($B17,[1]FlowData!$A$3:$PL$215,T$7,FALSE) -> 12 | U17: =VLOOKUP($B17,[1]FlowData!$A$3:$PL$215,U$7,FALSE) -> 8.4 | V17: =VLOOKUP($B17,[1]FlowData!$A$3:$PL$215,V$7,FALSE) -> 14 | W17: =VLOOKUP($B17,[1]FlowData!$A$3:$PL$215,W$7,FALSE) -> 23 | X17: =VLOOKUP($B17,[1]FlowData!$A$3:$PL$215,X$7,FALSE) -> 15 | Y17: =VLOOKUP($B17,[1]FlowData!$A$3:$PL$215,Y$7,FALSE) -> 11 | Z17: =VLOOKUP($B17,[1]FlowData!$A$3:$PL$215,Z$7,FALSE) -> 18 | AA17: =VLOOKUP($B17,[1]FlowData!$A$3:$PL$215,AA$7,FALSE) -> 29 | AB17: =VLOOKUP($B17,[1]FlowData!$A$3:$PL$215,AB$7,FALSE) -> 18 | AC17: =VLOOKUP($B17,[1]FlowData!$A$3:$PL$215,AC$7,FALSE) -> 11 | AD17: =VLOOKUP($B17,[1]FlowData!$A$3:$PL$215,AD$7,FALSE) -> 21 | AE17: =VLOOKUP($B17,[1]FlowData!$A$3:$PL$215,AE$7,FALSE) -> 32 | AF17: =VLOOKUP($B17,[1]FlowData!$A$3:$PL$215,AF$7,FALSE) -> 16 | AG17: =VLOOKUP($B17,[1]FlowData!$A$3:$PL$215,AG$7,FALSE) -> 9.2 | AH17: =VLOOKUP($B17,[1]FlowData!$A$3:$PL$215,AH$7,FALSE) -> 23 | AI17: =VLOOKUP($B17,[1]FlowData!$A$3:$PL$215,AI$7,FALSE) -> 14 | AJ17: =VLOOKUP($B17,[1]FlowData!$A$3:$PL$215,AJ$7,FALSE) -> 8.9 | AK17: =VLOOKUP($B17,[1]FlowData!$A$3:$PL$215,AK$7,FALSE) -> 6.8 | AL17: =VLOOKUP($B17,[1]FlowData!$A$3:$PL$215,AL$7,FALSE) -> 12 | AM17: =VLOOKUP($B17,[1]FlowData!$A$3:$PL$215,AM$7,FALSE) -> 12 | AN17: =VLOOKUP($B17,[1]FlowData!$A$3:$PL$215,AN$7,FALSE) -> 8.4 | AO17: =VLOOKUP($B17,[1]FlowData!$A$3:$PL$215,AO$7,FALSE) -> 6.2 | AP17: =VLOOKUP($B17,[1]FlowData!$A$3:$PL$215,AP$7,FALSE) -> 9.4 | AQ17: =VLOOKUP($B17,[1]FlowData!$A$3:$PL$215,AQ$7,FALSE) -> 11 | AR17: =VLOOKUP($B17,[1]FlowData!$A$3:$PL$215,AR$7,FALSE) -> 8.3 | AS17: =VLOOKUP($B17,[1]FlowData!$A$3:$PL$215,AS$7,FALSE) -> 6.4 | AT17: =VLOOKUP($B17,[1]FlowData!$A$3:$PL$215,AT$7,FALSE) -> 8.9 | AU17: =VLOOKUP($B17,[1]FlowData!$A$3:$PL$215,AU$7,FALSE) -> 12 | AV17: =VLOOKUP($B17,[1]FlowData!$A$3:$PL$215,AV$7,FALSE) -> 9.9 | AW17: =VLOOKUP($B17,[1]FlowData!$A$3:$PL$215,AW$7,FALSE) -> 7.5 | AX17: =VLOOKUP($B17,[1]FlowData!$A$3:$PL$215,AX$7,FALSE) -> 10 | AY17: =VLOOKUP($B17,[1]FlowData!$A$3:$PL$215,AY$7,FALSE) -> 12 | AZ17: =VLOOKUP($B17,[1]FlowData!$A$3:$PL$215,AZ$7,FALSE) -> 9.6 | BA17: =VLOOKUP($B17,[1]FlowData!$A$3:$PL$215,BA$7,FALSE) -> 7.7 | BB17: =VLOOKUP($B17,[1]FlowData!$A$3:$PL$215,BB$7,FALSE) -> 10 | BC17: =VLOOKUP($B17,[1]FlowData!$A$3:$PL$215,BC$7,FALSE) -> 11 | BD17: =VLOOKUP($B17,[1]FlowData!$A$3:$PL$215,BD$7,FALSE) -> 8.4 | BE17: =VLOOKUP($B17,[1]FlowData!$A$3:$PL$215,BE$7,FALSE) -> 7.2 | BF17: =VLOOKUP($B17,[1]FlowData!$A$3:$PL$215,BF$7,FALSE) -> 8.9
A18: =VLOOKUP(B18,'[2]Gages and BCs'!$A$4:$BJ$973,62,FALSE) -> 627 | B18: 12323500 | C18: =VLOOKUP(B18,'[2]Gages and BCs'!$A$4:$BJ$973,60,FALSE) -> German Gulch Creek near Ramsay, Montana | D18: 1956–69 | E18: =VLOOKUP($B18,[1]FlowData!$A$3:$PL$215,E$7,FALSE) -> 3.674 | F18: =VLOOKUP($B18,[1]FlowData!$A$3:$PL$215,F$7,FALSE) -> 6.833 | G18: =VLOOKUP($B18,[1]FlowData!$A$3:$PL$215,G$7,FALSE) -> 24 | H18: =VLOOKUP($B18,[1]FlowData!$A$3:$PL$215,H$7,FALSE) -> 11 | I18: =VLOOKUP($B18,[1]FlowData!$A$3:$PL$215,I$7,FALSE) -> 5.7 | J18: =VLOOKUP($B18,[1]FlowData!$A$3:$PL$215,J$7,FALSE) -> 21 | K18: =VLOOKUP($B18,[1]FlowData!$A$3:$PL$215,K$7,FALSE) -> 7.9 | L18: =VLOOKUP($B18,[1]FlowData!$A$3:$PL$215,L$7,FALSE) -> 6.4 | M18: =VLOOKUP($B18,[1]FlowData!$A$3:$PL$215,M$7,FALSE) -> 5.4 | N18: =VLOOKUP($B18,[1]FlowData!$A$3:$PL$215,N$7,FALSE) -> 6.6 | O18: =VLOOKUP($B18,[1]FlowData!$A$3:$PL$215,O$7,FALSE) -> 8.1 | P18: =VLOOKUP($B18,[1]FlowData!$A$3:$PL$215,P$7,FALSE) -> 6.4 | Q18: =VLOOKUP($B18,[1]FlowData!$A$3:$PL$215,Q$7,FALSE) -> 5.2 | R18: =VLOOKUP($B18,[1]FlowData!$A$3:$PL$215,R$7,FALSE) -> 6.8 | S18: =VLOOKUP($B18,[1]FlowData!$A$3:$PL$215,S$7,FALSE) -> 9.8 | T18: =VLOOKUP($B18,[1]FlowData!$A$3:$PL$215,T$7,FALSE) -> 7.1 | U18: =VLOOKUP($B18,[1]FlowData!$A$3:$PL$215,U$7,FALSE) -> 5.1 | V18: =VLOOKUP($B18,[1]FlowData!$A$3:$PL$215,V$7,FALSE) -> 8.5 | W18: =VLOOKUP($B18,[1]FlowData!$A$3:$PL$215,W$7,FALSE) -> 25 | X18: =VLOOKUP($B18,[1]FlowData!$A$3:$PL$215,X$7,FALSE) -> 14 | Y18: =VLOOKUP($B18,[1]FlowData!$A$3:$PL$215,Y$7,FALSE) -> 9.7 | Z18: =VLOOKUP($B18,[1]FlowData!$A$3:$PL$215,Z$7,FALSE) -> 18 | AA18: =VLOOKUP($B18,[1]FlowData!$A$3:$PL$215,AA$7,FALSE) -> 95 | AB18: =VLOOKUP($B18,[1]FlowData!$A$3:$PL$215,AB$7,FALSE) -> 56 | AC18: =VLOOKUP($B18,[1]FlowData!$A$3:$PL$215,AC$7,FALSE) -> 34 | AD18: =VLOOKUP($B18,[1]FlowData!$A$3:$PL$215,AD$7,FALSE) -> 65 | AE18: =VLOOKUP($B18,[1]FlowData!$A$3:$PL$215,AE$7,FALSE) -> 112 | AF18: =VLOOKUP($B18,[1]FlowData!$A$3:$PL$215,AF$7,FALSE) -> 66 | AG18: =VLOOKUP($B18,[1]FlowData!$A$3:$PL$215,AG$7,FALSE) -> 39 | AH18: =VLOOKUP($B18,[1]FlowData!$A$3:$PL$215,AH$7,FALSE) -> 76 | AI18: =VLOOKUP($B18,[1]FlowData!$A$3:$PL$215,AI$7,FALSE) -> 32 | AJ18: =VLOOKUP($B18,[1]FlowData!$A$3:$PL$215,AJ$7,FALSE) -> 19 | AK18: =VLOOKUP($B18,[1]FlowData!$A$3:$PL$215,AK$7,FALSE) -> 13 | AL18: =VLOOKUP($B18,[1]FlowData!$A$3:$PL$215,AL$7,FALSE) -> 23 | AM18: =VLOOKUP($B18,[1]FlowData!$A$3:$PL$215,AM$7,FALSE) -> 14 | AN18: =VLOOKUP($B18,[1]FlowData!$A$3:$PL$215,AN$7,FALSE) -> 11 | AO18: =VLOOKUP($B18,[1]FlowData!$A$3:$PL$215,AO$7,FALSE) -> 7.9 | AP18: =VLOOKUP($B18,[1]FlowData!$A$3:$PL$215,AP$7,FALSE) -> 11 | AQ18: =VLOOKUP($B18,[1]FlowData!$A$3:$PL$215,AQ$7,FALSE) -> 11 | AR18: =VLOOKUP($B18,[1]FlowData!$A$3:$PL$215,AR$7,FALSE) -> 9.3 | AS18: =VLOOKUP($B18,[1]FlowData!$A$3:$PL$215,AS$7,FALSE) -> 7.6 | AT18: =VLOOKUP($B18,[1]FlowData!$A$3:$PL$215,AT$7,FALSE) -> 9.6 | AU18: =VLOOKUP($B18,[1]FlowData!$A$3:$PL$215,AU$7,FALSE) -> 12 | AV18: =VLOOKUP($B18,[1]FlowData!$A$3:$PL$215,AV$7,FALSE) -> 8.7 | AW18: =VLOOKUP($B18,[1]FlowData!$A$3:$PL$215,AW$7,FALSE) -> 7.4 | AX18: =VLOOKUP($B18,[1]FlowData!$A$3:$PL$215,AX$7,FALSE) -> 9.4 | AY18: =VLOOKUP($B18,[1]FlowData!$A$3:$PL$215,AY$7,FALSE) -> 9.9 | AZ18: =VLOOKUP($B18,[1]FlowData!$A$3:$PL$215,AZ$7,FALSE) -> 8 | BA18: =VLOOKUP($B18,[1]FlowData!$A$3:$PL$215,BA$7,FALSE) -> 6.7 | BB18: =VLOOKUP($B18,[1]FlowData!$A$3:$PL$215,BB$7,FALSE) -> 8.1 | BC18: =VLOOKUP($B18,[1]FlowData!$A$3:$PL$215,BC$7,FALSE) -> 9.6 | BD18: =VLOOKUP($B18,[1]FlowData!$A$3:$PL$215,BD$7,FALSE) -> 7 | BE18: =VLOOKUP($B18,[1]FlowData!$A$3:$PL$215,BE$7,FALSE) -> 5.8 | BF18: =VLOOKUP($B18,[1]FlowData!$A$3:$PL$215,BF$7,FALSE) -> 7.5
A19: =VLOOKUP(B19,'[2]Gages and BCs'!$A$4:$BJ$973,62,FALSE) -> 628 | B19: 12323600 | C19: =VLOOKUP(B19,'[2]Gages and BCs'!$A$4:$BJ$973,60,FALSE) -> Silver Bow Creek at Opportunity, Montana | D19: 1988–2009 | E19: =VLOOKUP($B19,[1]FlowData!$A$3:$PL$215,E$7,FALSE) -> 12.337 | F19: =VLOOKUP($B19,[1]FlowData!$A$3:$PL$215,F$7,FALSE) -> 13.983 | G19: =VLOOKUP($B19,[1]FlowData!$A$3:$PL$215,G$7,FALSE) -> 66 | H19: =VLOOKUP($B19,[1]FlowData!$A$3:$PL$215,H$7,FALSE) -> 41 | I19: =VLOOKUP($B19,[1]FlowData!$A$3:$PL$215,I$7,FALSE) -> 22 | J19: =VLOOKUP($B19,[1]FlowData!$A$3:$PL$215,J$7,FALSE) -> 51 | K19: =VLOOKUP($B19,[1]FlowData!$A$3:$PL$215,K$7,FALSE) -> 42 | L19: =VLOOKUP($B19,[1]FlowData!$A$3:$PL$215,L$7,FALSE) -> 30 | M19: =VLOOKUP($B19,[1]FlowData!$A$3:$PL$215,M$7,FALSE) -> 24 | N19: =VLOOKUP($B19,[1]FlowData!$A$3:$PL$215,N$7,FALSE) -> 34 | O19: =VLOOKUP($B19,[1]FlowData!$A$3:$PL$215,O$7,FALSE) -> 57 | P19: =VLOOKUP($B19,[1]FlowData!$A$3:$PL$215,P$7,FALSE) -> 43 | Q19: =VLOOKUP($B19,[1]FlowData!$A$3:$PL$215,Q$7,FALSE) -> 28 | R19: =VLOOKUP($B19,[1]FlowData!$A$3:$PL$215,R$7,FALSE) -> 45 | S19: =VLOOKUP($B19,[1]FlowData!$A$3:$PL$215,S$7,FALSE) -> 63 | T19: =VLOOKUP($B19,[1]FlowData!$A$3:$PL$215,T$7,FALSE) -> 43 | U19: =VLOOKUP($B19,[1]FlowData!$A$3:$PL$215,U$7,FALSE) -> 32 | V19: =VLOOKUP($B19,[1]FlowData!$A$3:$PL$215,V$7,FALSE) -> 52 | W19: =VLOOKUP($B19,[1]FlowData!$A$3:$PL$215,W$7,FALSE) -> 83 | X19: =VLOOKUP($B19,[1]FlowData!$A$3:$PL$215,X$7,FALSE) -> 56 | Y19: =VLOOKUP($B19,[1]FlowData!$A$3:$PL$215,Y$7,FALSE) -> 42 | Z19: =VLOOKUP($B19,[1]FlowData!$A$3:$PL$215,Z$7,FALSE) -> 65 | AA19: =VLOOKUP($B19,[1]FlowData!$A$3:$PL$215,AA$7,FALSE) -> 127 | AB19: =VLOOKUP($B19,[1]FlowData!$A$3:$PL$215,AB$7,FALSE) -> 85 | AC19: =VLOOKUP($B19,[1]FlowData!$A$3:$PL$215,AC$7,FALSE) -> 48 | AD19: =VLOOKUP($B19,[1]FlowData!$A$3:$PL$215,AD$7,FALSE) -> 98 | AE19: =VLOOKUP($B19,[1]FlowData!$A$3:$PL$215,AE$7,FALSE) -> 143 | AF19: =VLOOKUP($B19,[1]FlowData!$A$3:$PL$215,AF$7,FALSE) -> 79 | AG19: =VLOOKUP($B19,[1]FlowData!$A$3:$PL$215,AG$7,FALSE) -> 40 | AH19: =VLOOKUP($B19,[1]FlowData!$A$3:$PL$215,AH$7,FALSE) -> 100 | AI19: =VLOOKUP($B19,[1]FlowData!$A$3:$PL$215,AI$7,FALSE) -> 65 | AJ19: =VLOOKUP($B19,[1]FlowData!$A$3:$PL$215,AJ$7,FALSE) -> 33 | AK19: =VLOOKUP($B19,[1]FlowData!$A$3:$PL$215,AK$7,FALSE) -> 21 | AL19: =VLOOKUP($B19,[1]FlowData!$A$3:$PL$215,AL$7,FALSE) -> 43 | AM19: =VLOOKUP($B19,[1]FlowData!$A$3:$PL$215,AM$7,FALSE) -> 39 | AN19: =VLOOKUP($B19,[1]FlowData!$A$3:$PL$215,AN$7,FALSE) -> 22 | AO19: =VLOOKUP($B19,[1]FlowData!$A$3:$PL$215,AO$7,FALSE) -> 15 | AP19: =VLOOKUP($B19,[1]FlowData!$A$3:$PL$215,AP$7,FALSE) -> 28 | AQ19: =VLOOKUP($B19,[1]FlowData!$A$3:$PL$215,AQ$7,FALSE) -> 39 | AR19: =VLOOKUP($B19,[1]FlowData!$A$3:$PL$215,AR$7,FALSE) -> 27 | AS19: =VLOOKUP($B19,[1]FlowData!$A$3:$PL$215,AS$7,FALSE) -> 21 | AT19: =VLOOKUP($B19,[1]FlowData!$A$3:$PL$215,AT$7,FALSE) -> 30 | AU19: =VLOOKUP($B19,[1]FlowData!$A$3:$PL$215,AU$7,FALSE) -> 44 | AV19: =VLOOKUP($B19,[1]FlowData!$A$3:$PL$215,AV$7,FALSE) -> 34 | AW19: =VLOOKUP($B19,[1]FlowData!$A$3:$PL$215,AW$7,FALSE) -> 26 | AX19: =VLOOKUP($B19,[1]FlowData!$A$3:$PL$215,AX$7,FALSE) -> 35 | AY19: =VLOOKUP($B19,[1]FlowData!$A$3:$PL$215,AY$7,FALSE) -> 46 | AZ19: =VLOOKUP($B19,[1]FlowData!$A$3:$PL$215,AZ$7,FALSE) -> 34 | BA19: =VLOOKUP($B19,[1]FlowData!$A$3:$PL$215,BA$7,FALSE) -> 26 | BB19: =VLOOKUP($B19,[1]FlowData!$A$3:$PL$215,BB$7,FALSE) -> 35 | BC19: =VLOOKUP($B19,[1]FlowData!$A$3:$PL$215,BC$7,FALSE) -> 41 | BD19: =VLOOKUP($B19,[1]FlowData!$A$3:$PL$215,BD$7,FALSE) -> 28 | BE19: =VLOOKUP($B19,[1]FlowData!$A$3:$PL$215,BE$7,FALSE) -> 23 | BF19: =VLOOKUP($B19,[1]FlowData!$A$3:$PL$215,BF$7,FALSE) -> 32
A20: =VLOOKUP(B20,'[2]Gages and BCs'!$A$4:$BJ$973,62,FALSE) -> 633 | B20: 12324100 | C20: =VLOOKUP(B20,'[2]Gages and BCs'!$A$4:$BJ$973,60,FALSE) -> Racetrack Creek below Granite Creek, near Anaconda, Montana | D20: 1958–72 | E20: =VLOOKUP($B20,[1]FlowData!$A$3:$PL$215,E$7,FALSE) -> 14.489 | F20: =VLOOKUP($B20,[1]FlowData!$A$3:$PL$215,F$7,FALSE) -> 23.992 | G20: =VLOOKUP($B20,[1]FlowData!$A$3:$PL$215,G$7,FALSE) -> 88 | H20: =VLOOKUP($B20,[1]FlowData!$A$3:$PL$215,H$7,FALSE) -> 33 | I20: =VLOOKUP($B20,[1]FlowData!$A$3:$PL$215,I$7,FALSE) -> 16 | J20: =VLOOKUP($B20,[1]FlowData!$A$3:$PL$215,J$7,FALSE) -> 61 | K20: =VLOOKUP($B20,[1]FlowData!$A$3:$PL$215,K$7,FALSE) -> 23 | L20: =VLOOKUP($B20,[1]FlowData!$A$3:$PL$215,L$7,FALSE) -> 20 | M20: =VLOOKUP($B20,[1]FlowData!$A$3:$PL$215,M$7,FALSE) -> 17 | N20: =VLOOKUP($B20,[1]FlowData!$A$3:$PL$215,N$7,FALSE) -> 20 | O20: =VLOOKUP($B20,[1]FlowData!$A$3:$PL$215,O$7,FALSE) -> 23 | P20: =VLOOKUP($B20,[1]FlowData!$A$3:$PL$215,P$7,FALSE) -> 20 | Q20: =VLOOKUP($B20,[1]FlowData!$A$3:$PL$215,Q$7,FALSE) -> 18 | R20: =VLOOKUP($B20,[1]FlowData!$A$3:$PL$215,R$7,FALSE) -> 20 | S20: =VLOOKUP($B20,[1]FlowData!$A$3:$PL$215,S$7,FALSE) -> 22 | T20: =VLOOKUP($B20,[1]FlowData!$A$3:$PL$215,T$7,FALSE) -> 19 | U20: =VLOOKUP($B20,[1]FlowData!$A$3:$PL$215,U$7,FALSE) -> 17 | V20: =VLOOKUP($B20,[1]FlowData!$A$3:$PL$215,V$7,FALSE) -> 20 | W20: =VLOOKUP($B20,[1]FlowData!$A$3:$PL$215,W$7,FALSE) -> 32 | X20: =VLOOKUP($B20,[1]FlowData!$A$3:$PL$215,X$7,FALSE) -> 23 | Y20: =VLOOKUP($B20,[1]FlowData!$A$3:$PL$215,Y$7,FALSE) -> 20 | Z20: =VLOOKUP($B20,[1]FlowData!$A$3:$PL$215,Z$7,FALSE) -> 27 | AA20: =VLOOKUP($B20,[1]FlowData!$A$3:$PL$215,AA$7,FALSE) -> 162 | AB20: =VLOOKUP($B20,[1]FlowData!$A$3:$PL$215,AB$7,FALSE) -> 87 | AC20: =VLOOKUP($B20,[1]FlowData!$A$3:$PL$215,AC$7,FALSE) -> 42 | AD20: =VLOOKUP($B20,[1]FlowData!$A$3:$PL$215,AD$7,FALSE) -> 103 | AE20: =VLOOKUP($B20,[1]FlowData!$A$3:$PL$215,AE$7,FALSE) -> 289 | AF20: =VLOOKUP($B20,[1]FlowData!$A$3:$PL$215,AF$7,FALSE) -> 226 | AG20: =VLOOKUP($B20,[1]FlowData!$A$3:$PL$215,AG$7,FALSE) -> 155 | AH20: =VLOOKUP($B20,[1]FlowData!$A$3:$PL$215,AH$7,FALSE) -> 230 | AI20: =VLOOKUP($B20,[1]FlowData!$A$3:$PL$215,AI$7,FALSE) -> 130 | AJ20: =VLOOKUP($B20,[1]FlowData!$A$3:$PL$215,AJ$7,FALSE) -> 98 | AK20: =VLOOKUP($B20,[1]FlowData!$A$3:$PL$215,AK$7,FALSE) -> 79 | AL20: =VLOOKUP($B20,[1]FlowData!$A$3:$PL$215,AL$7,FALSE) -> 108 | AM20: =VLOOKUP($B20,[1]FlowData!$A$3:$PL$215,AM$7,FALSE) -> 88 | AN20: =VLOOKUP($B20,[1]FlowData!$A$3:$PL$215,AN$7,FALSE) -> 70 | AO20: =VLOOKUP($B20,[1]FlowData!$A$3:$PL$215,AO$7,FALSE) -> 53 | AP20: =VLOOKUP($B20,[1]FlowData!$A$3:$PL$215,AP$7,FALSE) -> 71 | AQ20: =VLOOKUP($B20,[1]FlowData!$A$3:$PL$215,AQ$7,FALSE) -> 55 | AR20: =VLOOKUP($B20,[1]FlowData!$A$3:$PL$215,AR$7,FALSE) -> 43 | AS20: =VLOOKUP($B20,[1]FlowData!$A$3:$PL$215,AS$7,FALSE) -> 33 | AT20: =VLOOKUP($B20,[1]FlowData!$A$3:$PL$215,AT$7,FALSE) -> 44 | AU20: =VLOOKUP($B20,[1]FlowData!$A$3:$PL$215,AU$7,FALSE) -> 41 | AV20: =VLOOKUP($B20,[1]FlowData!$A$3:$PL$215,AV$7,FALSE) -> 29 | AW20: =VLOOKUP($B20,[1]FlowData!$A$3:$PL$215,AW$7,FALSE) -> 26 | AX20: =VLOOKUP($B20,[1]FlowData!$A$3:$PL$215,AX$7,FALSE) -> 33 | AY20: =VLOOKUP($B20,[1]FlowData!$A$3:$PL$215,AY$7,FALSE) -> 30 | AZ20: =VLOOKUP($B20,[1]FlowData!$A$3:$PL$215,AZ$7,FALSE) -> 24 | BA20: =VLOOKUP($B20,[1]FlowData!$A$3:$PL$215,BA$7,FALSE) -> 21 | BB20: =VLOOKUP($B20,[1]FlowData!$A$3:$PL$215,BB$7,FALSE) -> 25 | BC20: =VLOOKUP($B20,[1]FlowData!$A$3:$PL$215,BC$7,FALSE) -> 25 | BD20: =VLOOKUP($B20,[1]FlowData!$A$3:$PL$215,BD$7,FALSE) -> 21 | BE20: =VLOOKUP($B20,[1]FlowData!$A$3:$PL$215,BE$7,FALSE) -> 17 | BF20: =VLOOKUP($B20,[1]FlowData!$A$3:$PL$215,BF$7,FALSE) -> 22
A21: =VLOOKUP(B21,'[2]Gages and BCs'!$A$4:$BJ$973,62,FALSE) -> 634 | B21: 12324200 | C21: =VLOOKUP(B21,'[2]Gages and BCs'!$A$4:$BJ$973,60,FALSE) -> Clark Fork at Deer Lodge, Montana | D21: 1979–2009 | E21: =VLOOKUP($B21,[1]FlowData!$A$3:$PL$215,E$7,FALSE) -> 25.716 | F21: =VLOOKUP($B21,[1]FlowData!$A$3:$PL$215,F$7,FALSE) -> 34.196 | G21: =VLOOKUP($B21,[1]FlowData!$A$3:$PL$215,G$7,FALSE) -> 330 | H21: =VLOOKUP($B21,[1]FlowData!$A$3:$PL$215,H$7,FALSE) -> 218 | I21: =VLOOKUP($B21,[1]FlowData!$A$3:$PL$215,I$7,FALSE) -> 128 | J21: =VLOOKUP($B21,[1]FlowData!$A$3:$PL$215,J$7,FALSE) -> 251 | K21: =VLOOKUP($B21,[1]FlowData!$A$3:$PL$215,K$7,FALSE) -> 267 | L21: =VLOOKUP($B21,[1]FlowData!$A$3:$PL$215,L$7,FALSE) -> 206 | M21: =VLOOKUP($B21,[1]FlowData!$A$3:$PL$215,M$7,FALSE) -> 157 | N21: =VLOOKUP($B21,[1]FlowData!$A$3:$PL$215,N$7,FALSE) -> 217 | O21: =VLOOKUP($B21,[1]FlowData!$A$3:$PL$215,O$7,FALSE) -> 278 | P21: =VLOOKUP($B21,[1]FlowData!$A$3:$PL$215,P$7,FALSE) -> 214 | Q21: =VLOOKUP($B21,[1]FlowData!$A$3:$PL$215,Q$7,FALSE) -> 167 | R21: =VLOOKUP($B21,[1]FlowData!$A$3:$PL$215,R$7,FALSE) -> 235 | S21: =VLOOKUP($B21,[1]FlowData!$A$3:$PL$215,S$7,FALSE) -> 310 | T21: =VLOOKUP($B21,[1]FlowData!$A$3:$PL$215,T$7,FALSE) -> 234 | U21: =VLOOKUP($B21,[1]FlowData!$A$3:$PL$215,U$7,FALSE) -> 192 | V21: =VLOOKUP($B21,[1]FlowData!$A$3:$PL$215,V$7,FALSE) -> 255 | W21: =VLOOKUP($B21,[1]FlowData!$A$3:$PL$215,W$7,FALSE) -> 336 | X21: =VLOOKUP($B21,[1]FlowData!$A$3:$PL$215,X$7,FALSE) -> 256 | Y21: =VLOOKUP($B21,[1]FlowData!$A$3:$PL$215,Y$7,FALSE) -> 194 | Z21: =VLOOKUP($B21,[1]FlowData!$A$3:$PL$215,Z$7,FALSE) -> 272 | AA21: =VLOOKUP($B21,[1]FlowData!$A$3:$PL$215,AA$7,FALSE) -> 516 | AB21: =VLOOKUP($B21,[1]FlowData!$A$3:$PL$215,AB$7,FALSE) -> 329 | AC21: =VLOOKUP($B21,[1]FlowData!$A$3:$PL$215,AC$7,FALSE) -> 191 | AD21: =VLOOKUP($B21,[1]FlowData!$A$3:$PL$215,AD$7,FALSE) -> 383 | AE21: =VLOOKUP($B21,[1]FlowData!$A$3:$PL$215,AE$7,FALSE) -> 781 | AF21: =VLOOKUP($B21,[1]FlowData!$A$3:$PL$215,AF$7,FALSE) -> 379 | AG21: =VLOOKUP($B21,[1]FlowData!$A$3:$PL$215,AG$7,FALSE) -> 176 | AH21: =VLOOKUP($B21,[1]FlowData!$A$3:$PL$215,AH$7,FALSE) -> 493 | AI21: =VLOOKUP($B21,[1]FlowData!$A$3:$PL$215,AI$7,FALSE) -> 354 | AJ21: =VLOOKUP($B21,[1]FlowData!$A$3:$PL$215,AJ$7,FALSE) -> 135 | AK21: =VLOOKUP($B21,[1]FlowData!$A$3:$PL$215,AK$7,FALSE) -> 59 | AL21: =VLOOKUP($B21,[1]FlowData!$A$3:$PL$215,AL$7,FALSE) -> 209 | AM21: =VLOOKUP($B21,[1]FlowData!$A$3:$PL$215,AM$7,FALSE) -> 145 | AN21: =VLOOKUP($B21,[1]FlowData!$A$3:$PL$215,AN$7,FALSE) -> 82 | AO21: =VLOOKUP($B21,[1]FlowData!$A$3:$PL$215,AO$7,FALSE) -> 41 | AP21: =VLOOKUP($B21,[1]FlowData!$A$3:$PL$215,AP$7,FALSE) -> 102 | AQ21: =VLOOKUP($B21,[1]FlowData!$A$3:$PL$215,AQ$7,FALSE) -> 234 | AR21: =VLOOKUP($B21,[1]FlowData!$A$3:$PL$215,AR$7,FALSE) -> 143 | AS21: =VLOOKUP($B21,[1]FlowData!$A$3:$PL$215,AS$7,FALSE) -> 96 | AT21: =VLOOKUP($B21,[1]FlowData!$A$3:$PL$215,AT$7,FALSE) -> 165 | AU21: =VLOOKUP($B21,[1]FlowData!$A$3:$PL$215,AU$7,FALSE) -> 299 | AV21: =VLOOKUP($B21,[1]FlowData!$A$3:$PL$215,AV$7,FALSE) -> 214 | AW21: =VLOOKUP($B21,[1]FlowData!$A$3:$PL$215,AW$7,FALSE) -> 156 | AX21: =VLOOKUP($B21,[1]FlowData!$A$3:$PL$215,AX$7,FALSE) -> 230 | AY21: =VLOOKUP($B21,[1]FlowData!$A$3:$PL$215,AY$7,FALSE) -> 310 | AZ21: =VLOOKUP($B21,[1]FlowData!$A$3:$PL$215,AZ$7,FALSE) -> 229 | BA21: =VLOOKUP($B21,[1]FlowData!$A$3:$PL$215,BA$7,FALSE) -> 179 | BB21: =VLOOKUP($B21,[1]FlowData!$A$3:$PL$215,BB$7,FALSE) -> 243 | BC21: =VLOOKUP($B21,[1]FlowData!$A$3:$PL$215,BC$7,FALSE) -> 271 | BD21: =VLOOKUP($B21,[1]FlowData!$A$3:$PL$215,BD$7,FALSE) -> 207 | BE21: =VLOOKUP($B21,[1]FlowData!$A$3:$PL$215,BE$7,FALSE) -> 161 | BF21: =VLOOKUP($B21,[1]FlowData!$A$3:$PL$215,BF$7,FALSE) -> 217
A22: =VLOOKUP(B22,'[2]Gages and BCs'!$A$4:$BJ$973,62,FALSE) -> 636 | B22: 12324590 | C22: =VLOOKUP(B22,'[2]Gages and BCs'!$A$4:$BJ$973,60,FALSE) -> Little Blackfoot River near Garrison, Montana | D22: 1973–2009 | E22: =VLOOKUP($B22,[1]FlowData!$A$3:$PL$215,E$7,FALSE) -> 12.986 | F22: =VLOOKUP($B22,[1]FlowData!$A$3:$PL$215,F$7,FALSE) -> 18.925 | G22: =VLOOKUP($B22,[1]FlowData!$A$3:$PL$215,G$7,FALSE) -> 225 | H22: =VLOOKUP($B22,[1]FlowData!$A$3:$PL$215,H$7,FALSE) -> 143 | I22: =VLOOKUP($B22,[1]FlowData!$A$3:$PL$215,I$7,FALSE) -> 61 | J22: =VLOOKUP($B22,[1]FlowData!$A$3:$PL$215,J$7,FALSE) -> 152 | K22: =VLOOKUP($B22,[1]FlowData!$A$3:$PL$215,K$7,FALSE) -> 76 | L22: =VLOOKUP($B22,[1]FlowData!$A$3:$PL$215,L$7,FALSE) -> 58 | M22: =VLOOKUP($B22,[1]FlowData!$A$3:$PL$215,M$7,FALSE) -> 36 | N22: =VLOOKUP($B22,[1]FlowData!$A$3:$PL$215,N$7,FALSE) -> 62 | O22: =VLOOKUP($B22,[1]FlowData!$A$3:$PL$215,O$7,FALSE) -> 93 | P22: =VLOOKUP($B22,[1]FlowData!$A$3:$PL$215,P$7,FALSE) -> 65 | Q22: =VLOOKUP($B22,[1]FlowData!$A$3:$PL$215,Q$7,FALSE) -> 37 | R22: =VLOOKUP($B22,[1]FlowData!$A$3:$PL$215,R$7,FALSE) -> 81 | S22: =VLOOKUP($B22,[1]FlowData!$A$3:$PL$215,S$7,FALSE) -> 145 | T22: =VLOOKUP($B22,[1]FlowData!$A$3:$PL$215,T$7,FALSE) -> 89 | U22: =VLOOKUP($B22,[1]FlowData!$A$3:$PL$215,U$7,FALSE) -> 63 | V22: =VLOOKUP($B22,[1]FlowData!$A$3:$PL$215,V$7,FALSE) -> 118 | W22: =VLOOKUP($B22,[1]FlowData!$A$3:$PL$215,W$7,FALSE) -> 336 | X22: =VLOOKUP($B22,[1]FlowData!$A$3:$PL$215,X$7,FALSE) -> 171 | Y22: =VLOOKUP($B22,[1]FlowData!$A$3:$PL$215,Y$7,FALSE) -> 110 | Z22: =VLOOKUP($B22,[1]FlowData!$A$3:$PL$215,Z$7,FALSE) -> 228 | AA22: =VLOOKUP($B22,[1]FlowData!$A$3:$PL$215,AA$7,FALSE) -> 711 | AB22: =VLOOKUP($B22,[1]FlowData!$A$3:$PL$215,AB$7,FALSE) -> 401 | AC22: =VLOOKUP($B22,[1]FlowData!$A$3:$PL$215,AC$7,FALSE) -> 194 | AD22: =VLOOKUP($B22,[1]FlowData!$A$3:$PL$215,AD$7,FALSE) -> 481 | AE22: =VLOOKUP($B22,[1]FlowData!$A$3:$PL$215,AE$7,FALSE) -> 597 | AF22: =VLOOKUP($B22,[1]FlowData!$A$3:$PL$215,AF$7,FALSE) -> 298 | AG22: =VLOOKUP($B22,[1]FlowData!$A$3:$PL$215,AG$7,FALSE) -> 131 | AH22: =VLOOKUP($B22,[1]FlowData!$A$3:$PL$215,AH$7,FALSE) -> 390 | AI22: =VLOOKUP($B22,[1]FlowData!$A$3:$PL$215,AI$7,FALSE) -> 187 | AJ22: =VLOOKUP($B22,[1]FlowData!$A$3:$PL$215,AJ$7,FALSE) -> 105 | AK22: =VLOOKUP($B22,[1]FlowData!$A$3:$PL$215,AK$7,FALSE) -> 58 | AL22: =VLOOKUP($B22,[1]FlowData!$A$3:$PL$215,AL$7,FALSE) -> 131 | AM22: =VLOOKUP($B22,[1]FlowData!$A$3:$PL$215,AM$7,FALSE) -> 85 | AN22: =VLOOKUP($B22,[1]FlowData!$A$3:$PL$215,AN$7,FALSE) -> 49 | AO22: =VLOOKUP($B22,[1]FlowData!$A$3:$PL$215,AO$7,FALSE) -> 26 | AP22: =VLOOKUP($B22,[1]FlowData!$A$3:$PL$215,AP$7,FALSE) -> 60 | AQ22: =VLOOKUP($B22,[1]FlowData!$A$3:$PL$215,AQ$7,FALSE) -> 75 | AR22: =VLOOKUP($B22,[1]FlowData!$A$3:$PL$215,AR$7,FALSE) -> 48 | AS22: =VLOOKUP($B22,[1]FlowData!$A$3:$PL$215,AS$7,FALSE) -> 29 | AT22: =VLOOKUP($B22,[1]FlowData!$A$3:$PL$215,AT$7,FALSE) -> 55 | AU22: =VLOOKUP($B22,[1]FlowData!$A$3:$PL$215,AU$7,FALSE) -> 91 | AV22: =VLOOKUP($B22,[1]FlowData!$A$3:$PL$215,AV$7,FALSE) -> 68 | AW22: =VLOOKUP($B22,[1]FlowData!$A$3:$PL$215,AW$7,FALSE) -> 47 | AX22: =VLOOKUP($B22,[1]FlowData!$A$3:$PL$215,AX$7,FALSE) -> 71 | AY22: =VLOOKUP($B22,[1]FlowData!$A$3:$PL$215,AY$7,FALSE) -> 89 | AZ22: =VLOOKUP($B22,[1]FlowData!$A$3:$PL$215,AZ$7,FALSE) -> 65 | BA22: =VLOOKUP($B22,[1]FlowData!$A$3:$PL$215,BA$7,FALSE) -> 53 | BB22: =VLOOKUP($B22,[1]FlowData!$A$3:$PL$215,BB$7,FALSE) -> 71 | BC22: =VLOOKUP($B22,[1]FlowData!$A$3:$PL$215,BC$7,FALSE) -> 72 | BD22: =VLOOKUP($B22,[1]FlowData!$A$3:$PL$215,BD$7,FALSE) -> 56 | BE22: =VLOOKUP($B22,[1]FlowData!$A$3:$PL$215,BE$7,FALSE) -> 36 | BF22: =VLOOKUP($B22,[1]FlowData!$A$3:$PL$215,BF$7,FALSE) -> 63
A23: =VLOOKUP(B23,'[2]Gages and BCs'!$A$4:$BJ$973,62,FALSE) -> 642 | B23: 12330000 | C23: =VLOOKUP(B23,'[2]Gages and BCs'!$A$4:$BJ$973,60,FALSE) -> Boulder Creek at Maxville, Montana | D23: 1939–2009 | E23: =VLOOKUP($B23,[1]FlowData!$A$3:$PL$215,E$7,FALSE) -> 5.31 | F23: =VLOOKUP($B23,[1]FlowData!$A$3:$PL$215,F$7,FALSE) -> 6.991 | G23: =VLOOKUP($B23,[1]FlowData!$A$3:$PL$215,G$7,FALSE) -> 51 | H23: =VLOOKUP($B23,[1]FlowData!$A$3:$PL$215,H$7,FALSE) -> 29 | I23: =VLOOKUP($B23,[1]FlowData!$A$3:$PL$215,I$7,FALSE) -> 13 | J23: =VLOOKUP($B23,[1]FlowData!$A$3:$PL$215,J$7,FALSE) -> 45 | K23: =VLOOKUP($B23,[1]FlowData!$A$3:$PL$215,K$7,FALSE) -> 22 | L23: =VLOOKUP($B23,[1]FlowData!$A$3:$PL$215,L$7,FALSE) -> 18 | M23: =VLOOKUP($B23,[1]FlowData!$A$3:$PL$215,M$7,FALSE) -> 15 | N23: =VLOOKUP($B23,[1]FlowData!$A$3:$PL$215,N$7,FALSE) -> 19 | O23: =VLOOKUP($B23,[1]FlowData!$A$3:$PL$215,O$7,FALSE) -> 21 | P23: =VLOOKUP($B23,[1]FlowData!$A$3:$PL$215,P$7,FALSE) -> 19 | Q23: =VLOOKUP($B23,[1]FlowData!$A$3:$PL$215,Q$7,FALSE) -> 15 | R23: =VLOOKUP($B23,[1]FlowData!$A$3:$PL$215,R$7,FALSE) -> 18 | S23: =VLOOKUP($B23,[1]FlowData!$A$3:$PL$215,S$7,FALSE) -> 21 | T23: =VLOOKUP($B23,[1]FlowData!$A$3:$PL$215,T$7,FALSE) -> 18 | U23: =VLOOKUP($B23,[1]FlowData!$A$3:$PL$215,U$7,FALSE) -> 15 | V23: =VLOOKUP($B23,[1]FlowData!$A$3:$PL$215,V$7,FALSE) -> 19 | W23: =VLOOKUP($B23,[1]FlowData!$A$3:$PL$215,W$7,FALSE) -> 35 | X23: =VLOOKUP($B23,[1]FlowData!$A$3:$PL$215,X$7,FALSE) -> 22 | Y23: =VLOOKUP($B23,[1]FlowData!$A$3:$PL$215,Y$7,FALSE) -> 17 | Z23: =VLOOKUP($B23,[1]FlowData!$A$3:$PL$215,Z$7,FALSE) -> 28 | AA23: =VLOOKUP($B23,[1]FlowData!$A$3:$PL$215,AA$7,FALSE) -> 173 | AB23: =VLOOKUP($B23,[1]FlowData!$A$3:$PL$215,AB$7,FALSE) -> 89 | AC23: =VLOOKUP($B23,[1]FlowData!$A$3:$PL$215,AC$7,FALSE) -> 45 | AD23: =VLOOKUP($B23,[1]FlowData!$A$3:$PL$215,AD$7,FALSE) -> 116 | AE23: =VLOOKUP($B23,[1]FlowData!$A$3:$PL$215,AE$7,FALSE) -> 256 | AF23: =VLOOKUP($B23,[1]FlowData!$A$3:$PL$215,AF$7,FALSE) -> 155 | AG23: =VLOOKUP($B23,[1]FlowData!$A$3:$PL$215,AG$7,FALSE) -> 82 | AH23: =VLOOKUP($B23,[1]FlowData!$A$3:$PL$215,AH$7,FALSE) -> 173 | AI23: =VLOOKUP($B23,[1]FlowData!$A$3:$PL$215,AI$7,FALSE) -> 82 | AJ23: =VLOOKUP($B23,[1]FlowData!$A$3:$PL$215,AJ$7,FALSE) -> 45 | AK23: =VLOOKUP($B23,[1]FlowData!$A$3:$PL$215,AK$7,FALSE) -> 22 | AL23: =VLOOKUP($B23,[1]FlowData!$A$3:$PL$215,AL$7,FALSE) -> 58 | AM23: =VLOOKUP($B23,[1]FlowData!$A$3:$PL$215,AM$7,FALSE) -> 29 | AN23: =VLOOKUP($B23,[1]FlowData!$A$3:$PL$215,AN$7,FALSE) -> 17 | AO23: =VLOOKUP($B23,[1]FlowData!$A$3:$PL$215,AO$7,FALSE) -> 11 | AP23: =VLOOKUP($B23,[1]FlowData!$A$3:$PL$215,AP$7,FALSE) -> 21 | AQ23: =VLOOKUP($B23,[1]FlowData!$A$3:$PL$215,AQ$7,FALSE) -> 24 | AR23: =VLOOKUP($B23,[1]FlowData!$A$3:$PL$215,AR$7,FALSE) -> 16 | AS23: =VLOOKUP($B23,[1]FlowData!$A$3:$PL$215,AS$7,FALSE) -> 9.3 | AT23: =VLOOKUP($B23,[1]FlowData!$A$3:$PL$215,AT$7,FALSE) -> 18 | AU23: =VLOOKUP($B23,[1]FlowData!$A$3:$PL$215,AU$7,FALSE) -> 30 | AV23: =VLOOKUP($B23,[1]FlowData!$A$3:$PL$215,AV$7,FALSE) -> 22 | AW23: =VLOOKUP($B23,[1]FlowData!$A$3:$PL$215,AW$7,FALSE) -> 14 | AX23: =VLOOKUP($B23,[1]FlowData!$A$3:$PL$215,AX$7,FALSE) -> 23 | AY23: =VLOOKUP($B23,[1]FlowData!$A$3:$PL$215,AY$7,FALSE) -> 28 | AZ23: =VLOOKUP($B23,[1]FlowData!$A$3:$PL$215,AZ$7,FALSE) -> 22 | BA23: =VLOOKUP($B23,[1]FlowData!$A$3:$PL$215,BA$7,FALSE) -> 18 | BB23: =VLOOKUP($B23,[1]FlowData!$A$3:$PL$215,BB$7,FALSE) -> 24 | BC23: =VLOOKUP($B23,[1]FlowData!$A$3:$PL$215,BC$7,FALSE) -> 25 | BD23: =VLOOKUP($B23,[1]FlowData!$A$3:$PL$215,BD$7,FALSE) -> 21 | BE23: =VLOOKUP($B23,[1]FlowData!$A$3:$PL$215,BE$7,FALSE) -> 16 | BF23: =VLOOKUP($B23,[1]FlowData!$A$3:$PL$215,BF$7,FALSE) -> 21
A24: =VLOOKUP(B24,'[2]Gages and BCs'!$A$4:$BJ$973,62,FALSE) -> 646 | B24: 12331800 | C24: =VLOOKUP(B24,'[2]Gages and BCs'!$A$4:$BJ$973,60,FALSE) -> Clark Fork near Drummond, Montana | D24: 1993–2009 | E24: =VLOOKUP($B24,[1]FlowData!$A$3:$PL$215,E$7,FALSE) -> 122.36 | F24: =VLOOKUP($B24,[1]FlowData!$A$3:$PL$215,F$7,FALSE) -> 152.538 | G24: =VLOOKUP($B24,[1]FlowData!$A$3:$PL$215,G$7,FALSE) -> 885 | H24: =VLOOKUP($B24,[1]FlowData!$A$3:$PL$215,H$7,FALSE) -> 561 | I24: =VLOOKUP($B24,[1]FlowData!$A$3:$PL$215,I$7,FALSE) -> 379 | J24: =VLOOKUP($B24,[1]FlowData!$A$3:$PL$215,J$7,FALSE) -> 694 | K24: =VLOOKUP($B24,[1]FlowData!$A$3:$PL$215,K$7,FALSE) -> 604 | L24: =VLOOKUP($B24,[1]FlowData!$A$3:$PL$215,L$7,FALSE) -> 473 | M24: =VLOOKUP($B24,[1]FlowData!$A$3:$PL$215,M$7,FALSE) -> 365 | N24: =VLOOKUP($B24,[1]FlowData!$A$3:$PL$215,N$7,FALSE) -> 491 | O24: =VLOOKUP($B24,[1]FlowData!$A$3:$PL$215,O$7,FALSE) -> 683 | P24: =VLOOKUP($B24,[1]FlowData!$A$3:$PL$215,P$7,FALSE) -> 533 | Q24: =VLOOKUP($B24,[1]FlowData!$A$3:$PL$215,Q$7,FALSE) -> 332 | R24: =VLOOKUP($B24,[1]FlowData!$A$3:$PL$215,R$7,FALSE) -> 569 | S24: =VLOOKUP($B24,[1]FlowData!$A$3:$PL$215,S$7,FALSE) -> 784 | T24: =VLOOKUP($B24,[1]FlowData!$A$3:$PL$215,T$7,FALSE) -> 586 | U24: =VLOOKUP($B24,[1]FlowData!$A$3:$PL$215,U$7,FALSE) -> 460 | V24: =VLOOKUP($B24,[1]FlowData!$A$3:$PL$215,V$7,FALSE) -> 669 | W24: =VLOOKUP($B24,[1]FlowData!$A$3:$PL$215,W$7,FALSE) -> 1040 | X24: =VLOOKUP($B24,[1]FlowData!$A$3:$PL$215,X$7,FALSE) -> 664 | Y24: =VLOOKUP($B24,[1]FlowData!$A$3:$PL$215,Y$7,FALSE) -> 540 | Z24: =VLOOKUP($B24,[1]FlowData!$A$3:$PL$215,Z$7,FALSE) -> 803 | AA24: =VLOOKUP($B24,[1]FlowData!$A$3:$PL$215,AA$7,FALSE) -> 1600 | AB24: =VLOOKUP($B24,[1]FlowData!$A$3:$PL$215,AB$7,FALSE) -> 1050 | AC24: =VLOOKUP($B24,[1]FlowData!$A$3:$PL$215,AC$7,FALSE) -> 642 | AD24: =VLOOKUP($B24,[1]FlowData!$A$3:$PL$215,AD$7,FALSE) -> 1200 | AE24: =VLOOKUP($B24,[1]FlowData!$A$3:$PL$215,AE$7,FALSE) -> 2350 | AF24: =VLOOKUP($B24,[1]FlowData!$A$3:$PL$215,AF$7,FALSE) -> 1270 | AG24: =VLOOKUP($B24,[1]FlowData!$A$3:$PL$215,AG$7,FALSE) -> 697 | AH24: =VLOOKUP($B24,[1]FlowData!$A$3:$PL$215,AH$7,FALSE) -> 1550 | AI24: =VLOOKUP($B24,[1]FlowData!$A$3:$PL$215,AI$7,FALSE) -> 1010 | AJ24: =VLOOKUP($B24,[1]FlowData!$A$3:$PL$215,AJ$7,FALSE) -> 484 | AK24: =VLOOKUP($B24,[1]FlowData!$A$3:$PL$215,AK$7,FALSE) -> 299 | AL24: =VLOOKUP($B24,[1]FlowData!$A$3:$PL$215,AL$7,FALSE) -> 679 | AM24: =VLOOKUP($B24,[1]FlowData!$A$3:$PL$215,AM$7,FALSE) -> 506 | AN24: =VLOOKUP($B24,[1]FlowData!$A$3:$PL$215,AN$7,FALSE) -> 279 | AO24: =VLOOKUP($B24,[1]FlowData!$A$3:$PL$215,AO$7,FALSE) -> 189 | AP24: =VLOOKUP($B24,[1]FlowData!$A$3:$PL$215,AP$7,FALSE) -> 355 | AQ24: =VLOOKUP($B24,[1]FlowData!$A$3:$PL$215,AQ$7,FALSE) -> 579 | AR24: =VLOOKUP($B24,[1]FlowData!$A$3:$PL$215,AR$7,FALSE) -> 370 | AS24: =VLOOKUP($B24,[1]FlowData!$A$3:$PL$215,AS$7,FALSE) -> 249 | AT24: =VLOOKUP($B24,[1]FlowData!$A$3:$PL$215,AT$7,FALSE) -> 424 | AU24: =VLOOKUP($B24,[1]FlowData!$A$3:$PL$215,AU$7,FALSE) -> 708 | AV24: =VLOOKUP($B24,[1]FlowData!$A$3:$PL$215,AV$7,FALSE) -> 561 | AW24: =VLOOKUP($B24,[1]FlowData!$A$3:$PL$215,AW$7,FALSE) -> 464 | AX24: =VLOOKUP($B24,[1]FlowData!$A$3:$PL$215,AX$7,FALSE) -> 580 | AY24: =VLOOKUP($B24,[1]FlowData!$A$3:$PL$215,AY$7,FALSE) -> 709 | AZ24: =VLOOKUP($B24,[1]FlowData!$A$3:$PL$215,AZ$7,FALSE) -> 560 | BA24: =VLOOKUP($B24,[1]FlowData!$A$3:$PL$215,BA$7,FALSE) -> 476 | BB24: =VLOOKUP($B24,[1]FlowData!$A$3:$PL$215,BB$7,FALSE) -> 585 | BC24: =VLOOKUP($B24,[1]FlowData!$A$3:$PL$215,BC$7,FALSE) -> 605 | BD24: =VLOOKUP($B24,[1]FlowData!$A$3:$PL$215,BD$7,FALSE) -> 480 | BE24: =VLOOKUP($B24,[1]FlowData!$A$3:$PL$215,BE$7,FALSE) -> 402 | BF24: =VLOOKUP($B24,[1]FlowData!$A$3:$PL$215,BF$7,FALSE) -> 497
A25: =VLOOKUP(B25,'[2]Gages and BCs'!$A$4:$BJ$973,62,FALSE) -> 648 | B25: 12332000 | C25: =VLOOKUP(B25,'[2]Gages and BCs'!$A$4:$BJ$973,60,FALSE) -> Middle Fork Rock Creek near Philipsburg, Montana | D25: 1938–2009 | E25: =VLOOKUP($B25,[1]FlowData!$A$3:$PL$215,E$7,FALSE) -> 14.352 | F25: =VLOOKUP($B25,[1]FlowData!$A$3:$PL$215,F$7,FALSE) -> 34.484 | G25: =VLOOKUP($B25,[1]FlowData!$A$3:$PL$215,G$7,FALSE) -> 149 | H25: =VLOOKUP($B25,[1]FlowData!$A$3:$PL$215,H$7,FALSE) -> 49 | I25: =VLOOKUP($B25,[1]FlowData!$A$3:$PL$215,I$7,FALSE) -> 23 | J25: =VLOOKUP($B25,[1]FlowData!$A$3:$PL$215,J$7,FALSE) -> 118 | K25: =VLOOKUP($B25,[1]FlowData!$A$3:$PL$215,K$7,FALSE) -> 39 | L25: =VLOOKUP($B25,[1]FlowData!$A$3:$PL$215,L$7,FALSE) -> 31 | M25: =VLOOKUP($B25,[1]FlowData!$A$3:$PL$215,M$7,FALSE) -> 24 | N25: =VLOOKUP($B25,[1]FlowData!$A$3:$PL$215,N$7,FALSE) -> 32 | O25: =VLOOKUP($B25,[1]FlowData!$A$3:$PL$215,O$7,FALSE) -> 39 | P25: =VLOOKUP($B25,[1]FlowData!$A$3:$PL$215,P$7,FALSE) -> 32 | Q25: =VLOOKUP($B25,[1]FlowData!$A$3:$PL$215,Q$7,FALSE) -> 24 | R25: =VLOOKUP($B25,[1]FlowData!$A$3:$PL$215,R$7,FALSE) -> 33 | S25: =VLOOKUP($B25,[1]FlowData!$A$3:$PL$215,S$7,FALSE) -> 43 | T25: =VLOOKUP($B25,[1]FlowData!$A$3:$PL$215,T$7,FALSE) -> 34 | U25: =VLOOKUP($B25,[1]FlowData!$A$3:$PL$215,U$7,FALSE) -> 27 | V25: =VLOOKUP($B25,[1]FlowData!$A$3:$PL$215,V$7,FALSE) -> 36 | W25: =VLOOKUP($B25,[1]FlowData!$A$3:$PL$215,W$7,FALSE) -> 100 | X25: =VLOOKUP($B25,[1]FlowData!$A$3:$PL$215,X$7,FALSE) -> 55 | Y25: =VLOOKUP($B25,[1]FlowData!$A$3:$PL$215,Y$7,FALSE) -> 36 | Z25: =VLOOKUP($B25,[1]FlowData!$A$3:$PL$215,Z$7,FALSE) -> 74 | AA25: =VLOOKUP($B25,[1]FlowData!$A$3:$PL$215,AA$7,FALSE) -> 497 | AB25: =VLOOKUP($B25,[1]FlowData!$A$3:$PL$215,AB$7,FALSE) -> 274 | AC25: =VLOOKUP($B25,[1]FlowData!$A$3:$PL$215,AC$7,FALSE) -> 147 | AD25: =VLOOKUP($B25,[1]FlowData!$A$3:$PL$215,AD$7,FALSE) -> 337 | AE25: =VLOOKUP($B25,[1]FlowData!$A$3:$PL$215,AE$7,FALSE) -> 673 | AF25: =VLOOKUP($B25,[1]FlowData!$A$3:$PL$215,AF$7,FALSE) -> 426 | AG25: =VLOOKUP($B25,[1]FlowData!$A$3:$PL$215,AG$7,FALSE) -> 258 | AH25: =VLOOKUP($B25,[1]FlowData!$A$3:$PL$215,AH$7,FALSE) -> 474 | AI25: =VLOOKUP($B25,[1]FlowData!$A$3:$PL$215,AI$7,FALSE) -> 239 | AJ25: =VLOOKUP($B25,[1]FlowData!$A$3:$PL$215,AJ$7,FALSE) -> 144 | AK25: =VLOOKUP($B25,[1]FlowData!$A$3:$PL$215,AK$7,FALSE) -> 87 | AL25: =VLOOKUP($B25,[1]FlowData!$A$3:$PL$215,AL$7,FALSE) -> 174 | AM25: =VLOOKUP($B25,[1]FlowData!$A$3:$PL$215,AM$7,FALSE) -> 89 | AN25: =VLOOKUP($B25,[1]FlowData!$A$3:$PL$215,AN$7,FALSE) -> 65 | AO25: =VLOOKUP($B25,[1]FlowData!$A$3:$PL$215,AO$7,FALSE) -> 47 | AP25: =VLOOKUP($B25,[1]FlowData!$A$3:$PL$215,AP$7,FALSE) -> 69 | AQ25: =VLOOKUP($B25,[1]FlowData!$A$3:$PL$215,AQ$7,FALSE) -> 62 | AR25: =VLOOKUP($B25,[1]FlowData!$A$3:$PL$215,AR$7,FALSE) -> 49 | AS25: =VLOOKUP($B25,[1]FlowData!$A$3:$PL$215,AS$7,FALSE) -> 39 | AT25: =VLOOKUP($B25,[1]FlowData!$A$3:$PL$215,AT$7,FALSE) -> 52 | AU25: =VLOOKUP($B25,[1]FlowData!$A$3:$PL$215,AU$7,FALSE) -> 55 | AV25: =VLOOKUP($B25,[1]FlowData!$A$3:$PL$215,AV$7,FALSE) -> 45 | AW25: =VLOOKUP($B25,[1]FlowData!$A$3:$PL$215,AW$7,FALSE) -> 37 | AX25: =VLOOKUP($B25,[1]FlowData!$A$3:$PL$215,AX$7,FALSE) -> 49 | AY25: =VLOOKUP($B25,[1]FlowData!$A$3:$PL$215,AY$7,FALSE) -> 50 | AZ25: =VLOOKUP($B25,[1]FlowData!$A$3:$PL$215,AZ$7,FALSE) -> 40 | BA25: =VLOOKUP($B25,[1]FlowData!$A$3:$PL$215,BA$7,FALSE) -> 33 | BB25: =VLOOKUP($B25,[1]FlowData!$A$3:$PL$215,BB$7,FALSE) -> 43 | BC25: =VLOOKUP($B25,[1]FlowData!$A$3:$PL$215,BC$7,FALSE) -> 43 | BD25: =VLOOKUP($B25,[1]FlowData!$A$3:$PL$215,BD$7,FALSE) -> 34 | BE25: =VLOOKUP($B25,[1]FlowData!$A$3:$PL$215,BE$7,FALSE) -> 27 | BF25: =VLOOKUP($B25,[1]FlowData!$A$3:$PL$215,BF$7,FALSE) -> 36
A26: =VLOOKUP(B26,'[2]Gages and BCs'!$A$4:$BJ$973,62,FALSE) -> 649 | B26: 12334510 | C26: =VLOOKUP(B26,'[2]Gages and BCs'!$A$4:$BJ$973,60,FALSE) -> Rock Creek near Clinton, Montana | D26: 1973–2009 | E26: =VLOOKUP($B26,[1]FlowData!$A$3:$PL$215,E$7,FALSE) -> 73.402 | F26: =VLOOKUP($B26,[1]FlowData!$A$3:$PL$215,F$7,FALSE) -> 163.09 | G26: =VLOOKUP($B26,[1]FlowData!$A$3:$PL$215,G$7,FALSE) -> 657 | H26: =VLOOKUP($B26,[1]FlowData!$A$3:$PL$215,H$7,FALSE) -> 284 | I26: =VLOOKUP($B26,[1]FlowData!$A$3:$PL$215,I$7,FALSE) -> 128 | J26: =VLOOKUP($B26,[1]FlowData!$A$3:$PL$215,J$7,FALSE) -> 517 | K26: =VLOOKUP($B26,[1]FlowData!$A$3:$PL$215,K$7,FALSE) -> 222 | L26: =VLOOKUP($B26,[1]FlowData!$A$3:$PL$215,L$7,FALSE) -> 170 | M26: =VLOOKUP($B26,[1]FlowData!$A$3:$PL$215,M$7,FALSE) -> 124 | N26: =VLOOKUP($B26,[1]FlowData!$A$3:$PL$215,N$7,FALSE) -> 184 | O26: =VLOOKUP($B26,[1]FlowData!$A$3:$PL$215,O$7,FALSE) -> 215 | P26: =VLOOKUP($B26,[1]FlowData!$A$3:$PL$215,P$7,FALSE) -> 177 | Q26: =VLOOKUP($B26,[1]FlowData!$A$3:$PL$215,Q$7,FALSE) -> 137 | R26: =VLOOKUP($B26,[1]FlowData!$A$3:$PL$215,R$7,FALSE) -> 189 | S26: =VLOOKUP($B26,[1]FlowData!$A$3:$PL$215,S$7,FALSE) -> 299 | T26: =VLOOKUP($B26,[1]FlowData!$A$3:$PL$215,T$7,FALSE) -> 214 | U26: =VLOOKUP($B26,[1]FlowData!$A$3:$PL$215,U$7,FALSE) -> 173 | V26: =VLOOKUP($B26,[1]FlowData!$A$3:$PL$215,V$7,FALSE) -> 244 | W26: =VLOOKUP($B26,[1]FlowData!$A$3:$PL$215,W$7,FALSE) -> 738 | X26: =VLOOKUP($B26,[1]FlowData!$A$3:$PL$215,X$7,FALSE) -> 388 | Y26: =VLOOKUP($B26,[1]FlowData!$A$3:$PL$215,Y$7,FALSE) -> 247 | Z26: =VLOOKUP($B26,[1]FlowData!$A$3:$PL$215,Z$7,FALSE) -> 508 | AA26: =VLOOKUP($B26,[1]FlowData!$A$3:$PL$215,AA$7,FALSE) -> 2120 | AB26: =VLOOKUP($B26,[1]FlowData!$A$3:$PL$215,AB$7,FALSE) -> 1210 | AC26: =VLOOKUP($B26,[1]FlowData!$A$3:$PL$215,AC$7,FALSE) -> 763 | AD26: =VLOOKUP($B26,[1]FlowData!$A$3:$PL$215,AD$7,FALSE) -> 1500 | AE26: =VLOOKUP($B26,[1]FlowData!$A$3:$PL$215,AE$7,FALSE) -> 2500 | AF26: =VLOOKUP($B26,[1]FlowData!$A$3:$PL$215,AF$7,FALSE) -> 1440 | AG26: =VLOOKUP($B26,[1]FlowData!$A$3:$PL$215,AG$7,FALSE) -> 777 | AH26: =VLOOKUP($B26,[1]FlowData!$A$3:$PL$215,AH$7,FALSE) -> 1680 | AI26: =VLOOKUP($B26,[1]FlowData!$A$3:$PL$215,AI$7,FALSE) -> 897 | AJ26: =VLOOKUP($B26,[1]FlowData!$A$3:$PL$215,AJ$7,FALSE) -> 544 | AK26: =VLOOKUP($B26,[1]FlowData!$A$3:$PL$215,AK$7,FALSE) -> 340 | AL26: =VLOOKUP($B26,[1]FlowData!$A$3:$PL$215,AL$7,FALSE) -> 657 | AM26: =VLOOKUP($B26,[1]FlowData!$A$3:$PL$215,AM$7,FALSE) -> 414 | AN26: =VLOOKUP($B26,[1]FlowData!$A$3:$PL$215,AN$7,FALSE) -> 284 | AO26: =VLOOKUP($B26,[1]FlowData!$A$3:$PL$215,AO$7,FALSE) -> 195 | AP26: =VLOOKUP($B26,[1]FlowData!$A$3:$PL$215,AP$7,FALSE) -> 308 | AQ26: =VLOOKUP($B26,[1]FlowData!$A$3:$PL$215,AQ$7,FALSE) -> 330 | AR26: =VLOOKUP($B26,[1]FlowData!$A$3:$PL$215,AR$7,FALSE) -> 261 | AS26: =VLOOKUP($B26,[1]FlowData!$A$3:$PL$215,AS$7,FALSE) -> 179 | AT26: =VLOOKUP($B26,[1]FlowData!$A$3:$PL$215,AT$7,FALSE) -> 261 | AU26: =VLOOKUP($B26,[1]FlowData!$A$3:$PL$215,AU$7,FALSE) -> 291 | AV26: =VLOOKUP($B26,[1]FlowData!$A$3:$PL$215,AV$7,FALSE) -> 242 | AW26: =VLOOKUP($B26,[1]FlowData!$A$3:$PL$215,AW$7,FALSE) -> 192 | AX26: =VLOOKUP($B26,[1]FlowData!$A$3:$PL$215,AX$7,FALSE) -> 248 | AY26: =VLOOKUP($B26,[1]FlowData!$A$3:$PL$215,AY$7,FALSE) -> 265 | AZ26: =VLOOKUP($B26,[1]FlowData!$A$3:$PL$215,AZ$7,FALSE) -> 216 | BA26: =VLOOKUP($B26,[1]FlowData!$A$3:$PL$215,BA$7,FALSE) -> 178 | BB26: =VLOOKUP($B26,[1]FlowData!$A$3:$PL$215,BB$7,FALSE) -> 228 | BC26: =VLOOKUP($B26,[1]FlowData!$A$3:$PL$215,BC$7,FALSE) -> 232 | BD26: =VLOOKUP($B26,[1]FlowData!$A$3:$PL$215,BD$7,FALSE) -> 181 | BE26: =VLOOKUP($B26,[1]FlowData!$A$3:$PL$215,BE$7,FALSE) -> 137 | BF26: =VLOOKUP($B26,[1]FlowData!$A$3:$PL$215,BF$7,FALSE) -> 196
A27: =VLOOKUP(B27,'[2]Gages and BCs'!$A$4:$BJ$973,62,FALSE) -> 653 | B27: 12335500 | C27: =VLOOKUP(B27,'[2]Gages and BCs'!$A$4:$BJ$973,60,FALSE) -> Nevada Creek above reservoir, near Helmville, Montana | D27: 1939–2009 | E27: =VLOOKUP($B27,[1]FlowData!$A$3:$PL$215,E$7,FALSE) -> 3.094 | F27: =VLOOKUP($B27,[1]FlowData!$A$3:$PL$215,F$7,FALSE) -> 4.933 | G27: =VLOOKUP($B27,[1]FlowData!$A$3:$PL$215,G$7,FALSE) -> 46 | H27: =VLOOKUP($B27,[1]FlowData!$A$3:$PL$215,H$7,FALSE) -> 30 | I27: =VLOOKUP($B27,[1]FlowData!$A$3:$PL$215,I$7,FALSE) -> 13 | J27: =VLOOKUP($B27,[1]FlowData!$A$3:$PL$215,J$7,FALSE) -> 35 | K27: =VLOOKUP($B27,[1]FlowData!$A$3:$PL$215,K$7,FALSE) -> 19 | L27: =VLOOKUP($B27,[1]FlowData!$A$3:$PL$215,L$7,FALSE) -> 12 | M27: =VLOOKUP($B27,[1]FlowData!$A$3:$PL$215,M$7,FALSE) -> 6 | N27: =VLOOKUP($B27,[1]FlowData!$A$3:$PL$215,N$7,FALSE) -> 12 | O27: =VLOOKUP($B27,[1]FlowData!$A$3:$PL$215,O$7,FALSE) -> 25 | P27: =VLOOKUP($B27,[1]FlowData!$A$3:$PL$215,P$7,FALSE) -> 16 | Q27: =VLOOKUP($B27,[1]FlowData!$A$3:$PL$215,Q$7,FALSE) -> 7.6 | R27: =VLOOKUP($B27,[1]FlowData!$A$3:$PL$215,R$7,FALSE) -> 16 | S27: =VLOOKUP($B27,[1]FlowData!$A$3:$PL$215,S$7,FALSE) -> 44 | T27: =VLOOKUP($B27,[1]FlowData!$A$3:$PL$215,T$7,FALSE) -> 21 | U27: =VLOOKUP($B27,[1]FlowData!$A$3:$PL$215,U$7,FALSE) -> 11 | V27: =VLOOKUP($B27,[1]FlowData!$A$3:$PL$215,V$7,FALSE) -> 34 | W27: =VLOOKUP($B27,[1]FlowData!$A$3:$PL$215,W$7,FALSE) -> 92 | X27: =VLOOKUP($B27,[1]FlowData!$A$3:$PL$215,X$7,FALSE) -> 47 | Y27: =VLOOKUP($B27,[1]FlowData!$A$3:$PL$215,Y$7,FALSE) -> 20 | Z27: =VLOOKUP($B27,[1]FlowData!$A$3:$PL$215,Z$7,FALSE) -> 66 | AA27: =VLOOKUP($B27,[1]FlowData!$A$3:$PL$215,AA$7,FALSE) -> 171 | AB27: =VLOOKUP($B27,[1]FlowData!$A$3:$PL$215,AB$7,FALSE) -> 84 | AC27: =VLOOKUP($B27,[1]FlowData!$A$3:$PL$215,AC$7,FALSE) -> 37 | AD27: =VLOOKUP($B27,[1]FlowData!$A$3:$PL$215,AD$7,FALSE) -> 110 | AE27: =VLOOKUP($B27,[1]FlowData!$A$3:$PL$215,AE$7,FALSE) -> 136 | AF27: =VLOOKUP($B27,[1]FlowData!$A$3:$PL$215,AF$7,FALSE) -> 65 | AG27: =VLOOKUP($B27,[1]FlowData!$A$3:$PL$215,AG$7,FALSE) -> 27 | AH27: =VLOOKUP($B27,[1]FlowData!$A$3:$PL$215,AH$7,FALSE) -> 88 | AI27: =VLOOKUP($B27,[1]FlowData!$A$3:$PL$215,AI$7,FALSE) -> 36 | AJ27: =VLOOKUP($B27,[1]FlowData!$A$3:$PL$215,AJ$7,FALSE) -> 23 | AK27: =VLOOKUP($B27,[1]FlowData!$A$3:$PL$215,AK$7,FALSE) -> 12 | AL27: =VLOOKUP($B27,[1]FlowData!$A$3:$PL$215,AL$7,FALSE) -> 27 | AM27: =VLOOKUP($B27,[1]FlowData!$A$3:$PL$215,AM$7,FALSE) -> 20 | AN27: =VLOOKUP($B27,[1]FlowData!$A$3:$PL$215,AN$7,FALSE) -> 12 | AO27: =VLOOKUP($B27,[1]FlowData!$A$3:$PL$215,AO$7,FALSE) -> 7.3 | AP27: =VLOOKUP($B27,[1]FlowData!$A$3:$PL$215,AP$7,FALSE) -> 14 | AQ27: =VLOOKUP($B27,[1]FlowData!$A$3:$PL$215,AQ$7,FALSE) -> 14 | AR27: =VLOOKUP($B27,[1]FlowData!$A$3:$PL$215,AR$7,FALSE) -> 9.1 | AS27: =VLOOKUP($B27,[1]FlowData!$A$3:$PL$215,AS$7,FALSE) -> 6 | AT27: =VLOOKUP($B27,[1]FlowData!$A$3:$PL$215,AT$7,FALSE) -> 10 | AU27: =VLOOKUP($B27,[1]FlowData!$A$3:$PL$215,AU$7,FALSE) -> 18 | AV27: =VLOOKUP($B27,[1]FlowData!$A$3:$PL$215,AV$7,FALSE) -> 13 | AW27: =VLOOKUP($B27,[1]FlowData!$A$3:$PL$215,AW$7,FALSE) -> 8.6 | AX27: =VLOOKUP($B27,[1]FlowData!$A$3:$PL$215,AX$7,FALSE) -> 14 | AY27: =VLOOKUP($B27,[1]FlowData!$A$3:$PL$215,AY$7,FALSE) -> 18 | AZ27: =VLOOKUP($B27,[1]FlowData!$A$3:$PL$215,AZ$7,FALSE) -> 14 | BA27: =VLOOKUP($B27,[1]FlowData!$A$3:$PL$215,BA$7,FALSE) -> 10 | BB27: =VLOOKUP($B27,[1]FlowData!$A$3:$PL$215,BB$7,FALSE) -> 15 | BC27: =VLOOKUP($B27,[1]FlowData!$A$3:$PL$215,BC$7,FALSE) -> 17 | BD27: =VLOOKUP($B27,[1]FlowData!$A$3:$PL$215,BD$7,FALSE) -> 12 | BE27: =VLOOKUP($B27,[1]FlowData!$A$3:$PL$215,BE$7,FALSE) -> 5.7 | BF27: =VLOOKUP($B27,[1]FlowData!$A$3:$PL$215,BF$7,FALSE) -> 12
A28: =VLOOKUP(B28,'[2]Gages and BCs'!$A$4:$BJ$973,62,FALSE) -> 654 | B28: 12338300 | C28: =VLOOKUP(B28,'[2]Gages and BCs'!$A$4:$BJ$973,60,FALSE) -> North Fork Blackfoot River above Dry Gulch, near Ovando, Montana | D28: 1998–2009 | E28: =VLOOKUP($B28,[1]FlowData!$A$3:$PL$215,E$7,FALSE) -> 73.515 | F28: =VLOOKUP($B28,[1]FlowData!$A$3:$PL$215,F$7,FALSE) -> 131.538 | G28: =VLOOKUP($B28,[1]FlowData!$A$3:$PL$215,G$7,FALSE) -> 481 | H28: =VLOOKUP($B28,[1]FlowData!$A$3:$PL$215,H$7,FALSE) -> 175 | I28: =VLOOKUP($B28,[1]FlowData!$A$3:$PL$215,I$7,FALSE) -> 108 | J28: =VLOOKUP($B28,[1]FlowData!$A$3:$PL$215,J$7,FALSE) -> 369 | K28: =VLOOKUP($B28,[1]FlowData!$A$3:$PL$215,K$7,FALSE) -> 122 | L28: =VLOOKUP($B28,[1]FlowData!$A$3:$PL$215,L$7,FALSE) -> 102 | M28: =VLOOKUP($B28,[1]FlowData!$A$3:$PL$215,M$7,FALSE) -> 92 | N28: =VLOOKUP($B28,[1]FlowData!$A$3:$PL$215,N$7,FALSE) -> 109 | O28: =VLOOKUP($B28,[1]FlowData!$A$3:$PL$215,O$7,FALSE) -> 115 | P28: =VLOOKUP($B28,[1]FlowData!$A$3:$PL$215,P$7,FALSE) -> 93 | Q28: =VLOOKUP($B28,[1]FlowData!$A$3:$PL$215,Q$7,FALSE) -> 84 | R28: =VLOOKUP($B28,[1]FlowData!$A$3:$PL$215,R$7,FALSE) -> 101 | S28: =VLOOKUP($B28,[1]FlowData!$A$3:$PL$215,S$7,FALSE) -> 129 | T28: =VLOOKUP($B28,[1]FlowData!$A$3:$PL$215,T$7,FALSE) -> 100 | U28: =VLOOKUP($B28,[1]FlowData!$A$3:$PL$215,U$7,FALSE) -> 82 | V28: =VLOOKUP($B28,[1]FlowData!$A$3:$PL$215,V$7,FALSE) -> 113 | W28: =VLOOKUP($B28,[1]FlowData!$A$3:$PL$215,W$7,FALSE) -> 538 | X28: =VLOOKUP($B28,[1]FlowData!$A$3:$PL$215,X$7,FALSE) -> 232 | Y28: =VLOOKUP($B28,[1]FlowData!$A$3:$PL$215,Y$7,FALSE) -> 129 | Z28: =VLOOKUP($B28,[1]FlowData!$A$3:$PL$215,Z$7,FALSE) -> 354 | AA28: =VLOOKUP($B28,[1]FlowData!$A$3:$PL$215,AA$7,FALSE) -> 1710 | AB28: =VLOOKUP($B28,[1]FlowData!$A$3:$PL$215,AB$7,FALSE) -> 1060 | AC28: =VLOOKUP($B28,[1]FlowData!$A$3:$PL$215,AC$7,FALSE) -> 724 | AD28: =VLOOKUP($B28,[1]FlowData!$A$3:$PL$215,AD$7,FALSE) -> 1300 | AE28: =VLOOKUP($B28,[1]FlowData!$A$3:$PL$215,AE$7,FALSE) -> 1650 | AF28: =VLOOKUP($B28,[1]FlowData!$A$3:$PL$215,AF$7,FALSE) -> 1060 | AG28: =VLOOKUP($B28,[1]FlowData!$A$3:$PL$215,AG$7,FALSE) -> 720 | AH28: =VLOOKUP($B28,[1]FlowData!$A$3:$PL$215,AH$7,FALSE) -> 1190 | AI28: =VLOOKUP($B28,[1]FlowData!$A$3:$PL$215,AI$7,FALSE) -> 512 | AJ28: =VLOOKUP($B28,[1]FlowData!$A$3:$PL$215,AJ$7,FALSE) -> 349 | AK28: =VLOOKUP($B28,[1]FlowData!$A$3:$PL$215,AK$7,FALSE) -> 268 | AL28: =VLOOKUP($B28,[1]FlowData!$A$3:$PL$215,AL$7,FALSE) -> 418 | AM28: =VLOOKUP($B28,[1]FlowData!$A$3:$PL$215,AM$7,FALSE) -> 253 | AN28: =VLOOKUP($B28,[1]FlowData!$A$3:$PL$215,AN$7,FALSE) -> 213 | AO28: =VLOOKUP($B28,[1]FlowData!$A$3:$PL$215,AO$7,FALSE) -> 183 | AP28: =VLOOKUP($B28,[1]FlowData!$A$3:$PL$215,AP$7,FALSE) -> 219 | AQ28: =VLOOKUP($B28,[1]FlowData!$A$3:$PL$215,AQ$7,FALSE) -> 197 | AR28: =VLOOKUP($B28,[1]FlowData!$A$3:$PL$215,AR$7,FALSE) -> 170 | AS28: =VLOOKUP($B28,[1]FlowData!$A$3:$PL$215,AS$7,FALSE) -> 155 | AT28: =VLOOKUP($B28,[1]FlowData!$A$3:$PL$215,AT$7,FALSE) -> 174 | AU28: =VLOOKUP($B28,[1]FlowData!$A$3:$PL$215,AU$7,FALSE) -> 176 | AV28: =VLOOKUP($B28,[1]FlowData!$A$3:$PL$215,AV$7,FALSE) -> 151 | AW28: =VLOOKUP($B28,[1]FlowData!$A$3:$PL$215,AW$7,FALSE) -> 137 | AX28: =VLOOKUP($B28,[1]FlowData!$A$3:$PL$215,AX$7,FALSE) -> 155 | AY28: =VLOOKUP($B28,[1]FlowData!$A$3:$PL$215,AY$7,FALSE) -> 176 | AZ28: =VLOOKUP($B28,[1]FlowData!$A$3:$PL$215,AZ$7,FALSE) -> 138 | BA28: =VLOOKUP($B28,[1]FlowData!$A$3:$PL$215,BA$7,FALSE) -> 110 | BB28: =VLOOKUP($B28,[1]FlowData!$A$3:$PL$215,BB$7,FALSE) -> 159 | BC28: =VLOOKUP($B28,[1]FlowData!$A$3:$PL$215,BC$7,FALSE) -> 147 | BD28: =VLOOKUP($B28,[1]FlowData!$A$3:$PL$215,BD$7,FALSE) -> 117 | BE28: =VLOOKUP($B28,[1]FlowData!$A$3:$PL$215,BE$7,FALSE) -> 102 | BF28: =VLOOKUP($B28,[1]FlowData!$A$3:$PL$215,BF$7,FALSE) -> 127
A29: =VLOOKUP(B29,'[2]Gages and BCs'!$A$4:$BJ$973,62,FALSE) -> 655 | B29: 12338500 | C29: =VLOOKUP(B29,'[2]Gages and BCs'!$A$4:$BJ$973,60,FALSE) -> Blackfoot River near Ovando, Montana | D29: 1941–63 | E29: =VLOOKUP($B29,[1]FlowData!$A$3:$PL$215,E$7,FALSE) -> 154.409 | F29: =VLOOKUP($B29,[1]FlowData!$A$3:$PL$215,F$7,FALSE) -> 306.282 | G29: =VLOOKUP($B29,[1]FlowData!$A$3:$PL$215,G$7,FALSE) -> 1060 | H29: =VLOOKUP($B29,[1]FlowData!$A$3:$PL$215,H$7,FALSE) -> 454 | I29: =VLOOKUP($B29,[1]FlowData!$A$3:$PL$215,I$7,FALSE) -> 236 | J29: =VLOOKUP($B29,[1]FlowData!$A$3:$PL$215,J$7,FALSE) -> 855 | K29: =VLOOKUP($B29,[1]FlowData!$A$3:$PL$215,K$7,FALSE) -> 329 | L29: =VLOOKUP($B29,[1]FlowData!$A$3:$PL$215,L$7,FALSE) -> 269 | M29: =VLOOKUP($B29,[1]FlowData!$A$3:$PL$215,M$7,FALSE) -> 219 | N29: =VLOOKUP($B29,[1]FlowData!$A$3:$PL$215,N$7,FALSE) -> 274 | O29: =VLOOKUP($B29,[1]FlowData!$A$3:$PL$215,O$7,FALSE) -> 328 | P29: =VLOOKUP($B29,[1]FlowData!$A$3:$PL$215,P$7,FALSE) -> 267 | Q29: =VLOOKUP($B29,[1]FlowData!$A$3:$PL$215,Q$7,FALSE) -> 223 | R29: =VLOOKUP($B29,[1]FlowData!$A$3:$PL$215,R$7,FALSE) -> 287 | S29: =VLOOKUP($B29,[1]FlowData!$A$3:$PL$215,S$7,FALSE) -> 361 | T29: =VLOOKUP($B29,[1]FlowData!$A$3:$PL$215,T$7,FALSE) -> 295 | U29: =VLOOKUP($B29,[1]FlowData!$A$3:$PL$215,U$7,FALSE) -> 239 | V29: =VLOOKUP($B29,[1]FlowData!$A$3:$PL$215,V$7,FALSE) -> 341 | W29: =VLOOKUP($B29,[1]FlowData!$A$3:$PL$215,W$7,FALSE) -> 1060 | X29: =VLOOKUP($B29,[1]FlowData!$A$3:$PL$215,X$7,FALSE) -> 545 | Y29: =VLOOKUP($B29,[1]FlowData!$A$3:$PL$215,Y$7,FALSE) -> 316 | Z29: =VLOOKUP($B29,[1]FlowData!$A$3:$PL$215,Z$7,FALSE) -> 721 | AA29: =VLOOKUP($B29,[1]FlowData!$A$3:$PL$215,AA$7,FALSE) -> 3790 | AB29: =VLOOKUP($B29,[1]FlowData!$A$3:$PL$215,AB$7,FALSE) -> 2110 | AC29: =VLOOKUP($B29,[1]FlowData!$A$3:$PL$215,AC$7,FALSE) -> 973 | AD29: =VLOOKUP($B29,[1]FlowData!$A$3:$PL$215,AD$7,FALSE) -> 2460 | AE29: =VLOOKUP($B29,[1]FlowData!$A$3:$PL$215,AE$7,FALSE) -> 4150 | AF29: =VLOOKUP($B29,[1]FlowData!$A$3:$PL$215,AF$7,FALSE) -> 2780 | AG29: =VLOOKUP($B29,[1]FlowData!$A$3:$PL$215,AG$7,FALSE) -> 1560 | AH29: =VLOOKUP($B29,[1]FlowData!$A$3:$PL$215,AH$7,FALSE) -> 3000 | AI29: =VLOOKUP($B29,[1]FlowData!$A$3:$PL$215,AI$7,FALSE) -> 1540 | AJ29: =VLOOKUP($B29,[1]FlowData!$A$3:$PL$215,AJ$7,FALSE) -> 941 | AK29: =VLOOKUP($B29,[1]FlowData!$A$3:$PL$215,AK$7,FALSE) -> 623 | AL29: =VLOOKUP($B29,[1]FlowData!$A$3:$PL$215,AL$7,FALSE) -> 1140 | AM29: =VLOOKUP($B29,[1]FlowData!$A$3:$PL$215,AM$7,FALSE) -> 651 | AN29: =VLOOKUP($B29,[1]FlowData!$A$3:$PL$215,AN$7,FALSE) -> 488 | AO29: =VLOOKUP($B29,[1]FlowData!$A$3:$PL$215,AO$7,FALSE) -> 390 | AP29: =VLOOKUP($B29,[1]FlowData!$A$3:$PL$215,AP$7,FALSE) -> 526 | AQ29: =VLOOKUP($B29,[1]FlowData!$A$3:$PL$215,AQ$7,FALSE) -> 463 | AR29: =VLOOKUP($B29,[1]FlowData!$A$3:$PL$215,AR$7,FALSE) -> 383 | AS29: =VLOOKUP($B29,[1]FlowData!$A$3:$PL$215,AS$7,FALSE) -> 325 | AT29: =VLOOKUP($B29,[1]FlowData!$A$3:$PL$215,AT$7,FALSE) -> 397 | AU29: =VLOOKUP($B29,[1]FlowData!$A$3:$PL$215,AU$7,FALSE) -> 449 | AV29: =VLOOKUP($B29,[1]FlowData!$A$3:$PL$215,AV$7,FALSE) -> 365 | AW29: =VLOOKUP($B29,[1]FlowData!$A$3:$PL$215,AW$7,FALSE) -> 309 | AX29: =VLOOKUP($B29,[1]FlowData!$A$3:$PL$215,AX$7,FALSE) -> 395 | AY29: =VLOOKUP($B29,[1]FlowData!$A$3:$PL$215,AY$7,FALSE) -> 439 | AZ29: =VLOOKUP($B29,[1]FlowData!$A$3:$PL$215,AZ$7,FALSE) -> 355 | BA29: =VLOOKUP($B29,[1]FlowData!$A$3:$PL$215,BA$7,FALSE) -> 297 | BB29: =VLOOKUP($B29,[1]FlowData!$A$3:$PL$215,BB$7,FALSE) -> 377 | BC29: =VLOOKUP($B29,[1]FlowData!$A$3:$PL$215,BC$7,FALSE) -> 388 | BD29: =VLOOKUP($B29,[1]FlowData!$A$3:$PL$215,BD$7,FALSE) -> 301 | BE29: =VLOOKUP($B29,[1]FlowData!$A$3:$PL$215,BE$7,FALSE) -> 252 | BF29: =VLOOKUP($B29,[1]FlowData!$A$3:$PL$215,BF$7,FALSE) -> 324
A30: =VLOOKUP(B30,'[2]Gages and BCs'!$A$4:$BJ$973,62,FALSE) -> 659 | B30: 12338690 | C30: =VLOOKUP(B30,'[2]Gages and BCs'!$A$4:$BJ$973,60,FALSE) -> Monture Creek near Ovando, Montana | D30: 1974–83 | E30: =VLOOKUP($B30,[1]FlowData!$A$3:$PL$215,E$7,FALSE) ->  | F30: =VLOOKUP($B30,[1]FlowData!$A$3:$PL$215,F$7,FALSE) ->  | G30: =VLOOKUP($B30,[1]FlowData!$A$3:$PL$215,G$7,FALSE) -> 269 | H30: =VLOOKUP($B30,[1]FlowData!$A$3:$PL$215,H$7,FALSE) -> 74 | I30: =VLOOKUP($B30,[1]FlowData!$A$3:$PL$215,I$7,FALSE) -> 40 | J30: =VLOOKUP($B30,[1]FlowData!$A$3:$PL$215,J$7,FALSE) -> 192 | K30: =VLOOKUP($B30,[1]FlowData!$A$3:$PL$215,K$7,FALSE) -> 64 | L30: =VLOOKUP($B30,[1]FlowData!$A$3:$PL$215,L$7,FALSE) -> 36 | M30: =VLOOKUP($B30,[1]FlowData!$A$3:$PL$215,M$7,FALSE) -> 30 | N30: =VLOOKUP($B30,[1]FlowData!$A$3:$PL$215,N$7,FALSE) -> 47 | O30: =VLOOKUP($B30,[1]FlowData!$A$3:$PL$215,O$7,FALSE) -> 62 | P30: =VLOOKUP($B30,[1]FlowData!$A$3:$PL$215,P$7,FALSE) -> 37 | Q30: =VLOOKUP($B30,[1]FlowData!$A$3:$PL$215,Q$7,FALSE) -> 30 | R30: =VLOOKUP($B30,[1]FlowData!$A$3:$PL$215,R$7,FALSE) -> 44 | S30: =VLOOKUP($B30,[1]FlowData!$A$3:$PL$215,S$7,FALSE) -> 70 | T30: =VLOOKUP($B30,[1]FlowData!$A$3:$PL$215,T$7,FALSE) -> 50 | U30: =VLOOKUP($B30,[1]FlowData!$A$3:$PL$215,U$7,FALSE) -> 30 | V30: =VLOOKUP($B30,[1]FlowData!$A$3:$PL$215,V$7,FALSE) -> 56 | W30: =VLOOKUP($B30,[1]FlowData!$A$3:$PL$215,W$7,FALSE) -> 331 | X30: =VLOOKUP($B30,[1]FlowData!$A$3:$PL$215,X$7,FALSE) -> 130 | Y30: =VLOOKUP($B30,[1]FlowData!$A$3:$PL$215,Y$7,FALSE) -> 66 | Z30: =VLOOKUP($B30,[1]FlowData!$A$3:$PL$215,Z$7,FALSE) -> 211 | AA30: =VLOOKUP($B30,[1]FlowData!$A$3:$PL$215,AA$7,FALSE) -> 984 | AB30: =VLOOKUP($B30,[1]FlowData!$A$3:$PL$215,AB$7,FALSE) -> 586 | AC30: =VLOOKUP($B30,[1]FlowData!$A$3:$PL$215,AC$7,FALSE) -> 328 | AD30: =VLOOKUP($B30,[1]FlowData!$A$3:$PL$215,AD$7,FALSE) -> 668 | AE30: =VLOOKUP($B30,[1]FlowData!$A$3:$PL$215,AE$7,FALSE) -> 1090 | AF30: =VLOOKUP($B30,[1]FlowData!$A$3:$PL$215,AF$7,FALSE) -> 670 | AG30: =VLOOKUP($B30,[1]FlowData!$A$3:$PL$215,AG$7,FALSE) -> 401 | AH30: =VLOOKUP($B30,[1]FlowData!$A$3:$PL$215,AH$7,FALSE) -> 746 | AI30: =VLOOKUP($B30,[1]FlowData!$A$3:$PL$215,AI$7,FALSE) -> 335 | AJ30: =VLOOKUP($B30,[1]FlowData!$A$3:$PL$215,AJ$7,FALSE) -> 193 | AK30: =VLOOKUP($B30,[1]FlowData!$A$3:$PL$215,AK$7,FALSE) -> 112 | AL30: =VLOOKUP($B30,[1]FlowData!$A$3:$PL$215,AL$7,FALSE) -> 247 | AM30: =VLOOKUP($B30,[1]FlowData!$A$3:$PL$215,AM$7,FALSE) -> 103 | AN30: =VLOOKUP($B30,[1]FlowData!$A$3:$PL$215,AN$7,FALSE) -> 81 | AO30: =VLOOKUP($B30,[1]FlowData!$A$3:$PL$215,AO$7,FALSE) -> 64 | AP30: =VLOOKUP($B30,[1]FlowData!$A$3:$PL$215,AP$7,FALSE) -> 83 | AQ30: =VLOOKUP($B30,[1]FlowData!$A$3:$PL$215,AQ$7,FALSE) -> 67 | AR30: =VLOOKUP($B30,[1]FlowData!$A$3:$PL$215,AR$7,FALSE) -> 56 | AS30: =VLOOKUP($B30,[1]FlowData!$A$3:$PL$215,AS$7,FALSE) -> 43 | AT30: =VLOOKUP($B30,[1]FlowData!$A$3:$PL$215,AT$7,FALSE) -> 55 | AU30: =VLOOKUP($B30,[1]FlowData!$A$3:$PL$215,AU$7,FALSE) -> 51 | AV30: =VLOOKUP($B30,[1]FlowData!$A$3:$PL$215,AV$7,FALSE) -> 45 | AW30: =VLOOKUP($B30,[1]FlowData!$A$3:$PL$215,AW$7,FALSE) -> 39 | AX30: =VLOOKUP($B30,[1]FlowData!$A$3:$PL$215,AX$7,FALSE) -> 46 | AY30: =VLOOKUP($B30,[1]FlowData!$A$3:$PL$215,AY$7,FALSE) -> 46 | AZ30: =VLOOKUP($B30,[1]FlowData!$A$3:$PL$215,AZ$7,FALSE) -> 41 | BA30: =VLOOKUP($B30,[1]FlowData!$A$3:$PL$215,BA$7,FALSE) -> 37 | BB30: =VLOOKUP($B30,[1]FlowData!$A$3:$PL$215,BB$7,FALSE) -> 46 | BC30: =VLOOKUP($B30,[1]FlowData!$A$3:$PL$215,BC$7,FALSE) -> 42 | BD30: =VLOOKUP($B30,[1]FlowData!$A$3:$PL$215,BD$7,FALSE) -> 38 | BE30: =VLOOKUP($B30,[1]FlowData!$A$3:$PL$215,BE$7,FALSE) -> 33 | BF30: =VLOOKUP($B30,[1]FlowData!$A$3:$PL$215,BF$7,FALSE) -> 45
A31: =VLOOKUP(B31,'[2]Gages and BCs'!$A$4:$BJ$973,62,FALSE) -> 661 | B31: 12339450 | C31: =VLOOKUP(B31,'[2]Gages and BCs'!$A$4:$BJ$973,60,FALSE) -> Clearwater River near Clearwater, Montana | D31: 1975–92 | E31: =VLOOKUP($B31,[1]FlowData!$A$3:$PL$215,E$7,FALSE) -> 25.153 | F31: =VLOOKUP($B31,[1]FlowData!$A$3:$PL$215,F$7,FALSE) -> 31.473 | G31: =VLOOKUP($B31,[1]FlowData!$A$3:$PL$215,G$7,FALSE) -> 449 | H31: =VLOOKUP($B31,[1]FlowData!$A$3:$PL$215,H$7,FALSE) -> 109 | I31: =VLOOKUP($B31,[1]FlowData!$A$3:$PL$215,I$7,FALSE) -> 52 | J31: =VLOOKUP($B31,[1]FlowData!$A$3:$PL$215,J$7,FALSE) -> 281 | K31: =VLOOKUP($B31,[1]FlowData!$A$3:$PL$215,K$7,FALSE) -> 114 | L31: =VLOOKUP($B31,[1]FlowData!$A$3:$PL$215,L$7,FALSE) -> 79 | M31: =VLOOKUP($B31,[1]FlowData!$A$3:$PL$215,M$7,FALSE) -> 62 | N31: =VLOOKUP($B31,[1]FlowData!$A$3:$PL$215,N$7,FALSE) -> 92 | O31: =VLOOKUP($B31,[1]FlowData!$A$3:$PL$215,O$7,FALSE) -> 114 | P31: =VLOOKUP($B31,[1]FlowData!$A$3:$PL$215,P$7,FALSE) -> 76 | Q31: =VLOOKUP($B31,[1]FlowData!$A$3:$PL$215,Q$7,FALSE) -> 59 | R31: =VLOOKUP($B31,[1]FlowData!$A$3:$PL$215,R$7,FALSE) -> 86 | S31: =VLOOKUP($B31,[1]FlowData!$A$3:$PL$215,S$7,FALSE) -> 194 | T31: =VLOOKUP($B31,[1]FlowData!$A$3:$PL$215,T$7,FALSE) -> 123 | U31: =VLOOKUP($B31,[1]FlowData!$A$3:$PL$215,U$7,FALSE) -> 68 | V31: =VLOOKUP($B31,[1]FlowData!$A$3:$PL$215,V$7,FALSE) -> 160 | W31: =VLOOKUP($B31,[1]FlowData!$A$3:$PL$215,W$7,FALSE) -> 1030 | X31: =VLOOKUP($B31,[1]FlowData!$A$3:$PL$215,X$7,FALSE) -> 529 | Y31: =VLOOKUP($B31,[1]FlowData!$A$3:$PL$215,Y$7,FALSE) -> 200 | Z31: =VLOOKUP($B31,[1]FlowData!$A$3:$PL$215,Z$7,FALSE) -> 648 | AA31: =VLOOKUP($B31,[1]FlowData!$A$3:$PL$215,AA$7,FALSE) -> 1410 | AB31: =VLOOKUP($B31,[1]FlowData!$A$3:$PL$215,AB$7,FALSE) -> 904 | AC31: =VLOOKUP($B31,[1]FlowData!$A$3:$PL$215,AC$7,FALSE) -> 612 | AD31: =VLOOKUP($B31,[1]FlowData!$A$3:$PL$215,AD$7,FALSE) -> 1010 | AE31: =VLOOKUP($B31,[1]FlowData!$A$3:$PL$215,AE$7,FALSE) -> 1030 | AF31: =VLOOKUP($B31,[1]FlowData!$A$3:$PL$215,AF$7,FALSE) -> 703 | AG31: =VLOOKUP($B31,[1]FlowData!$A$3:$PL$215,AG$7,FALSE) -> 344 | AH31: =VLOOKUP($B31,[1]FlowData!$A$3:$PL$215,AH$7,FALSE) -> 701 | AI31: =VLOOKUP($B31,[1]FlowData!$A$3:$PL$215,AI$7,FALSE) -> 364 | AJ31: =VLOOKUP($B31,[1]FlowData!$A$3:$PL$215,AJ$7,FALSE) -> 182 | AK31: =VLOOKUP($B31,[1]FlowData!$A$3:$PL$215,AK$7,FALSE) -> 91 | AL31: =VLOOKUP($B31,[1]FlowData!$A$3:$PL$215,AL$7,FALSE) -> 233 | AM31: =VLOOKUP($B31,[1]FlowData!$A$3:$PL$215,AM$7,FALSE) -> 111 | AN31: =VLOOKUP($B31,[1]FlowData!$A$3:$PL$215,AN$7,FALSE) -> 70 | AO31: =VLOOKUP($B31,[1]FlowData!$A$3:$PL$215,AO$7,FALSE) -> 40 | AP31: =VLOOKUP($B31,[1]FlowData!$A$3:$PL$215,AP$7,FALSE) -> 76 | AQ31: =VLOOKUP($B31,[1]FlowData!$A$3:$PL$215,AQ$7,FALSE) -> 85 | AR31: =VLOOKUP($B31,[1]FlowData!$A$3:$PL$215,AR$7,FALSE) -> 54 | AS31: =VLOOKUP($B31,[1]FlowData!$A$3:$PL$215,AS$7,FALSE) -> 36 | AT31: =VLOOKUP($B31,[1]FlowData!$A$3:$PL$215,AT$7,FALSE) -> 65 | AU31: =VLOOKUP($B31,[1]FlowData!$A$3:$PL$215,AU$7,FALSE) -> 102 | AV31: =VLOOKUP($B31,[1]FlowData!$A$3:$PL$215,AV$7,FALSE) -> 71 | AW31: =VLOOKUP($B31,[1]FlowData!$A$3:$PL$215,AW$7,FALSE) -> 52 | AX31: =VLOOKUP($B31,[1]FlowData!$A$3:$PL$215,AX$7,FALSE) -> 80 | AY31: =VLOOKUP($B31,[1]FlowData!$A$3:$PL$215,AY$7,FALSE) -> 140 | AZ31: =VLOOKUP($B31,[1]FlowData!$A$3:$PL$215,AZ$7,FALSE) -> 80 | BA31: =VLOOKUP($B31,[1]FlowData!$A$3:$PL$215,BA$7,FALSE) -> 62 | BB31: =VLOOKUP($B31,[1]FlowData!$A$3:$PL$215,BB$7,FALSE) -> 100 | BC31: =VLOOKUP($B31,[1]FlowData!$A$3:$PL$215,BC$7,FALSE) -> 123 | BD31: =VLOOKUP($B31,[1]FlowData!$A$3:$PL$215,BD$7,FALSE) -> 80 | BE31: =VLOOKUP($B31,[1]FlowData!$A$3:$PL$215,BE$7,FALSE) -> 67 | BF31: =VLOOKUP($B31,[1]FlowData!$A$3:$PL$215,BF$7,FALSE) -> 105
A32: =VLOOKUP(B32,'[2]Gages and BCs'!$A$4:$BJ$973,62,FALSE) -> 663 | B32: 12340000 | C32: =VLOOKUP(B32,'[2]Gages and BCs'!$A$4:$BJ$973,60,FALSE) -> Blackfoot River near Bonner, Montana | D32: 1900–01, 1903–05, 1940–2009 | E32: =VLOOKUP($B32,[1]FlowData!$A$3:$PL$215,E$7,FALSE) -> 285.186 | F32: =VLOOKUP($B32,[1]FlowData!$A$3:$PL$215,F$7,FALSE) -> 472.318 | G32: =VLOOKUP($B32,[1]FlowData!$A$3:$PL$215,G$7,FALSE) -> 2150 | H32: =VLOOKUP($B32,[1]FlowData!$A$3:$PL$215,H$7,FALSE) -> 740 | I32: =VLOOKUP($B32,[1]FlowData!$A$3:$PL$215,I$7,FALSE) -> 393 | J32: =VLOOKUP($B32,[1]FlowData!$A$3:$PL$215,J$7,FALSE) -> 1560 | K32: =VLOOKUP($B32,[1]FlowData!$A$3:$PL$215,K$7,FALSE) -> 672 | L32: =VLOOKUP($B32,[1]FlowData!$A$3:$PL$215,L$7,FALSE) -> 529 | M32: =VLOOKUP($B32,[1]FlowData!$A$3:$PL$215,M$7,FALSE) -> 414 | N32: =VLOOKUP($B32,[1]FlowData!$A$3:$PL$215,N$7,FALSE) -> 555 | O32: =VLOOKUP($B32,[1]FlowData!$A$3:$PL$215,O$7,FALSE) -> 680 | P32: =VLOOKUP($B32,[1]FlowData!$A$3:$PL$215,P$7,FALSE) -> 530 | Q32: =VLOOKUP($B32,[1]FlowData!$A$3:$PL$215,Q$7,FALSE) -> 414 | R32: =VLOOKUP($B32,[1]FlowData!$A$3:$PL$215,R$7,FALSE) -> 595 | S32: =VLOOKUP($B32,[1]FlowData!$A$3:$PL$215,S$7,FALSE) -> 966 | T32: =VLOOKUP($B32,[1]FlowData!$A$3:$PL$215,T$7,FALSE) -> 647 | U32: =VLOOKUP($B32,[1]FlowData!$A$3:$PL$215,U$7,FALSE) -> 498 | V32: =VLOOKUP($B32,[1]FlowData!$A$3:$PL$215,V$7,FALSE) -> 786 | W32: =VLOOKUP($B32,[1]FlowData!$A$3:$PL$215,W$7,FALSE) -> 3060 | X32: =VLOOKUP($B32,[1]FlowData!$A$3:$PL$215,X$7,FALSE) -> 1580 | Y32: =VLOOKUP($B32,[1]FlowData!$A$3:$PL$215,Y$7,FALSE) -> 907 | Z32: =VLOOKUP($B32,[1]FlowData!$A$3:$PL$215,Z$7,FALSE) -> 2060 | AA32: =VLOOKUP($B32,[1]FlowData!$A$3:$PL$215,AA$7,FALSE) -> 7040 | AB32: =VLOOKUP($B32,[1]FlowData!$A$3:$PL$215,AB$7,FALSE) -> 4180 | AC32: =VLOOKUP($B32,[1]FlowData!$A$3:$PL$215,AC$7,FALSE) -> 2730 | AD32: =VLOOKUP($B32,[1]FlowData!$A$3:$PL$215,AD$7,FALSE) -> 4850 | AE32: =VLOOKUP($B32,[1]FlowData!$A$3:$PL$215,AE$7,FALSE) -> 6650 | AF32: =VLOOKUP($B32,[1]FlowData!$A$3:$PL$215,AF$7,FALSE) -> 4340 | AG32: =VLOOKUP($B32,[1]FlowData!$A$3:$PL$215,AG$7,FALSE) -> 2470 | AH32: =VLOOKUP($B32,[1]FlowData!$A$3:$PL$215,AH$7,FALSE) -> 4710 | AI32: =VLOOKUP($B32,[1]FlowData!$A$3:$PL$215,AI$7,FALSE) -> 2380 | AJ32: =VLOOKUP($B32,[1]FlowData!$A$3:$PL$215,AJ$7,FALSE) -> 1460 | AK32: =VLOOKUP($B32,[1]FlowData!$A$3:$PL$215,AK$7,FALSE) -> 930 | AL32: =VLOOKUP($B32,[1]FlowData!$A$3:$PL$215,AL$7,FALSE) -> 1730 | AM32: =VLOOKUP($B32,[1]FlowData!$A$3:$PL$215,AM$7,FALSE) -> 1010 | AN32: =VLOOKUP($B32,[1]FlowData!$A$3:$PL$215,AN$7,FALSE) -> 782 | AO32: =VLOOKUP($B32,[1]FlowData!$A$3:$PL$215,AO$7,FALSE) -> 565 | AP32: =VLOOKUP($B32,[1]FlowData!$A$3:$PL$215,AP$7,FALSE) -> 804 | AQ32: =VLOOKUP($B32,[1]FlowData!$A$3:$PL$215,AQ$7,FALSE) -> 791 | AR32: =VLOOKUP($B32,[1]FlowData!$A$3:$PL$215,AR$7,FALSE) -> 655 | AS32: =VLOOKUP($B32,[1]FlowData!$A$3:$PL$215,AS$7,FALSE) -> 494 | AT32: =VLOOKUP($B32,[1]FlowData!$A$3:$PL$215,AT$7,FALSE) -> 654 | AU32: =VLOOKUP($B32,[1]FlowData!$A$3:$PL$215,AU$7,FALSE) -> 734 | AV32: =VLOOKUP($B32,[1]FlowData!$A$3:$PL$215,AV$7,FALSE) -> 616 | AW32: =VLOOKUP($B32,[1]FlowData!$A$3:$PL$215,AW$7,FALSE) -> 494 | AX32: =VLOOKUP($B32,[1]FlowData!$A$3:$PL$215,AX$7,FALSE) -> 643 | AY32: =VLOOKUP($B32,[1]FlowData!$A$3:$PL$215,AY$7,FALSE) -> 759 | AZ32: =VLOOKUP($B32,[1]FlowData!$A$3:$PL$215,AZ$7,FALSE) -> 605 | BA32: =VLOOKUP($B32,[1]FlowData!$A$3:$PL$215,BA$7,FALSE) -> 504 | BB32: =VLOOKUP($B32,[1]FlowData!$A$3:$PL$215,BB$7,FALSE) -> 652 | BC32: =VLOOKUP($B32,[1]FlowData!$A$3:$PL$215,BC$7,FALSE) -> 711 | BD32: =VLOOKUP($B32,[1]FlowData!$A$3:$PL$215,BD$7,FALSE) -> 547 | BE32: =VLOOKUP($B32,[1]FlowData!$A$3:$PL$215,BE$7,FALSE) -> 440 | BF32: =VLOOKUP($B32,[1]FlowData!$A$3:$PL$215,BF$7,FALSE) -> 603
A33: =VLOOKUP(B33,'[2]Gages and BCs'!$A$4:$BJ$973,62,FALSE) -> 669 | B33: 12343400 | C33: =VLOOKUP(B33,'[2]Gages and BCs'!$A$4:$BJ$973,60,FALSE) -> East Fork Bitterroot River near Conner, Montana | D33: 1956–72, 2001–4 | E33: =VLOOKUP($B33,[1]FlowData!$A$3:$PL$215,E$7,FALSE) -> 41.182 | F33: =VLOOKUP($B33,[1]FlowData!$A$3:$PL$215,F$7,FALSE) -> 76.345 | G33: =VLOOKUP($B33,[1]FlowData!$A$3:$PL$215,G$7,FALSE) -> 336 | H33: =VLOOKUP($B33,[1]FlowData!$A$3:$PL$215,H$7,FALSE) -> 126 | I33: =VLOOKUP($B33,[1]FlowData!$A$3:$PL$215,I$7,FALSE) -> 64 | J33: =VLOOKUP($B33,[1]FlowData!$A$3:$PL$215,J$7,FALSE) -> 281 | K33: =VLOOKUP($B33,[1]FlowData!$A$3:$PL$215,K$7,FALSE) -> 101 | L33: =VLOOKUP($B33,[1]FlowData!$A$3:$PL$215,L$7,FALSE) -> 79 | M33: =VLOOKUP($B33,[1]FlowData!$A$3:$PL$215,M$7,FALSE) -> 65 | N33: =VLOOKUP($B33,[1]FlowData!$A$3:$PL$215,N$7,FALSE) -> 84 | O33: =VLOOKUP($B33,[1]FlowData!$A$3:$PL$215,O$7,FALSE) -> 102 | P33: =VLOOKUP($B33,[1]FlowData!$A$3:$PL$215,P$7,FALSE) -> 80 | Q33: =VLOOKUP($B33,[1]FlowData!$A$3:$PL$215,Q$7,FALSE) -> 69 | R33: =VLOOKUP($B33,[1]FlowData!$A$3:$PL$215,R$7,FALSE) -> 89 | S33: =VLOOKUP($B33,[1]FlowData!$A$3:$PL$215,S$7,FALSE) -> 142 | T33: =VLOOKUP($B33,[1]FlowData!$A$3:$PL$215,T$7,FALSE) -> 95 | U33: =VLOOKUP($B33,[1]FlowData!$A$3:$PL$215,U$7,FALSE) -> 76 | V33: =VLOOKUP($B33,[1]FlowData!$A$3:$PL$215,V$7,FALSE) -> 112 | W33: =VLOOKUP($B33,[1]FlowData!$A$3:$PL$215,W$7,FALSE) -> 342 | X33: =VLOOKUP($B33,[1]FlowData!$A$3:$PL$215,X$7,FALSE) -> 206 | Y33: =VLOOKUP($B33,[1]FlowData!$A$3:$PL$215,Y$7,FALSE) -> 133 | Z33: =VLOOKUP($B33,[1]FlowData!$A$3:$PL$215,Z$7,FALSE) -> 257 | AA33: =VLOOKUP($B33,[1]FlowData!$A$3:$PL$215,AA$7,FALSE) -> 1380 | AB33: =VLOOKUP($B33,[1]FlowData!$A$3:$PL$215,AB$7,FALSE) -> 793 | AC33: =VLOOKUP($B33,[1]FlowData!$A$3:$PL$215,AC$7,FALSE) -> 486 | AD33: =VLOOKUP($B33,[1]FlowData!$A$3:$PL$215,AD$7,FALSE) -> 940 | AE33: =VLOOKUP($B33,[1]FlowData!$A$3:$PL$215,AE$7,FALSE) -> 1570 | AF33: =VLOOKUP($B33,[1]FlowData!$A$3:$PL$215,AF$7,FALSE) -> 1010 | AG33: =VLOOKUP($B33,[1]FlowData!$A$3:$PL$215,AG$7,FALSE) -> 541 | AH33: =VLOOKUP($B33,[1]FlowData!$A$3:$PL$215,AH$7,FALSE) -> 1080 | AI33: =VLOOKUP($B33,[1]FlowData!$A$3:$PL$215,AI$7,FALSE) -> 398 | AJ33: =VLOOKUP($B33,[1]FlowData!$A$3:$PL$215,AJ$7,FALSE) -> 244 | AK33: =VLOOKUP($B33,[1]FlowData!$A$3:$PL$215,AK$7,FALSE) -> 168 | AL33: =VLOOKUP($B33,[1]FlowData!$A$3:$PL$215,AL$7,FALSE) -> 293 | AM33: =VLOOKUP($B33,[1]FlowData!$A$3:$PL$215,AM$7,FALSE) -> 160 | AN33: =VLOOKUP($B33,[1]FlowData!$A$3:$PL$215,AN$7,FALSE) -> 119 | AO33: =VLOOKUP($B33,[1]FlowData!$A$3:$PL$215,AO$7,FALSE) -> 95 | AP33: =VLOOKUP($B33,[1]FlowData!$A$3:$PL$215,AP$7,FALSE) -> 127 | AQ33: =VLOOKUP($B33,[1]FlowData!$A$3:$PL$215,AQ$7,FALSE) -> 136 | AR33: =VLOOKUP($B33,[1]FlowData!$A$3:$PL$215,AR$7,FALSE) -> 107 | AS33: =VLOOKUP($B33,[1]FlowData!$A$3:$PL$215,AS$7,FALSE) -> 87 | AT33: =VLOOKUP($B33,[1]FlowData!$A$3:$PL$215,AT$7,FALSE) -> 113 | AU33: =VLOOKUP($B33,[1]FlowData!$A$3:$PL$215,AU$7,FALSE) -> 134 | AV33: =VLOOKUP($B33,[1]FlowData!$A$3:$PL$215,AV$7,FALSE) -> 106 | AW33: =VLOOKUP($B33,[1]FlowData!$A$3:$PL$215,AW$7,FALSE) -> 86 | AX33: =VLOOKUP($B33,[1]FlowData!$A$3:$PL$215,AX$7,FALSE) -> 113 | AY33: =VLOOKUP($B33,[1]FlowData!$A$3:$PL$215,AY$7,FALSE) -> 121 | AZ33: =VLOOKUP($B33,[1]FlowData!$A$3:$PL$215,AZ$7,FALSE) -> 100 | BA33: =VLOOKUP($B33,[1]FlowData!$A$3:$PL$215,BA$7,FALSE) -> 81 | BB33: =VLOOKUP($B33,[1]FlowData!$A$3:$PL$215,BB$7,FALSE) -> 102 | BC33: =VLOOKUP($B33,[1]FlowData!$A$3:$PL$215,BC$7,FALSE) -> 108 | BD33: =VLOOKUP($B33,[1]FlowData!$A$3:$PL$215,BD$7,FALSE) -> 85 | BE33: =VLOOKUP($B33,[1]FlowData!$A$3:$PL$215,BE$7,FALSE) -> 63 | BF33: =VLOOKUP($B33,[1]FlowData!$A$3:$PL$215,BF$7,FALSE) -> 89
A34: =VLOOKUP(B34,'[2]Gages and BCs'!$A$4:$BJ$973,62,FALSE) -> 675 | B34: 12346500 | C34: =VLOOKUP(B34,'[2]Gages and BCs'!$A$4:$BJ$973,60,FALSE) -> Skalkaho Creek near Hamilton, Montana | D34: 1949–53, 1958–79, 2001–3 | E34: =VLOOKUP($B34,[1]FlowData!$A$3:$PL$215,E$7,FALSE) -> 16.517 | F34: =VLOOKUP($B34,[1]FlowData!$A$3:$PL$215,F$7,FALSE) -> 31.676 | G34: =VLOOKUP($B34,[1]FlowData!$A$3:$PL$215,G$7,FALSE) -> 114 | H34: =VLOOKUP($B34,[1]FlowData!$A$3:$PL$215,H$7,FALSE) -> 42 | I34: =VLOOKUP($B34,[1]FlowData!$A$3:$PL$215,I$7,FALSE) -> 24 | J34: =VLOOKUP($B34,[1]FlowData!$A$3:$PL$215,J$7,FALSE) -> 91 | K34: =VLOOKUP($B34,[1]FlowData!$A$3:$PL$215,K$7,FALSE) -> 31 | L34: =VLOOKUP($B34,[1]FlowData!$A$3:$PL$215,L$7,FALSE) -> 25 | M34: =VLOOKUP($B34,[1]FlowData!$A$3:$PL$215,M$7,FALSE) -> 21 | N34: =VLOOKUP($B34,[1]FlowData!$A$3:$PL$215,N$7,FALSE) -> 26 | O34: =VLOOKUP($B34,[1]FlowData!$A$3:$PL$215,O$7,FALSE) -> 28 | P34: =VLOOKUP($B34,[1]FlowData!$A$3:$PL$215,P$7,FALSE) -> 25 | Q34: =VLOOKUP($B34,[1]FlowData!$A$3:$PL$215,Q$7,FALSE) -> 21 | R34: =VLOOKUP($B34,[1]FlowData!$A$3:$PL$215,R$7,FALSE) -> 25 | S34: =VLOOKUP($B34,[1]FlowData!$A$3:$PL$215,S$7,FALSE) -> 29 | T34: =VLOOKUP($B34,[1]FlowData!$A$3:$PL$215,T$7,FALSE) -> 25 | U34: =VLOOKUP($B34,[1]FlowData!$A$3:$PL$215,U$7,FALSE) -> 21 | V34: =VLOOKUP($B34,[1]FlowData!$A$3:$PL$215,V$7,FALSE) -> 26 | W34: =VLOOKUP($B34,[1]FlowData!$A$3:$PL$215,W$7,FALSE) -> 73 | X34: =VLOOKUP($B34,[1]FlowData!$A$3:$PL$215,X$7,FALSE) -> 39 | Y34: =VLOOKUP($B34,[1]FlowData!$A$3:$PL$215,Y$7,FALSE) -> 27 | Z34: =VLOOKUP($B34,[1]FlowData!$A$3:$PL$215,Z$7,FALSE) -> 52 | AA34: =VLOOKUP($B34,[1]FlowData!$A$3:$PL$215,AA$7,FALSE) -> 367 | AB34: =VLOOKUP($B34,[1]FlowData!$A$3:$PL$215,AB$7,FALSE) -> 187 | AC34: =VLOOKUP($B34,[1]FlowData!$A$3:$PL$215,AC$7,FALSE) -> 96 | AD34: =VLOOKUP($B34,[1]FlowData!$A$3:$PL$215,AD$7,FALSE) -> 232 | AE34: =VLOOKUP($B34,[1]FlowData!$A$3:$PL$215,AE$7,FALSE) -> 490 | AF34: =VLOOKUP($B34,[1]FlowData!$A$3:$PL$215,AF$7,FALSE) -> 386 | AG34: =VLOOKUP($B34,[1]FlowData!$A$3:$PL$215,AG$7,FALSE) -> 214 | AH34: =VLOOKUP($B34,[1]FlowData!$A$3:$PL$215,AH$7,FALSE) -> 373 | AI34: =VLOOKUP($B34,[1]FlowData!$A$3:$PL$215,AI$7,FALSE) -> 190 | AJ34: =VLOOKUP($B34,[1]FlowData!$A$3:$PL$215,AJ$7,FALSE) -> 121 | AK34: =VLOOKUP($B34,[1]FlowData!$A$3:$PL$215,AK$7,FALSE) -> 84 | AL34: =VLOOKUP($B34,[1]FlowData!$A$3:$PL$215,AL$7,FALSE) -> 147 | AM34: =VLOOKUP($B34,[1]FlowData!$A$3:$PL$215,AM$7,FALSE) -> 83 | AN34: =VLOOKUP($B34,[1]FlowData!$A$3:$PL$215,AN$7,FALSE) -> 63 | AO34: =VLOOKUP($B34,[1]FlowData!$A$3:$PL$215,AO$7,FALSE) -> 50 | AP34: =VLOOKUP($B34,[1]FlowData!$A$3:$PL$215,AP$7,FALSE) -> 67 | AQ34: =VLOOKUP($B34,[1]FlowData!$A$3:$PL$215,AQ$7,FALSE) -> 56 | AR34: =VLOOKUP($B34,[1]FlowData!$A$3:$PL$215,AR$7,FALSE) -> 45 | AS34: =VLOOKUP($B34,[1]FlowData!$A$3:$PL$215,AS$7,FALSE) -> 37 | AT34: =VLOOKUP($B34,[1]FlowData!$A$3:$PL$215,AT$7,FALSE) -> 47 | AU34: =VLOOKUP($B34,[1]FlowData!$A$3:$PL$215,AU$7,FALSE) -> 47 | AV34: =VLOOKUP($B34,[1]FlowData!$A$3:$PL$215,AV$7,FALSE) -> 39 | AW34: =VLOOKUP($B34,[1]FlowData!$A$3:$PL$215,AW$7,FALSE) -> 32 | AX34: =VLOOKUP($B34,[1]FlowData!$A$3:$PL$215,AX$7,FALSE) -> 41 | AY34: =VLOOKUP($B34,[1]FlowData!$A$3:$PL$215,AY$7,FALSE) -> 41 | AZ34: =VLOOKUP($B34,[1]FlowData!$A$3:$PL$215,AZ$7,FALSE) -> 34 | BA34: =VLOOKUP($B34,[1]FlowData!$A$3:$PL$215,BA$7,FALSE) -> 29 | BB34: =VLOOKUP($B34,[1]FlowData!$A$3:$PL$215,BB$7,FALSE) -> 35 | BC34: =VLOOKUP($B34,[1]FlowData!$A$3:$PL$215,BC$7,FALSE) -> 34 | BD34: =VLOOKUP($B34,[1]FlowData!$A$3:$PL$215,BD$7,FALSE) -> 28 | BE34: =VLOOKUP($B34,[1]FlowData!$A$3:$PL$215,BE$7,FALSE) -> 24 | BF34: =VLOOKUP($B34,[1]FlowData!$A$3:$PL$215,BF$7,FALSE) -> 29
A35: =VLOOKUP(B35,'[2]Gages and BCs'!$A$4:$BJ$973,62,FALSE) -> 676 | B35: 12347500 | C35: =VLOOKUP(B35,'[2]Gages and BCs'!$A$4:$BJ$973,60,FALSE) -> Blodgett Creek near Corvallis, Montana | D35: 1947–69 | E35: =VLOOKUP($B35,[1]FlowData!$A$3:$PL$215,E$7,FALSE) -> 2.368 | F35: =VLOOKUP($B35,[1]FlowData!$A$3:$PL$215,F$7,FALSE) -> 3.708 | G35: =VLOOKUP($B35,[1]FlowData!$A$3:$PL$215,G$7,FALSE) -> 109 | H35: =VLOOKUP($B35,[1]FlowData!$A$3:$PL$215,H$7,FALSE) -> 24 | I35: =VLOOKUP($B35,[1]FlowData!$A$3:$PL$215,I$7,FALSE) -> 10 | J35: =VLOOKUP($B35,[1]FlowData!$A$3:$PL$215,J$7,FALSE) -> 70 | K35: =VLOOKUP($B35,[1]FlowData!$A$3:$PL$215,K$7,FALSE) -> 22 | L35: =VLOOKUP($B35,[1]FlowData!$A$3:$PL$215,L$7,FALSE) -> 11 | M35: =VLOOKUP($B35,[1]FlowData!$A$3:$PL$215,M$7,FALSE) -> 7.2 | N35: =VLOOKUP($B35,[1]FlowData!$A$3:$PL$215,N$7,FALSE) -> 15 | O35: =VLOOKUP($B35,[1]FlowData!$A$3:$PL$215,O$7,FALSE) -> 20 | P35: =VLOOKUP($B35,[1]FlowData!$A$3:$PL$215,P$7,FALSE) -> 13 | Q35: =VLOOKUP($B35,[1]FlowData!$A$3:$PL$215,Q$7,FALSE) -> 7.7 | R35: =VLOOKUP($B35,[1]FlowData!$A$3:$PL$215,R$7,FALSE) -> 15 | S35: =VLOOKUP($B35,[1]FlowData!$A$3:$PL$215,S$7,FALSE) -> 21 | T35: =VLOOKUP($B35,[1]FlowData!$A$3:$PL$215,T$7,FALSE) -> 15 | U35: =VLOOKUP($B35,[1]FlowData!$A$3:$PL$215,U$7,FALSE) -> 9.6 | V35: =VLOOKUP($B35,[1]FlowData!$A$3:$PL$215,V$7,FALSE) -> 18 | W35: =VLOOKUP($B35,[1]FlowData!$A$3:$PL$215,W$7,FALSE) -> 112 | X35: =VLOOKUP($B35,[1]FlowData!$A$3:$PL$215,X$7,FALSE) -> 50 | Y35: =VLOOKUP($B35,[1]FlowData!$A$3:$PL$215,Y$7,FALSE) -> 27 | Z35: =VLOOKUP($B35,[1]FlowData!$A$3:$PL$215,Z$7,FALSE) -> 75 | AA35: =VLOOKUP($B35,[1]FlowData!$A$3:$PL$215,AA$7,FALSE) -> 360 | AB35: =VLOOKUP($B35,[1]FlowData!$A$3:$PL$215,AB$7,FALSE) -> 241 | AC35: =VLOOKUP($B35,[1]FlowData!$A$3:$PL$215,AC$7,FALSE) -> 127 | AD35: =VLOOKUP($B35,[1]FlowData!$A$3:$PL$215,AD$7,FALSE) -> 254 | AE35: =VLOOKUP($B35,[1]FlowData!$A$3:$PL$215,AE$7,FALSE) -> 362 | AF35: =VLOOKUP($B35,[1]FlowData!$A$3:$PL$215,AF$7,FALSE) -> 258 | AG35: =VLOOKUP($B35,[1]FlowData!$A$3:$PL$215,AG$7,FALSE) -> 168 | AH35: =VLOOKUP($B35,[1]FlowData!$A$3:$PL$215,AH$7,FALSE) -> 269 | AI35: =VLOOKUP($B35,[1]FlowData!$A$3:$PL$215,AI$7,FALSE) -> 143 | AJ35: =VLOOKUP($B35,[1]FlowData!$A$3:$PL$215,AJ$7,FALSE) -> 70 | AK35: =VLOOKUP($B35,[1]FlowData!$A$3:$PL$215,AK$7,FALSE) -> 35 | AL35: =VLOOKUP($B35,[1]FlowData!$A$3:$PL$215,AL$7,FALSE) -> 91 | AM35: =VLOOKUP($B35,[1]FlowData!$A$3:$PL$215,AM$7,FALSE) -> 29 | AN35: =VLOOKUP($B35,[1]FlowData!$A$3:$PL$215,AN$7,FALSE) -> 20 | AO35: =VLOOKUP($B35,[1]FlowData!$A$3:$PL$215,AO$7,FALSE) -> 10 | AP35: =VLOOKUP($B35,[1]FlowData!$A$3:$PL$215,AP$7,FALSE) -> 21 | AQ35: =VLOOKUP($B35,[1]FlowData!$A$3:$PL$215,AQ$7,FALSE) -> 23 | AR35: =VLOOKUP($B35,[1]FlowData!$A$3:$PL$215,AR$7,FALSE) -> 11 | AS35: =VLOOKUP($B35,[1]FlowData!$A$3:$PL$215,AS$7,FALSE) -> 5.6 | AT35: =VLOOKUP($B35,[1]FlowData!$A$3:$PL$215,AT$7,FALSE) -> 17 | AU35: =VLOOKUP($B35,[1]FlowData!$A$3:$PL$215,AU$7,FALSE) -> 41 | AV35: =VLOOKUP($B35,[1]FlowData!$A$3:$PL$215,AV$7,FALSE) -> 17 | AW35: =VLOOKUP($B35,[1]FlowData!$A$3:$PL$215,AW$7,FALSE) -> 6.5 | AX35: =VLOOKUP($B35,[1]FlowData!$A$3:$PL$215,AX$7,FALSE) -> 27 | AY35: =VLOOKUP($B35,[1]FlowData!$A$3:$PL$215,AY$7,FALSE) -> 40 | AZ35: =VLOOKUP($B35,[1]FlowData!$A$3:$PL$215,AZ$7,FALSE) -> 18 | BA35: =VLOOKUP($B35,[1]FlowData!$A$3:$PL$215,BA$7,FALSE) -> 9.4 | BB35: =VLOOKUP($B35,[1]FlowData!$A$3:$PL$215,BB$7,FALSE) -> 26 | BC35: =VLOOKUP($B35,[1]FlowData!$A$3:$PL$215,BC$7,FALSE) -> 32 | BD35: =VLOOKUP($B35,[1]FlowData!$A$3:$PL$215,BD$7,FALSE) -> 17 | BE35: =VLOOKUP($B35,[1]FlowData!$A$3:$PL$215,BE$7,FALSE) -> 8.1 | BF35: =VLOOKUP($B35,[1]FlowData!$A$3:$PL$215,BF$7,FALSE) -> 22
A36: =VLOOKUP(B36,'[2]Gages and BCs'!$A$4:$BJ$973,62,FALSE) -> 678 | B36: 12350000 | C36: =VLOOKUP(B36,'[2]Gages and BCs'!$A$4:$BJ$973,60,FALSE) -> Bear Creek near Victor, Montana | D36: 1938–54, 1958–59 | E36: =VLOOKUP($B36,[1]FlowData!$A$3:$PL$215,E$7,FALSE) -> 1.435 | F36: =VLOOKUP($B36,[1]FlowData!$A$3:$PL$215,F$7,FALSE) -> 2.337 | G36: =VLOOKUP($B36,[1]FlowData!$A$3:$PL$215,G$7,FALSE) -> 101 | H36: =VLOOKUP($B36,[1]FlowData!$A$3:$PL$215,H$7,FALSE) -> 25 | I36: =VLOOKUP($B36,[1]FlowData!$A$3:$PL$215,I$7,FALSE) -> 10 | J36: =VLOOKUP($B36,[1]FlowData!$A$3:$PL$215,J$7,FALSE) -> 66 | K36: =VLOOKUP($B36,[1]FlowData!$A$3:$PL$215,K$7,FALSE) -> 17 | L36: =VLOOKUP($B36,[1]FlowData!$A$3:$PL$215,L$7,FALSE) -> 12 | M36: =VLOOKUP($B36,[1]FlowData!$A$3:$PL$215,M$7,FALSE) -> 6.6 | N36: =VLOOKUP($B36,[1]FlowData!$A$3:$PL$215,N$7,FALSE) -> 13 | O36: =VLOOKUP($B36,[1]FlowData!$A$3:$PL$215,O$7,FALSE) -> 16 | P36: =VLOOKUP($B36,[1]FlowData!$A$3:$PL$215,P$7,FALSE) -> 11 | Q36: =VLOOKUP($B36,[1]FlowData!$A$3:$PL$215,Q$7,FALSE) -> 6.8 | R36: =VLOOKUP($B36,[1]FlowData!$A$3:$PL$215,R$7,FALSE) -> 12 | S36: =VLOOKUP($B36,[1]FlowData!$A$3:$PL$215,S$7,FALSE) -> 17 | T36: =VLOOKUP($B36,[1]FlowData!$A$3:$PL$215,T$7,FALSE) -> 12 | U36: =VLOOKUP($B36,[1]FlowData!$A$3:$PL$215,U$7,FALSE) -> 9.2 | V36: =VLOOKUP($B36,[1]FlowData!$A$3:$PL$215,V$7,FALSE) -> 16 | W36: =VLOOKUP($B36,[1]FlowData!$A$3:$PL$215,W$7,FALSE) -> 123 | X36: =VLOOKUP($B36,[1]FlowData!$A$3:$PL$215,X$7,FALSE) -> 60 | Y36: =VLOOKUP($B36,[1]FlowData!$A$3:$PL$215,Y$7,FALSE) -> 25 | Z36: =VLOOKUP($B36,[1]FlowData!$A$3:$PL$215,Z$7,FALSE) -> 81 | AA36: =VLOOKUP($B36,[1]FlowData!$A$3:$PL$215,AA$7,FALSE) -> 363 | AB36: =VLOOKUP($B36,[1]FlowData!$A$3:$PL$215,AB$7,FALSE) -> 228 | AC36: =VLOOKUP($B36,[1]FlowData!$A$3:$PL$215,AC$7,FALSE) -> 120 | AD36: =VLOOKUP($B36,[1]FlowData!$A$3:$PL$215,AD$7,FALSE) -> 252 | AE36: =VLOOKUP($B36,[1]FlowData!$A$3:$PL$215,AE$7,FALSE) -> 344 | AF36: =VLOOKUP($B36,[1]FlowData!$A$3:$PL$215,AF$7,FALSE) -> 217 | AG36: =VLOOKUP($B36,[1]FlowData!$A$3:$PL$215,AG$7,FALSE) -> 134 | AH36: =VLOOKUP($B36,[1]FlowData!$A$3:$PL$215,AH$7,FALSE) -> 243 | AI36: =VLOOKUP($B36,[1]FlowData!$A$3:$PL$215,AI$7,FALSE) -> 130 | AJ36: =VLOOKUP($B36,[1]FlowData!$A$3:$PL$215,AJ$7,FALSE) -> 56 | AK36: =VLOOKUP($B36,[1]FlowData!$A$3:$PL$215,AK$7,FALSE) -> 24 | AL36: =VLOOKUP($B36,[1]FlowData!$A$3:$PL$215,AL$7,FALSE) -> 84 | AM36: =VLOOKUP($B36,[1]FlowData!$A$3:$PL$215,AM$7,FALSE) -> 18 | AN36: =VLOOKUP($B36,[1]FlowData!$A$3:$PL$215,AN$7,FALSE) -> 10 | AO36: =VLOOKUP($B36,[1]FlowData!$A$3:$PL$215,AO$7,FALSE) -> 5.9 | AP36: =VLOOKUP($B36,[1]FlowData!$A$3:$PL$215,AP$7,FALSE) -> 13 | AQ36: =VLOOKUP($B36,[1]FlowData!$A$3:$PL$215,AQ$7,FALSE) -> 14 | AR36: =VLOOKUP($B36,[1]FlowData!$A$3:$PL$215,AR$7,FALSE) -> 6.4 | AS36: =VLOOKUP($B36,[1]FlowData!$A$3:$PL$215,AS$7,FALSE) -> 2.9 | AT36: =VLOOKUP($B36,[1]FlowData!$A$3:$PL$215,AT$7,FALSE) -> 11 | AU36: =VLOOKUP($B36,[1]FlowData!$A$3:$PL$215,AU$7,FALSE) -> 34 | AV36: =VLOOKUP($B36,[1]FlowData!$A$3:$PL$215,AV$7,FALSE) -> 14 | AW36: =VLOOKUP($B36,[1]FlowData!$A$3:$PL$215,AW$7,FALSE) -> 6.5 | AX36: =VLOOKUP($B36,[1]FlowData!$A$3:$PL$215,AX$7,FALSE) -> 22 | AY36: =VLOOKUP($B36,[1]FlowData!$A$3:$PL$215,AY$7,FALSE) -> 33 | AZ36: =VLOOKUP($B36,[1]FlowData!$A$3:$PL$215,AZ$7,FALSE) -> 15 | BA36: =VLOOKUP($B36,[1]FlowData!$A$3:$PL$215,BA$7,FALSE) -> 7.8 | BB36: =VLOOKUP($B36,[1]FlowData!$A$3:$PL$215,BB$7,FALSE) -> 22 | BC36: =VLOOKUP($B36,[1]FlowData!$A$3:$PL$215,BC$7,FALSE) -> 31 | BD36: =VLOOKUP($B36,[1]FlowData!$A$3:$PL$215,BD$7,FALSE) -> 13 | BE36: =VLOOKUP($B36,[1]FlowData!$A$3:$PL$215,BE$7,FALSE) -> 6.1 | BF36: =VLOOKUP($B36,[1]FlowData!$A$3:$PL$215,BF$7,FALSE) -> 19
A37: =VLOOKUP(B37,'[2]Gages and BCs'!$A$4:$BJ$973,62,FALSE) -> 681 | B37: 12350500 | C37: =VLOOKUP(B37,'[2]Gages and BCs'!$A$4:$BJ$973,60,FALSE) -> Kootenai Creek near Stevensville, Montana | D37: 1949–53, 1958–63 | E37: =VLOOKUP($B37,[1]FlowData!$A$3:$PL$215,E$7,FALSE) ->  | F37: =VLOOKUP($B37,[1]FlowData!$A$3:$PL$215,F$7,FALSE) ->  | G37: =VLOOKUP($B37,[1]FlowData!$A$3:$PL$215,G$7,FALSE) -> 124 | H37: =VLOOKUP($B37,[1]FlowData!$A$3:$PL$215,H$7,FALSE) -> 28 | I37: =VLOOKUP($B37,[1]FlowData!$A$3:$PL$215,I$7,FALSE) -> 12 | J37: =VLOOKUP($B37,[1]FlowData!$A$3:$PL$215,J$7,FALSE) -> 79 | K37: =VLOOKUP($B37,[1]FlowData!$A$3:$PL$215,K$7,FALSE) -> 17 | L37: =VLOOKUP($B37,[1]FlowData!$A$3:$PL$215,L$7,FALSE) -> 12 | M37: =VLOOKUP($B37,[1]FlowData!$A$3:$PL$215,M$7,FALSE) -> 8.6 | N37: =VLOOKUP($B37,[1]FlowData!$A$3:$PL$215,N$7,FALSE) -> 13 | O37: =VLOOKUP($B37,[1]FlowData!$A$3:$PL$215,O$7,FALSE) -> 26 | P37: =VLOOKUP($B37,[1]FlowData!$A$3:$PL$215,P$7,FALSE) -> 13 | Q37: =VLOOKUP($B37,[1]FlowData!$A$3:$PL$215,Q$7,FALSE) -> 8.8 | R37: =VLOOKUP($B37,[1]FlowData!$A$3:$PL$215,R$7,FALSE) -> 19 | S37: =VLOOKUP($B37,[1]FlowData!$A$3:$PL$215,S$7,FALSE) -> 22 | T37: =VLOOKUP($B37,[1]FlowData!$A$3:$PL$215,T$7,FALSE) -> 18 | U37: =VLOOKUP($B37,[1]FlowData!$A$3:$PL$215,U$7,FALSE) -> 12 | V37: =VLOOKUP($B37,[1]FlowData!$A$3:$PL$215,V$7,FALSE) -> 19 | W37: =VLOOKUP($B37,[1]FlowData!$A$3:$PL$215,W$7,FALSE) -> 126 | X37: =VLOOKUP($B37,[1]FlowData!$A$3:$PL$215,X$7,FALSE) -> 61 | Y37: =VLOOKUP($B37,[1]FlowData!$A$3:$PL$215,Y$7,FALSE) -> 31 | Z37: =VLOOKUP($B37,[1]FlowData!$A$3:$PL$215,Z$7,FALSE) -> 84 | AA37: =VLOOKUP($B37,[1]FlowData!$A$3:$PL$215,AA$7,FALSE) -> 360 | AB37: =VLOOKUP($B37,[1]FlowData!$A$3:$PL$215,AB$7,FALSE) -> 209 | AC37: =VLOOKUP($B37,[1]FlowData!$A$3:$PL$215,AC$7,FALSE) -> 120 | AD37: =VLOOKUP($B37,[1]FlowData!$A$3:$PL$215,AD$7,FALSE) -> 246 | AE37: =VLOOKUP($B37,[1]FlowData!$A$3:$PL$215,AE$7,FALSE) -> 413 | AF37: =VLOOKUP($B37,[1]FlowData!$A$3:$PL$215,AF$7,FALSE) -> 287 | AG37: =VLOOKUP($B37,[1]FlowData!$A$3:$PL$215,AG$7,FALSE) -> 186 | AH37: =VLOOKUP($B37,[1]FlowData!$A$3:$PL$215,AH$7,FALSE) -> 309 | AI37: =VLOOKUP($B37,[1]FlowData!$A$3:$PL$215,AI$7,FALSE) -> 184 | AJ37: =VLOOKUP($B37,[1]FlowData!$A$3:$PL$215,AJ$7,FALSE) -> 99 | AK37: =VLOOKUP($B37,[1]FlowData!$A$3:$PL$215,AK$7,FALSE) -> 51 | AL37: =VLOOKUP($B37,[1]FlowData!$A$3:$PL$215,AL$7,FALSE) -> 125 | AM37: =VLOOKUP($B37,[1]FlowData!$A$3:$PL$215,AM$7,FALSE) -> 34 | AN37: =VLOOKUP($B37,[1]FlowData!$A$3:$PL$215,AN$7,FALSE) -> 19 | AO37: =VLOOKUP($B37,[1]FlowData!$A$3:$PL$215,AO$7,FALSE) -> 11 | AP37: =VLOOKUP($B37,[1]FlowData!$A$3:$PL$215,AP$7,FALSE) -> 24 | AQ37: =VLOOKUP($B37,[1]FlowData!$A$3:$PL$215,AQ$7,FALSE) -> 24 | AR37: =VLOOKUP($B37,[1]FlowData!$A$3:$PL$215,AR$7,FALSE) -> 13 | AS37: =VLOOKUP($B37,[1]FlowData!$A$3:$PL$215,AS$7,FALSE) -> 7.7 | AT37: =VLOOKUP($B37,[1]FlowData!$A$3:$PL$215,AT$7,FALSE) -> 18 | AU37: =VLOOKUP($B37,[1]FlowData!$A$3:$PL$215,AU$7,FALSE) -> 61 | AV37: =VLOOKUP($B37,[1]FlowData!$A$3:$PL$215,AV$7,FALSE) -> 27 | AW37: =VLOOKUP($B37,[1]FlowData!$A$3:$PL$215,AW$7,FALSE) -> 11 | AX37: =VLOOKUP($B37,[1]FlowData!$A$3:$PL$215,AX$7,FALSE) -> 40 | AY37: =VLOOKUP($B37,[1]FlowData!$A$3:$PL$215,AY$7,FALSE) -> 51 | AZ37: =VLOOKUP($B37,[1]FlowData!$A$3:$PL$215,AZ$7,FALSE) -> 24 | BA37: =VLOOKUP($B37,[1]FlowData!$A$3:$PL$215,BA$7,FALSE) -> 12 | BB37: =VLOOKUP($B37,[1]FlowData!$A$3:$PL$215,BB$7,FALSE) -> 33 | BC37: =VLOOKUP($B37,[1]FlowData!$A$3:$PL$215,BC$7,FALSE) -> 32 | BD37: =VLOOKUP($B37,[1]FlowData!$A$3:$PL$215,BD$7,FALSE) -> 15 | BE37: =VLOOKUP($B37,[1]FlowData!$A$3:$PL$215,BE$7,FALSE) -> 9.9 | BF37: =VLOOKUP($B37,[1]FlowData!$A$3:$PL$215,BF$7,FALSE) -> 21
A38: =VLOOKUP(B38,'[2]Gages and BCs'!$A$4:$BJ$973,62,FALSE) -> 682 | B38: 12351000 | C38: =VLOOKUP(B38,'[2]Gages and BCs'!$A$4:$BJ$973,60,FALSE) -> Burnt Fork Bitterroot River near Stevensville, Montana | D38: 1920, 1939–62 | E38: =VLOOKUP($B38,[1]FlowData!$A$3:$PL$215,E$7,FALSE) -> 7.183 | F38: =VLOOKUP($B38,[1]FlowData!$A$3:$PL$215,F$7,FALSE) -> 15.085 | G38: =VLOOKUP($B38,[1]FlowData!$A$3:$PL$215,G$7,FALSE) -> 60 | H38: =VLOOKUP($B38,[1]FlowData!$A$3:$PL$215,H$7,FALSE) -> 22 | I38: =VLOOKUP($B38,[1]FlowData!$A$3:$PL$215,I$7,FALSE) -> 9.8 | J38: =VLOOKUP($B38,[1]FlowData!$A$3:$PL$215,J$7,FALSE) -> 48 | K38: =VLOOKUP($B38,[1]FlowData!$A$3:$PL$215,K$7,FALSE) -> 19 | L38: =VLOOKUP($B38,[1]FlowData!$A$3:$PL$215,L$7,FALSE) -> 17 | M38: =VLOOKUP($B38,[1]FlowData!$A$3:$PL$215,M$7,FALSE) -> 14 | N38: =VLOOKUP($B38,[1]FlowData!$A$3:$PL$215,N$7,FALSE) -> 17 | O38: =VLOOKUP($B38,[1]FlowData!$A$3:$PL$215,O$7,FALSE) -> 20 | P38: =VLOOKUP($B38,[1]FlowData!$A$3:$PL$215,P$7,FALSE) -> 16 | Q38: =VLOOKUP($B38,[1]FlowData!$A$3:$PL$215,Q$7,FALSE) -> 13 | R38: =VLOOKUP($B38,[1]FlowData!$A$3:$PL$215,R$7,FALSE) -> 16 | S38: =VLOOKUP($B38,[1]FlowData!$A$3:$PL$215,S$7,FALSE) -> 19 | T38: =VLOOKUP($B38,[1]FlowData!$A$3:$PL$215,T$7,FALSE) -> 16 | U38: =VLOOKUP($B38,[1]FlowData!$A$3:$PL$215,U$7,FALSE) -> 13 | V38: =VLOOKUP($B38,[1]FlowData!$A$3:$PL$215,V$7,FALSE) -> 17 | W38: =VLOOKUP($B38,[1]FlowData!$A$3:$PL$215,W$7,FALSE) -> 63 | X38: =VLOOKUP($B38,[1]FlowData!$A$3:$PL$215,X$7,FALSE) -> 31 | Y38: =VLOOKUP($B38,[1]FlowData!$A$3:$PL$215,Y$7,FALSE) -> 18 | Z38: =VLOOKUP($B38,[1]FlowData!$A$3:$PL$215,Z$7,FALSE) -> 42 | AA38: =VLOOKUP($B38,[1]FlowData!$A$3:$PL$215,AA$7,FALSE) -> 214 | AB38: =VLOOKUP($B38,[1]FlowData!$A$3:$PL$215,AB$7,FALSE) -> 108 | AC38: =VLOOKUP($B38,[1]FlowData!$A$3:$PL$215,AC$7,FALSE) -> 62 | AD38: =VLOOKUP($B38,[1]FlowData!$A$3:$PL$215,AD$7,FALSE) -> 141 | AE38: =VLOOKUP($B38,[1]FlowData!$A$3:$PL$215,AE$7,FALSE) -> 251 | AF38: =VLOOKUP($B38,[1]FlowData!$A$3:$PL$215,AF$7,FALSE) -> 166 | AG38: =VLOOKUP($B38,[1]FlowData!$A$3:$PL$215,AG$7,FALSE) -> 95 | AH38: =VLOOKUP($B38,[1]FlowData!$A$3:$PL$215,AH$7,FALSE) -> 180 | AI38: =VLOOKUP($B38,[1]FlowData!$A$3:$PL$215,AI$7,FALSE) -> 87 | AJ38: =VLOOKUP($B38,[1]FlowData!$A$3:$PL$215,AJ$7,FALSE) -> 50 | AK38: =VLOOKUP($B38,[1]FlowData!$A$3:$PL$215,AK$7,FALSE) -> 35 | AL38: =VLOOKUP($B38,[1]FlowData!$A$3:$PL$215,AL$7,FALSE) -> 66 | AM38: =VLOOKUP($B38,[1]FlowData!$A$3:$PL$215,AM$7,FALSE) -> 37 | AN38: =VLOOKUP($B38,[1]FlowData!$A$3:$PL$215,AN$7,FALSE) -> 29 | AO38: =VLOOKUP($B38,[1]FlowData!$A$3:$PL$215,AO$7,FALSE) -> 21 | AP38: =VLOOKUP($B38,[1]FlowData!$A$3:$PL$215,AP$7,FALSE) -> 30 | AQ38: =VLOOKUP($B38,[1]FlowData!$A$3:$PL$215,AQ$7,FALSE) -> 25 | AR38: =VLOOKUP($B38,[1]FlowData!$A$3:$PL$215,AR$7,FALSE) -> 22 | AS38: =VLOOKUP($B38,[1]FlowData!$A$3:$PL$215,AS$7,FALSE) -> 18 | AT38: =VLOOKUP($B38,[1]FlowData!$A$3:$PL$215,AT$7,FALSE) -> 22 | AU38: =VLOOKUP($B38,[1]FlowData!$A$3:$PL$215,AU$7,FALSE) -> 25 | AV38: =VLOOKUP($B38,[1]FlowData!$A$3:$PL$215,AV$7,FALSE) -> 20 | AW38: =VLOOKUP($B38,[1]FlowData!$A$3:$PL$215,AW$7,FALSE) -> 17 | AX38: =VLOOKUP($B38,[1]FlowData!$A$3:$PL$215,AX$7,FALSE) -> 22 | AY38: =VLOOKUP($B38,[1]FlowData!$A$3:$PL$215,AY$7,FALSE) -> 26 | AZ38: =VLOOKUP($B38,[1]FlowData!$A$3:$PL$215,AZ$7,FALSE) -> 20 | BA38: =VLOOKUP($B38,[1]FlowData!$A$3:$PL$215,BA$7,FALSE) -> 17 | BB38: =VLOOKUP($B38,[1]FlowData!$A$3:$PL$215,BB$7,FALSE) -> 22 | BC38: =VLOOKUP($B38,[1]FlowData!$A$3:$PL$215,BC$7,FALSE) -> 24 | BD38: =VLOOKUP($B38,[1]FlowData!$A$3:$PL$215,BD$7,FALSE) -> 19 | BE38: =VLOOKUP($B38,[1]FlowData!$A$3:$PL$215,BE$7,FALSE) -> 16 | BF38: =VLOOKUP($B38,[1]FlowData!$A$3:$PL$215,BF$7,FALSE) -> 20
A39: =VLOOKUP(B39,'[2]Gages and BCs'!$A$4:$BJ$973,62,FALSE) -> 683 | B39: 12351200 | C39: =VLOOKUP(B39,'[2]Gages and BCs'!$A$4:$BJ$973,60,FALSE) -> Bitterroot River near Florence, Montana | D39: 1958–65, 2003–9 | E39: =VLOOKUP($B39,[1]FlowData!$A$3:$PL$215,E$7,FALSE) -> 397.228 | F39: =VLOOKUP($B39,[1]FlowData!$A$3:$PL$215,F$7,FALSE) -> 443.71 | G39: =VLOOKUP($B39,[1]FlowData!$A$3:$PL$215,G$7,FALSE) -> 2750 | H39: =VLOOKUP($B39,[1]FlowData!$A$3:$PL$215,H$7,FALSE) -> 944 | I39: =VLOOKUP($B39,[1]FlowData!$A$3:$PL$215,I$7,FALSE) -> 523 | J39: =VLOOKUP($B39,[1]FlowData!$A$3:$PL$215,J$7,FALSE) -> 2130 | K39: =VLOOKUP($B39,[1]FlowData!$A$3:$PL$215,K$7,FALSE) -> 1050 | L39: =VLOOKUP($B39,[1]FlowData!$A$3:$PL$215,L$7,FALSE) -> 706 | M39: =VLOOKUP($B39,[1]FlowData!$A$3:$PL$215,M$7,FALSE) -> 584 | N39: =VLOOKUP($B39,[1]FlowData!$A$3:$PL$215,N$7,FALSE) -> 807 | O39: =VLOOKUP($B39,[1]FlowData!$A$3:$PL$215,O$7,FALSE) -> 1070 | P39: =VLOOKUP($B39,[1]FlowData!$A$3:$PL$215,P$7,FALSE) -> 774 | Q39: =VLOOKUP($B39,[1]FlowData!$A$3:$PL$215,Q$7,FALSE) -> 654 | R39: =VLOOKUP($B39,[1]FlowData!$A$3:$PL$215,R$7,FALSE) -> 883 | S39: =VLOOKUP($B39,[1]FlowData!$A$3:$PL$215,S$7,FALSE) -> 1180 | T39: =VLOOKUP($B39,[1]FlowData!$A$3:$PL$215,T$7,FALSE) -> 838 | U39: =VLOOKUP($B39,[1]FlowData!$A$3:$PL$215,U$7,FALSE) -> 701 | V39: =VLOOKUP($B39,[1]FlowData!$A$3:$PL$215,V$7,FALSE) -> 1000 | W39: =VLOOKUP($B39,[1]FlowData!$A$3:$PL$215,W$7,FALSE) -> 2800 | X39: =VLOOKUP($B39,[1]FlowData!$A$3:$PL$215,X$7,FALSE) -> 1890 | Y39: =VLOOKUP($B39,[1]FlowData!$A$3:$PL$215,Y$7,FALSE) -> 1160 | Z39: =VLOOKUP($B39,[1]FlowData!$A$3:$PL$215,Z$7,FALSE) -> 2220 | AA39: =VLOOKUP($B39,[1]FlowData!$A$3:$PL$215,AA$7,FALSE) -> 9060 | AB39: =VLOOKUP($B39,[1]FlowData!$A$3:$PL$215,AB$7,FALSE) -> 5160 | AC39: =VLOOKUP($B39,[1]FlowData!$A$3:$PL$215,AC$7,FALSE) -> 3160 | AD39: =VLOOKUP($B39,[1]FlowData!$A$3:$PL$215,AD$7,FALSE) -> 6270 | AE39: =VLOOKUP($B39,[1]FlowData!$A$3:$PL$215,AE$7,FALSE) -> 10900 | AF39: =VLOOKUP($B39,[1]FlowData!$A$3:$PL$215,AF$7,FALSE) -> 7600 | AG39: =VLOOKUP($B39,[1]FlowData!$A$3:$PL$215,AG$7,FALSE) -> 4260 | AH39: =VLOOKUP($B39,[1]FlowData!$A$3:$PL$215,AH$7,FALSE) -> 7780 | AI39: =VLOOKUP($B39,[1]FlowData!$A$3:$PL$215,AI$7,FALSE) -> 2870 | AJ39: =VLOOKUP($B39,[1]FlowData!$A$3:$PL$215,AJ$7,FALSE) -> 1400 | AK39: =VLOOKUP($B39,[1]FlowData!$A$3:$PL$215,AK$7,FALSE) -> 690 | AL39: =VLOOKUP($B39,[1]FlowData!$A$3:$PL$215,AL$7,FALSE) -> 1960 | AM39: =VLOOKUP($B39,[1]FlowData!$A$3:$PL$215,AM$7,FALSE) -> 887 | AN39: =VLOOKUP($B39,[1]FlowData!$A$3:$PL$215,AN$7,FALSE) -> 620 | AO39: =VLOOKUP($B39,[1]FlowData!$A$3:$PL$215,AO$7,FALSE) -> 516 | AP39: =VLOOKUP($B39,[1]FlowData!$A$3:$PL$215,AP$7,FALSE) -> 715 | AQ39: =VLOOKUP($B39,[1]FlowData!$A$3:$PL$215,AQ$7,FALSE) -> 1120 | AR39: =VLOOKUP($B39,[1]FlowData!$A$3:$PL$215,AR$7,FALSE) -> 735 | AS39: =VLOOKUP($B39,[1]FlowData!$A$3:$PL$215,AS$7,FALSE) -> 554 | AT39: =VLOOKUP($B39,[1]FlowData!$A$3:$PL$215,AT$7,FALSE) -> 918 | AU39: =VLOOKUP($B39,[1]FlowData!$A$3:$PL$215,AU$7,FALSE) -> 1190 | AV39: =VLOOKUP($B39,[1]FlowData!$A$3:$PL$215,AV$7,FALSE) -> 868 | AW39: =VLOOKUP($B39,[1]FlowData!$A$3:$PL$215,AW$7,FALSE) -> 636 | AX39: =VLOOKUP($B39,[1]FlowData!$A$3:$PL$215,AX$7,FALSE) -> 1040 | AY39: =VLOOKUP($B39,[1]FlowData!$A$3:$PL$215,AY$7,FALSE) -> 1380 | AZ39: =VLOOKUP($B39,[1]FlowData!$A$3:$PL$215,AZ$7,FALSE) -> 942 | BA39: =VLOOKUP($B39,[1]FlowData!$A$3:$PL$215,BA$7,FALSE) -> 628 | BB39: =VLOOKUP($B39,[1]FlowData!$A$3:$PL$215,BB$7,FALSE) -> 1120 | BC39: =VLOOKUP($B39,[1]FlowData!$A$3:$PL$215,BC$7,FALSE) -> 1180 | BD39: =VLOOKUP($B39,[1]FlowData!$A$3:$PL$215,BD$7,FALSE) -> 811 | BE39: =VLOOKUP($B39,[1]FlowData!$A$3:$PL$215,BE$7,FALSE) -> 619 | BF39: =VLOOKUP($B39,[1]FlowData!$A$3:$PL$215,BF$7,FALSE) -> 937
A40: =VLOOKUP(B40,'[2]Gages and BCs'!$A$4:$BJ$973,62,FALSE) -> 685 | B40: 12352000 | C40: =VLOOKUP(B40,'[2]Gages and BCs'!$A$4:$BJ$973,60,FALSE) -> Lolo Creek above Sleeman Creek, near Lolo, Montana | D40: 1951–60 | E40: =VLOOKUP($B40,[1]FlowData!$A$3:$PL$215,E$7,FALSE) ->  | F40: =VLOOKUP($B40,[1]FlowData!$A$3:$PL$215,F$7,FALSE) ->  | G40: =VLOOKUP($B40,[1]FlowData!$A$3:$PL$215,G$7,FALSE) ->  | H40: =VLOOKUP($B40,[1]FlowData!$A$3:$PL$215,H$7,FALSE) ->  | I40: =VLOOKUP($B40,[1]FlowData!$A$3:$PL$215,I$7,FALSE) ->  | J40: =VLOOKUP($B40,[1]FlowData!$A$3:$PL$215,J$7,FALSE) ->  | K40: =VLOOKUP($B40,[1]FlowData!$A$3:$PL$215,K$7,FALSE) -> 119 | L40: =VLOOKUP($B40,[1]FlowData!$A$3:$PL$215,L$7,FALSE) -> 60 | M40: =VLOOKUP($B40,[1]FlowData!$A$3:$PL$215,M$7,FALSE) -> 46 | N40: =VLOOKUP($B40,[1]FlowData!$A$3:$PL$215,N$7,FALSE) -> 77 | O40: =VLOOKUP($B40,[1]FlowData!$A$3:$PL$215,O$7,FALSE) -> 108 | P40: =VLOOKUP($B40,[1]FlowData!$A$3:$PL$215,P$7,FALSE) -> 70 | Q40: =VLOOKUP($B40,[1]FlowData!$A$3:$PL$215,Q$7,FALSE) -> 53 | R40: =VLOOKUP($B40,[1]FlowData!$A$3:$PL$215,R$7,FALSE) -> 91 | S40: =VLOOKUP($B40,[1]FlowData!$A$3:$PL$215,S$7,FALSE) -> 128 | T40: =VLOOKUP($B40,[1]FlowData!$A$3:$PL$215,T$7,FALSE) -> 88 | U40: =VLOOKUP($B40,[1]FlowData!$A$3:$PL$215,U$7,FALSE) -> 57 | V40: =VLOOKUP($B40,[1]FlowData!$A$3:$PL$215,V$7,FALSE) -> 101 | W40: =VLOOKUP($B40,[1]FlowData!$A$3:$PL$215,W$7,FALSE) -> 535 | X40: =VLOOKUP($B40,[1]FlowData!$A$3:$PL$215,X$7,FALSE) -> 302 | Y40: =VLOOKUP($B40,[1]FlowData!$A$3:$PL$215,Y$7,FALSE) -> 134 | Z40: =VLOOKUP($B40,[1]FlowData!$A$3:$PL$215,Z$7,FALSE) -> 372 | AA40: =VLOOKUP($B40,[1]FlowData!$A$3:$PL$215,AA$7,FALSE) -> 1070 | AB40: =VLOOKUP($B40,[1]FlowData!$A$3:$PL$215,AB$7,FALSE) -> 816 | AC40: =VLOOKUP($B40,[1]FlowData!$A$3:$PL$215,AC$7,FALSE) -> 516 | AD40: =VLOOKUP($B40,[1]FlowData!$A$3:$PL$215,AD$7,FALSE) -> 838 | AE40: =VLOOKUP($B40,[1]FlowData!$A$3:$PL$215,AE$7,FALSE) -> 864 | AF40: =VLOOKUP($B40,[1]FlowData!$A$3:$PL$215,AF$7,FALSE) -> 638 | AG40: =VLOOKUP($B40,[1]FlowData!$A$3:$PL$215,AG$7,FALSE) -> 395 | AH40: =VLOOKUP($B40,[1]FlowData!$A$3:$PL$215,AH$7,FALSE) -> 652 | AI40: =VLOOKUP($B40,[1]FlowData!$A$3:$PL$215,AI$7,FALSE) -> 321 | AJ40: =VLOOKUP($B40,[1]FlowData!$A$3:$PL$215,AJ$7,FALSE) -> 175 | AK40: =VLOOKUP($B40,[1]FlowData!$A$3:$PL$215,AK$7,FALSE) -> 87 | AL40: =VLOOKUP($B40,[1]FlowData!$A$3:$PL$215,AL$7,FALSE) -> 211 | AM40: =VLOOKUP($B40,[1]FlowData!$A$3:$PL$215,AM$7,FALSE) -> 72 | AN40: =VLOOKUP($B40,[1]FlowData!$A$3:$PL$215,AN$7,FALSE) -> 48 | AO40: =VLOOKUP($B40,[1]FlowData!$A$3:$PL$215,AO$7,FALSE) -> 24 | AP40: =VLOOKUP($B40,[1]FlowData!$A$3:$PL$215,AP$7,FALSE) -> 50 | AQ40: =VLOOKUP($B40,[1]FlowData!$A$3:$PL$215,AQ$7,FALSE) -> 59 | AR40: =VLOOKUP($B40,[1]FlowData!$A$3:$PL$215,AR$7,FALSE) -> 39 | AS40: =VLOOKUP($B40,[1]FlowData!$A$3:$PL$215,AS$7,FALSE) -> 18 | AT40: =VLOOKUP($B40,[1]FlowData!$A$3:$PL$215,AT$7,FALSE) -> 43 | AU40: =VLOOKUP($B40,[1]FlowData!$A$3:$PL$215,AU$7,FALSE) ->  | AV40: =VLOOKUP($B40,[1]FlowData!$A$3:$PL$215,AV$7,FALSE) ->  | AW40: =VLOOKUP($B40,[1]FlowData!$A$3:$PL$215,AW$7,FALSE) ->  | AX40: =VLOOKUP($B40,[1]FlowData!$A$3:$PL$215,AX$7,FALSE) ->  | AY40: =VLOOKUP($B40,[1]FlowData!$A$3:$PL$215,AY$7,FALSE) -> 134 | AZ40: =VLOOKUP($B40,[1]FlowData!$A$3:$PL$215,AZ$7,FALSE) -> 74 | BA40: =VLOOKUP($B40,[1]FlowData!$A$3:$PL$215,BA$7,FALSE) -> 40 | BB40: =VLOOKUP($B40,[1]FlowData!$A$3:$PL$215,BB$7,FALSE) -> 89 | BC40: =VLOOKUP($B40,[1]FlowData!$A$3:$PL$215,BC$7,FALSE) -> 120 | BD40: =VLOOKUP($B40,[1]FlowData!$A$3:$PL$215,BD$7,FALSE) -> 65 | BE40: =VLOOKUP($B40,[1]FlowData!$A$3:$PL$215,BE$7,FALSE) -> 45 | BF40: =VLOOKUP($B40,[1]FlowData!$A$3:$PL$215,BF$7,FALSE) -> 87
A41: =VLOOKUP(B41,'[2]Gages and BCs'!$A$4:$BJ$973,62,FALSE) -> 690 | B41: 12353280 | C41: =VLOOKUP(B41,'[2]Gages and BCs'!$A$4:$BJ$973,60,FALSE) -> Ninemile Creek near Huson, Montana | D41: 1974–83 | E41: =VLOOKUP($B41,[1]FlowData!$A$3:$PL$215,E$7,FALSE) ->  | F41: =VLOOKUP($B41,[1]FlowData!$A$3:$PL$215,F$7,FALSE) ->  | G41: =VLOOKUP($B41,[1]FlowData!$A$3:$PL$215,G$7,FALSE) -> 195 | H41: =VLOOKUP($B41,[1]FlowData!$A$3:$PL$215,H$7,FALSE) -> 56 | I41: =VLOOKUP($B41,[1]FlowData!$A$3:$PL$215,I$7,FALSE) -> 29 | J41: =VLOOKUP($B41,[1]FlowData!$A$3:$PL$215,J$7,FALSE) -> 132 | K41: =VLOOKUP($B41,[1]FlowData!$A$3:$PL$215,K$7,FALSE) -> 60 | L41: =VLOOKUP($B41,[1]FlowData!$A$3:$PL$215,L$7,FALSE) -> 42 | M41: =VLOOKUP($B41,[1]FlowData!$A$3:$PL$215,M$7,FALSE) -> 24 | N41: =VLOOKUP($B41,[1]FlowData!$A$3:$PL$215,N$7,FALSE) -> 54 | O41: =VLOOKUP($B41,[1]FlowData!$A$3:$PL$215,O$7,FALSE) -> 59 | P41: =VLOOKUP($B41,[1]FlowData!$A$3:$PL$215,P$7,FALSE) -> 34 | Q41: =VLOOKUP($B41,[1]FlowData!$A$3:$PL$215,Q$7,FALSE) -> 25 | R41: =VLOOKUP($B41,[1]FlowData!$A$3:$PL$215,R$7,FALSE) -> 48 | S41: =VLOOKUP($B41,[1]FlowData!$A$3:$PL$215,S$7,FALSE) -> 146 | T41: =VLOOKUP($B41,[1]FlowData!$A$3:$PL$215,T$7,FALSE) -> 84 | U41: =VLOOKUP($B41,[1]FlowData!$A$3:$PL$215,U$7,FALSE) -> 36 | V41: =VLOOKUP($B41,[1]FlowData!$A$3:$PL$215,V$7,FALSE) -> 109 | W41: =VLOOKUP($B41,[1]FlowData!$A$3:$PL$215,W$7,FALSE) -> 435 | X41: =VLOOKUP($B41,[1]FlowData!$A$3:$PL$215,X$7,FALSE) -> 224 | Y41: =VLOOKUP($B41,[1]FlowData!$A$3:$PL$215,Y$7,FALSE) -> 95 | Z41: =VLOOKUP($B41,[1]FlowData!$A$3:$PL$215,Z$7,FALSE) -> 271 | AA41: =VLOOKUP($B41,[1]FlowData!$A$3:$PL$215,AA$7,FALSE) -> 677 | AB41: =VLOOKUP($B41,[1]FlowData!$A$3:$PL$215,AB$7,FALSE) -> 458 | AC41: =VLOOKUP($B41,[1]FlowData!$A$3:$PL$215,AC$7,FALSE) -> 257 | AD41: =VLOOKUP($B41,[1]FlowData!$A$3:$PL$215,AD$7,FALSE) -> 479 | AE41: =VLOOKUP($B41,[1]FlowData!$A$3:$PL$215,AE$7,FALSE) -> 504 | AF41: =VLOOKUP($B41,[1]FlowData!$A$3:$PL$215,AF$7,FALSE) -> 296 | AG41: =VLOOKUP($B41,[1]FlowData!$A$3:$PL$215,AG$7,FALSE) -> 170 | AH41: =VLOOKUP($B41,[1]FlowData!$A$3:$PL$215,AH$7,FALSE) -> 339 | AI41: =VLOOKUP($B41,[1]FlowData!$A$3:$PL$215,AI$7,FALSE) -> 144 | AJ41: =VLOOKUP($B41,[1]FlowData!$A$3:$PL$215,AJ$7,FALSE) -> 95 | AK41: =VLOOKUP($B41,[1]FlowData!$A$3:$PL$215,AK$7,FALSE) -> 61 | AL41: =VLOOKUP($B41,[1]FlowData!$A$3:$PL$215,AL$7,FALSE) -> 104 | AM41: =VLOOKUP($B41,[1]FlowData!$A$3:$PL$215,AM$7,FALSE) -> 53 | AN41: =VLOOKUP($B41,[1]FlowData!$A$3:$PL$215,AN$7,FALSE) -> 39 | AO41: =VLOOKUP($B41,[1]FlowData!$A$3:$PL$215,AO$7,FALSE) -> 28 | AP41: =VLOOKUP($B41,[1]FlowData!$A$3:$PL$215,AP$7,FALSE) -> 42 | AQ41: =VLOOKUP($B41,[1]FlowData!$A$3:$PL$215,AQ$7,FALSE) -> 40 | AR41: =VLOOKUP($B41,[1]FlowData!$A$3:$PL$215,AR$7,FALSE) -> 34 | AS41: =VLOOKUP($B41,[1]FlowData!$A$3:$PL$215,AS$7,FALSE) -> 25 | AT41: =VLOOKUP($B41,[1]FlowData!$A$3:$PL$215,AT$7,FALSE) -> 33 | AU41: =VLOOKUP($B41,[1]FlowData!$A$3:$PL$215,AU$7,FALSE) -> 35 | AV41: =VLOOKUP($B41,[1]FlowData!$A$3:$PL$215,AV$7,FALSE) -> 31 | AW41: =VLOOKUP($B41,[1]FlowData!$A$3:$PL$215,AW$7,FALSE) -> 26 | AX41: =VLOOKUP($B41,[1]FlowData!$A$3:$PL$215,AX$7,FALSE) -> 31 | AY41: =VLOOKUP($B41,[1]FlowData!$A$3:$PL$215,AY$7,FALSE) -> 36 | AZ41: =VLOOKUP($B41,[1]FlowData!$A$3:$PL$215,AZ$7,FALSE) -> 31 | BA41: =VLOOKUP($B41,[1]FlowData!$A$3:$PL$215,BA$7,FALSE) -> 27 | BB41: =VLOOKUP($B41,[1]FlowData!$A$3:$PL$215,BB$7,FALSE) -> 32 | BC41: =VLOOKUP($B41,[1]FlowData!$A$3:$PL$215,BC$7,FALSE) -> 53 | BD41: =VLOOKUP($B41,[1]FlowData!$A$3:$PL$215,BD$7,FALSE) -> 31 | BE41: =VLOOKUP($B41,[1]FlowData!$A$3:$PL$215,BE$7,FALSE) -> 25 | BF41: =VLOOKUP($B41,[1]FlowData!$A$3:$PL$215,BF$7,FALSE) -> 43
A42: =VLOOKUP(B42,'[2]Gages and BCs'!$A$4:$BJ$973,62,FALSE) -> 695 | B42: 12354000 | C42: =VLOOKUP(B42,'[2]Gages and BCs'!$A$4:$BJ$973,60,FALSE) -> St. Regis River near St. Regis, Montana | D42: 1911–14, 1959–75, 2002–9 | E42: =VLOOKUP($B42,[1]FlowData!$A$3:$PL$215,E$7,FALSE) -> 64.314 | F42: =VLOOKUP($B42,[1]FlowData!$A$3:$PL$215,F$7,FALSE) -> 80.762 | G42: =VLOOKUP($B42,[1]FlowData!$A$3:$PL$215,G$7,FALSE) -> 850 | H42: =VLOOKUP($B42,[1]FlowData!$A$3:$PL$215,H$7,FALSE) -> 282 | I42: =VLOOKUP($B42,[1]FlowData!$A$3:$PL$215,I$7,FALSE) -> 137 | J42: =VLOOKUP($B42,[1]FlowData!$A$3:$PL$215,J$7,FALSE) -> 541 | K42: =VLOOKUP($B42,[1]FlowData!$A$3:$PL$215,K$7,FALSE) -> 343 | L42: =VLOOKUP($B42,[1]FlowData!$A$3:$PL$215,L$7,FALSE) -> 231 | M42: =VLOOKUP($B42,[1]FlowData!$A$3:$PL$215,M$7,FALSE) -> 119 | N42: =VLOOKUP($B42,[1]FlowData!$A$3:$PL$215,N$7,FALSE) -> 259 | O42: =VLOOKUP($B42,[1]FlowData!$A$3:$PL$215,O$7,FALSE) -> 368 | P42: =VLOOKUP($B42,[1]FlowData!$A$3:$PL$215,P$7,FALSE) -> 204 | Q42: =VLOOKUP($B42,[1]FlowData!$A$3:$PL$215,Q$7,FALSE) -> 135 | R42: =VLOOKUP($B42,[1]FlowData!$A$3:$PL$215,R$7,FALSE) -> 277 | S42: =VLOOKUP($B42,[1]FlowData!$A$3:$PL$215,S$7,FALSE) -> 574 | T42: =VLOOKUP($B42,[1]FlowData!$A$3:$PL$215,T$7,FALSE) -> 312 | U42: =VLOOKUP($B42,[1]FlowData!$A$3:$PL$215,U$7,FALSE) -> 183 | V42: =VLOOKUP($B42,[1]FlowData!$A$3:$PL$215,V$7,FALSE) -> 421 | W42: =VLOOKUP($B42,[1]FlowData!$A$3:$PL$215,W$7,FALSE) -> 1620 | X42: =VLOOKUP($B42,[1]FlowData!$A$3:$PL$215,X$7,FALSE) -> 1050 | Y42: =VLOOKUP($B42,[1]FlowData!$A$3:$PL$215,Y$7,FALSE) -> 601 | Z42: =VLOOKUP($B42,[1]FlowData!$A$3:$PL$215,Z$7,FALSE) -> 1190 | AA42: =VLOOKUP($B42,[1]FlowData!$A$3:$PL$215,AA$7,FALSE) -> 2890 | AB42: =VLOOKUP($B42,[1]FlowData!$A$3:$PL$215,AB$7,FALSE) -> 1810 | AC42: =VLOOKUP($B42,[1]FlowData!$A$3:$PL$215,AC$7,FALSE) -> 1180 | AD42: =VLOOKUP($B42,[1]FlowData!$A$3:$PL$215,AD$7,FALSE) -> 2090 | AE42: =VLOOKUP($B42,[1]FlowData!$A$3:$PL$215,AE$7,FALSE) -> 2160 | AF42: =VLOOKUP($B42,[1]FlowData!$A$3:$PL$215,AF$7,FALSE) -> 1200 | AG42: =VLOOKUP($B42,[1]FlowData!$A$3:$PL$215,AG$7,FALSE) -> 585 | AH42: =VLOOKUP($B42,[1]FlowData!$A$3:$PL$215,AH$7,FALSE) -> 1420 | AI42: =VLOOKUP($B42,[1]FlowData!$A$3:$PL$215,AI$7,FALSE) -> 497 | AJ42: =VLOOKUP($B42,[1]FlowData!$A$3:$PL$215,AJ$7,FALSE) -> 291 | AK42: =VLOOKUP($B42,[1]FlowData!$A$3:$PL$215,AK$7,FALSE) -> 191 | AL42: =VLOOKUP($B42,[1]FlowData!$A$3:$PL$215,AL$7,FALSE) -> 378 | AM42: =VLOOKUP($B42,[1]FlowData!$A$3:$PL$215,AM$7,FALSE) -> 184 | AN42: =VLOOKUP($B42,[1]FlowData!$A$3:$PL$215,AN$7,FALSE) -> 146 | AO42: =VLOOKUP($B42,[1]FlowData!$A$3:$PL$215,AO$7,FALSE) -> 108 | AP42: =VLOOKUP($B42,[1]FlowData!$A$3:$PL$215,AP$7,FALSE) -> 150 | AQ42: =VLOOKUP($B42,[1]FlowData!$A$3:$PL$215,AQ$7,FALSE) -> 141 | AR42: =VLOOKUP($B42,[1]FlowData!$A$3:$PL$215,AR$7,FALSE) -> 112 | AS42: =VLOOKUP($B42,[1]FlowData!$A$3:$PL$215,AS$7,FALSE) -> 91 | AT42: =VLOOKUP($B42,[1]FlowData!$A$3:$PL$215,AT$7,FALSE) -> 117 | AU42: =VLOOKUP($B42,[1]FlowData!$A$3:$PL$215,AU$7,FALSE) -> 154 | AV42: =VLOOKUP($B42,[1]FlowData!$A$3:$PL$215,AV$7,FALSE) -> 113 | AW42: =VLOOKUP($B42,[1]FlowData!$A$3:$PL$215,AW$7,FALSE) -> 93 | AX42: =VLOOKUP($B42,[1]FlowData!$A$3:$PL$215,AX$7,FALSE) -> 132 | AY42: =VLOOKUP($B42,[1]FlowData!$A$3:$PL$215,AY$7,FALSE) -> 252 | AZ42: =VLOOKUP($B42,[1]FlowData!$A$3:$PL$215,AZ$7,FALSE) -> 142 | BA42: =VLOOKUP($B42,[1]FlowData!$A$3:$PL$215,BA$7,FALSE) -> 89 | BB42: =VLOOKUP($B42,[1]FlowData!$A$3:$PL$215,BB$7,FALSE) -> 199 | BC42: =VLOOKUP($B42,[1]FlowData!$A$3:$PL$215,BC$7,FALSE) -> 287 | BD42: =VLOOKUP($B42,[1]FlowData!$A$3:$PL$215,BD$7,FALSE) -> 145 | BE42: =VLOOKUP($B42,[1]FlowData!$A$3:$PL$215,BE$7,FALSE) -> 81 | BF42: =VLOOKUP($B42,[1]FlowData!$A$3:$PL$215,BF$7,FALSE) -> 205
A43: =VLOOKUP(B43,'[2]Gages and BCs'!$A$4:$BJ$973,62,FALSE) -> 698 | B43: 12355000 | C43: =VLOOKUP(B43,'[2]Gages and BCs'!$A$4:$BJ$973,60,FALSE) -> Flathead River at Flathead, British Columbia | D43: 1929–39, 1941–95, 2000–9 | E43: =VLOOKUP($B43,[1]FlowData!$A$3:$PL$215,E$7,FALSE) -> 85.245 | F43: =VLOOKUP($B43,[1]FlowData!$A$3:$PL$215,F$7,FALSE) -> 167.53 | G43: =VLOOKUP($B43,[1]FlowData!$A$3:$PL$215,G$7,FALSE) -> 1200 | H43: =VLOOKUP($B43,[1]FlowData!$A$3:$PL$215,H$7,FALSE) -> 414 | I43: =VLOOKUP($B43,[1]FlowData!$A$3:$PL$215,I$7,FALSE) -> 199 | J43: =VLOOKUP($B43,[1]FlowData!$A$3:$PL$215,J$7,FALSE) -> 889 | K43: =VLOOKUP($B43,[1]FlowData!$A$3:$PL$215,K$7,FALSE) -> 248 | L43: =VLOOKUP($B43,[1]FlowData!$A$3:$PL$215,L$7,FALSE) -> 158 | M43: =VLOOKUP($B43,[1]FlowData!$A$3:$PL$215,M$7,FALSE) -> 120 | N43: =VLOOKUP($B43,[1]FlowData!$A$3:$PL$215,N$7,FALSE) -> 192 | O43: =VLOOKUP($B43,[1]FlowData!$A$3:$PL$215,O$7,FALSE) -> 216 | P43: =VLOOKUP($B43,[1]FlowData!$A$3:$PL$215,P$7,FALSE) -> 154 | Q43: =VLOOKUP($B43,[1]FlowData!$A$3:$PL$215,Q$7,FALSE) -> 114 | R43: =VLOOKUP($B43,[1]FlowData!$A$3:$PL$215,R$7,FALSE) -> 174 | S43: =VLOOKUP($B43,[1]FlowData!$A$3:$PL$215,S$7,FALSE) -> 236 | T43: =VLOOKUP($B43,[1]FlowData!$A$3:$PL$215,T$7,FALSE) -> 178 | U43: =VLOOKUP($B43,[1]FlowData!$A$3:$PL$215,U$7,FALSE) -> 120 | V43: =VLOOKUP($B43,[1]FlowData!$A$3:$PL$215,V$7,FALSE) -> 208 | W43: =VLOOKUP($B43,[1]FlowData!$A$3:$PL$215,W$7,FALSE) -> 1390 | X43: =VLOOKUP($B43,[1]FlowData!$A$3:$PL$215,X$7,FALSE) -> 552 | Y43: =VLOOKUP($B43,[1]FlowData!$A$3:$PL$215,Y$7,FALSE) -> 228 | Z43: =VLOOKUP($B43,[1]FlowData!$A$3:$PL$215,Z$7,FALSE) -> 896 | AA43: =VLOOKUP($B43,[1]FlowData!$A$3:$PL$215,AA$7,FALSE) -> 4990 | AB43: =VLOOKUP($B43,[1]FlowData!$A$3:$PL$215,AB$7,FALSE) -> 3100 | AC43: =VLOOKUP($B43,[1]FlowData!$A$3:$PL$215,AC$7,FALSE) -> 1830 | AD43: =VLOOKUP($B43,[1]FlowData!$A$3:$PL$215,AD$7,FALSE) -> 3460 | AE43: =VLOOKUP($B43,[1]FlowData!$A$3:$PL$215,AE$7,FALSE) -> 4470 | AF43: =VLOOKUP($B43,[1]FlowData!$A$3:$PL$215,AF$7,FALSE) -> 2660 | AG43: =VLOOKUP($B43,[1]FlowData!$A$3:$PL$215,AG$7,FALSE) -> 1500 | AH43: =VLOOKUP($B43,[1]FlowData!$A$3:$PL$215,AH$7,FALSE) -> 3020 | AI43: =VLOOKUP($B43,[1]FlowData!$A$3:$PL$215,AI$7,FALSE) -> 1330 | AJ43: =VLOOKUP($B43,[1]FlowData!$A$3:$PL$215,AJ$7,FALSE) -> 769 | AK43: =VLOOKUP($B43,[1]FlowData!$A$3:$PL$215,AK$7,FALSE) -> 480 | AL43: =VLOOKUP($B43,[1]FlowData!$A$3:$PL$215,AL$7,FALSE) -> 949 | AM43: =VLOOKUP($B43,[1]FlowData!$A$3:$PL$215,AM$7,FALSE) -> 478 | AN43: =VLOOKUP($B43,[1]FlowData!$A$3:$PL$215,AN$7,FALSE) -> 343 | AO43: =VLOOKUP($B43,[1]FlowData!$A$3:$PL$215,AO$7,FALSE) -> 251 | AP43: =VLOOKUP($B43,[1]FlowData!$A$3:$PL$215,AP$7,FALSE) -> 376 | AQ43: =VLOOKUP($B43,[1]FlowData!$A$3:$PL$215,AQ$7,FALSE) -> 347 | AR43: =VLOOKUP($B43,[1]FlowData!$A$3:$PL$215,AR$7,FALSE) -> 254 | AS43: =VLOOKUP($B43,[1]FlowData!$A$3:$PL$215,AS$7,FALSE) -> 195 | AT43: =VLOOKUP($B43,[1]FlowData!$A$3:$PL$215,AT$7,FALSE) -> 289 | AU43: =VLOOKUP($B43,[1]FlowData!$A$3:$PL$215,AU$7,FALSE) -> 405 | AV43: =VLOOKUP($B43,[1]FlowData!$A$3:$PL$215,AV$7,FALSE) -> 241 | AW43: =VLOOKUP($B43,[1]FlowData!$A$3:$PL$215,AW$7,FALSE) -> 158 | AX43: =VLOOKUP($B43,[1]FlowData!$A$3:$PL$215,AX$7,FALSE) -> 329 | AY43: =VLOOKUP($B43,[1]FlowData!$A$3:$PL$215,AY$7,FALSE) -> 476 | AZ43: =VLOOKUP($B43,[1]FlowData!$A$3:$PL$215,AZ$7,FALSE) -> 259 | BA43: =VLOOKUP($B43,[1]FlowData!$A$3:$PL$215,BA$7,FALSE) -> 144 | BB43: =VLOOKUP($B43,[1]FlowData!$A$3:$PL$215,BB$7,FALSE) -> 348 | BC43: =VLOOKUP($B43,[1]FlowData!$A$3:$PL$215,BC$7,FALSE) -> 294 | BD43: =VLOOKUP($B43,[1]FlowData!$A$3:$PL$215,BD$7,FALSE) -> 197 | BE43: =VLOOKUP($B43,[1]FlowData!$A$3:$PL$215,BE$7,FALSE) -> 143 | BF43: =VLOOKUP($B43,[1]FlowData!$A$3:$PL$215,BF$7,FALSE) -> 236
A44: =VLOOKUP(B44,'[2]Gages and BCs'!$A$4:$BJ$973,62,FALSE) -> 718 | B44: 12363920 | C44: =VLOOKUP(B44,'[2]Gages and BCs'!$A$4:$BJ$973,60,FALSE) -> Stillwater River at Olney, Montana | D44: 1973–82 | E44: =VLOOKUP($B44,[1]FlowData!$A$3:$PL$215,E$7,FALSE) ->  | F44: =VLOOKUP($B44,[1]FlowData!$A$3:$PL$215,F$7,FALSE) ->  | G44: =VLOOKUP($B44,[1]FlowData!$A$3:$PL$215,G$7,FALSE) -> 228 | H44: =VLOOKUP($B44,[1]FlowData!$A$3:$PL$215,H$7,FALSE) -> 75 | I44: =VLOOKUP($B44,[1]FlowData!$A$3:$PL$215,I$7,FALSE) -> 44 | J44: =VLOOKUP($B44,[1]FlowData!$A$3:$PL$215,J$7,FALSE) -> 148 | K44: =VLOOKUP($B44,[1]FlowData!$A$3:$PL$215,K$7,FALSE) -> 62 | L44: =VLOOKUP($B44,[1]FlowData!$A$3:$PL$215,L$7,FALSE) -> 40 | M44: =VLOOKUP($B44,[1]FlowData!$A$3:$PL$215,M$7,FALSE) -> 32 | N44: =VLOOKUP($B44,[1]FlowData!$A$3:$PL$215,N$7,FALSE) -> 51 | O44: =VLOOKUP($B44,[1]FlowData!$A$3:$PL$215,O$7,FALSE) -> 64 | P44: =VLOOKUP($B44,[1]FlowData!$A$3:$PL$215,P$7,FALSE) -> 42 | Q44: =VLOOKUP($B44,[1]FlowData!$A$3:$PL$215,Q$7,FALSE) -> 34 | R44: =VLOOKUP($B44,[1]FlowData!$A$3:$PL$215,R$7,FALSE) -> 48 | S44: =VLOOKUP($B44,[1]FlowData!$A$3:$PL$215,S$7,FALSE) -> 76 | T44: =VLOOKUP($B44,[1]FlowData!$A$3:$PL$215,T$7,FALSE) -> 49 | U44: =VLOOKUP($B44,[1]FlowData!$A$3:$PL$215,U$7,FALSE) -> 40 | V44: =VLOOKUP($B44,[1]FlowData!$A$3:$PL$215,V$7,FALSE) -> 59 | W44: =VLOOKUP($B44,[1]FlowData!$A$3:$PL$215,W$7,FALSE) -> 258 | X44: =VLOOKUP($B44,[1]FlowData!$A$3:$PL$215,X$7,FALSE) -> 139 | Y44: =VLOOKUP($B44,[1]FlowData!$A$3:$PL$215,Y$7,FALSE) -> 78 | Z44: =VLOOKUP($B44,[1]FlowData!$A$3:$PL$215,Z$7,FALSE) -> 180 | AA44: =VLOOKUP($B44,[1]FlowData!$A$3:$PL$215,AA$7,FALSE) -> 562 | AB44: =VLOOKUP($B44,[1]FlowData!$A$3:$PL$215,AB$7,FALSE) -> 396 | AC44: =VLOOKUP($B44,[1]FlowData!$A$3:$PL$215,AC$7,FALSE) -> 278 | AD44: =VLOOKUP($B44,[1]FlowData!$A$3:$PL$215,AD$7,FALSE) -> 421 | AE44: =VLOOKUP($B44,[1]FlowData!$A$3:$PL$215,AE$7,FALSE) -> 600 | AF44: =VLOOKUP($B44,[1]FlowData!$A$3:$PL$215,AF$7,FALSE) -> 446 | AG44: =VLOOKUP($B44,[1]FlowData!$A$3:$PL$215,AG$7,FALSE) -> 259 | AH44: =VLOOKUP($B44,[1]FlowData!$A$3:$PL$215,AH$7,FALSE) -> 473 | AI44: =VLOOKUP($B44,[1]FlowData!$A$3:$PL$215,AI$7,FALSE) -> 282 | AJ44: =VLOOKUP($B44,[1]FlowData!$A$3:$PL$215,AJ$7,FALSE) -> 193 | AK44: =VLOOKUP($B44,[1]FlowData!$A$3:$PL$215,AK$7,FALSE) -> 109 | AL44: =VLOOKUP($B44,[1]FlowData!$A$3:$PL$215,AL$7,FALSE) -> 210 | AM44: =VLOOKUP($B44,[1]FlowData!$A$3:$PL$215,AM$7,FALSE) -> 141 | AN44: =VLOOKUP($B44,[1]FlowData!$A$3:$PL$215,AN$7,FALSE) -> 98 | AO44: =VLOOKUP($B44,[1]FlowData!$A$3:$PL$215,AO$7,FALSE) -> 63 | AP44: =VLOOKUP($B44,[1]FlowData!$A$3:$PL$215,AP$7,FALSE) -> 99 | AQ44: =VLOOKUP($B44,[1]FlowData!$A$3:$PL$215,AQ$7,FALSE) -> 86 | AR44: =VLOOKUP($B44,[1]FlowData!$A$3:$PL$215,AR$7,FALSE) -> 71 | AS44: =VLOOKUP($B44,[1]FlowData!$A$3:$PL$215,AS$7,FALSE) -> 45 | AT44: =VLOOKUP($B44,[1]FlowData!$A$3:$PL$215,AT$7,FALSE) -> 70 | AU44: =VLOOKUP($B44,[1]FlowData!$A$3:$PL$215,AU$7,FALSE) -> 64 | AV44: =VLOOKUP($B44,[1]FlowData!$A$3:$PL$215,AV$7,FALSE) -> 58 | AW44: =VLOOKUP($B44,[1]FlowData!$A$3:$PL$215,AW$7,FALSE) -> 43 | AX44: =VLOOKUP($B44,[1]FlowData!$A$3:$PL$215,AX$7,FALSE) -> 55 | AY44: =VLOOKUP($B44,[1]FlowData!$A$3:$PL$215,AY$7,FALSE) -> 68 | AZ44: =VLOOKUP($B44,[1]FlowData!$A$3:$PL$215,AZ$7,FALSE) -> 54 | BA44: =VLOOKUP($B44,[1]FlowData!$A$3:$PL$215,BA$7,FALSE) -> 45 | BB44: =VLOOKUP($B44,[1]FlowData!$A$3:$PL$215,BB$7,FALSE) -> 57 | BC44: =VLOOKUP($B44,[1]FlowData!$A$3:$PL$215,BC$7,FALSE) -> 64 | BD44: =VLOOKUP($B44,[1]FlowData!$A$3:$PL$215,BD$7,FALSE) -> 48 | BE44: =VLOOKUP($B44,[1]FlowData!$A$3:$PL$215,BE$7,FALSE) -> 42 | BF44: =VLOOKUP($B44,[1]FlowData!$A$3:$PL$215,BF$7,FALSE) -> 53
A45: =VLOOKUP(B45,'[2]Gages and BCs'!$A$4:$BJ$973,62,FALSE) -> 720 | B45: 12365000 | C45: =VLOOKUP(B45,'[2]Gages and BCs'!$A$4:$BJ$973,60,FALSE) -> Stillwater River near Whitefish, Montana | D45: 1931–50, 1973–2006 | E45: =VLOOKUP($B45,[1]FlowData!$A$3:$PL$215,E$7,FALSE) -> 47.402 | F45: =VLOOKUP($B45,[1]FlowData!$A$3:$PL$215,F$7,FALSE) -> 67.276 | G45: =VLOOKUP($B45,[1]FlowData!$A$3:$PL$215,G$7,FALSE) -> 539 | H45: =VLOOKUP($B45,[1]FlowData!$A$3:$PL$215,H$7,FALSE) -> 159 | I45: =VLOOKUP($B45,[1]FlowData!$A$3:$PL$215,I$7,FALSE) -> 73 | J45: =VLOOKUP($B45,[1]FlowData!$A$3:$PL$215,J$7,FALSE) -> 355 | K45: =VLOOKUP($B45,[1]FlowData!$A$3:$PL$215,K$7,FALSE) -> 143 | L45: =VLOOKUP($B45,[1]FlowData!$A$3:$PL$215,L$7,FALSE) -> 97 | M45: =VLOOKUP($B45,[1]FlowData!$A$3:$PL$215,M$7,FALSE) -> 72 | N45: =VLOOKUP($B45,[1]FlowData!$A$3:$PL$215,N$7,FALSE) -> 123 | O45: =VLOOKUP($B45,[1]FlowData!$A$3:$PL$215,O$7,FALSE) -> 144 | P45: =VLOOKUP($B45,[1]FlowData!$A$3:$PL$215,P$7,FALSE) -> 102 | Q45: =VLOOKUP($B45,[1]FlowData!$A$3:$PL$215,Q$7,FALSE) -> 74 | R45: =VLOOKUP($B45,[1]FlowData!$A$3:$PL$215,R$7,FALSE) -> 124 | S45: =VLOOKUP($B45,[1]FlowData!$A$3:$PL$215,S$7,FALSE) -> 215 | T45: =VLOOKUP($B45,[1]FlowData!$A$3:$PL$215,T$7,FALSE) -> 128 | U45: =VLOOKUP($B45,[1]FlowData!$A$3:$PL$215,U$7,FALSE) -> 89 | V45: =VLOOKUP($B45,[1]FlowData!$A$3:$PL$215,V$7,FALSE) -> 163 | W45: =VLOOKUP($B45,[1]FlowData!$A$3:$PL$215,W$7,FALSE) -> 1010 | X45: =VLOOKUP($B45,[1]FlowData!$A$3:$PL$215,X$7,FALSE) -> 492 | Y45: =VLOOKUP($B45,[1]FlowData!$A$3:$PL$215,Y$7,FALSE) -> 230 | Z45: =VLOOKUP($B45,[1]FlowData!$A$3:$PL$215,Z$7,FALSE) -> 660 | AA45: =VLOOKUP($B45,[1]FlowData!$A$3:$PL$215,AA$7,FALSE) -> 1590 | AB45: =VLOOKUP($B45,[1]FlowData!$A$3:$PL$215,AB$7,FALSE) -> 1050 | AC45: =VLOOKUP($B45,[1]FlowData!$A$3:$PL$215,AC$7,FALSE) -> 590 | AD45: =VLOOKUP($B45,[1]FlowData!$A$3:$PL$215,AD$7,FALSE) -> 1150 | AE45: =VLOOKUP($B45,[1]FlowData!$A$3:$PL$215,AE$7,FALSE) -> 1220 | AF45: =VLOOKUP($B45,[1]FlowData!$A$3:$PL$215,AF$7,FALSE) -> 784 | AG45: =VLOOKUP($B45,[1]FlowData!$A$3:$PL$215,AG$7,FALSE) -> 430 | AH45: =VLOOKUP($B45,[1]FlowData!$A$3:$PL$215,AH$7,FALSE) -> 857 | AI45: =VLOOKUP($B45,[1]FlowData!$A$3:$PL$215,AI$7,FALSE) -> 539 | AJ45: =VLOOKUP($B45,[1]FlowData!$A$3:$PL$215,AJ$7,FALSE) -> 318 | AK45: =VLOOKUP($B45,[1]FlowData!$A$3:$PL$215,AK$7,FALSE) -> 179 | AL45: =VLOOKUP($B45,[1]FlowData!$A$3:$PL$215,AL$7,FALSE) -> 372 | AM45: =VLOOKUP($B45,[1]FlowData!$A$3:$PL$215,AM$7,FALSE) -> 241 | AN45: =VLOOKUP($B45,[1]FlowData!$A$3:$PL$215,AN$7,FALSE) -> 165 | AO45: =VLOOKUP($B45,[1]FlowData!$A$3:$PL$215,AO$7,FALSE) -> 92 | AP45: =VLOOKUP($B45,[1]FlowData!$A$3:$PL$215,AP$7,FALSE) -> 174 | AQ45: =VLOOKUP($B45,[1]FlowData!$A$3:$PL$215,AQ$7,FALSE) -> 164 | AR45: =VLOOKUP($B45,[1]FlowData!$A$3:$PL$215,AR$7,FALSE) -> 124 | AS45: =VLOOKUP($B45,[1]FlowData!$A$3:$PL$215,AS$7,FALSE) -> 76 | AT45: =VLOOKUP($B45,[1]FlowData!$A$3:$PL$215,AT$7,FALSE) -> 125 | AU45: =VLOOKUP($B45,[1]FlowData!$A$3:$PL$215,AU$7,FALSE) -> 138 | AV45: =VLOOKUP($B45,[1]FlowData!$A$3:$PL$215,AV$7,FALSE) -> 109 | AW45: =VLOOKUP($B45,[1]FlowData!$A$3:$PL$215,AW$7,FALSE) -> 74 | AX45: =VLOOKUP($B45,[1]FlowData!$A$3:$PL$215,AX$7,FALSE) -> 113 | AY45: =VLOOKUP($B45,[1]FlowData!$A$3:$PL$215,AY$7,FALSE) -> 153 | AZ45: =VLOOKUP($B45,[1]FlowData!$A$3:$PL$215,AZ$7,FALSE) -> 114 | BA45: =VLOOKUP($B45,[1]FlowData!$A$3:$PL$215,BA$7,FALSE) -> 82 | BB45: =VLOOKUP($B45,[1]FlowData!$A$3:$PL$215,BB$7,FALSE) -> 127 | BC45: =VLOOKUP($B45,[1]FlowData!$A$3:$PL$215,BC$7,FALSE) -> 142 | BD45: =VLOOKUP($B45,[1]FlowData!$A$3:$PL$215,BD$7,FALSE) -> 97 | BE45: =VLOOKUP($B45,[1]FlowData!$A$3:$PL$215,BE$7,FALSE) -> 74 | BF45: =VLOOKUP($B45,[1]FlowData!$A$3:$PL$215,BF$7,FALSE) -> 121
A46: =VLOOKUP(B46,'[2]Gages and BCs'!$A$4:$BJ$973,62,FALSE) -> 722 | B46: 12366000 | C46: =VLOOKUP(B46,'[2]Gages and BCs'!$A$4:$BJ$973,60,FALSE) -> Whitefish River near Kalispell, Montana | D46: 1929–50, 1973–2006 | E46: =VLOOKUP($B46,[1]FlowData!$A$3:$PL$215,E$7,FALSE) -> 23.332 | F46: =VLOOKUP($B46,[1]FlowData!$A$3:$PL$215,F$7,FALSE) -> 28.413 | G46: =VLOOKUP($B46,[1]FlowData!$A$3:$PL$215,G$7,FALSE) -> 294 | H46: =VLOOKUP($B46,[1]FlowData!$A$3:$PL$215,H$7,FALSE) -> 104 | I46: =VLOOKUP($B46,[1]FlowData!$A$3:$PL$215,I$7,FALSE) -> 47 | J46: =VLOOKUP($B46,[1]FlowData!$A$3:$PL$215,J$7,FALSE) -> 190 | K46: =VLOOKUP($B46,[1]FlowData!$A$3:$PL$215,K$7,FALSE) -> 94 | L46: =VLOOKUP($B46,[1]FlowData!$A$3:$PL$215,L$7,FALSE) -> 58 | M46: =VLOOKUP($B46,[1]FlowData!$A$3:$PL$215,M$7,FALSE) -> 43 | N46: =VLOOKUP($B46,[1]FlowData!$A$3:$PL$215,N$7,FALSE) -> 72 | O46: =VLOOKUP($B46,[1]FlowData!$A$3:$PL$215,O$7,FALSE) -> 90 | P46: =VLOOKUP($B46,[1]FlowData!$A$3:$PL$215,P$7,FALSE) -> 59 | Q46: =VLOOKUP($B46,[1]FlowData!$A$3:$PL$215,Q$7,FALSE) -> 42 | R46: =VLOOKUP($B46,[1]FlowData!$A$3:$PL$215,R$7,FALSE) -> 70 | S46: =VLOOKUP($B46,[1]FlowData!$A$3:$PL$215,S$7,FALSE) -> 127 | T46: =VLOOKUP($B46,[1]FlowData!$A$3:$PL$215,T$7,FALSE) -> 84 | U46: =VLOOKUP($B46,[1]FlowData!$A$3:$PL$215,U$7,FALSE) -> 58 | V46: =VLOOKUP($B46,[1]FlowData!$A$3:$PL$215,V$7,FALSE) -> 97 | W46: =VLOOKUP($B46,[1]FlowData!$A$3:$PL$215,W$7,FALSE) -> 329 | X46: =VLOOKUP($B46,[1]FlowData!$A$3:$PL$215,X$7,FALSE) -> 188 | Y46: =VLOOKUP($B46,[1]FlowData!$A$3:$PL$215,Y$7,FALSE) -> 112 | Z46: =VLOOKUP($B46,[1]FlowData!$A$3:$PL$215,Z$7,FALSE) -> 227 | AA46: =VLOOKUP($B46,[1]FlowData!$A$3:$PL$215,AA$7,FALSE) -> 705 | AB46: =VLOOKUP($B46,[1]FlowData!$A$3:$PL$215,AB$7,FALSE) -> 490 | AC46: =VLOOKUP($B46,[1]FlowData!$A$3:$PL$215,AC$7,FALSE) -> 357 | AD46: =VLOOKUP($B46,[1]FlowData!$A$3:$PL$215,AD$7,FALSE) -> 527 | AE46: =VLOOKUP($B46,[1]FlowData!$A$3:$PL$215,AE$7,FALSE) -> 805 | AF46: =VLOOKUP($B46,[1]FlowData!$A$3:$PL$215,AF$7,FALSE) -> 598 | AG46: =VLOOKUP($B46,[1]FlowData!$A$3:$PL$215,AG$7,FALSE) -> 375 | AH46: =VLOOKUP($B46,[1]FlowData!$A$3:$PL$215,AH$7,FALSE) -> 606 | AI46: =VLOOKUP($B46,[1]FlowData!$A$3:$PL$215,AI$7,FALSE) -> 392 | AJ46: =VLOOKUP($B46,[1]FlowData!$A$3:$PL$215,AJ$7,FALSE) -> 228 | AK46: =VLOOKUP($B46,[1]FlowData!$A$3:$PL$215,AK$7,FALSE) -> 132 | AL46: =VLOOKUP($B46,[1]FlowData!$A$3:$PL$215,AL$7,FALSE) -> 272 | AM46: =VLOOKUP($B46,[1]FlowData!$A$3:$PL$215,AM$7,FALSE) -> 151 | AN46: =VLOOKUP($B46,[1]FlowData!$A$3:$PL$215,AN$7,FALSE) -> 103 | AO46: =VLOOKUP($B46,[1]FlowData!$A$3:$PL$215,AO$7,FALSE) -> 64 | AP46: =VLOOKUP($B46,[1]FlowData!$A$3:$PL$215,AP$7,FALSE) -> 109 | AQ46: =VLOOKUP($B46,[1]FlowData!$A$3:$PL$215,AQ$7,FALSE) -> 111 | AR46: =VLOOKUP($B46,[1]FlowData!$A$3:$PL$215,AR$7,FALSE) -> 78 | AS46: =VLOOKUP($B46,[1]FlowData!$A$3:$PL$215,AS$7,FALSE) -> 50 | AT46: =VLOOKUP($B46,[1]FlowData!$A$3:$PL$215,AT$7,FALSE) -> 81 | AU46: =VLOOKUP($B46,[1]FlowData!$A$3:$PL$215,AU$7,FALSE) -> 92 | AV46: =VLOOKUP($B46,[1]FlowData!$A$3:$PL$215,AV$7,FALSE) -> 66 | AW46: =VLOOKUP($B46,[1]FlowData!$A$3:$PL$215,AW$7,FALSE) -> 43 | AX46: =VLOOKUP($B46,[1]FlowData!$A$3:$PL$215,AX$7,FALSE) -> 70 | AY46: =VLOOKUP($B46,[1]FlowData!$A$3:$PL$215,AY$7,FALSE) -> 88 | AZ46: =VLOOKUP($B46,[1]FlowData!$A$3:$PL$215,AZ$7,FALSE) -> 69 | BA46: =VLOOKUP($B46,[1]FlowData!$A$3:$PL$215,BA$7,FALSE) -> 47 | BB46: =VLOOKUP($B46,[1]FlowData!$A$3:$PL$215,BB$7,FALSE) -> 72 | BC46: =VLOOKUP($B46,[1]FlowData!$A$3:$PL$215,BC$7,FALSE) -> 96 | BD46: =VLOOKUP($B46,[1]FlowData!$A$3:$PL$215,BD$7,FALSE) -> 59 | BE46: =VLOOKUP($B46,[1]FlowData!$A$3:$PL$215,BE$7,FALSE) -> 45 | BF46: =VLOOKUP($B46,[1]FlowData!$A$3:$PL$215,BF$7,FALSE) -> 72
A47: =VLOOKUP(B47,'[2]Gages and BCs'!$A$4:$BJ$973,62,FALSE) -> 724 | B47: 12367500 | C47: =VLOOKUP(B47,'[2]Gages and BCs'!$A$4:$BJ$973,60,FALSE) -> Ashley Creek near Kalispell, Montana | D47: 1931–32, 1934–50, 1973–74 | E47: =VLOOKUP($B47,[1]FlowData!$A$3:$PL$215,E$7,FALSE) -> 0 | F47: =VLOOKUP($B47,[1]FlowData!$A$3:$PL$215,F$7,FALSE) -> 0 | G47: =VLOOKUP($B47,[1]FlowData!$A$3:$PL$215,G$7,FALSE) -> 42 | H47: =VLOOKUP($B47,[1]FlowData!$A$3:$PL$215,H$7,FALSE) -> 17 | I47: =VLOOKUP($B47,[1]FlowData!$A$3:$PL$215,I$7,FALSE) -> 4.9 | J47: =VLOOKUP($B47,[1]FlowData!$A$3:$PL$215,J$7,FALSE) -> 34 | K47: =VLOOKUP($B47,[1]FlowData!$A$3:$PL$215,K$7,FALSE) -> 12 | L47: =VLOOKUP($B47,[1]FlowData!$A$3:$PL$215,L$7,FALSE) -> 4.1 | M47: =VLOOKUP($B47,[1]FlowData!$A$3:$PL$215,M$7,FALSE) -> 0.71 | N47: =VLOOKUP($B47,[1]FlowData!$A$3:$PL$215,N$7,FALSE) -> 8 | O47: =VLOOKUP($B47,[1]FlowData!$A$3:$PL$215,O$7,FALSE) -> 16 | P47: =VLOOKUP($B47,[1]FlowData!$A$3:$PL$215,P$7,FALSE) -> 2.9 | Q47: =VLOOKUP($B47,[1]FlowData!$A$3:$PL$215,Q$7,FALSE) -> 0.23 | R47: =VLOOKUP($B47,[1]FlowData!$A$3:$PL$215,R$7,FALSE) -> 7.4 | S47: =VLOOKUP($B47,[1]FlowData!$A$3:$PL$215,S$7,FALSE) -> 26 | T47: =VLOOKUP($B47,[1]FlowData!$A$3:$PL$215,T$7,FALSE) -> 14 | U47: =VLOOKUP($B47,[1]FlowData!$A$3:$PL$215,U$7,FALSE) -> 3.1 | V47: =VLOOKUP($B47,[1]FlowData!$A$3:$PL$215,V$7,FALSE) -> 18 | W47: =VLOOKUP($B47,[1]FlowData!$A$3:$PL$215,W$7,FALSE) -> 121 | X47: =VLOOKUP($B47,[1]FlowData!$A$3:$PL$215,X$7,FALSE) -> 34 | Y47: =VLOOKUP($B47,[1]FlowData!$A$3:$PL$215,Y$7,FALSE) -> 17 | Z47: =VLOOKUP($B47,[1]FlowData!$A$3:$PL$215,Z$7,FALSE) -> 67 | AA47: =VLOOKUP($B47,[1]FlowData!$A$3:$PL$215,AA$7,FALSE) -> 178 | AB47: =VLOOKUP($B47,[1]FlowData!$A$3:$PL$215,AB$7,FALSE) -> 54 | AC47: =VLOOKUP($B47,[1]FlowData!$A$3:$PL$215,AC$7,FALSE) -> 27 | AD47: =VLOOKUP($B47,[1]FlowData!$A$3:$PL$215,AD$7,FALSE) -> 109 | AE47: =VLOOKUP($B47,[1]FlowData!$A$3:$PL$215,AE$7,FALSE) -> 142 | AF47: =VLOOKUP($B47,[1]FlowData!$A$3:$PL$215,AF$7,FALSE) -> 44 | AG47: =VLOOKUP($B47,[1]FlowData!$A$3:$PL$215,AG$7,FALSE) -> 26 | AH47: =VLOOKUP($B47,[1]FlowData!$A$3:$PL$215,AH$7,FALSE) -> 78 | AI47: =VLOOKUP($B47,[1]FlowData!$A$3:$PL$215,AI$7,FALSE) -> 53 | AJ47: =VLOOKUP($B47,[1]FlowData!$A$3:$PL$215,AJ$7,FALSE) -> 26 | AK47: =VLOOKUP($B47,[1]FlowData!$A$3:$PL$215,AK$7,FALSE) -> 14 | AL47: =VLOOKUP($B47,[1]FlowData!$A$3:$PL$215,AL$7,FALSE) -> 36 | AM47: =VLOOKUP($B47,[1]FlowData!$A$3:$PL$215,AM$7,FALSE) -> 22 | AN47: =VLOOKUP($B47,[1]FlowData!$A$3:$PL$215,AN$7,FALSE) -> 9.5 | AO47: =VLOOKUP($B47,[1]FlowData!$A$3:$PL$215,AO$7,FALSE) -> 1.7 | AP47: =VLOOKUP($B47,[1]FlowData!$A$3:$PL$215,AP$7,FALSE) -> 14 | AQ47: =VLOOKUP($B47,[1]FlowData!$A$3:$PL$215,AQ$7,FALSE) -> 14 | AR47: =VLOOKUP($B47,[1]FlowData!$A$3:$PL$215,AR$7,FALSE) -> 4.4 | AS47: =VLOOKUP($B47,[1]FlowData!$A$3:$PL$215,AS$7,FALSE) -> 0.39 | AT47: =VLOOKUP($B47,[1]FlowData!$A$3:$PL$215,AT$7,FALSE) -> 7.2 | AU47: =VLOOKUP($B47,[1]FlowData!$A$3:$PL$215,AU$7,FALSE) -> 12 | AV47: =VLOOKUP($B47,[1]FlowData!$A$3:$PL$215,AV$7,FALSE) -> 4 | AW47: =VLOOKUP($B47,[1]FlowData!$A$3:$PL$215,AW$7,FALSE) -> 0.46 | AX47: =VLOOKUP($B47,[1]FlowData!$A$3:$PL$215,AX$7,FALSE) -> 6.3 | AY47: =VLOOKUP($B47,[1]FlowData!$A$3:$PL$215,AY$7,FALSE) -> 13 | AZ47: =VLOOKUP($B47,[1]FlowData!$A$3:$PL$215,AZ$7,FALSE) -> 5 | BA47: =VLOOKUP($B47,[1]FlowData!$A$3:$PL$215,BA$7,FALSE) -> 0.98 | BB47: =VLOOKUP($B47,[1]FlowData!$A$3:$PL$215,BB$7,FALSE) -> 7.3 | BC47: =VLOOKUP($B47,[1]FlowData!$A$3:$PL$215,BC$7,FALSE) -> 11 | BD47: =VLOOKUP($B47,[1]FlowData!$A$3:$PL$215,BD$7,FALSE) -> 3.7 | BE47: =VLOOKUP($B47,[1]FlowData!$A$3:$PL$215,BE$7,FALSE) -> 0.45 | BF47: =VLOOKUP($B47,[1]FlowData!$A$3:$PL$215,BF$7,FALSE) -> 6
A48: =VLOOKUP(B48,'[2]Gages and BCs'!$A$4:$BJ$973,62,FALSE) -> 725 | B48: 12369200 | C48: =VLOOKUP(B48,'[2]Gages and BCs'!$A$4:$BJ$973,60,FALSE) -> Swan River near Condon, Montana | D48: 1973–92 | E48: =VLOOKUP($B48,[1]FlowData!$A$3:$PL$215,E$7,FALSE) -> 21.591 | F48: =VLOOKUP($B48,[1]FlowData!$A$3:$PL$215,F$7,FALSE) -> 29.696 | G48: =VLOOKUP($B48,[1]FlowData!$A$3:$PL$215,G$7,FALSE) -> 271 | H48: =VLOOKUP($B48,[1]FlowData!$A$3:$PL$215,H$7,FALSE) -> 77 | I48: =VLOOKUP($B48,[1]FlowData!$A$3:$PL$215,I$7,FALSE) -> 39 | J48: =VLOOKUP($B48,[1]FlowData!$A$3:$PL$215,J$7,FALSE) -> 159 | K48: =VLOOKUP($B48,[1]FlowData!$A$3:$PL$215,K$7,FALSE) -> 64 | L48: =VLOOKUP($B48,[1]FlowData!$A$3:$PL$215,L$7,FALSE) -> 45 | M48: =VLOOKUP($B48,[1]FlowData!$A$3:$PL$215,M$7,FALSE) -> 32 | N48: =VLOOKUP($B48,[1]FlowData!$A$3:$PL$215,N$7,FALSE) -> 52 | O48: =VLOOKUP($B48,[1]FlowData!$A$3:$PL$215,O$7,FALSE) -> 59 | P48: =VLOOKUP($B48,[1]FlowData!$A$3:$PL$215,P$7,FALSE) -> 44 | Q48: =VLOOKUP($B48,[1]FlowData!$A$3:$PL$215,Q$7,FALSE) -> 33 | R48: =VLOOKUP($B48,[1]FlowData!$A$3:$PL$215,R$7,FALSE) -> 49 | S48: =VLOOKUP($B48,[1]FlowData!$A$3:$PL$215,S$7,FALSE) -> 91 | T48: =VLOOKUP($B48,[1]FlowData!$A$3:$PL$215,T$7,FALSE) -> 58 | U48: =VLOOKUP($B48,[1]FlowData!$A$3:$PL$215,U$7,FALSE) -> 37 | V48: =VLOOKUP($B48,[1]FlowData!$A$3:$PL$215,V$7,FALSE) -> 72 | W48: =VLOOKUP($B48,[1]FlowData!$A$3:$PL$215,W$7,FALSE) -> 309 | X48: =VLOOKUP($B48,[1]FlowData!$A$3:$PL$215,X$7,FALSE) -> 176 | Y48: =VLOOKUP($B48,[1]FlowData!$A$3:$PL$215,Y$7,FALSE) -> 76 | Z48: =VLOOKUP($B48,[1]FlowData!$A$3:$PL$215,Z$7,FALSE) -> 209 | AA48: =VLOOKUP($B48,[1]FlowData!$A$3:$PL$215,AA$7,FALSE) -> 552 | AB48: =VLOOKUP($B48,[1]FlowData!$A$3:$PL$215,AB$7,FALSE) -> 384 | AC48: =VLOOKUP($B48,[1]FlowData!$A$3:$PL$215,AC$7,FALSE) -> 248 | AD48: =VLOOKUP($B48,[1]FlowData!$A$3:$PL$215,AD$7,FALSE) -> 414 | AE48: =VLOOKUP($B48,[1]FlowData!$A$3:$PL$215,AE$7,FALSE) -> 644 | AF48: =VLOOKUP($B48,[1]FlowData!$A$3:$PL$215,AF$7,FALSE) -> 440 | AG48: =VLOOKUP($B48,[1]FlowData!$A$3:$PL$215,AG$7,FALSE) -> 318 | AH48: =VLOOKUP($B48,[1]FlowData!$A$3:$PL$215,AH$7,FALSE) -> 486 | AI48: =VLOOKUP($B48,[1]FlowData!$A$3:$PL$215,AI$7,FALSE) -> 393 | AJ48: =VLOOKUP($B48,[1]FlowData!$A$3:$PL$215,AJ$7,FALSE) -> 236 | AK48: =VLOOKUP($B48,[1]FlowData!$A$3:$PL$215,AK$7,FALSE) -> 119 | AL48: =VLOOKUP($B48,[1]FlowData!$A$3:$PL$215,AL$7,FALSE) -> 269 | AM48: =VLOOKUP($B48,[1]FlowData!$A$3:$PL$215,AM$7,FALSE) -> 145 | AN48: =VLOOKUP($B48,[1]FlowData!$A$3:$PL$215,AN$7,FALSE) -> 87 | AO48: =VLOOKUP($B48,[1]FlowData!$A$3:$PL$215,AO$7,FALSE) -> 57 | AP48: =VLOOKUP($B48,[1]FlowData!$A$3:$PL$215,AP$7,FALSE) -> 100 | AQ48: =VLOOKUP($B48,[1]FlowData!$A$3:$PL$215,AQ$7,FALSE) -> 88 | AR48: =VLOOKUP($B48,[1]FlowData!$A$3:$PL$215,AR$7,FALSE) -> 61 | AS48: =VLOOKUP($B48,[1]FlowData!$A$3:$PL$215,AS$7,FALSE) -> 41 | AT48: =VLOOKUP($B48,[1]FlowData!$A$3:$PL$215,AT$7,FALSE) -> 69 | AU48: =VLOOKUP($B48,[1]FlowData!$A$3:$PL$215,AU$7,FALSE) -> 77 | AV48: =VLOOKUP($B48,[1]FlowData!$A$3:$PL$215,AV$7,FALSE) -> 52 | AW48: =VLOOKUP($B48,[1]FlowData!$A$3:$PL$215,AW$7,FALSE) -> 34 | AX48: =VLOOKUP($B48,[1]FlowData!$A$3:$PL$215,AX$7,FALSE) -> 58 | AY48: =VLOOKUP($B48,[1]FlowData!$A$3:$PL$215,AY$7,FALSE) -> 89 | AZ48: =VLOOKUP($B48,[1]FlowData!$A$3:$PL$215,AZ$7,FALSE) -> 56 | BA48: =VLOOKUP($B48,[1]FlowData!$A$3:$PL$215,BA$7,FALSE) -> 40 | BB48: =VLOOKUP($B48,[1]FlowData!$A$3:$PL$215,BB$7,FALSE) -> 69 | BC48: =VLOOKUP($B48,[1]FlowData!$A$3:$PL$215,BC$7,FALSE) -> 75 | BD48: =VLOOKUP($B48,[1]FlowData!$A$3:$PL$215,BD$7,FALSE) -> 48 | BE48: =VLOOKUP($B48,[1]FlowData!$A$3:$PL$215,BE$7,FALSE) -> 38 | BF48: =VLOOKUP($B48,[1]FlowData!$A$3:$PL$215,BF$7,FALSE) -> 62
A49: =VLOOKUP(B49,'[2]Gages and BCs'!$A$4:$BJ$973,62,FALSE) -> 728 | B49: 12370000 | C49: =VLOOKUP(B49,'[2]Gages and BCs'!$A$4:$BJ$973,60,FALSE) -> Swan River near Bigfork, Montana | D49: 1922–2009 | E49: =VLOOKUP($B49,[1]FlowData!$A$3:$PL$215,E$7,FALSE) -> 272.47 | F49: =VLOOKUP($B49,[1]FlowData!$A$3:$PL$215,F$7,FALSE) -> 347.547 | G49: =VLOOKUP($B49,[1]FlowData!$A$3:$PL$215,G$7,FALSE) -> 1770 | H49: =VLOOKUP($B49,[1]FlowData!$A$3:$PL$215,H$7,FALSE) -> 682 | I49: =VLOOKUP($B49,[1]FlowData!$A$3:$PL$215,I$7,FALSE) -> 370 | J49: =VLOOKUP($B49,[1]FlowData!$A$3:$PL$215,J$7,FALSE) -> 1130 | K49: =VLOOKUP($B49,[1]FlowData!$A$3:$PL$215,K$7,FALSE) -> 593 | L49: =VLOOKUP($B49,[1]FlowData!$A$3:$PL$215,L$7,FALSE) -> 442 | M49: =VLOOKUP($B49,[1]FlowData!$A$3:$PL$215,M$7,FALSE) -> 357 | N49: =VLOOKUP($B49,[1]FlowData!$A$3:$PL$215,N$7,FALSE) -> 496 | O49: =VLOOKUP($B49,[1]FlowData!$A$3:$PL$215,O$7,FALSE) -> 594 | P49: =VLOOKUP($B49,[1]FlowData!$A$3:$PL$215,P$7,FALSE) -> 436 | Q49: =VLOOKUP($B49,[1]FlowData!$A$3:$PL$215,Q$7,FALSE) -> 339 | R49: =VLOOKUP($B49,[1]FlowData!$A$3:$PL$215,R$7,FALSE) -> 496 | S49: =VLOOKUP($B49,[1]FlowData!$A$3:$PL$215,S$7,FALSE) -> 826 | T49: =VLOOKUP($B49,[1]FlowData!$A$3:$PL$215,T$7,FALSE) -> 538 | U49: =VLOOKUP($B49,[1]FlowData!$A$3:$PL$215,U$7,FALSE) -> 391 | V49: =VLOOKUP($B49,[1]FlowData!$A$3:$PL$215,V$7,FALSE) -> 637 | W49: =VLOOKUP($B49,[1]FlowData!$A$3:$PL$215,W$7,FALSE) -> 2080 | X49: =VLOOKUP($B49,[1]FlowData!$A$3:$PL$215,X$7,FALSE) -> 1300 | Y49: =VLOOKUP($B49,[1]FlowData!$A$3:$PL$215,Y$7,FALSE) -> 792 | Z49: =VLOOKUP($B49,[1]FlowData!$A$3:$PL$215,Z$7,FALSE) -> 1500 | AA49: =VLOOKUP($B49,[1]FlowData!$A$3:$PL$215,AA$7,FALSE) -> 3670 | AB49: =VLOOKUP($B49,[1]FlowData!$A$3:$PL$215,AB$7,FALSE) -> 2600 | AC49: =VLOOKUP($B49,[1]FlowData!$A$3:$PL$215,AC$7,FALSE) -> 1780 | AD49: =VLOOKUP($B49,[1]FlowData!$A$3:$PL$215,AD$7,FALSE) -> 2800 | AE49: =VLOOKUP($B49,[1]FlowData!$A$3:$PL$215,AE$7,FALSE) -> 4210 | AF49: =VLOOKUP($B49,[1]FlowData!$A$3:$PL$215,AF$7,FALSE) -> 3120 | AG49: =VLOOKUP($B49,[1]FlowData!$A$3:$PL$215,AG$7,FALSE) -> 2200 | AH49: =VLOOKUP($B49,[1]FlowData!$A$3:$PL$215,AH$7,FALSE) -> 3270 | AI49: =VLOOKUP($B49,[1]FlowData!$A$3:$PL$215,AI$7,FALSE) -> 2260 | AJ49: =VLOOKUP($B49,[1]FlowData!$A$3:$PL$215,AJ$7,FALSE) -> 1400 | AK49: =VLOOKUP($B49,[1]FlowData!$A$3:$PL$215,AK$7,FALSE) -> 891 | AL49: =VLOOKUP($B49,[1]FlowData!$A$3:$PL$215,AL$7,FALSE) -> 1610 | AM49: =VLOOKUP($B49,[1]FlowData!$A$3:$PL$215,AM$7,FALSE) -> 891 | AN49: =VLOOKUP($B49,[1]FlowData!$A$3:$PL$215,AN$7,FALSE) -> 644 | AO49: =VLOOKUP($B49,[1]FlowData!$A$3:$PL$215,AO$7,FALSE) -> 470 | AP49: =VLOOKUP($B49,[1]FlowData!$A$3:$PL$215,AP$7,FALSE) -> 687 | AQ49: =VLOOKUP($B49,[1]FlowData!$A$3:$PL$215,AQ$7,FALSE) -> 643 | AR49: =VLOOKUP($B49,[1]FlowData!$A$3:$PL$215,AR$7,FALSE) -> 495 | AS49: =VLOOKUP($B49,[1]FlowData!$A$3:$PL$215,AS$7,FALSE) -> 380 | AT49: =VLOOKUP($B49,[1]FlowData!$A$3:$PL$215,AT$7,FALSE) -> 531 | AU49: =VLOOKUP($B49,[1]FlowData!$A$3:$PL$215,AU$7,FALSE) -> 644 | AV49: =VLOOKUP($B49,[1]FlowData!$A$3:$PL$215,AV$7,FALSE) -> 500 | AW49: =VLOOKUP($B49,[1]FlowData!$A$3:$PL$215,AW$7,FALSE) -> 375 | AX49: =VLOOKUP($B49,[1]FlowData!$A$3:$PL$215,AX$7,FALSE) -> 545 | AY49: =VLOOKUP($B49,[1]FlowData!$A$3:$PL$215,AY$7,FALSE) -> 713 | AZ49: =VLOOKUP($B49,[1]FlowData!$A$3:$PL$215,AZ$7,FALSE) -> 536 | BA49: =VLOOKUP($B49,[1]FlowData!$A$3:$PL$215,BA$7,FALSE) -> 403 | BB49: =VLOOKUP($B49,[1]FlowData!$A$3:$PL$215,BB$7,FALSE) -> 595 | BC49: =VLOOKUP($B49,[1]FlowData!$A$3:$PL$215,BC$7,FALSE) -> 670 | BD49: =VLOOKUP($B49,[1]FlowData!$A$3:$PL$215,BD$7,FALSE) -> 492 | BE49: =VLOOKUP($B49,[1]FlowData!$A$3:$PL$215,BE$7,FALSE) -> 382 | BF49: =VLOOKUP($B49,[1]FlowData!$A$3:$PL$215,BF$7,FALSE) -> 562
A50: =VLOOKUP(B50,'[2]Gages and BCs'!$A$4:$BJ$973,62,FALSE) -> 731 | B50: 12371100 | C50: =VLOOKUP(B50,'[2]Gages and BCs'!$A$4:$BJ$973,60,FALSE) -> Hell Roaring Creek near Polson, Montana | D50: 1917–32 | E50: =VLOOKUP($B50,[1]FlowData!$A$3:$PL$215,E$7,FALSE) -> 2.344 | F50: =VLOOKUP($B50,[1]FlowData!$A$3:$PL$215,F$7,FALSE) -> 3.232 | G50: =VLOOKUP($B50,[1]FlowData!$A$3:$PL$215,G$7,FALSE) -> 7 | H50: =VLOOKUP($B50,[1]FlowData!$A$3:$PL$215,H$7,FALSE) -> 5 | I50: =VLOOKUP($B50,[1]FlowData!$A$3:$PL$215,I$7,FALSE) -> 3.7 | J50: =VLOOKUP($B50,[1]FlowData!$A$3:$PL$215,J$7,FALSE) -> 6.7 | K50: =VLOOKUP($B50,[1]FlowData!$A$3:$PL$215,K$7,FALSE) -> 5.4 | L50: =VLOOKUP($B50,[1]FlowData!$A$3:$PL$215,L$7,FALSE) -> 4.5 | M50: =VLOOKUP($B50,[1]FlowData!$A$3:$PL$215,M$7,FALSE) -> 3.6 | N50: =VLOOKUP($B50,[1]FlowData!$A$3:$PL$215,N$7,FALSE) -> 4.7 | O50: =VLOOKUP($B50,[1]FlowData!$A$3:$PL$215,O$7,FALSE) -> 5.4 | P50: =VLOOKUP($B50,[1]FlowData!$A$3:$PL$215,P$7,FALSE) -> 4.4 | Q50: =VLOOKUP($B50,[1]FlowData!$A$3:$PL$215,Q$7,FALSE) -> 3.7 | R50: =VLOOKUP($B50,[1]FlowData!$A$3:$PL$215,R$7,FALSE) -> 4.5 | S50: =VLOOKUP($B50,[1]FlowData!$A$3:$PL$215,S$7,FALSE) -> 5.2 | T50: =VLOOKUP($B50,[1]FlowData!$A$3:$PL$215,T$7,FALSE) -> 4 | U50: =VLOOKUP($B50,[1]FlowData!$A$3:$PL$215,U$7,FALSE) -> 3.3 | V50: =VLOOKUP($B50,[1]FlowData!$A$3:$PL$215,V$7,FALSE) -> 4.3 | W50: =VLOOKUP($B50,[1]FlowData!$A$3:$PL$215,W$7,FALSE) -> 9 | X50: =VLOOKUP($B50,[1]FlowData!$A$3:$PL$215,X$7,FALSE) -> 5.2 | Y50: =VLOOKUP($B50,[1]FlowData!$A$3:$PL$215,Y$7,FALSE) -> 3.7 | Z50: =VLOOKUP($B50,[1]FlowData!$A$3:$PL$215,Z$7,FALSE) -> 7.2 | AA50: =VLOOKUP($B50,[1]FlowData!$A$3:$PL$215,AA$7,FALSE) -> 21 | AB50: =VLOOKUP($B50,[1]FlowData!$A$3:$PL$215,AB$7,FALSE) -> 8.7 | AC50: =VLOOKUP($B50,[1]FlowData!$A$3:$PL$215,AC$7,FALSE) -> 5.1 | AD50: =VLOOKUP($B50,[1]FlowData!$A$3:$PL$215,AD$7,FALSE) -> 13 | AE50: =VLOOKUP($B50,[1]FlowData!$A$3:$PL$215,AE$7,FALSE) -> 24 | AF50: =VLOOKUP($B50,[1]FlowData!$A$3:$PL$215,AF$7,FALSE) -> 10 | AG50: =VLOOKUP($B50,[1]FlowData!$A$3:$PL$215,AG$7,FALSE) -> 5.1 | AH50: =VLOOKUP($B50,[1]FlowData!$A$3:$PL$215,AH$7,FALSE) -> 14 | AI50: =VLOOKUP($B50,[1]FlowData!$A$3:$PL$215,AI$7,FALSE) -> 9 | AJ50: =VLOOKUP($B50,[1]FlowData!$A$3:$PL$215,AJ$7,FALSE) -> 5.6 | AK50: =VLOOKUP($B50,[1]FlowData!$A$3:$PL$215,AK$7,FALSE) -> 4 | AL50: =VLOOKUP($B50,[1]FlowData!$A$3:$PL$215,AL$7,FALSE) -> 7.3 | AM50: =VLOOKUP($B50,[1]FlowData!$A$3:$PL$215,AM$7,FALSE) -> 7.2 | AN50: =VLOOKUP($B50,[1]FlowData!$A$3:$PL$215,AN$7,FALSE) -> 5.6 | AO50: =VLOOKUP($B50,[1]FlowData!$A$3:$PL$215,AO$7,FALSE) -> 4.3 | AP50: =VLOOKUP($B50,[1]FlowData!$A$3:$PL$215,AP$7,FALSE) -> 5.8 | AQ50: =VLOOKUP($B50,[1]FlowData!$A$3:$PL$215,AQ$7,FALSE) -> 6.5 | AR50: =VLOOKUP($B50,[1]FlowData!$A$3:$PL$215,AR$7,FALSE) -> 5.2 | AS50: =VLOOKUP($B50,[1]FlowData!$A$3:$PL$215,AS$7,FALSE) -> 4.1 | AT50: =VLOOKUP($B50,[1]FlowData!$A$3:$PL$215,AT$7,FALSE) -> 5.3 | AU50: =VLOOKUP($B50,[1]FlowData!$A$3:$PL$215,AU$7,FALSE) -> 6.5 | AV50: =VLOOKUP($B50,[1]FlowData!$A$3:$PL$215,AV$7,FALSE) -> 4.7 | AW50: =VLOOKUP($B50,[1]FlowData!$A$3:$PL$215,AW$7,FALSE) -> 3.8 | AX50: =VLOOKUP($B50,[1]FlowData!$A$3:$PL$215,AX$7,FALSE) -> 5 | AY50: =VLOOKUP($B50,[1]FlowData!$A$3:$PL$215,AY$7,FALSE) -> 6.1 | AZ50: =VLOOKUP($B50,[1]FlowData!$A$3:$PL$215,AZ$7,FALSE) -> 5.1 | BA50: =VLOOKUP($B50,[1]FlowData!$A$3:$PL$215,BA$7,FALSE) -> 4.2 | BB50: =VLOOKUP($B50,[1]FlowData!$A$3:$PL$215,BB$7,FALSE) -> 5.2 | BC50: =VLOOKUP($B50,[1]FlowData!$A$3:$PL$215,BC$7,FALSE) -> 6 | BD50: =VLOOKUP($B50,[1]FlowData!$A$3:$PL$215,BD$7,FALSE) -> 5 | BE50: =VLOOKUP($B50,[1]FlowData!$A$3:$PL$215,BE$7,FALSE) -> 4.2 | BF50: =VLOOKUP($B50,[1]FlowData!$A$3:$PL$215,BF$7,FALSE) -> 5.3
A51: =VLOOKUP(B51,'[2]Gages and BCs'!$A$4:$BJ$973,62,FALSE) -> 733 | B51: 12374250 | C51: =VLOOKUP(B51,'[2]Gages and BCs'!$A$4:$BJ$973,60,FALSE) -> Mill Creek above Bassoo Creek, near Niarada, Montana | D51: 1983–2009 | E51: =VLOOKUP($B51,[1]FlowData!$A$3:$PL$215,E$7,FALSE) -> 1.383 | F51: =VLOOKUP($B51,[1]FlowData!$A$3:$PL$215,F$7,FALSE) -> 1.72 | G51: =VLOOKUP($B51,[1]FlowData!$A$3:$PL$215,G$7,FALSE) -> 11 | H51: =VLOOKUP($B51,[1]FlowData!$A$3:$PL$215,H$7,FALSE) -> 5 | I51: =VLOOKUP($B51,[1]FlowData!$A$3:$PL$215,I$7,FALSE) -> 2.5 | J51: =VLOOKUP($B51,[1]FlowData!$A$3:$PL$215,J$7,FALSE) -> 7.9 | K51: =VLOOKUP($B51,[1]FlowData!$A$3:$PL$215,K$7,FALSE) -> 3.9 | L51: =VLOOKUP($B51,[1]FlowData!$A$3:$PL$215,L$7,FALSE) -> 2.5 | M51: =VLOOKUP($B51,[1]FlowData!$A$3:$PL$215,M$7,FALSE) -> 1.5 | N51: =VLOOKUP($B51,[1]FlowData!$A$3:$PL$215,N$7,FALSE) -> 3.4 | O51: =VLOOKUP($B51,[1]FlowData!$A$3:$PL$215,O$7,FALSE) -> 4.1 | P51: =VLOOKUP($B51,[1]FlowData!$A$3:$PL$215,P$7,FALSE) -> 2.7 | Q51: =VLOOKUP($B51,[1]FlowData!$A$3:$PL$215,Q$7,FALSE) -> 1.7 | R51: =VLOOKUP($B51,[1]FlowData!$A$3:$PL$215,R$7,FALSE) -> 3.6 | S51: =VLOOKUP($B51,[1]FlowData!$A$3:$PL$215,S$7,FALSE) -> 8.9 | T51: =VLOOKUP($B51,[1]FlowData!$A$3:$PL$215,T$7,FALSE) -> 3.9 | U51: =VLOOKUP($B51,[1]FlowData!$A$3:$PL$215,U$7,FALSE) -> 2.4 | V51: =VLOOKUP($B51,[1]FlowData!$A$3:$PL$215,V$7,FALSE) -> 6.9 | W51: =VLOOKUP($B51,[1]FlowData!$A$3:$PL$215,W$7,FALSE) -> 29 | X51: =VLOOKUP($B51,[1]FlowData!$A$3:$PL$215,X$7,FALSE) -> 12 | Y51: =VLOOKUP($B51,[1]FlowData!$A$3:$PL$215,Y$7,FALSE) -> 6.5 | Z51: =VLOOKUP($B51,[1]FlowData!$A$3:$PL$215,Z$7,FALSE) -> 20 | AA51: =VLOOKUP($B51,[1]FlowData!$A$3:$PL$215,AA$7,FALSE) -> 34 | AB51: =VLOOKUP($B51,[1]FlowData!$A$3:$PL$215,AB$7,FALSE) -> 19 | AC51: =VLOOKUP($B51,[1]FlowData!$A$3:$PL$215,AC$7,FALSE) -> 12 | AD51: =VLOOKUP($B51,[1]FlowData!$A$3:$PL$215,AD$7,FALSE) -> 26 | AE51: =VLOOKUP($B51,[1]FlowData!$A$3:$PL$215,AE$7,FALSE) -> 21 | AF51: =VLOOKUP($B51,[1]FlowData!$A$3:$PL$215,AF$7,FALSE) -> 12 | AG51: =VLOOKUP($B51,[1]FlowData!$A$3:$PL$215,AG$7,FALSE) -> 6.5 | AH51: =VLOOKUP($B51,[1]FlowData!$A$3:$PL$215,AH$7,FALSE) -> 15 | AI51: =VLOOKUP($B51,[1]FlowData!$A$3:$PL$215,AI$7,FALSE) -> 7.1 | AJ51: =VLOOKUP($B51,[1]FlowData!$A$3:$PL$215,AJ$7,FALSE) -> 4.5 | AK51: =VLOOKUP($B51,[1]FlowData!$A$3:$PL$215,AK$7,FALSE) -> 3 | AL51: =VLOOKUP($B51,[1]FlowData!$A$3:$PL$215,AL$7,FALSE) -> 5.4 | AM51: =VLOOKUP($B51,[1]FlowData!$A$3:$PL$215,AM$7,FALSE) -> 3.8 | AN51: =VLOOKUP($B51,[1]FlowData!$A$3:$PL$215,AN$7,FALSE) -> 2.8 | AO51: =VLOOKUP($B51,[1]FlowData!$A$3:$PL$215,AO$7,FALSE) -> 2.1 | AP51: =VLOOKUP($B51,[1]FlowData!$A$3:$PL$215,AP$7,FALSE) -> 3 | AQ51: =VLOOKUP($B51,[1]FlowData!$A$3:$PL$215,AQ$7,FALSE) -> 2.9 | AR51: =VLOOKUP($B51,[1]FlowData!$A$3:$PL$215,AR$7,FALSE) -> 2.4 | AS51: =VLOOKUP($B51,[1]FlowData!$A$3:$PL$215,AS$7,FALSE) -> 1.9 | AT51: =VLOOKUP($B51,[1]FlowData!$A$3:$PL$215,AT$7,FALSE) -> 2.4 | AU51: =VLOOKUP($B51,[1]FlowData!$A$3:$PL$215,AU$7,FALSE) -> 2.9 | AV51: =VLOOKUP($B51,[1]FlowData!$A$3:$PL$215,AV$7,FALSE) -> 2.4 | AW51: =VLOOKUP($B51,[1]FlowData!$A$3:$PL$215,AW$7,FALSE) -> 2 | AX51: =VLOOKUP($B51,[1]FlowData!$A$3:$PL$215,AX$7,FALSE) -> 2.5 | AY51: =VLOOKUP($B51,[1]FlowData!$A$3:$PL$215,AY$7,FALSE) -> 3.8 | AZ51: =VLOOKUP($B51,[1]FlowData!$A$3:$PL$215,AZ$7,FALSE) -> 2.7 | BA51: =VLOOKUP($B51,[1]FlowData!$A$3:$PL$215,BA$7,FALSE) -> 1.9 | BB51: =VLOOKUP($B51,[1]FlowData!$A$3:$PL$215,BB$7,FALSE) -> 3.4 | BC51: =VLOOKUP($B51,[1]FlowData!$A$3:$PL$215,BC$7,FALSE) -> 3.7 | BD51: =VLOOKUP($B51,[1]FlowData!$A$3:$PL$215,BD$7,FALSE) -> 2.6 | BE51: =VLOOKUP($B51,[1]FlowData!$A$3:$PL$215,BE$7,FALSE) -> 1.8 | BF51: =VLOOKUP($B51,[1]FlowData!$A$3:$PL$215,BF$7,FALSE) -> 3.4
A52: =VLOOKUP(B52,'[2]Gages and BCs'!$A$4:$BJ$973,62,FALSE) -> 738 | B52: 12377150 | C52: =VLOOKUP(B52,'[2]Gages and BCs'!$A$4:$BJ$973,60,FALSE) -> Mission Creek above reservoir, near St. Ignatius, Montana | D52: 1983–2009 | E52: =VLOOKUP($B52,[1]FlowData!$A$3:$PL$215,E$7,FALSE) -> 6.62 | F52: =VLOOKUP($B52,[1]FlowData!$A$3:$PL$215,F$7,FALSE) -> 15.506 | G52: =VLOOKUP($B52,[1]FlowData!$A$3:$PL$215,G$7,FALSE) -> 76 | H52: =VLOOKUP($B52,[1]FlowData!$A$3:$PL$215,H$7,FALSE) -> 22 | I52: =VLOOKUP($B52,[1]FlowData!$A$3:$PL$215,I$7,FALSE) -> 11 | J52: =VLOOKUP($B52,[1]FlowData!$A$3:$PL$215,J$7,FALSE) -> 48 | K52: =VLOOKUP($B52,[1]FlowData!$A$3:$PL$215,K$7,FALSE) -> 12 | L52: =VLOOKUP($B52,[1]FlowData!$A$3:$PL$215,L$7,FALSE) -> 10 | M52: =VLOOKUP($B52,[1]FlowData!$A$3:$PL$215,M$7,FALSE) -> 8.7 | N52: =VLOOKUP($B52,[1]FlowData!$A$3:$PL$215,N$7,FALSE) -> 11 | O52: =VLOOKUP($B52,[1]FlowData!$A$3:$PL$215,O$7,FALSE) -> 11 | P52: =VLOOKUP($B52,[1]FlowData!$A$3:$PL$215,P$7,FALSE) -> 8.9 | Q52: =VLOOKUP($B52,[1]FlowData!$A$3:$PL$215,Q$7,FALSE) -> 7.7 | R52: =VLOOKUP($B52,[1]FlowData!$A$3:$PL$215,R$7,FALSE) -> 9.2 | S52: =VLOOKUP($B52,[1]FlowData!$A$3:$PL$215,S$7,FALSE) -> 13 | T52: =VLOOKUP($B52,[1]FlowData!$A$3:$PL$215,T$7,FALSE) -> 9.9 | U52: =VLOOKUP($B52,[1]FlowData!$A$3:$PL$215,U$7,FALSE) -> 8.3 | V52: =VLOOKUP($B52,[1]FlowData!$A$3:$PL$215,V$7,FALSE) -> 10 | W52: =VLOOKUP($B52,[1]FlowData!$A$3:$PL$215,W$7,FALSE) -> 34 | X52: =VLOOKUP($B52,[1]FlowData!$A$3:$PL$215,X$7,FALSE) -> 18 | Y52: =VLOOKUP($B52,[1]FlowData!$A$3:$PL$215,Y$7,FALSE) -> 10 | Z52: =VLOOKUP($B52,[1]FlowData!$A$3:$PL$215,Z$7,FALSE) -> 24 | AA52: =VLOOKUP($B52,[1]FlowData!$A$3:$PL$215,AA$7,FALSE) -> 153 | AB52: =VLOOKUP($B52,[1]FlowData!$A$3:$PL$215,AB$7,FALSE) -> 83 | AC52: =VLOOKUP($B52,[1]FlowData!$A$3:$PL$215,AC$7,FALSE) -> 36 | AD52: =VLOOKUP($B52,[1]FlowData!$A$3:$PL$215,AD$7,FALSE) -> 101 | AE52: =VLOOKUP($B52,[1]FlowData!$A$3:$PL$215,AE$7,FALSE) -> 229 | AF52: =VLOOKUP($B52,[1]FlowData!$A$3:$PL$215,AF$7,FALSE) -> 158 | AG52: =VLOOKUP($B52,[1]FlowData!$A$3:$PL$215,AG$7,FALSE) -> 115 | AH52: =VLOOKUP($B52,[1]FlowData!$A$3:$PL$215,AH$7,FALSE) -> 174 | AI52: =VLOOKUP($B52,[1]FlowData!$A$3:$PL$215,AI$7,FALSE) -> 155 | AJ52: =VLOOKUP($B52,[1]FlowData!$A$3:$PL$215,AJ$7,FALSE) -> 102 | AK52: =VLOOKUP($B52,[1]FlowData!$A$3:$PL$215,AK$7,FALSE) -> 64 | AL52: =VLOOKUP($B52,[1]FlowData!$A$3:$PL$215,AL$7,FALSE) -> 113 | AM52: =VLOOKUP($B52,[1]FlowData!$A$3:$PL$215,AM$7,FALSE) -> 60 | AN52: =VLOOKUP($B52,[1]FlowData!$A$3:$PL$215,AN$7,FALSE) -> 43 | AO52: =VLOOKUP($B52,[1]FlowData!$A$3:$PL$215,AO$7,FALSE) -> 30 | AP52: =VLOOKUP($B52,[1]FlowData!$A$3:$PL$215,AP$7,FALSE) -> 48 | AQ52: =VLOOKUP($B52,[1]FlowData!$A$3:$PL$215,AQ$7,FALSE) -> 37 | AR52: =VLOOKUP($B52,[1]FlowData!$A$3:$PL$215,AR$7,FALSE) -> 27 | AS52: =VLOOKUP($B52,[1]FlowData!$A$3:$PL$215,AS$7,FALSE) -> 20 | AT52: =VLOOKUP($B52,[1]FlowData!$A$3:$PL$215,AT$7,FALSE) -> 30 | AU52: =VLOOKUP($B52,[1]FlowData!$A$3:$PL$215,AU$7,FALSE) -> 32 | AV52: =VLOOKUP($B52,[1]FlowData!$A$3:$PL$215,AV$7,FALSE) -> 24 | AW52: =VLOOKUP($B52,[1]FlowData!$A$3:$PL$215,AW$7,FALSE) -> 17 | AX52: =VLOOKUP($B52,[1]FlowData!$A$3:$PL$215,AX$7,FALSE) -> 25 | AY52: =VLOOKUP($B52,[1]FlowData!$A$3:$PL$215,AY$7,FALSE) -> 25 | AZ52: =VLOOKUP($B52,[1]FlowData!$A$3:$PL$215,AZ$7,FALSE) -> 18 | BA52: =VLOOKUP($B52,[1]FlowData!$A$3:$PL$215,BA$7,FALSE) -> 14 | BB52: =VLOOKUP($B52,[1]FlowData!$A$3:$PL$215,BB$7,FALSE) -> 20 | BC52: =VLOOKUP($B52,[1]FlowData!$A$3:$PL$215,BC$7,FALSE) -> 16 | BD52: =VLOOKUP($B52,[1]FlowData!$A$3:$PL$215,BD$7,FALSE) -> 13 | BE52: =VLOOKUP($B52,[1]FlowData!$A$3:$PL$215,BE$7,FALSE) -> 10 | BF52: =VLOOKUP($B52,[1]FlowData!$A$3:$PL$215,BF$7,FALSE) -> 13
A53: =VLOOKUP(B53,'[2]Gages and BCs'!$A$4:$BJ$973,62,FALSE) -> 739 | B53: 12378000 | C53: =VLOOKUP(B53,'[2]Gages and BCs'!$A$4:$BJ$973,60,FALSE) -> Mission Creek near St. Ignatius, Montana | D53: 1907–17 | E53: =VLOOKUP($B53,[1]FlowData!$A$3:$PL$215,E$7,FALSE) ->  | F53: =VLOOKUP($B53,[1]FlowData!$A$3:$PL$215,F$7,FALSE) -> 28.875 | G53: =VLOOKUP($B53,[1]FlowData!$A$3:$PL$215,G$7,FALSE) ->  | H53: =VLOOKUP($B53,[1]FlowData!$A$3:$PL$215,H$7,FALSE) ->  | I53: =VLOOKUP($B53,[1]FlowData!$A$3:$PL$215,I$7,FALSE) ->  | J53: =VLOOKUP($B53,[1]FlowData!$A$3:$PL$215,J$7,FALSE) ->  | K53: =VLOOKUP($B53,[1]FlowData!$A$3:$PL$215,K$7,FALSE) ->  | L53: =VLOOKUP($B53,[1]FlowData!$A$3:$PL$215,L$7,FALSE) ->  | M53: =VLOOKUP($B53,[1]FlowData!$A$3:$PL$215,M$7,FALSE) ->  | N53: =VLOOKUP($B53,[1]FlowData!$A$3:$PL$215,N$7,FALSE) ->  | O53: =VLOOKUP($B53,[1]FlowData!$A$3:$PL$215,O$7,FALSE) -> 17 | P53: =VLOOKUP($B53,[1]FlowData!$A$3:$PL$215,P$7,FALSE) -> 13 | Q53: =VLOOKUP($B53,[1]FlowData!$A$3:$PL$215,Q$7,FALSE) -> 11 | R53: =VLOOKUP($B53,[1]FlowData!$A$3:$PL$215,R$7,FALSE) -> 14 | S53: =VLOOKUP($B53,[1]FlowData!$A$3:$PL$215,S$7,FALSE) -> 16 | T53: =VLOOKUP($B53,[1]FlowData!$A$3:$PL$215,T$7,FALSE) -> 14 | U53: =VLOOKUP($B53,[1]FlowData!$A$3:$PL$215,U$7,FALSE) -> 11 | V53: =VLOOKUP($B53,[1]FlowData!$A$3:$PL$215,V$7,FALSE) -> 14 | W53: =VLOOKUP($B53,[1]FlowData!$A$3:$PL$215,W$7,FALSE) -> 37 | X53: =VLOOKUP($B53,[1]FlowData!$A$3:$PL$215,X$7,FALSE) -> 21 | Y53: =VLOOKUP($B53,[1]FlowData!$A$3:$PL$215,Y$7,FALSE) -> 14 | Z53: =VLOOKUP($B53,[1]FlowData!$A$3:$PL$215,Z$7,FALSE) -> 29 | AA53: =VLOOKUP($B53,[1]FlowData!$A$3:$PL$215,AA$7,FALSE) -> 133 | AB53: =VLOOKUP($B53,[1]FlowData!$A$3:$PL$215,AB$7,FALSE) -> 77 | AC53: =VLOOKUP($B53,[1]FlowData!$A$3:$PL$215,AC$7,FALSE) -> 36 | AD53: =VLOOKUP($B53,[1]FlowData!$A$3:$PL$215,AD$7,FALSE) -> 88 | AE53: =VLOOKUP($B53,[1]FlowData!$A$3:$PL$215,AE$7,FALSE) -> 311 | AF53: =VLOOKUP($B53,[1]FlowData!$A$3:$PL$215,AF$7,FALSE) -> 228 | AG53: =VLOOKUP($B53,[1]FlowData!$A$3:$PL$215,AG$7,FALSE) -> 152 | AH53: =VLOOKUP($B53,[1]FlowData!$A$3:$PL$215,AH$7,FALSE) -> 273 | AI53: =VLOOKUP($B53,[1]FlowData!$A$3:$PL$215,AI$7,FALSE) -> 284 | AJ53: =VLOOKUP($B53,[1]FlowData!$A$3:$PL$215,AJ$7,FALSE) -> 202 | AK53: =VLOOKUP($B53,[1]FlowData!$A$3:$PL$215,AK$7,FALSE) -> 118 | AL53: =VLOOKUP($B53,[1]FlowData!$A$3:$PL$215,AL$7,FALSE) -> 204 | AM53: =VLOOKUP($B53,[1]FlowData!$A$3:$PL$215,AM$7,FALSE) -> 110 | AN53: =VLOOKUP($B53,[1]FlowData!$A$3:$PL$215,AN$7,FALSE) -> 83 | AO53: =VLOOKUP($B53,[1]FlowData!$A$3:$PL$215,AO$7,FALSE) -> 57 | AP53: =VLOOKUP($B53,[1]FlowData!$A$3:$PL$215,AP$7,FALSE) -> 88 | AQ53: =VLOOKUP($B53,[1]FlowData!$A$3:$PL$215,AQ$7,FALSE) -> 73 | AR53: =VLOOKUP($B53,[1]FlowData!$A$3:$PL$215,AR$7,FALSE) -> 53 | AS53: =VLOOKUP($B53,[1]FlowData!$A$3:$PL$215,AS$7,FALSE) -> 39 | AT53: =VLOOKUP($B53,[1]FlowData!$A$3:$PL$215,AT$7,FALSE) -> 55 | AU53: =VLOOKUP($B53,[1]FlowData!$A$3:$PL$215,AU$7,FALSE) -> 51 | AV53: =VLOOKUP($B53,[1]FlowData!$A$3:$PL$215,AV$7,FALSE) -> 45 | AW53: =VLOOKUP($B53,[1]FlowData!$A$3:$PL$215,AW$7,FALSE) -> 34 | AX53: =VLOOKUP($B53,[1]FlowData!$A$3:$PL$215,AX$7,FALSE) -> 44 | AY53: =VLOOKUP($B53,[1]FlowData!$A$3:$PL$215,AY$7,FALSE) -> 44 | AZ53: =VLOOKUP($B53,[1]FlowData!$A$3:$PL$215,AZ$7,FALSE) -> 32 | BA53: =VLOOKUP($B53,[1]FlowData!$A$3:$PL$215,BA$7,FALSE) -> 26 | BB53: =VLOOKUP($B53,[1]FlowData!$A$3:$PL$215,BB$7,FALSE) -> 34 | BC53: =VLOOKUP($B53,[1]FlowData!$A$3:$PL$215,BC$7,FALSE) -> 31 | BD53: =VLOOKUP($B53,[1]FlowData!$A$3:$PL$215,BD$7,FALSE) -> 25 | BE53: =VLOOKUP($B53,[1]FlowData!$A$3:$PL$215,BE$7,FALSE) -> 18 | BF53: =VLOOKUP($B53,[1]FlowData!$A$3:$PL$215,BF$7,FALSE) -> 24
A54: =VLOOKUP(B54,'[2]Gages and BCs'!$A$4:$BJ$973,62,FALSE) -> 740 | B54: 12381400 | C54: =VLOOKUP(B54,'[2]Gages and BCs'!$A$4:$BJ$973,60,FALSE) -> South Fork Jocko River near Arlee, Montana | D54: 1983–2009 | E54: =VLOOKUP($B54,[1]FlowData!$A$3:$PL$215,E$7,FALSE) -> 3.756 | F54: =VLOOKUP($B54,[1]FlowData!$A$3:$PL$215,F$7,FALSE) -> 16.067 | G54: =VLOOKUP($B54,[1]FlowData!$A$3:$PL$215,G$7,FALSE) -> 83 | H54: =VLOOKUP($B54,[1]FlowData!$A$3:$PL$215,H$7,FALSE) -> 30 | I54: =VLOOKUP($B54,[1]FlowData!$A$3:$PL$215,I$7,FALSE) -> 13 | J54: =VLOOKUP($B54,[1]FlowData!$A$3:$PL$215,J$7,FALSE) -> 58 | K54: =VLOOKUP($B54,[1]FlowData!$A$3:$PL$215,K$7,FALSE) -> 17 | L54: =VLOOKUP($B54,[1]FlowData!$A$3:$PL$215,L$7,FALSE) -> 11 | M54: =VLOOKUP($B54,[1]FlowData!$A$3:$PL$215,M$7,FALSE) -> 7.6 | N54: =VLOOKUP($B54,[1]FlowData!$A$3:$PL$215,N$7,FALSE) -> 13 | O54: =VLOOKUP($B54,[1]FlowData!$A$3:$PL$215,O$7,FALSE) -> 15 | P54: =VLOOKUP($B54,[1]FlowData!$A$3:$PL$215,P$7,FALSE) -> 11 | Q54: =VLOOKUP($B54,[1]FlowData!$A$3:$PL$215,Q$7,FALSE) -> 7.4 | R54: =VLOOKUP($B54,[1]FlowData!$A$3:$PL$215,R$7,FALSE) -> 11 | S54: =VLOOKUP($B54,[1]FlowData!$A$3:$PL$215,S$7,FALSE) -> 21 | T54: =VLOOKUP($B54,[1]FlowData!$A$3:$PL$215,T$7,FALSE) -> 14 | U54: =VLOOKUP($B54,[1]FlowData!$A$3:$PL$215,U$7,FALSE) -> 9 | V54: =VLOOKUP($B54,[1]FlowData!$A$3:$PL$215,V$7,FALSE) -> 17 | W54: =VLOOKUP($B54,[1]FlowData!$A$3:$PL$215,W$7,FALSE) -> 90 | X54: =VLOOKUP($B54,[1]FlowData!$A$3:$PL$215,X$7,FALSE) -> 40 | Y54: =VLOOKUP($B54,[1]FlowData!$A$3:$PL$215,Y$7,FALSE) -> 18 | Z54: =VLOOKUP($B54,[1]FlowData!$A$3:$PL$215,Z$7,FALSE) -> 56 | AA54: =VLOOKUP($B54,[1]FlowData!$A$3:$PL$215,AA$7,FALSE) -> 281 | AB54: =VLOOKUP($B54,[1]FlowData!$A$3:$PL$215,AB$7,FALSE) -> 171 | AC54: =VLOOKUP($B54,[1]FlowData!$A$3:$PL$215,AC$7,FALSE) -> 105 | AD54: =VLOOKUP($B54,[1]FlowData!$A$3:$PL$215,AD$7,FALSE) -> 201 | AE54: =VLOOKUP($B54,[1]FlowData!$A$3:$PL$215,AE$7,FALSE) -> 284 | AF54: =VLOOKUP($B54,[1]FlowData!$A$3:$PL$215,AF$7,FALSE) -> 180 | AG54: =VLOOKUP($B54,[1]FlowData!$A$3:$PL$215,AG$7,FALSE) -> 113 | AH54: =VLOOKUP($B54,[1]FlowData!$A$3:$PL$215,AH$7,FALSE) -> 201 | AI54: =VLOOKUP($B54,[1]FlowData!$A$3:$PL$215,AI$7,FALSE) -> 99 | AJ54: =VLOOKUP($B54,[1]FlowData!$A$3:$PL$215,AJ$7,FALSE) -> 71 | AK54: =VLOOKUP($B54,[1]FlowData!$A$3:$PL$215,AK$7,FALSE) -> 49 | AL54: =VLOOKUP($B54,[1]FlowData!$A$3:$PL$215,AL$7,FALSE) -> 78 | AM54: =VLOOKUP($B54,[1]FlowData!$A$3:$PL$215,AM$7,FALSE) -> 47 | AN54: =VLOOKUP($B54,[1]FlowData!$A$3:$PL$215,AN$7,FALSE) -> 38 | AO54: =VLOOKUP($B54,[1]FlowData!$A$3:$PL$215,AO$7,FALSE) -> 28 | AP54: =VLOOKUP($B54,[1]FlowData!$A$3:$PL$215,AP$7,FALSE) -> 38 | AQ54: =VLOOKUP($B54,[1]FlowData!$A$3:$PL$215,AQ$7,FALSE) -> 32 | AR54: =VLOOKUP($B54,[1]FlowData!$A$3:$PL$215,AR$7,FALSE) -> 26 | AS54: =VLOOKUP($B54,[1]FlowData!$A$3:$PL$215,AS$7,FALSE) -> 20 | AT54: =VLOOKUP($B54,[1]FlowData!$A$3:$PL$215,AT$7,FALSE) -> 27 | AU54: =VLOOKUP($B54,[1]FlowData!$A$3:$PL$215,AU$7,FALSE) -> 25 | AV54: =VLOOKUP($B54,[1]FlowData!$A$3:$PL$215,AV$7,FALSE) -> 20 | AW54: =VLOOKUP($B54,[1]FlowData!$A$3:$PL$215,AW$7,FALSE) -> 17 | AX54: =VLOOKUP($B54,[1]FlowData!$A$3:$PL$215,AX$7,FALSE) -> 21 | AY54: =VLOOKUP($B54,[1]FlowData!$A$3:$PL$215,AY$7,FALSE) -> 22 | AZ54: =VLOOKUP($B54,[1]FlowData!$A$3:$PL$215,AZ$7,FALSE) -> 17 | BA54: =VLOOKUP($B54,[1]FlowData!$A$3:$PL$215,BA$7,FALSE) -> 13 | BB54: =VLOOKUP($B54,[1]FlowData!$A$3:$PL$215,BB$7,FALSE) -> 19 | BC54: =VLOOKUP($B54,[1]FlowData!$A$3:$PL$215,BC$7,FALSE) -> 19 | BD54: =VLOOKUP($B54,[1]FlowData!$A$3:$PL$215,BD$7,FALSE) -> 13 | BE54: =VLOOKUP($B54,[1]FlowData!$A$3:$PL$215,BE$7,FALSE) -> 8.9 | BF54: =VLOOKUP($B54,[1]FlowData!$A$3:$PL$215,BF$7,FALSE) -> 15
A55: =VLOOKUP(B55,'[2]Gages and BCs'!$A$4:$BJ$973,62,FALSE) -> 741 | B55: 12383500 | C55: =VLOOKUP(B55,'[2]Gages and BCs'!$A$4:$BJ$973,60,FALSE) -> Big Knife Creek near Arlee , Montana | D55: 1911, 1913, 1915, 1983–2009 | E55: =VLOOKUP($B55,[1]FlowData!$A$3:$PL$215,E$7,FALSE) -> 2.924 | F55: =VLOOKUP($B55,[1]FlowData!$A$3:$PL$215,F$7,FALSE) -> 6.66 | G55: =VLOOKUP($B55,[1]FlowData!$A$3:$PL$215,G$7,FALSE) -> 14 | H55: =VLOOKUP($B55,[1]FlowData!$A$3:$PL$215,H$7,FALSE) -> 7.6 | I55: =VLOOKUP($B55,[1]FlowData!$A$3:$PL$215,I$7,FALSE) -> 4.9 | J55: =VLOOKUP($B55,[1]FlowData!$A$3:$PL$215,J$7,FALSE) -> 10 | K55: =VLOOKUP($B55,[1]FlowData!$A$3:$PL$215,K$7,FALSE) -> 5.9 | L55: =VLOOKUP($B55,[1]FlowData!$A$3:$PL$215,L$7,FALSE) -> 5 | M55: =VLOOKUP($B55,[1]FlowData!$A$3:$PL$215,M$7,FALSE) -> 4.2 | N55: =VLOOKUP($B55,[1]FlowData!$A$3:$PL$215,N$7,FALSE) -> 5 | O55: =VLOOKUP($B55,[1]FlowData!$A$3:$PL$215,O$7,FALSE) -> 5.1 | P55: =VLOOKUP($B55,[1]FlowData!$A$3:$PL$215,P$7,FALSE) -> 4.4 | Q55: =VLOOKUP($B55,[1]FlowData!$A$3:$PL$215,Q$7,FALSE) -> 3.9 | R55: =VLOOKUP($B55,[1]FlowData!$A$3:$PL$215,R$7,FALSE) -> 4.5 | S55: =VLOOKUP($B55,[1]FlowData!$A$3:$PL$215,S$7,FALSE) -> 5.2 | T55: =VLOOKUP($B55,[1]FlowData!$A$3:$PL$215,T$7,FALSE) -> 4.3 | U55: =VLOOKUP($B55,[1]FlowData!$A$3:$PL$215,U$7,FALSE) -> 3.8 | V55: =VLOOKUP($B55,[1]FlowData!$A$3:$PL$215,V$7,FALSE) -> 4.5 | W55: =VLOOKUP($B55,[1]FlowData!$A$3:$PL$215,W$7,FALSE) -> 8 | X55: =VLOOKUP($B55,[1]FlowData!$A$3:$PL$215,X$7,FALSE) -> 5.3 | Y55: =VLOOKUP($B55,[1]FlowData!$A$3:$PL$215,Y$7,FALSE) -> 4.2 | Z55: =VLOOKUP($B55,[1]FlowData!$A$3:$PL$215,Z$7,FALSE) -> 6.1 | AA55: =VLOOKUP($B55,[1]FlowData!$A$3:$PL$215,AA$7,FALSE) -> 23 | AB55: =VLOOKUP($B55,[1]FlowData!$A$3:$PL$215,AB$7,FALSE) -> 13 | AC55: =VLOOKUP($B55,[1]FlowData!$A$3:$PL$215,AC$7,FALSE) -> 8 | AD55: =VLOOKUP($B55,[1]FlowData!$A$3:$PL$215,AD$7,FALSE) -> 16 | AE55: =VLOOKUP($B55,[1]FlowData!$A$3:$PL$215,AE$7,FALSE) -> 37 | AF55: =VLOOKUP($B55,[1]FlowData!$A$3:$PL$215,AF$7,FALSE) -> 27 | AG55: =VLOOKUP($B55,[1]FlowData!$A$3:$PL$215,AG$7,FALSE) -> 18 | AH55: =VLOOKUP($B55,[1]FlowData!$A$3:$PL$215,AH$7,FALSE) -> 28 | AI55: =VLOOKUP($B55,[1]FlowData!$A$3:$PL$215,AI$7,FALSE) -> 25 | AJ55: =VLOOKUP($B55,[1]FlowData!$A$3:$PL$215,AJ$7,FALSE) -> 18 | AK55: =VLOOKUP($B55,[1]FlowData!$A$3:$PL$215,AK$7,FALSE) -> 14 | AL55: =VLOOKUP($B55,[1]FlowData!$A$3:$PL$215,AL$7,FALSE) -> 20 | AM55: =VLOOKUP($B55,[1]FlowData!$A$3:$PL$215,AM$7,FALSE) -> 15 | AN55: =VLOOKUP($B55,[1]FlowData!$A$3:$PL$215,AN$7,FALSE) -> 12 | AO55: =VLOOKUP($B55,[1]FlowData!$A$3:$PL$215,AO$7,FALSE) -> 11 | AP55: =VLOOKUP($B55,[1]FlowData!$A$3:$PL$215,AP$7,FALSE) -> 13 | AQ55: =VLOOKUP($B55,[1]FlowData!$A$3:$PL$215,AQ$7,FALSE) -> 12 | AR55: =VLOOKUP($B55,[1]FlowData!$A$3:$PL$215,AR$7,FALSE) -> 10 | AS55: =VLOOKUP($B55,[1]FlowData!$A$3:$PL$215,AS$7,FALSE) -> 8.4 | AT55: =VLOOKUP($B55,[1]FlowData!$A$3:$PL$215,AT$7,FALSE) -> 10 | AU55: =VLOOKUP($B55,[1]FlowData!$A$3:$PL$215,AU$7,FALSE) -> 9.4 | AV55: =VLOOKUP($B55,[1]FlowData!$A$3:$PL$215,AV$7,FALSE) -> 8.2 | AW55: =VLOOKUP($B55,[1]FlowData!$A$3:$PL$215,AW$7,FALSE) -> 6.9 | AX55: =VLOOKUP($B55,[1]FlowData!$A$3:$PL$215,AX$7,FALSE) -> 8.1 | AY55: =VLOOKUP($B55,[1]FlowData!$A$3:$PL$215,AY$7,FALSE) -> 7.8 | AZ55: =VLOOKUP($B55,[1]FlowData!$A$3:$PL$215,AZ$7,FALSE) -> 6.9 | BA55: =VLOOKUP($B55,[1]FlowData!$A$3:$PL$215,BA$7,FALSE) -> 5.7 | BB55: =VLOOKUP($B55,[1]FlowData!$A$3:$PL$215,BB$7,FALSE) -> 6.8 | BC55: =VLOOKUP($B55,[1]FlowData!$A$3:$PL$215,BC$7,FALSE) -> 6.8 | BD55: =VLOOKUP($B55,[1]FlowData!$A$3:$PL$215,BD$7,FALSE) -> 5.7 | BE55: =VLOOKUP($B55,[1]FlowData!$A$3:$PL$215,BE$7,FALSE) -> 4.9 | BF55: =VLOOKUP($B55,[1]FlowData!$A$3:$PL$215,BF$7,FALSE) -> 5.8
A56: =VLOOKUP(B56,'[2]Gages and BCs'!$A$4:$BJ$973,62,FALSE) -> 742 | B56: 12387450 | C56: =VLOOKUP(B56,'[2]Gages and BCs'!$A$4:$BJ$973,60,FALSE) -> Valley Creek near Arlee, Montana | D56: 1983–2008 | E56: =VLOOKUP($B56,[1]FlowData!$A$3:$PL$215,E$7,FALSE) ->  | F56: =VLOOKUP($B56,[1]FlowData!$A$3:$PL$215,F$7,FALSE) -> 6.643 | G56: =VLOOKUP($B56,[1]FlowData!$A$3:$PL$215,G$7,FALSE) ->  | H56: =VLOOKUP($B56,[1]FlowData!$A$3:$PL$215,H$7,FALSE) ->  | I56: =VLOOKUP($B56,[1]FlowData!$A$3:$PL$215,I$7,FALSE) ->  | J56: =VLOOKUP($B56,[1]FlowData!$A$3:$PL$215,J$7,FALSE) ->  | K56: =VLOOKUP($B56,[1]FlowData!$A$3:$PL$215,K$7,FALSE) ->  | L56: =VLOOKUP($B56,[1]FlowData!$A$3:$PL$215,L$7,FALSE) ->  | M56: =VLOOKUP($B56,[1]FlowData!$A$3:$PL$215,M$7,FALSE) ->  | N56: =VLOOKUP($B56,[1]FlowData!$A$3:$PL$215,N$7,FALSE) ->  | O56: =VLOOKUP($B56,[1]FlowData!$A$3:$PL$215,O$7,FALSE) ->  | P56: =VLOOKUP($B56,[1]FlowData!$A$3:$PL$215,P$7,FALSE) ->  | Q56: =VLOOKUP($B56,[1]FlowData!$A$3:$PL$215,Q$7,FALSE) ->  | R56: =VLOOKUP($B56,[1]FlowData!$A$3:$PL$215,R$7,FALSE) ->  | S56: =VLOOKUP($B56,[1]FlowData!$A$3:$PL$215,S$7,FALSE) ->  | T56: =VLOOKUP($B56,[1]FlowData!$A$3:$PL$215,T$7,FALSE) ->  | U56: =VLOOKUP($B56,[1]FlowData!$A$3:$PL$215,U$7,FALSE) ->  | V56: =VLOOKUP($B56,[1]FlowData!$A$3:$PL$215,V$7,FALSE) ->  | W56: =VLOOKUP($B56,[1]FlowData!$A$3:$PL$215,W$7,FALSE) -> 19 | X56: =VLOOKUP($B56,[1]FlowData!$A$3:$PL$215,X$7,FALSE) -> 11 | Y56: =VLOOKUP($B56,[1]FlowData!$A$3:$PL$215,Y$7,FALSE) -> 7.5 | Z56: =VLOOKUP($B56,[1]FlowData!$A$3:$PL$215,Z$7,FALSE) -> 14 | AA56: =VLOOKUP($B56,[1]FlowData!$A$3:$PL$215,AA$7,FALSE) -> 43 | AB56: =VLOOKUP($B56,[1]FlowData!$A$3:$PL$215,AB$7,FALSE) -> 27 | AC56: =VLOOKUP($B56,[1]FlowData!$A$3:$PL$215,AC$7,FALSE) -> 20 | AD56: =VLOOKUP($B56,[1]FlowData!$A$3:$PL$215,AD$7,FALSE) -> 32 | AE56: =VLOOKUP($B56,[1]FlowData!$A$3:$PL$215,AE$7,FALSE) -> 38 | AF56: =VLOOKUP($B56,[1]FlowData!$A$3:$PL$215,AF$7,FALSE) -> 24 | AG56: =VLOOKUP($B56,[1]FlowData!$A$3:$PL$215,AG$7,FALSE) -> 15 | AH56: =VLOOKUP($B56,[1]FlowData!$A$3:$PL$215,AH$7,FALSE) -> 28 | AI56: =VLOOKUP($B56,[1]FlowData!$A$3:$PL$215,AI$7,FALSE) -> 17 | AJ56: =VLOOKUP($B56,[1]FlowData!$A$3:$PL$215,AJ$7,FALSE) -> 13 | AK56: =VLOOKUP($B56,[1]FlowData!$A$3:$PL$215,AK$7,FALSE) -> 9.6 | AL56: =VLOOKUP($B56,[1]FlowData!$A$3:$PL$215,AL$7,FALSE) -> 14 | AM56: =VLOOKUP($B56,[1]FlowData!$A$3:$PL$215,AM$7,FALSE) -> 12 | AN56: =VLOOKUP($B56,[1]FlowData!$A$3:$PL$215,AN$7,FALSE) -> 9.9 | AO56: =VLOOKUP($B56,[1]FlowData!$A$3:$PL$215,AO$7,FALSE) -> 7.6 | AP56: =VLOOKUP($B56,[1]FlowData!$A$3:$PL$215,AP$7,FALSE) -> 10 | AQ56: =VLOOKUP($B56,[1]FlowData!$A$3:$PL$215,AQ$7,FALSE) -> 10 | AR56: =VLOOKUP($B56,[1]FlowData!$A$3:$PL$215,AR$7,FALSE) -> 9 | AS56: =VLOOKUP($B56,[1]FlowData!$A$3:$PL$215,AS$7,FALSE) -> 7 | AT56: =VLOOKUP($B56,[1]FlowData!$A$3:$PL$215,AT$7,FALSE) -> 8.9 | AU56: =VLOOKUP($B56,[1]FlowData!$A$3:$PL$215,AU$7,FALSE) -> 9.5 | AV56: =VLOOKUP($B56,[1]FlowData!$A$3:$PL$215,AV$7,FALSE) -> 8.3 | AW56: =VLOOKUP($B56,[1]FlowData!$A$3:$PL$215,AW$7,FALSE) -> 6.7 | AX56: =VLOOKUP($B56,[1]FlowData!$A$3:$PL$215,AX$7,FALSE) -> 8.3 | AY56: =VLOOKUP($B56,[1]FlowData!$A$3:$PL$215,AY$7,FALSE) ->  | AZ56: =VLOOKUP($B56,[1]FlowData!$A$3:$PL$215,AZ$7,FALSE) ->  | BA56: =VLOOKUP($B56,[1]FlowData!$A$3:$PL$215,BA$7,FALSE) ->  | BB56: =VLOOKUP($B56,[1]FlowData!$A$3:$PL$215,BB$7,FALSE) ->  | BC56: =VLOOKUP($B56,[1]FlowData!$A$3:$PL$215,BC$7,FALSE) ->  | BD56: =VLOOKUP($B56,[1]FlowData!$A$3:$PL$215,BD$7,FALSE) ->  | BE56: =VLOOKUP($B56,[1]FlowData!$A$3:$PL$215,BE$7,FALSE) ->  | BF56: =VLOOKUP($B56,[1]FlowData!$A$3:$PL$215,BF$7,FALSE) -> 
A57: =VLOOKUP(B57,'[2]Gages and BCs'!$A$4:$BJ$973,62,FALSE) -> 743 | B57: 12388200 | C57: =VLOOKUP(B57,'[2]Gages and BCs'!$A$4:$BJ$973,60,FALSE) -> Jocko River at Dixon, Montana | D57: 1990–2009 | E57: =VLOOKUP($B57,[1]FlowData!$A$3:$PL$215,E$7,FALSE) -> 87.664 | F57: =VLOOKUP($B57,[1]FlowData!$A$3:$PL$215,F$7,FALSE) -> 138.895 | G57: =VLOOKUP($B57,[1]FlowData!$A$3:$PL$215,G$7,FALSE) -> 251 | H57: =VLOOKUP($B57,[1]FlowData!$A$3:$PL$215,H$7,FALSE) -> 182 | I57: =VLOOKUP($B57,[1]FlowData!$A$3:$PL$215,I$7,FALSE) -> 112 | J57: =VLOOKUP($B57,[1]FlowData!$A$3:$PL$215,J$7,FALSE) -> 232 | K57: =VLOOKUP($B57,[1]FlowData!$A$3:$PL$215,K$7,FALSE) -> 158 | L57: =VLOOKUP($B57,[1]FlowData!$A$3:$PL$215,L$7,FALSE) -> 129 | M57: =VLOOKUP($B57,[1]FlowData!$A$3:$PL$215,M$7,FALSE) -> 115 | N57: =VLOOKUP($B57,[1]FlowData!$A$3:$PL$215,N$7,FALSE) -> 138 | O57: =VLOOKUP($B57,[1]FlowData!$A$3:$PL$215,O$7,FALSE) -> 153 | P57: =VLOOKUP($B57,[1]FlowData!$A$3:$PL$215,P$7,FALSE) -> 124 | Q57: =VLOOKUP($B57,[1]FlowData!$A$3:$PL$215,Q$7,FALSE) -> 111 | R57: =VLOOKUP($B57,[1]FlowData!$A$3:$PL$215,R$7,FALSE) -> 134 | S57: =VLOOKUP($B57,[1]FlowData!$A$3:$PL$215,S$7,FALSE) -> 171 | T57: =VLOOKUP($B57,[1]FlowData!$A$3:$PL$215,T$7,FALSE) -> 136 | U57: =VLOOKUP($B57,[1]FlowData!$A$3:$PL$215,U$7,FALSE) -> 119 | V57: =VLOOKUP($B57,[1]FlowData!$A$3:$PL$215,V$7,FALSE) -> 150 | W57: =VLOOKUP($B57,[1]FlowData!$A$3:$PL$215,W$7,FALSE) -> 298 | X57: =VLOOKUP($B57,[1]FlowData!$A$3:$PL$215,X$7,FALSE) -> 184 | Y57: =VLOOKUP($B57,[1]FlowData!$A$3:$PL$215,Y$7,FALSE) -> 142 | Z57: =VLOOKUP($B57,[1]FlowData!$A$3:$PL$215,Z$7,FALSE) -> 225 | AA57: =VLOOKUP($B57,[1]FlowData!$A$3:$PL$215,AA$7,FALSE) -> 632 | AB57: =VLOOKUP($B57,[1]FlowData!$A$3:$PL$215,AB$7,FALSE) -> 339 | AC57: =VLOOKUP($B57,[1]FlowData!$A$3:$PL$215,AC$7,FALSE) -> 216 | AD57: =VLOOKUP($B57,[1]FlowData!$A$3:$PL$215,AD$7,FALSE) -> 438 | AE57: =VLOOKUP($B57,[1]FlowData!$A$3:$PL$215,AE$7,FALSE) -> 868 | AF57: =VLOOKUP($B57,[1]FlowData!$A$3:$PL$215,AF$7,FALSE) -> 489 | AG57: =VLOOKUP($B57,[1]FlowData!$A$3:$PL$215,AG$7,FALSE) -> 264 | AH57: =VLOOKUP($B57,[1]FlowData!$A$3:$PL$215,AH$7,FALSE) -> 581 | AI57: =VLOOKUP($B57,[1]FlowData!$A$3:$PL$215,AI$7,FALSE) -> 324 | AJ57: =VLOOKUP($B57,[1]FlowData!$A$3:$PL$215,AJ$7,FALSE) -> 205 | AK57: =VLOOKUP($B57,[1]FlowData!$A$3:$PL$215,AK$7,FALSE) -> 159 | AL57: =VLOOKUP($B57,[1]FlowData!$A$3:$PL$215,AL$7,FALSE) -> 259 | AM57: =VLOOKUP($B57,[1]FlowData!$A$3:$PL$215,AM$7,FALSE) -> 199 | AN57: =VLOOKUP($B57,[1]FlowData!$A$3:$PL$215,AN$7,FALSE) -> 172 | AO57: =VLOOKUP($B57,[1]FlowData!$A$3:$PL$215,AO$7,FALSE) -> 143 | AP57: =VLOOKUP($B57,[1]FlowData!$A$3:$PL$215,AP$7,FALSE) -> 174 | AQ57: =VLOOKUP($B57,[1]FlowData!$A$3:$PL$215,AQ$7,FALSE) -> 205 | AR57: =VLOOKUP($B57,[1]FlowData!$A$3:$PL$215,AR$7,FALSE) -> 185 | AS57: =VLOOKUP($B57,[1]FlowData!$A$3:$PL$215,AS$7,FALSE) -> 153 | AT57: =VLOOKUP($B57,[1]FlowData!$A$3:$PL$215,AT$7,FALSE) -> 183 | AU57: =VLOOKUP($B57,[1]FlowData!$A$3:$PL$215,AU$7,FALSE) -> 208 | AV57: =VLOOKUP($B57,[1]FlowData!$A$3:$PL$215,AV$7,FALSE) -> 183 | AW57: =VLOOKUP($B57,[1]FlowData!$A$3:$PL$215,AW$7,FALSE) -> 155 | AX57: =VLOOKUP($B57,[1]FlowData!$A$3:$PL$215,AX$7,FALSE) -> 184 | AY57: =VLOOKUP($B57,[1]FlowData!$A$3:$PL$215,AY$7,FALSE) -> 204 | AZ57: =VLOOKUP($B57,[1]FlowData!$A$3:$PL$215,AZ$7,FALSE) -> 174 | BA57: =VLOOKUP($B57,[1]FlowData!$A$3:$PL$215,BA$7,FALSE) -> 147 | BB57: =VLOOKUP($B57,[1]FlowData!$A$3:$PL$215,BB$7,FALSE) -> 181 | BC57: =VLOOKUP($B57,[1]FlowData!$A$3:$PL$215,BC$7,FALSE) -> 181 | BD57: =VLOOKUP($B57,[1]FlowData!$A$3:$PL$215,BD$7,FALSE) -> 149 | BE57: =VLOOKUP($B57,[1]FlowData!$A$3:$PL$215,BE$7,FALSE) -> 129 | BF57: =VLOOKUP($B57,[1]FlowData!$A$3:$PL$215,BF$7,FALSE) -> 158
A58: =VLOOKUP(B58,'[2]Gages and BCs'!$A$4:$BJ$973,62,FALSE) -> 744 | B58: 12388400 | C58: =VLOOKUP(B58,'[2]Gages and BCs'!$A$4:$BJ$973,60,FALSE) -> Revais Creek below West Fork, near Dixon, Montana | D58: 1983–2009 | E58: =VLOOKUP($B58,[1]FlowData!$A$3:$PL$215,E$7,FALSE) -> 3.15 | F58: =VLOOKUP($B58,[1]FlowData!$A$3:$PL$215,F$7,FALSE) -> 4.292 | G58: =VLOOKUP($B58,[1]FlowData!$A$3:$PL$215,G$7,FALSE) -> 23 | H58: =VLOOKUP($B58,[1]FlowData!$A$3:$PL$215,H$7,FALSE) -> 10 | I58: =VLOOKUP($B58,[1]FlowData!$A$3:$PL$215,I$7,FALSE) -> 5.4 | J58: =VLOOKUP($B58,[1]FlowData!$A$3:$PL$215,J$7,FALSE) -> 18 | K58: =VLOOKUP($B58,[1]FlowData!$A$3:$PL$215,K$7,FALSE) -> 6.8 | L58: =VLOOKUP($B58,[1]FlowData!$A$3:$PL$215,L$7,FALSE) -> 4.8 | M58: =VLOOKUP($B58,[1]FlowData!$A$3:$PL$215,M$7,FALSE) -> 3.8 | N58: =VLOOKUP($B58,[1]FlowData!$A$3:$PL$215,N$7,FALSE) -> 5.5 | O58: =VLOOKUP($B58,[1]FlowData!$A$3:$PL$215,O$7,FALSE) -> 6.3 | P58: =VLOOKUP($B58,[1]FlowData!$A$3:$PL$215,P$7,FALSE) -> 4.7 | Q58: =VLOOKUP($B58,[1]FlowData!$A$3:$PL$215,Q$7,FALSE) -> 3.8 | R58: =VLOOKUP($B58,[1]FlowData!$A$3:$PL$215,R$7,FALSE) -> 5.6 | S58: =VLOOKUP($B58,[1]FlowData!$A$3:$PL$215,S$7,FALSE) -> 9.8 | T58: =VLOOKUP($B58,[1]FlowData!$A$3:$PL$215,T$7,FALSE) -> 5.8 | U58: =VLOOKUP($B58,[1]FlowData!$A$3:$PL$215,U$7,FALSE) -> 4.3 | V58: =VLOOKUP($B58,[1]FlowData!$A$3:$PL$215,V$7,FALSE) -> 8.1 | W58: =VLOOKUP($B58,[1]FlowData!$A$3:$PL$215,W$7,FALSE) -> 34 | X58: =VLOOKUP($B58,[1]FlowData!$A$3:$PL$215,X$7,FALSE) -> 16 | Y58: =VLOOKUP($B58,[1]FlowData!$A$3:$PL$215,Y$7,FALSE) -> 7.8 | Z58: =VLOOKUP($B58,[1]FlowData!$A$3:$PL$215,Z$7,FALSE) -> 22 | AA58: =VLOOKUP($B58,[1]FlowData!$A$3:$PL$215,AA$7,FALSE) -> 95 | AB58: =VLOOKUP($B58,[1]FlowData!$A$3:$PL$215,AB$7,FALSE) -> 54 | AC58: =VLOOKUP($B58,[1]FlowData!$A$3:$PL$215,AC$7,FALSE) -> 34 | AD58: =VLOOKUP($B58,[1]FlowData!$A$3:$PL$215,AD$7,FALSE) -> 69 | AE58: =VLOOKUP($B58,[1]FlowData!$A$3:$PL$215,AE$7,FALSE) -> 81 | AF58: =VLOOKUP($B58,[1]FlowData!$A$3:$PL$215,AF$7,FALSE) -> 47 | AG58: =VLOOKUP($B58,[1]FlowData!$A$3:$PL$215,AG$7,FALSE) -> 26 | AH58: =VLOOKUP($B58,[1]FlowData!$A$3:$PL$215,AH$7,FALSE) -> 55 | AI58: =VLOOKUP($B58,[1]FlowData!$A$3:$PL$215,AI$7,FALSE) -> 20 | AJ58: =VLOOKUP($B58,[1]FlowData!$A$3:$PL$215,AJ$7,FALSE) -> 14 | AK58: =VLOOKUP($B58,[1]FlowData!$A$3:$PL$215,AK$7,FALSE) -> 10 | AL58: =VLOOKUP($B58,[1]FlowData!$A$3:$PL$215,AL$7,FALSE) -> 16 | AM58: =VLOOKUP($B58,[1]FlowData!$A$3:$PL$215,AM$7,FALSE) -> 9.4 | AN58: =VLOOKUP($B58,[1]FlowData!$A$3:$PL$215,AN$7,FALSE) -> 7.7 | AO58: =VLOOKUP($B58,[1]FlowData!$A$3:$PL$215,AO$7,FALSE) -> 6.3 | AP58: =VLOOKUP($B58,[1]FlowData!$A$3:$PL$215,AP$7,FALSE) -> 7.9 | AQ58: =VLOOKUP($B58,[1]FlowData!$A$3:$PL$215,AQ$7,FALSE) -> 7.5 | AR58: =VLOOKUP($B58,[1]FlowData!$A$3:$PL$215,AR$7,FALSE) -> 6 | AS58: =VLOOKUP($B58,[1]FlowData!$A$3:$PL$215,AS$7,FALSE) -> 4.8 | AT58: =VLOOKUP($B58,[1]FlowData!$A$3:$PL$215,AT$7,FALSE) -> 6.2 | AU58: =VLOOKUP($B58,[1]FlowData!$A$3:$PL$215,AU$7,FALSE) -> 7.5 | AV58: =VLOOKUP($B58,[1]FlowData!$A$3:$PL$215,AV$7,FALSE) -> 5.7 | AW58: =VLOOKUP($B58,[1]FlowData!$A$3:$PL$215,AW$7,FALSE) -> 4.6 | AX58: =VLOOKUP($B58,[1]FlowData!$A$3:$PL$215,AX$7,FALSE) -> 6.2 | AY58: =VLOOKUP($B58,[1]FlowData!$A$3:$PL$215,AY$7,FALSE) -> 8.1 | AZ58: =VLOOKUP($B58,[1]FlowData!$A$3:$PL$215,AZ$7,FALSE) -> 5.9 | BA58: =VLOOKUP($B58,[1]FlowData!$A$3:$PL$215,BA$7,FALSE) -> 4.7 | BB58: =VLOOKUP($B58,[1]FlowData!$A$3:$PL$215,BB$7,FALSE) -> 6.7 | BC58: =VLOOKUP($B58,[1]FlowData!$A$3:$PL$215,BC$7,FALSE) -> 7.2 | BD58: =VLOOKUP($B58,[1]FlowData!$A$3:$PL$215,BD$7,FALSE) -> 5.3 | BE58: =VLOOKUP($B58,[1]FlowData!$A$3:$PL$215,BE$7,FALSE) -> 3.9 | BF58: =VLOOKUP($B58,[1]FlowData!$A$3:$PL$215,BF$7,FALSE) -> 6.5
A59: =VLOOKUP(B59,'[2]Gages and BCs'!$A$4:$BJ$973,62,FALSE) -> 748 | B59: 12389500 | C59: =VLOOKUP(B59,'[2]Gages and BCs'!$A$4:$BJ$973,60,FALSE) -> Thompson River near Thompson Falls, Montana | D59: 1911, 1956–2009 | E59: =VLOOKUP($B59,[1]FlowData!$A$3:$PL$215,E$7,FALSE) -> 90.599 | F59: =VLOOKUP($B59,[1]FlowData!$A$3:$PL$215,F$7,FALSE) -> 135.082 | G59: =VLOOKUP($B59,[1]FlowData!$A$3:$PL$215,G$7,FALSE) -> 604 | H59: =VLOOKUP($B59,[1]FlowData!$A$3:$PL$215,H$7,FALSE) -> 231 | I59: =VLOOKUP($B59,[1]FlowData!$A$3:$PL$215,I$7,FALSE) -> 122 | J59: =VLOOKUP($B59,[1]FlowData!$A$3:$PL$215,J$7,FALSE) -> 433 | K59: =VLOOKUP($B59,[1]FlowData!$A$3:$PL$215,K$7,FALSE) -> 268 | L59: =VLOOKUP($B59,[1]FlowData!$A$3:$PL$215,L$7,FALSE) -> 164 | M59: =VLOOKUP($B59,[1]FlowData!$A$3:$PL$215,M$7,FALSE) -> 102 | N59: =VLOOKUP($B59,[1]FlowData!$A$3:$PL$215,N$7,FALSE) -> 202 | O59: =VLOOKUP($B59,[1]FlowData!$A$3:$PL$215,O$7,FALSE) -> 304 | P59: =VLOOKUP($B59,[1]FlowData!$A$3:$PL$215,P$7,FALSE) -> 180 | Q59: =VLOOKUP($B59,[1]FlowData!$A$3:$PL$215,Q$7,FALSE) -> 108 | R59: =VLOOKUP($B59,[1]FlowData!$A$3:$PL$215,R$7,FALSE) -> 242 | S59: =VLOOKUP($B59,[1]FlowData!$A$3:$PL$215,S$7,FALSE) -> 428 | T59: =VLOOKUP($B59,[1]FlowData!$A$3:$PL$215,T$7,FALSE) -> 269 | U59: =VLOOKUP($B59,[1]FlowData!$A$3:$PL$215,U$7,FALSE) -> 180 | V59: =VLOOKUP($B59,[1]FlowData!$A$3:$PL$215,V$7,FALSE) -> 345 | W59: =VLOOKUP($B59,[1]FlowData!$A$3:$PL$215,W$7,FALSE) -> 1120 | X59: =VLOOKUP($B59,[1]FlowData!$A$3:$PL$215,X$7,FALSE) -> 622 | Y59: =VLOOKUP($B59,[1]FlowData!$A$3:$PL$215,Y$7,FALSE) -> 358 | Z59: =VLOOKUP($B59,[1]FlowData!$A$3:$PL$215,Z$7,FALSE) -> 774 | AA59: =VLOOKUP($B59,[1]FlowData!$A$3:$PL$215,AA$7,FALSE) -> 1790 | AB59: =VLOOKUP($B59,[1]FlowData!$A$3:$PL$215,AB$7,FALSE) -> 1150 | AC59: =VLOOKUP($B59,[1]FlowData!$A$3:$PL$215,AC$7,FALSE) -> 706 | AD59: =VLOOKUP($B59,[1]FlowData!$A$3:$PL$215,AD$7,FALSE) -> 1310 | AE59: =VLOOKUP($B59,[1]FlowData!$A$3:$PL$215,AE$7,FALSE) -> 1420 | AF59: =VLOOKUP($B59,[1]FlowData!$A$3:$PL$215,AF$7,FALSE) -> 902 | AG59: =VLOOKUP($B59,[1]FlowData!$A$3:$PL$215,AG$7,FALSE) -> 474 | AH59: =VLOOKUP($B59,[1]FlowData!$A$3:$PL$215,AH$7,FALSE) -> 996 | AI59: =VLOOKUP($B59,[1]FlowData!$A$3:$PL$215,AI$7,FALSE) -> 523 | AJ59: =VLOOKUP($B59,[1]FlowData!$A$3:$PL$215,AJ$7,FALSE) -> 360 | AK59: =VLOOKUP($B59,[1]FlowData!$A$3:$PL$215,AK$7,FALSE) -> 240 | AL59: =VLOOKUP($B59,[1]FlowData!$A$3:$PL$215,AL$7,FALSE) -> 396 | AM59: =VLOOKUP($B59,[1]FlowData!$A$3:$PL$215,AM$7,FALSE) -> 289 | AN59: =VLOOKUP($B59,[1]FlowData!$A$3:$PL$215,AN$7,FALSE) -> 231 | AO59: =VLOOKUP($B59,[1]FlowData!$A$3:$PL$215,AO$7,FALSE) -> 166 | AP59: =VLOOKUP($B59,[1]FlowData!$A$3:$PL$215,AP$7,FALSE) -> 233 | AQ59: =VLOOKUP($B59,[1]FlowData!$A$3:$PL$215,AQ$7,FALSE) -> 231 | AR59: =VLOOKUP($B59,[1]FlowData!$A$3:$PL$215,AR$7,FALSE) -> 191 | AS59: =VLOOKUP($B59,[1]FlowData!$A$3:$PL$215,AS$7,FALSE) -> 143 | AT59: =VLOOKUP($B59,[1]FlowData!$A$3:$PL$215,AT$7,FALSE) -> 190 | AU59: =VLOOKUP($B59,[1]FlowData!$A$3:$PL$215,AU$7,FALSE) -> 207 | AV59: =VLOOKUP($B59,[1]FlowData!$A$3:$PL$215,AV$7,FALSE) -> 175 | AW59: =VLOOKUP($B59,[1]FlowData!$A$3:$PL$215,AW$7,FALSE) -> 138 | AX59: =VLOOKUP($B59,[1]FlowData!$A$3:$PL$215,AX$7,FALSE) -> 178 | AY59: =VLOOKUP($B59,[1]FlowData!$A$3:$PL$215,AY$7,FALSE) -> 232 | AZ59: =VLOOKUP($B59,[1]FlowData!$A$3:$PL$215,AZ$7,FALSE) -> 174 | BA59: =VLOOKUP($B59,[1]FlowData!$A$3:$PL$215,BA$7,FALSE) -> 136 | BB59: =VLOOKUP($B59,[1]FlowData!$A$3:$PL$215,BB$7,FALSE) -> 195 | BC59: =VLOOKUP($B59,[1]FlowData!$A$3:$PL$215,BC$7,FALSE) -> 244 | BD59: =VLOOKUP($B59,[1]FlowData!$A$3:$PL$215,BD$7,FALSE) -> 173 | BE59: =VLOOKUP($B59,[1]FlowData!$A$3:$PL$215,BE$7,FALSE) -> 130 | BF59: =VLOOKUP($B59,[1]FlowData!$A$3:$PL$215,BF$7,FALSE) -> 201
A60: =VLOOKUP(B60,'[2]Gages and BCs'!$A$4:$BJ$973,62,FALSE) -> 749 | B60: 12390700 | C60: =VLOOKUP(B60,'[2]Gages and BCs'!$A$4:$BJ$973,60,FALSE) -> Prospect Creek at Thompson Falls, Montana | D60: 1956–2009 | E60: =VLOOKUP($B60,[1]FlowData!$A$3:$PL$215,E$7,FALSE) -> 30.553 | F60: =VLOOKUP($B60,[1]FlowData!$A$3:$PL$215,F$7,FALSE) -> 39.33 | G60: =VLOOKUP($B60,[1]FlowData!$A$3:$PL$215,G$7,FALSE) -> 369 | H60: =VLOOKUP($B60,[1]FlowData!$A$3:$PL$215,H$7,FALSE) -> 154 | I60: =VLOOKUP($B60,[1]FlowData!$A$3:$PL$215,I$7,FALSE) -> 75 | J60: =VLOOKUP($B60,[1]FlowData!$A$3:$PL$215,J$7,FALSE) -> 234 | K60: =VLOOKUP($B60,[1]FlowData!$A$3:$PL$215,K$7,FALSE) -> 186 | L60: =VLOOKUP($B60,[1]FlowData!$A$3:$PL$215,L$7,FALSE) -> 124 | M60: =VLOOKUP($B60,[1]FlowData!$A$3:$PL$215,M$7,FALSE) -> 63 | N60: =VLOOKUP($B60,[1]FlowData!$A$3:$PL$215,N$7,FALSE) -> 117 | O60: =VLOOKUP($B60,[1]FlowData!$A$3:$PL$215,O$7,FALSE) -> 199 | P60: =VLOOKUP($B60,[1]FlowData!$A$3:$PL$215,P$7,FALSE) -> 122 | Q60: =VLOOKUP($B60,[1]FlowData!$A$3:$PL$215,Q$7,FALSE) -> 62 | R60: =VLOOKUP($B60,[1]FlowData!$A$3:$PL$215,R$7,FALSE) -> 154 | S60: =VLOOKUP($B60,[1]FlowData!$A$3:$PL$215,S$7,FALSE) -> 300 | T60: =VLOOKUP($B60,[1]FlowData!$A$3:$PL$215,T$7,FALSE) -> 165 | U60: =VLOOKUP($B60,[1]FlowData!$A$3:$PL$215,U$7,FALSE) -> 90 | V60: =VLOOKUP($B60,[1]FlowData!$A$3:$PL$215,V$7,FALSE) -> 220 | W60: =VLOOKUP($B60,[1]FlowData!$A$3:$PL$215,W$7,FALSE) -> 690 | X60: =VLOOKUP($B60,[1]FlowData!$A$3:$PL$215,X$7,FALSE) -> 405 | Y60: =VLOOKUP($B60,[1]FlowData!$A$3:$PL$215,Y$7,FALSE) -> 230 | Z60: =VLOOKUP($B60,[1]FlowData!$A$3:$PL$215,Z$7,FALSE) -> 485 | AA60: =VLOOKUP($B60,[1]FlowData!$A$3:$PL$215,AA$7,FALSE) -> 1120 | AB60: =VLOOKUP($B60,[1]FlowData!$A$3:$PL$215,AB$7,FALSE) -> 697 | AC60: =VLOOKUP($B60,[1]FlowData!$A$3:$PL$215,AC$7,FALSE) -> 448 | AD60: =VLOOKUP($B60,[1]FlowData!$A$3:$PL$215,AD$7,FALSE) -> 794 | AE60: =VLOOKUP($B60,[1]FlowData!$A$3:$PL$215,AE$7,FALSE) -> 789 | AF60: =VLOOKUP($B60,[1]FlowData!$A$3:$PL$215,AF$7,FALSE) -> 462 | AG60: =VLOOKUP($B60,[1]FlowData!$A$3:$PL$215,AG$7,FALSE) -> 225 | AH60: =VLOOKUP($B60,[1]FlowData!$A$3:$PL$215,AH$7,FALSE) -> 526 | AI60: =VLOOKUP($B60,[1]FlowData!$A$3:$PL$215,AI$7,FALSE) -> 200 | AJ60: =VLOOKUP($B60,[1]FlowData!$A$3:$PL$215,AJ$7,FALSE) -> 133 | AK60: =VLOOKUP($B60,[1]FlowData!$A$3:$PL$215,AK$7,FALSE) -> 97 | AL60: =VLOOKUP($B60,[1]FlowData!$A$3:$PL$215,AL$7,FALSE) -> 158 | AM60: =VLOOKUP($B60,[1]FlowData!$A$3:$PL$215,AM$7,FALSE) -> 99 | AN60: =VLOOKUP($B60,[1]FlowData!$A$3:$PL$215,AN$7,FALSE) -> 82 | AO60: =VLOOKUP($B60,[1]FlowData!$A$3:$PL$215,AO$7,FALSE) -> 64 | AP60: =VLOOKUP($B60,[1]FlowData!$A$3:$PL$215,AP$7,FALSE) -> 82 | AQ60: =VLOOKUP($B60,[1]FlowData!$A$3:$PL$215,AQ$7,FALSE) -> 73 | AR60: =VLOOKUP($B60,[1]FlowData!$A$3:$PL$215,AR$7,FALSE) -> 63 | AS60: =VLOOKUP($B60,[1]FlowData!$A$3:$PL$215,AS$7,FALSE) -> 48 | AT60: =VLOOKUP($B60,[1]FlowData!$A$3:$PL$215,AT$7,FALSE) -> 61 | AU60: =VLOOKUP($B60,[1]FlowData!$A$3:$PL$215,AU$7,FALSE) -> 62 | AV60: =VLOOKUP($B60,[1]FlowData!$A$3:$PL$215,AV$7,FALSE) -> 51 | AW60: =VLOOKUP($B60,[1]FlowData!$A$3:$PL$215,AW$7,FALSE) -> 40 | AX60: =VLOOKUP($B60,[1]FlowData!$A$3:$PL$215,AX$7,FALSE) -> 53 | AY60: =VLOOKUP($B60,[1]FlowData!$A$3:$PL$215,AY$7,FALSE) -> 134 | AZ60: =VLOOKUP($B60,[1]FlowData!$A$3:$PL$215,AZ$7,FALSE) -> 93 | BA60: =VLOOKUP($B60,[1]FlowData!$A$3:$PL$215,BA$7,FALSE) -> 52 | BB60: =VLOOKUP($B60,[1]FlowData!$A$3:$PL$215,BB$7,FALSE) -> 79 | BC60: =VLOOKUP($B60,[1]FlowData!$A$3:$PL$215,BC$7,FALSE) -> 144 | BD60: =VLOOKUP($B60,[1]FlowData!$A$3:$PL$215,BD$7,FALSE) -> 87 | BE60: =VLOOKUP($B60,[1]FlowData!$A$3:$PL$215,BE$7,FALSE) -> 49 | BF60: =VLOOKUP($B60,[1]FlowData!$A$3:$PL$215,BF$7,FALSE) -> 110
A61: =VLOOKUP(B61,'[2]Gages and BCs'!$A$4:$BJ$973,62,FALSE) -> 755 | B61: 12391550 | C61: =VLOOKUP(B61,'[2]Gages and BCs'!$A$4:$BJ$973,60,FALSE) -> Bull River near Noxon, Montana | D61: 1973–82 | E61: =VLOOKUP($B61,[1]FlowData!$A$3:$PL$215,E$7,FALSE) ->  | F61: =VLOOKUP($B61,[1]FlowData!$A$3:$PL$215,F$7,FALSE) ->  | G61: =VLOOKUP($B61,[1]FlowData!$A$3:$PL$215,G$7,FALSE) -> 610 | H61: =VLOOKUP($B61,[1]FlowData!$A$3:$PL$215,H$7,FALSE) -> 210 | I61: =VLOOKUP($B61,[1]FlowData!$A$3:$PL$215,I$7,FALSE) -> 101 | J61: =VLOOKUP($B61,[1]FlowData!$A$3:$PL$215,J$7,FALSE) -> 389 | K61: =VLOOKUP($B61,[1]FlowData!$A$3:$PL$215,K$7,FALSE) -> 300 | L61: =VLOOKUP($B61,[1]FlowData!$A$3:$PL$215,L$7,FALSE) -> 171 | M61: =VLOOKUP($B61,[1]FlowData!$A$3:$PL$215,M$7,FALSE) -> 92 | N61: =VLOOKUP($B61,[1]FlowData!$A$3:$PL$215,N$7,FALSE) -> 261 | O61: =VLOOKUP($B61,[1]FlowData!$A$3:$PL$215,O$7,FALSE) -> 275 | P61: =VLOOKUP($B61,[1]FlowData!$A$3:$PL$215,P$7,FALSE) -> 171 | Q61: =VLOOKUP($B61,[1]FlowData!$A$3:$PL$215,Q$7,FALSE) -> 104 | R61: =VLOOKUP($B61,[1]FlowData!$A$3:$PL$215,R$7,FALSE) -> 246 | S61: =VLOOKUP($B61,[1]FlowData!$A$3:$PL$215,S$7,FALSE) -> 380 | T61: =VLOOKUP($B61,[1]FlowData!$A$3:$PL$215,T$7,FALSE) -> 256 | U61: =VLOOKUP($B61,[1]FlowData!$A$3:$PL$215,U$7,FALSE) -> 187 | V61: =VLOOKUP($B61,[1]FlowData!$A$3:$PL$215,V$7,FALSE) -> 300 | W61: =VLOOKUP($B61,[1]FlowData!$A$3:$PL$215,W$7,FALSE) -> 736 | X61: =VLOOKUP($B61,[1]FlowData!$A$3:$PL$215,X$7,FALSE) -> 435 | Y61: =VLOOKUP($B61,[1]FlowData!$A$3:$PL$215,Y$7,FALSE) -> 272 | Z61: =VLOOKUP($B61,[1]FlowData!$A$3:$PL$215,Z$7,FALSE) -> 531 | AA61: =VLOOKUP($B61,[1]FlowData!$A$3:$PL$215,AA$7,FALSE) -> 1470 | AB61: =VLOOKUP($B61,[1]FlowData!$A$3:$PL$215,AB$7,FALSE) -> 1010 | AC61: =VLOOKUP($B61,[1]FlowData!$A$3:$PL$215,AC$7,FALSE) -> 697 | AD61: =VLOOKUP($B61,[1]FlowData!$A$3:$PL$215,AD$7,FALSE) -> 1080 | AE61: =VLOOKUP($B61,[1]FlowData!$A$3:$PL$215,AE$7,FALSE) -> 1430 | AF61: =VLOOKUP($B61,[1]FlowData!$A$3:$PL$215,AF$7,FALSE) -> 893 | AG61: =VLOOKUP($B61,[1]FlowData!$A$3:$PL$215,AG$7,FALSE) -> 535 | AH61: =VLOOKUP($B61,[1]FlowData!$A$3:$PL$215,AH$7,FALSE) -> 1030 | AI61: =VLOOKUP($B61,[1]FlowData!$A$3:$PL$215,AI$7,FALSE) -> 598 | AJ61: =VLOOKUP($B61,[1]FlowData!$A$3:$PL$215,AJ$7,FALSE) -> 322 | AK61: =VLOOKUP($B61,[1]FlowData!$A$3:$PL$215,AK$7,FALSE) -> 183 | AL61: =VLOOKUP($B61,[1]FlowData!$A$3:$PL$215,AL$7,FALSE) -> 396 | AM61: =VLOOKUP($B61,[1]FlowData!$A$3:$PL$215,AM$7,FALSE) -> 205 | AN61: =VLOOKUP($B61,[1]FlowData!$A$3:$PL$215,AN$7,FALSE) -> 148 | AO61: =VLOOKUP($B61,[1]FlowData!$A$3:$PL$215,AO$7,FALSE) -> 106 | AP61: =VLOOKUP($B61,[1]FlowData!$A$3:$PL$215,AP$7,FALSE) -> 155 | AQ61: =VLOOKUP($B61,[1]FlowData!$A$3:$PL$215,AQ$7,FALSE) -> 140 | AR61: =VLOOKUP($B61,[1]FlowData!$A$3:$PL$215,AR$7,FALSE) -> 117 | AS61: =VLOOKUP($B61,[1]FlowData!$A$3:$PL$215,AS$7,FALSE) -> 93 | AT61: =VLOOKUP($B61,[1]FlowData!$A$3:$PL$215,AT$7,FALSE) -> 118 | AU61: =VLOOKUP($B61,[1]FlowData!$A$3:$PL$215,AU$7,FALSE) -> 120 | AV61: =VLOOKUP($B61,[1]FlowData!$A$3:$PL$215,AV$7,FALSE) -> 102 | AW61: =VLOOKUP($B61,[1]FlowData!$A$3:$PL$215,AW$7,FALSE) -> 88 | AX61: =VLOOKUP($B61,[1]FlowData!$A$3:$PL$215,AX$7,FALSE) -> 103 | AY61: =VLOOKUP($B61,[1]FlowData!$A$3:$PL$215,AY$7,FALSE) -> 198 | AZ61: =VLOOKUP($B61,[1]FlowData!$A$3:$PL$215,AZ$7,FALSE) -> 120 | BA61: =VLOOKUP($B61,[1]FlowData!$A$3:$PL$215,BA$7,FALSE) -> 92 | BB61: =VLOOKUP($B61,[1]FlowData!$A$3:$PL$215,BB$7,FALSE) -> 157 | BC61: =VLOOKUP($B61,[1]FlowData!$A$3:$PL$215,BC$7,FALSE) -> 369 | BD61: =VLOOKUP($B61,[1]FlowData!$A$3:$PL$215,BD$7,FALSE) -> 189 | BE61: =VLOOKUP($B61,[1]FlowData!$A$3:$PL$215,BE$7,FALSE) -> 93 | BF61: =VLOOKUP($B61,[1]FlowData!$A$3:$PL$215,BF$7,FALSE) -> 282
A62: Northwest hydrologic region
A63: =VLOOKUP(B63,'[2]Gages and BCs'!$A$4:$BJ$973,62,FALSE) -> 2 | B63: 5011000 | C63: =VLOOKUP(B63,'[2]Gages and BCs'!$A$4:$BJ$973,60,FALSE) -> Belly River near Mountain View, Alberta | D63: 1912–78 | E63: =VLOOKUP($B63,[1]FlowData!$A$3:$PL$215,E$7,FALSE) -> 22.178 | F63: =VLOOKUP($B63,[1]FlowData!$A$3:$PL$215,F$7,FALSE) -> 67.142 | G63: =VLOOKUP($B63,[1]FlowData!$A$3:$PL$215,G$7,FALSE) -> 515 | H63: =VLOOKUP($B63,[1]FlowData!$A$3:$PL$215,H$7,FALSE) -> 283 | I63: =VLOOKUP($B63,[1]FlowData!$A$3:$PL$215,I$7,FALSE) -> 117 | J63: =VLOOKUP($B63,[1]FlowData!$A$3:$PL$215,J$7,FALSE) -> 314 | K63: =VLOOKUP($B63,[1]FlowData!$A$3:$PL$215,K$7,FALSE) -> 85 | L63: =VLOOKUP($B63,[1]FlowData!$A$3:$PL$215,L$7,FALSE) -> 61 | M63: =VLOOKUP($B63,[1]FlowData!$A$3:$PL$215,M$7,FALSE) -> 45 | N63: =VLOOKUP($B63,[1]FlowData!$A$3:$PL$215,N$7,FALSE) -> 68 | O63: =VLOOKUP($B63,[1]FlowData!$A$3:$PL$215,O$7,FALSE) -> 82 | P63: =VLOOKUP($B63,[1]FlowData!$A$3:$PL$215,P$7,FALSE) -> 62 | Q63: =VLOOKUP($B63,[1]FlowData!$A$3:$PL$215,Q$7,FALSE) -> 36 | R63: =VLOOKUP($B63,[1]FlowData!$A$3:$PL$215,R$7,FALSE) -> 68 | S63: =VLOOKUP($B63,[1]FlowData!$A$3:$PL$215,S$7,FALSE) -> 82 | T63: =VLOOKUP($B63,[1]FlowData!$A$3:$PL$215,T$7,FALSE) -> 59 | U63: =VLOOKUP($B63,[1]FlowData!$A$3:$PL$215,U$7,FALSE) -> 41 | V63: =VLOOKUP($B63,[1]FlowData!$A$3:$PL$215,V$7,FALSE) -> 69 | W63: =VLOOKUP($B63,[1]FlowData!$A$3:$PL$215,W$7,FALSE) -> 299 | X63: =VLOOKUP($B63,[1]FlowData!$A$3:$PL$215,X$7,FALSE) -> 143 | Y63: =VLOOKUP($B63,[1]FlowData!$A$3:$PL$215,Y$7,FALSE) -> 79 | Z63: =VLOOKUP($B63,[1]FlowData!$A$3:$PL$215,Z$7,FALSE) -> 207 | AA63: =VLOOKUP($B63,[1]FlowData!$A$3:$PL$215,AA$7,FALSE) -> 1150 | AB63: =VLOOKUP($B63,[1]FlowData!$A$3:$PL$215,AB$7,FALSE) -> 710 | AC63: =VLOOKUP($B63,[1]FlowData!$A$3:$PL$215,AC$7,FALSE) -> 405 | AD63: =VLOOKUP($B63,[1]FlowData!$A$3:$PL$215,AD$7,FALSE) -> 786 | AE63: =VLOOKUP($B63,[1]FlowData!$A$3:$PL$215,AE$7,FALSE) -> 1490 | AF63: =VLOOKUP($B63,[1]FlowData!$A$3:$PL$215,AF$7,FALSE) -> 1010 | AG63: =VLOOKUP($B63,[1]FlowData!$A$3:$PL$215,AG$7,FALSE) -> 669 | AH63: =VLOOKUP($B63,[1]FlowData!$A$3:$PL$215,AH$7,FALSE) -> 1120 | AI63: =VLOOKUP($B63,[1]FlowData!$A$3:$PL$215,AI$7,FALSE) -> 822 | AJ63: =VLOOKUP($B63,[1]FlowData!$A$3:$PL$215,AJ$7,FALSE) -> 535 | AK63: =VLOOKUP($B63,[1]FlowData!$A$3:$PL$215,AK$7,FALSE) -> 346 | AL63: =VLOOKUP($B63,[1]FlowData!$A$3:$PL$215,AL$7,FALSE) -> 603 | AM63: =VLOOKUP($B63,[1]FlowData!$A$3:$PL$215,AM$7,FALSE) -> 340 | AN63: =VLOOKUP($B63,[1]FlowData!$A$3:$PL$215,AN$7,FALSE) -> 246 | AO63: =VLOOKUP($B63,[1]FlowData!$A$3:$PL$215,AO$7,FALSE) -> 159 | AP63: =VLOOKUP($B63,[1]FlowData!$A$3:$PL$215,AP$7,FALSE) -> 260 | AQ63: =VLOOKUP($B63,[1]FlowData!$A$3:$PL$215,AQ$7,FALSE) -> 232 | AR63: =VLOOKUP($B63,[1]FlowData!$A$3:$PL$215,AR$7,FALSE) -> 149 | AS63: =VLOOKUP($B63,[1]FlowData!$A$3:$PL$215,AS$7,FALSE) -> 98 | AT63: =VLOOKUP($B63,[1]FlowData!$A$3:$PL$215,AT$7,FALSE) -> 177 | AU63: =VLOOKUP($B63,[1]FlowData!$A$3:$PL$215,AU$7,FALSE) -> 245 | AV63: =VLOOKUP($B63,[1]FlowData!$A$3:$PL$215,AV$7,FALSE) -> 142 | AW63: =VLOOKUP($B63,[1]FlowData!$A$3:$PL$215,AW$7,FALSE) -> 85 | AX63: =VLOOKUP($B63,[1]FlowData!$A$3:$PL$215,AX$7,FALSE) -> 178 | AY63: =VLOOKUP($B63,[1]FlowData!$A$3:$PL$215,AY$7,FALSE) -> 173 | AZ63: =VLOOKUP($B63,[1]FlowData!$A$3:$PL$215,AZ$7,FALSE) -> 117 | BA63: =VLOOKUP($B63,[1]FlowData!$A$3:$PL$215,BA$7,FALSE) -> 73 | BB63: =VLOOKUP($B63,[1]FlowData!$A$3:$PL$215,BB$7,FALSE) -> 128 | BC63: =VLOOKUP($B63,[1]FlowData!$A$3:$PL$215,BC$7,FALSE) -> 108 | BD63: =VLOOKUP($B63,[1]FlowData!$A$3:$PL$215,BD$7,FALSE) -> 80 | BE63: =VLOOKUP($B63,[1]FlowData!$A$3:$PL$215,BE$7,FALSE) -> 53 | BF63: =VLOOKUP($B63,[1]FlowData!$A$3:$PL$215,BF$7,FALSE) -> 86
A64: =VLOOKUP(B64,'[2]Gages and BCs'!$A$4:$BJ$973,62,FALSE) -> 3 | B64: 5011500 | C64: =VLOOKUP(B64,'[2]Gages and BCs'!$A$4:$BJ$973,60,FALSE) -> Waterton River near international boundary | D64: 1947–63 | E64: =VLOOKUP($B64,[1]FlowData!$A$3:$PL$215,E$7,FALSE) ->  | F64: =VLOOKUP($B64,[1]FlowData!$A$3:$PL$215,F$7,FALSE) -> 36.795 | G64: =VLOOKUP($B64,[1]FlowData!$A$3:$PL$215,G$7,FALSE) -> 417 | H64: =VLOOKUP($B64,[1]FlowData!$A$3:$PL$215,H$7,FALSE) -> 91 | I64: =VLOOKUP($B64,[1]FlowData!$A$3:$PL$215,I$7,FALSE) -> 41 | J64: =VLOOKUP($B64,[1]FlowData!$A$3:$PL$215,J$7,FALSE) -> 274 | K64: =VLOOKUP($B64,[1]FlowData!$A$3:$PL$215,K$7,FALSE) -> 44 | L64: =VLOOKUP($B64,[1]FlowData!$A$3:$PL$215,L$7,FALSE) -> 31 | M64: =VLOOKUP($B64,[1]FlowData!$A$3:$PL$215,M$7,FALSE) -> 23 | N64: =VLOOKUP($B64,[1]FlowData!$A$3:$PL$215,N$7,FALSE) -> 36 | O64: =VLOOKUP($B64,[1]FlowData!$A$3:$PL$215,O$7,FALSE) -> 40 | P64: =VLOOKUP($B64,[1]FlowData!$A$3:$PL$215,P$7,FALSE) -> 25 | Q64: =VLOOKUP($B64,[1]FlowData!$A$3:$PL$215,Q$7,FALSE) -> 18 | R64: =VLOOKUP($B64,[1]FlowData!$A$3:$PL$215,R$7,FALSE) -> 32 | S64: =VLOOKUP($B64,[1]FlowData!$A$3:$PL$215,S$7,FALSE) -> 35 | T64: =VLOOKUP($B64,[1]FlowData!$A$3:$PL$215,T$7,FALSE) -> 24 | U64: =VLOOKUP($B64,[1]FlowData!$A$3:$PL$215,U$7,FALSE) -> 17 | V64: =VLOOKUP($B64,[1]FlowData!$A$3:$PL$215,V$7,FALSE) -> 27 | W64: =VLOOKUP($B64,[1]FlowData!$A$3:$PL$215,W$7,FALSE) -> 192 | X64: =VLOOKUP($B64,[1]FlowData!$A$3:$PL$215,X$7,FALSE) -> 58 | Y64: =VLOOKUP($B64,[1]FlowData!$A$3:$PL$215,Y$7,FALSE) -> 27 | Z64: =VLOOKUP($B64,[1]FlowData!$A$3:$PL$215,Z$7,FALSE) -> 129 | AA64: =VLOOKUP($B64,[1]FlowData!$A$3:$PL$215,AA$7,FALSE) -> 1250 | AB64: =VLOOKUP($B64,[1]FlowData!$A$3:$PL$215,AB$7,FALSE) -> 786 | AC64: =VLOOKUP($B64,[1]FlowData!$A$3:$PL$215,AC$7,FALSE) -> 337 | AD64: =VLOOKUP($B64,[1]FlowData!$A$3:$PL$215,AD$7,FALSE) -> 820 | AE64: =VLOOKUP($B64,[1]FlowData!$A$3:$PL$215,AE$7,FALSE) -> 1500 | AF64: =VLOOKUP($B64,[1]FlowData!$A$3:$PL$215,AF$7,FALSE) -> 1050 | AG64: =VLOOKUP($B64,[1]FlowData!$A$3:$PL$215,AG$7,FALSE) -> 720 | AH64: =VLOOKUP($B64,[1]FlowData!$A$3:$PL$215,AH$7,FALSE) -> 1140 | AI64: =VLOOKUP($B64,[1]FlowData!$A$3:$PL$215,AI$7,FALSE) -> 796 | AJ64: =VLOOKUP($B64,[1]FlowData!$A$3:$PL$215,AJ$7,FALSE) -> 402 | AK64: =VLOOKUP($B64,[1]FlowData!$A$3:$PL$215,AK$7,FALSE) -> 219 | AL64: =VLOOKUP($B64,[1]FlowData!$A$3:$PL$215,AL$7,FALSE) -> 520 | AM64: =VLOOKUP($B64,[1]FlowData!$A$3:$PL$215,AM$7,FALSE) -> 173 | AN64: =VLOOKUP($B64,[1]FlowData!$A$3:$PL$215,AN$7,FALSE) -> 116 | AO64: =VLOOKUP($B64,[1]FlowData!$A$3:$PL$215,AO$7,FALSE) -> 81 | AP64: =VLOOKUP($B64,[1]FlowData!$A$3:$PL$215,AP$7,FALSE) -> 130 | AQ64: =VLOOKUP($B64,[1]FlowData!$A$3:$PL$215,AQ$7,FALSE) -> 121 | AR64: =VLOOKUP($B64,[1]FlowData!$A$3:$PL$215,AR$7,FALSE) -> 73 | AS64: =VLOOKUP($B64,[1]FlowData!$A$3:$PL$215,AS$7,FALSE) -> 52 | AT64: =VLOOKUP($B64,[1]FlowData!$A$3:$PL$215,AT$7,FALSE) -> 99 | AU64: =VLOOKUP($B64,[1]FlowData!$A$3:$PL$215,AU$7,FALSE) -> 239 | AV64: =VLOOKUP($B64,[1]FlowData!$A$3:$PL$215,AV$7,FALSE) -> 110 | AW64: =VLOOKUP($B64,[1]FlowData!$A$3:$PL$215,AW$7,FALSE) -> 43 | AX64: =VLOOKUP($B64,[1]FlowData!$A$3:$PL$215,AX$7,FALSE) -> 161 | AY64: =VLOOKUP($B64,[1]FlowData!$A$3:$PL$215,AY$7,FALSE) -> 130 | AZ64: =VLOOKUP($B64,[1]FlowData!$A$3:$PL$215,AZ$7,FALSE) -> 77 | BA64: =VLOOKUP($B64,[1]FlowData!$A$3:$PL$215,BA$7,FALSE) -> 43 | BB64: =VLOOKUP($B64,[1]FlowData!$A$3:$PL$215,BB$7,FALSE) -> 94 | BC64: =VLOOKUP($B64,[1]FlowData!$A$3:$PL$215,BC$7,FALSE) -> 82 | BD64: =VLOOKUP($B64,[1]FlowData!$A$3:$PL$215,BD$7,FALSE) -> 46 | BE64: =VLOOKUP($B64,[1]FlowData!$A$3:$PL$215,BE$7,FALSE) -> 31 | BF64: =VLOOKUP($B64,[1]FlowData!$A$3:$PL$215,BF$7,FALSE) -> 59
A65: =VLOOKUP(B65,'[2]Gages and BCs'!$A$4:$BJ$973,62,FALSE) -> 4 | B65: 5012500 | C65: =VLOOKUP(B65,'[2]Gages and BCs'!$A$4:$BJ$973,60,FALSE) -> Boundary Creek at international boundary | D65: 1948–63 | E65: =VLOOKUP($B65,[1]FlowData!$A$3:$PL$215,E$7,FALSE) ->  | F65: =VLOOKUP($B65,[1]FlowData!$A$3:$PL$215,F$7,FALSE) -> 12.949 | G65: =VLOOKUP($B65,[1]FlowData!$A$3:$PL$215,G$7,FALSE) -> 123 | H65: =VLOOKUP($B65,[1]FlowData!$A$3:$PL$215,H$7,FALSE) -> 30 | I65: =VLOOKUP($B65,[1]FlowData!$A$3:$PL$215,I$7,FALSE) -> 14 | J65: =VLOOKUP($B65,[1]FlowData!$A$3:$PL$215,J$7,FALSE) -> 78 | K65: =VLOOKUP($B65,[1]FlowData!$A$3:$PL$215,K$7,FALSE) -> 21 | L65: =VLOOKUP($B65,[1]FlowData!$A$3:$PL$215,L$7,FALSE) -> 13 | M65: =VLOOKUP($B65,[1]FlowData!$A$3:$PL$215,M$7,FALSE) -> 8.8 | N65: =VLOOKUP($B65,[1]FlowData!$A$3:$PL$215,N$7,FALSE) -> 15 | O65: =VLOOKUP($B65,[1]FlowData!$A$3:$PL$215,O$7,FALSE) -> 16 | P65: =VLOOKUP($B65,[1]FlowData!$A$3:$PL$215,P$7,FALSE) -> 11 | Q65: =VLOOKUP($B65,[1]FlowData!$A$3:$PL$215,Q$7,FALSE) -> 7.3 | R65: =VLOOKUP($B65,[1]FlowData!$A$3:$PL$215,R$7,FALSE) -> 13 | S65: =VLOOKUP($B65,[1]FlowData!$A$3:$PL$215,S$7,FALSE) -> 14 | T65: =VLOOKUP($B65,[1]FlowData!$A$3:$PL$215,T$7,FALSE) -> 12 | U65: =VLOOKUP($B65,[1]FlowData!$A$3:$PL$215,U$7,FALSE) -> 6.8 | V65: =VLOOKUP($B65,[1]FlowData!$A$3:$PL$215,V$7,FALSE) -> 11 | W65: =VLOOKUP($B65,[1]FlowData!$A$3:$PL$215,W$7,FALSE) -> 60 | X65: =VLOOKUP($B65,[1]FlowData!$A$3:$PL$215,X$7,FALSE) -> 24 | Y65: =VLOOKUP($B65,[1]FlowData!$A$3:$PL$215,Y$7,FALSE) -> 11 | Z65: =VLOOKUP($B65,[1]FlowData!$A$3:$PL$215,Z$7,FALSE) -> 41 | AA65: =VLOOKUP($B65,[1]FlowData!$A$3:$PL$215,AA$7,FALSE) -> 325 | AB65: =VLOOKUP($B65,[1]FlowData!$A$3:$PL$215,AB$7,FALSE) -> 201 | AC65: =VLOOKUP($B65,[1]FlowData!$A$3:$PL$215,AC$7,FALSE) -> 100 | AD65: =VLOOKUP($B65,[1]FlowData!$A$3:$PL$215,AD$7,FALSE) -> 212 | AE65: =VLOOKUP($B65,[1]FlowData!$A$3:$PL$215,AE$7,FALSE) -> 368 | AF65: =VLOOKUP($B65,[1]FlowData!$A$3:$PL$215,AF$7,FALSE) -> 279 | AG65: =VLOOKUP($B65,[1]FlowData!$A$3:$PL$215,AG$7,FALSE) -> 188 | AH65: =VLOOKUP($B65,[1]FlowData!$A$3:$PL$215,AH$7,FALSE) -> 284 | AI65: =VLOOKUP($B65,[1]FlowData!$A$3:$PL$215,AI$7,FALSE) -> 192 | AJ65: =VLOOKUP($B65,[1]FlowData!$A$3:$PL$215,AJ$7,FALSE) -> 108 | AK65: =VLOOKUP($B65,[1]FlowData!$A$3:$PL$215,AK$7,FALSE) -> 73 | AL65: =VLOOKUP($B65,[1]FlowData!$A$3:$PL$215,AL$7,FALSE) -> 137 | AM65: =VLOOKUP($B65,[1]FlowData!$A$3:$PL$215,AM$7,FALSE) -> 61 | AN65: =VLOOKUP($B65,[1]FlowData!$A$3:$PL$215,AN$7,FALSE) -> 43 | AO65: =VLOOKUP($B65,[1]FlowData!$A$3:$PL$215,AO$7,FALSE) -> 31 | AP65: =VLOOKUP($B65,[1]FlowData!$A$3:$PL$215,AP$7,FALSE) -> 47 | AQ65: =VLOOKUP($B65,[1]FlowData!$A$3:$PL$215,AQ$7,FALSE) -> 42 | AR65: =VLOOKUP($B65,[1]FlowData!$A$3:$PL$215,AR$7,FALSE) -> 26 | AS65: =VLOOKUP($B65,[1]FlowData!$A$3:$PL$215,AS$7,FALSE) -> 19 | AT65: =VLOOKUP($B65,[1]FlowData!$A$3:$PL$215,AT$7,FALSE) -> 35 | AU65: =VLOOKUP($B65,[1]FlowData!$A$3:$PL$215,AU$7,FALSE) -> 73 | AV65: =VLOOKUP($B65,[1]FlowData!$A$3:$PL$215,AV$7,FALSE) -> 34 | AW65: =VLOOKUP($B65,[1]FlowData!$A$3:$PL$215,AW$7,FALSE) -> 16 | AX65: =VLOOKUP($B65,[1]FlowData!$A$3:$PL$215,AX$7,FALSE) -> 50 | AY65: =VLOOKUP($B65,[1]FlowData!$A$3:$PL$215,AY$7,FALSE) -> 44 | AZ65: =VLOOKUP($B65,[1]FlowData!$A$3:$PL$215,AZ$7,FALSE) -> 28 | BA65: =VLOOKUP($B65,[1]FlowData!$A$3:$PL$215,BA$7,FALSE) -> 17 | BB65: =VLOOKUP($B65,[1]FlowData!$A$3:$PL$215,BB$7,FALSE) -> 32 | BC65: =VLOOKUP($B65,[1]FlowData!$A$3:$PL$215,BC$7,FALSE) -> 26 | BD65: =VLOOKUP($B65,[1]FlowData!$A$3:$PL$215,BD$7,FALSE) -> 18 | BE65: =VLOOKUP($B65,[1]FlowData!$A$3:$PL$215,BE$7,FALSE) -> 12 | BF65: =VLOOKUP($B65,[1]FlowData!$A$3:$PL$215,BF$7,FALSE) -> 21
A66: =VLOOKUP(B66,'[2]Gages and BCs'!$A$4:$BJ$973,62,FALSE) -> 6 | B66: 5013700 | C66: =VLOOKUP(B66,'[2]Gages and BCs'!$A$4:$BJ$973,60,FALSE) -> St. Mary River above Swiftcurrent Creek, near Babb, Montana | D66: 1902–15 | E66: =VLOOKUP($B66,[1]FlowData!$A$3:$PL$215,E$7,FALSE) ->  | F66: =VLOOKUP($B66,[1]FlowData!$A$3:$PL$215,F$7,FALSE) -> 179.808 | G66: =VLOOKUP($B66,[1]FlowData!$A$3:$PL$215,G$7,FALSE) ->  | H66: =VLOOKUP($B66,[1]FlowData!$A$3:$PL$215,H$7,FALSE) ->  | I66: =VLOOKUP($B66,[1]FlowData!$A$3:$PL$215,I$7,FALSE) ->  | J66: =VLOOKUP($B66,[1]FlowData!$A$3:$PL$215,J$7,FALSE) ->  | K66: =VLOOKUP($B66,[1]FlowData!$A$3:$PL$215,K$7,FALSE) ->  | L66: =VLOOKUP($B66,[1]FlowData!$A$3:$PL$215,L$7,FALSE) ->  | M66: =VLOOKUP($B66,[1]FlowData!$A$3:$PL$215,M$7,FALSE) ->  | N66: =VLOOKUP($B66,[1]FlowData!$A$3:$PL$215,N$7,FALSE) ->  | O66: =VLOOKUP($B66,[1]FlowData!$A$3:$PL$215,O$7,FALSE) ->  | P66: =VLOOKUP($B66,[1]FlowData!$A$3:$PL$215,P$7,FALSE) ->  | Q66: =VLOOKUP($B66,[1]FlowData!$A$3:$PL$215,Q$7,FALSE) ->  | R66: =VLOOKUP($B66,[1]FlowData!$A$3:$PL$215,R$7,FALSE) ->  | S66: =VLOOKUP($B66,[1]FlowData!$A$3:$PL$215,S$7,FALSE) ->  | T66: =VLOOKUP($B66,[1]FlowData!$A$3:$PL$215,T$7,FALSE) ->  | U66: =VLOOKUP($B66,[1]FlowData!$A$3:$PL$215,U$7,FALSE) ->  | V66: =VLOOKUP($B66,[1]FlowData!$A$3:$PL$215,V$7,FALSE) ->  | W66: =VLOOKUP($B66,[1]FlowData!$A$3:$PL$215,W$7,FALSE) -> 326 | X66: =VLOOKUP($B66,[1]FlowData!$A$3:$PL$215,X$7,FALSE) -> 161 | Y66: =VLOOKUP($B66,[1]FlowData!$A$3:$PL$215,Y$7,FALSE) -> 97 | Z66: =VLOOKUP($B66,[1]FlowData!$A$3:$PL$215,Z$7,FALSE) -> 237 | AA66: =VLOOKUP($B66,[1]FlowData!$A$3:$PL$215,AA$7,FALSE) -> 1440 | AB66: =VLOOKUP($B66,[1]FlowData!$A$3:$PL$215,AB$7,FALSE) -> 900 | AC66: =VLOOKUP($B66,[1]FlowData!$A$3:$PL$215,AC$7,FALSE) -> 512 | AD66: =VLOOKUP($B66,[1]FlowData!$A$3:$PL$215,AD$7,FALSE) -> 1000 | AE66: =VLOOKUP($B66,[1]FlowData!$A$3:$PL$215,AE$7,FALSE) -> 2530 | AF66: =VLOOKUP($B66,[1]FlowData!$A$3:$PL$215,AF$7,FALSE) -> 1770 | AG66: =VLOOKUP($B66,[1]FlowData!$A$3:$PL$215,AG$7,FALSE) -> 1240 | AH66: =VLOOKUP($B66,[1]FlowData!$A$3:$PL$215,AH$7,FALSE) -> 1980 | AI66: =VLOOKUP($B66,[1]FlowData!$A$3:$PL$215,AI$7,FALSE) -> 1680 | AJ66: =VLOOKUP($B66,[1]FlowData!$A$3:$PL$215,AJ$7,FALSE) -> 1140 | AK66: =VLOOKUP($B66,[1]FlowData!$A$3:$PL$215,AK$7,FALSE) -> 834 | AL66: =VLOOKUP($B66,[1]FlowData!$A$3:$PL$215,AL$7,FALSE) -> 1300 | AM66: =VLOOKUP($B66,[1]FlowData!$A$3:$PL$215,AM$7,FALSE) -> 760 | AN66: =VLOOKUP($B66,[1]FlowData!$A$3:$PL$215,AN$7,FALSE) -> 627 | AO66: =VLOOKUP($B66,[1]FlowData!$A$3:$PL$215,AO$7,FALSE) -> 463 | AP66: =VLOOKUP($B66,[1]FlowData!$A$3:$PL$215,AP$7,FALSE) -> 633 | AQ66: =VLOOKUP($B66,[1]FlowData!$A$3:$PL$215,AQ$7,FALSE) -> 578 | AR66: =VLOOKUP($B66,[1]FlowData!$A$3:$PL$215,AR$7,FALSE) -> 345 | AS66: =VLOOKUP($B66,[1]FlowData!$A$3:$PL$215,AS$7,FALSE) -> 270 | AT66: =VLOOKUP($B66,[1]FlowData!$A$3:$PL$215,AT$7,FALSE) -> 406 | AU66: =VLOOKUP($B66,[1]FlowData!$A$3:$PL$215,AU$7,FALSE) -> 505 | AV66: =VLOOKUP($B66,[1]FlowData!$A$3:$PL$215,AV$7,FALSE) -> 282 | AW66: =VLOOKUP($B66,[1]FlowData!$A$3:$PL$215,AW$7,FALSE) -> 210 | AX66: =VLOOKUP($B66,[1]FlowData!$A$3:$PL$215,AX$7,FALSE) -> 345 | AY66: =VLOOKUP($B66,[1]FlowData!$A$3:$PL$215,AY$7,FALSE) -> 414 | AZ66: =VLOOKUP($B66,[1]FlowData!$A$3:$PL$215,AZ$7,FALSE) -> 216 | BA66: =VLOOKUP($B66,[1]FlowData!$A$3:$PL$215,BA$7,FALSE) -> 134 | BB66: =VLOOKUP($B66,[1]FlowData!$A$3:$PL$215,BB$7,FALSE) -> 269 | BC66: =VLOOKUP($B66,[1]FlowData!$A$3:$PL$215,BC$7,FALSE) ->  | BD66: =VLOOKUP($B66,[1]FlowData!$A$3:$PL$215,BD$7,FALSE) ->  | BE66: =VLOOKUP($B66,[1]FlowData!$A$3:$PL$215,BE$7,FALSE) ->  | BF66: =VLOOKUP($B66,[1]FlowData!$A$3:$PL$215,BF$7,FALSE) -> 
A67: =VLOOKUP(B67,'[2]Gages and BCs'!$A$4:$BJ$973,62,FALSE) -> 9 | B67: 5014500 | C67: =VLOOKUP(B67,'[2]Gages and BCs'!$A$4:$BJ$973,60,FALSE) -> Swiftcurrent Creek at Many Glacier, Montana | D67: 1913, 1915–34, 1936–2009 | E67: =VLOOKUP($B67,[1]FlowData!$A$3:$PL$215,E$7,FALSE) -> 8.058 | F67: =VLOOKUP($B67,[1]FlowData!$A$3:$PL$215,F$7,FALSE) -> 29.81 | G67: =VLOOKUP($B67,[1]FlowData!$A$3:$PL$215,G$7,FALSE) -> 236 | H67: =VLOOKUP($B67,[1]FlowData!$A$3:$PL$215,H$7,FALSE) -> 104 | I67: =VLOOKUP($B67,[1]FlowData!$A$3:$PL$215,I$7,FALSE) -> 42 | J67: =VLOOKUP($B67,[1]FlowData!$A$3:$PL$215,J$7,FALSE) -> 140 | K67: =VLOOKUP($B67,[1]FlowData!$A$3:$PL$215,K$7,FALSE) -> 42 | L67: =VLOOKUP($B67,[1]FlowData!$A$3:$PL$215,L$7,FALSE) -> 24 | M67: =VLOOKUP($B67,[1]FlowData!$A$3:$PL$215,M$7,FALSE) -> 14 | N67: =VLOOKUP($B67,[1]FlowData!$A$3:$PL$215,N$7,FALSE) -> 33 | O67: =VLOOKUP($B67,[1]FlowData!$A$3:$PL$215,O$7,FALSE) -> 35 | P67: =VLOOKUP($B67,[1]FlowData!$A$3:$PL$215,P$7,FALSE) -> 22 | Q67: =VLOOKUP($B67,[1]FlowData!$A$3:$PL$215,Q$7,FALSE) -> 14 | R67: =VLOOKUP($B67,[1]FlowData!$A$3:$PL$215,R$7,FALSE) -> 27 | S67: =VLOOKUP($B67,[1]FlowData!$A$3:$PL$215,S$7,FALSE) -> 42 | T67: =VLOOKUP($B67,[1]FlowData!$A$3:$PL$215,T$7,FALSE) -> 23 | U67: =VLOOKUP($B67,[1]FlowData!$A$3:$PL$215,U$7,FALSE) -> 12 | V67: =VLOOKUP($B67,[1]FlowData!$A$3:$PL$215,V$7,FALSE) -> 32 | W67: =VLOOKUP($B67,[1]FlowData!$A$3:$PL$215,W$7,FALSE) -> 154 | X67: =VLOOKUP($B67,[1]FlowData!$A$3:$PL$215,X$7,FALSE) -> 70 | Y67: =VLOOKUP($B67,[1]FlowData!$A$3:$PL$215,Y$7,FALSE) -> 31 | Z67: =VLOOKUP($B67,[1]FlowData!$A$3:$PL$215,Z$7,FALSE) -> 104 | AA67: =VLOOKUP($B67,[1]FlowData!$A$3:$PL$215,AA$7,FALSE) -> 559 | AB67: =VLOOKUP($B67,[1]FlowData!$A$3:$PL$215,AB$7,FALSE) -> 337 | AC67: =VLOOKUP($B67,[1]FlowData!$A$3:$PL$215,AC$7,FALSE) -> 172 | AD67: =VLOOKUP($B67,[1]FlowData!$A$3:$PL$215,AD$7,FALSE) -> 375 | AE67: =VLOOKUP($B67,[1]FlowData!$A$3:$PL$215,AE$7,FALSE) -> 657 | AF67: =VLOOKUP($B67,[1]FlowData!$A$3:$PL$215,AF$7,FALSE) -> 452 | AG67: =VLOOKUP($B67,[1]FlowData!$A$3:$PL$215,AG$7,FALSE) -> 302 | AH67: =VLOOKUP($B67,[1]FlowData!$A$3:$PL$215,AH$7,FALSE) -> 485 | AI67: =VLOOKUP($B67,[1]FlowData!$A$3:$PL$215,AI$7,FALSE) -> 348 | AJ67: =VLOOKUP($B67,[1]FlowData!$A$3:$PL$215,AJ$7,FALSE) -> 224 | AK67: =VLOOKUP($B67,[1]FlowData!$A$3:$PL$215,AK$7,FALSE) -> 151 | AL67: =VLOOKUP($B67,[1]FlowData!$A$3:$PL$215,AL$7,FALSE) -> 257 | AM67: =VLOOKUP($B67,[1]FlowData!$A$3:$PL$215,AM$7,FALSE) -> 150 | AN67: =VLOOKUP($B67,[1]FlowData!$A$3:$PL$215,AN$7,FALSE) -> 105 | AO67: =VLOOKUP($B67,[1]FlowData!$A$3:$PL$215,AO$7,FALSE) -> 75 | AP67: =VLOOKUP($B67,[1]FlowData!$A$3:$PL$215,AP$7,FALSE) -> 115 | AQ67: =VLOOKUP($B67,[1]FlowData!$A$3:$PL$215,AQ$7,FALSE) -> 106 | AR67: =VLOOKUP($B67,[1]FlowData!$A$3:$PL$215,AR$7,FALSE) -> 70 | AS67: =VLOOKUP($B67,[1]FlowData!$A$3:$PL$215,AS$7,FALSE) -> 48 | AT67: =VLOOKUP($B67,[1]FlowData!$A$3:$PL$215,AT$7,FALSE) -> 84 | AU67: =VLOOKUP($B67,[1]FlowData!$A$3:$PL$215,AU$7,FALSE) -> 110 | AV67: =VLOOKUP($B67,[1]FlowData!$A$3:$PL$215,AV$7,FALSE) -> 62 | AW67: =VLOOKUP($B67,[1]FlowData!$A$3:$PL$215,AW$7,FALSE) -> 32 | AX67: =VLOOKUP($B67,[1]FlowData!$A$3:$PL$215,AX$7,FALSE) -> 84 | AY67: =VLOOKUP($B67,[1]FlowData!$A$3:$PL$215,AY$7,FALSE) -> 95 | AZ67: =VLOOKUP($B67,[1]FlowData!$A$3:$PL$215,AZ$7,FALSE) -> 59 | BA67: =VLOOKUP($B67,[1]FlowData!$A$3:$PL$215,BA$7,FALSE) -> 24 | BB67: =VLOOKUP($B67,[1]FlowData!$A$3:$PL$215,BB$7,FALSE) -> 74 | BC67: =VLOOKUP($B67,[1]FlowData!$A$3:$PL$215,BC$7,FALSE) -> 49 | BD67: =VLOOKUP($B67,[1]FlowData!$A$3:$PL$215,BD$7,FALSE) -> 31 | BE67: =VLOOKUP($B67,[1]FlowData!$A$3:$PL$215,BE$7,FALSE) -> 17 | BF67: =VLOOKUP($B67,[1]FlowData!$A$3:$PL$215,BF$7,FALSE) -> 37
A68: =VLOOKUP(B68,'[2]Gages and BCs'!$A$4:$BJ$973,62,FALSE) -> 10 | B68: 5015000 | C68: =VLOOKUP(B68,'[2]Gages and BCs'!$A$4:$BJ$973,60,FALSE) -> Canyon Creek near Many Glacier, Montana | D68: 1918, 1921–23, 1925, 1928–34, 1936 | E68: =VLOOKUP($B68,[1]FlowData!$A$3:$PL$215,E$7,FALSE) ->  | F68: =VLOOKUP($B68,[1]FlowData!$A$3:$PL$215,F$7,FALSE) -> 5.476 | G68: =VLOOKUP($B68,[1]FlowData!$A$3:$PL$215,G$7,FALSE) ->  | H68: =VLOOKUP($B68,[1]FlowData!$A$3:$PL$215,H$7,FALSE) ->  | I68: =VLOOKUP($B68,[1]FlowData!$A$3:$PL$215,I$7,FALSE) ->  | J68: =VLOOKUP($B68,[1]FlowData!$A$3:$PL$215,J$7,FALSE) ->  | K68: =VLOOKUP($B68,[1]FlowData!$A$3:$PL$215,K$7,FALSE) ->  | L68: =VLOOKUP($B68,[1]FlowData!$A$3:$PL$215,L$7,FALSE) ->  | M68: =VLOOKUP($B68,[1]FlowData!$A$3:$PL$215,M$7,FALSE) ->  | N68: =VLOOKUP($B68,[1]FlowData!$A$3:$PL$215,N$7,FALSE) ->  | O68: =VLOOKUP($B68,[1]FlowData!$A$3:$PL$215,O$7,FALSE) ->  | P68: =VLOOKUP($B68,[1]FlowData!$A$3:$PL$215,P$7,FALSE) ->  | Q68: =VLOOKUP($B68,[1]FlowData!$A$3:$PL$215,Q$7,FALSE) ->  | R68: =VLOOKUP($B68,[1]FlowData!$A$3:$PL$215,R$7,FALSE) ->  | S68: =VLOOKUP($B68,[1]FlowData!$A$3:$PL$215,S$7,FALSE) ->  | T68: =VLOOKUP($B68,[1]FlowData!$A$3:$PL$215,T$7,FALSE) ->  | U68: =VLOOKUP($B68,[1]FlowData!$A$3:$PL$215,U$7,FALSE) ->  | V68: =VLOOKUP($B68,[1]FlowData!$A$3:$PL$215,V$7,FALSE) ->  | W68: =VLOOKUP($B68,[1]FlowData!$A$3:$PL$215,W$7,FALSE) ->  | X68: =VLOOKUP($B68,[1]FlowData!$A$3:$PL$215,X$7,FALSE) ->  | Y68: =VLOOKUP($B68,[1]FlowData!$A$3:$PL$215,Y$7,FALSE) ->  | Z68: =VLOOKUP($B68,[1]FlowData!$A$3:$PL$215,Z$7,FALSE) ->  | AA68: =VLOOKUP($B68,[1]FlowData!$A$3:$PL$215,AA$7,FALSE) -> 91 | AB68: =VLOOKUP($B68,[1]FlowData!$A$3:$PL$215,AB$7,FALSE) -> 52 | AC68: =VLOOKUP($B68,[1]FlowData!$A$3:$PL$215,AC$7,FALSE) -> 27 | AD68: =VLOOKUP($B68,[1]FlowData!$A$3:$PL$215,AD$7,FALSE) -> 60 | AE68: =VLOOKUP($B68,[1]FlowData!$A$3:$PL$215,AE$7,FALSE) -> 98 | AF68: =VLOOKUP($B68,[1]FlowData!$A$3:$PL$215,AF$7,FALSE) -> 67 | AG68: =VLOOKUP($B68,[1]FlowData!$A$3:$PL$215,AG$7,FALSE) -> 44 | AH68: =VLOOKUP($B68,[1]FlowData!$A$3:$PL$215,AH$7,FALSE) -> 74 | AI68: =VLOOKUP($B68,[1]FlowData!$A$3:$PL$215,AI$7,FALSE) -> 51 | AJ68: =VLOOKUP($B68,[1]FlowData!$A$3:$PL$215,AJ$7,FALSE) -> 34 | AK68: =VLOOKUP($B68,[1]FlowData!$A$3:$PL$215,AK$7,FALSE) -> 23 | AL68: =VLOOKUP($B68,[1]FlowData!$A$3:$PL$215,AL$7,FALSE) -> 38 | AM68: =VLOOKUP($B68,[1]FlowData!$A$3:$PL$215,AM$7,FALSE) -> 24 | AN68: =VLOOKUP($B68,[1]FlowData!$A$3:$PL$215,AN$7,FALSE) -> 18 | AO68: =VLOOKUP($B68,[1]FlowData!$A$3:$PL$215,AO$7,FALSE) -> 13 | AP68: =VLOOKUP($B68,[1]FlowData!$A$3:$PL$215,AP$7,FALSE) -> 19 | AQ68: =VLOOKUP($B68,[1]FlowData!$A$3:$PL$215,AQ$7,FALSE) -> 19 | AR68: =VLOOKUP($B68,[1]FlowData!$A$3:$PL$215,AR$7,FALSE) -> 12 | AS68: =VLOOKUP($B68,[1]FlowData!$A$3:$PL$215,AS$7,FALSE) -> 7.6 | AT68: =VLOOKUP($B68,[1]FlowData!$A$3:$PL$215,AT$7,FALSE) -> 13 | AU68: =VLOOKUP($B68,[1]FlowData!$A$3:$PL$215,AU$7,FALSE) -> 17 | AV68: =VLOOKUP($B68,[1]FlowData!$A$3:$PL$215,AV$7,FALSE) -> 11 | AW68: =VLOOKUP($B68,[1]FlowData!$A$3:$PL$215,AW$7,FALSE) -> 7.1 | AX68: =VLOOKUP($B68,[1]FlowData!$A$3:$PL$215,AX$7,FALSE) -> 16 | AY68: =VLOOKUP($B68,[1]FlowData!$A$3:$PL$215,AY$7,FALSE) ->  | AZ68: =VLOOKUP($B68,[1]FlowData!$A$3:$PL$215,AZ$7,FALSE) ->  | BA68: =VLOOKUP($B68,[1]FlowData!$A$3:$PL$215,BA$7,FALSE) ->  | BB68: =VLOOKUP($B68,[1]FlowData!$A$3:$PL$215,BB$7,FALSE) ->  | BC68: =VLOOKUP($B68,[1]FlowData!$A$3:$PL$215,BC$7,FALSE) ->  | BD68: =VLOOKUP($B68,[1]FlowData!$A$3:$PL$215,BD$7,FALSE) ->  | BE68: =VLOOKUP($B68,[1]FlowData!$A$3:$PL$215,BE$7,FALSE) ->  | BF68: =VLOOKUP($B68,[1]FlowData!$A$3:$PL$215,BF$7,FALSE) -> 
A69: =VLOOKUP(B69,'[2]Gages and BCs'!$A$4:$BJ$973,62,FALSE) -> 14 | B69: 5020500 | C69: =VLOOKUP(B69,'[2]Gages and BCs'!$A$4:$BJ$973,60,FALSE) -> St. Mary River at international boundary | D69: 1903–10, 1912–16 | E69: =VLOOKUP($B69,[1]FlowData!$A$3:$PL$215,E$7,FALSE) ->  | F69: =VLOOKUP($B69,[1]FlowData!$A$3:$PL$215,F$7,FALSE) -> 305.693 | G69: =VLOOKUP($B69,[1]FlowData!$A$3:$PL$215,G$7,FALSE) ->  | H69: =VLOOKUP($B69,[1]FlowData!$A$3:$PL$215,H$7,FALSE) ->  | I69: =VLOOKUP($B69,[1]FlowData!$A$3:$PL$215,I$7,FALSE) ->  | J69: =VLOOKUP($B69,[1]FlowData!$A$3:$PL$215,J$7,FALSE) ->  | K69: =VLOOKUP($B69,[1]FlowData!$A$3:$PL$215,K$7,FALSE) ->  | L69: =VLOOKUP($B69,[1]FlowData!$A$3:$PL$215,L$7,FALSE) ->  | M69: =VLOOKUP($B69,[1]FlowData!$A$3:$PL$215,M$7,FALSE) ->  | N69: =VLOOKUP($B69,[1]FlowData!$A$3:$PL$215,N$7,FALSE) ->  | O69: =VLOOKUP($B69,[1]FlowData!$A$3:$PL$215,O$7,FALSE) ->  | P69: =VLOOKUP($B69,[1]FlowData!$A$3:$PL$215,P$7,FALSE) ->  | Q69: =VLOOKUP($B69,[1]FlowData!$A$3:$PL$215,Q$7,FALSE) ->  | R69: =VLOOKUP($B69,[1]FlowData!$A$3:$PL$215,R$7,FALSE) ->  | S69: =VLOOKUP($B69,[1]FlowData!$A$3:$PL$215,S$7,FALSE) ->  | T69: =VLOOKUP($B69,[1]FlowData!$A$3:$PL$215,T$7,FALSE) ->  | U69: =VLOOKUP($B69,[1]FlowData!$A$3:$PL$215,U$7,FALSE) ->  | V69: =VLOOKUP($B69,[1]FlowData!$A$3:$PL$215,V$7,FALSE) ->  | W69: =VLOOKUP($B69,[1]FlowData!$A$3:$PL$215,W$7,FALSE) -> 939 | X69: =VLOOKUP($B69,[1]FlowData!$A$3:$PL$215,X$7,FALSE) -> 581 | Y69: =VLOOKUP($B69,[1]FlowData!$A$3:$PL$215,Y$7,FALSE) -> 279 | Z69: =VLOOKUP($B69,[1]FlowData!$A$3:$PL$215,Z$7,FALSE) -> 647 | AA69: =VLOOKUP($B69,[1]FlowData!$A$3:$PL$215,AA$7,FALSE) -> 2650 | AB69: =VLOOKUP($B69,[1]FlowData!$A$3:$PL$215,AB$7,FALSE) -> 1760 | AC69: =VLOOKUP($B69,[1]FlowData!$A$3:$PL$215,AC$7,FALSE) -> 1200 | AD69: =VLOOKUP($B69,[1]FlowData!$A$3:$PL$215,AD$7,FALSE) -> 1910 | AE69: =VLOOKUP($B69,[1]FlowData!$A$3:$PL$215,AE$7,FALSE) -> 4900 | AF69: =VLOOKUP($B69,[1]FlowData!$A$3:$PL$215,AF$7,FALSE) -> 3090 | AG69: =VLOOKUP($B69,[1]FlowData!$A$3:$PL$215,AG$7,FALSE) -> 2210 | AH69: =VLOOKUP($B69,[1]FlowData!$A$3:$PL$215,AH$7,FALSE) -> 3680 | AI69: =VLOOKUP($B69,[1]FlowData!$A$3:$PL$215,AI$7,FALSE) -> 2780 | AJ69: =VLOOKUP($B69,[1]FlowData!$A$3:$PL$215,AJ$7,FALSE) -> 1900 | AK69: =VLOOKUP($B69,[1]FlowData!$A$3:$PL$215,AK$7,FALSE) -> 1390 | AL69: =VLOOKUP($B69,[1]FlowData!$A$3:$PL$215,AL$7,FALSE) -> 2140 | AM69: =VLOOKUP($B69,[1]FlowData!$A$3:$PL$215,AM$7,FALSE) -> 1300 | AN69: =VLOOKUP($B69,[1]FlowData!$A$3:$PL$215,AN$7,FALSE) -> 985 | AO69: =VLOOKUP($B69,[1]FlowData!$A$3:$PL$215,AO$7,FALSE) -> 716 | AP69: =VLOOKUP($B69,[1]FlowData!$A$3:$PL$215,AP$7,FALSE) -> 1030 | AQ69: =VLOOKUP($B69,[1]FlowData!$A$3:$PL$215,AQ$7,FALSE) -> 873 | AR69: =VLOOKUP($B69,[1]FlowData!$A$3:$PL$215,AR$7,FALSE) -> 598 | AS69: =VLOOKUP($B69,[1]FlowData!$A$3:$PL$215,AS$7,FALSE) -> 436 | AT69: =VLOOKUP($B69,[1]FlowData!$A$3:$PL$215,AT$7,FALSE) -> 678 | AU69: =VLOOKUP($B69,[1]FlowData!$A$3:$PL$215,AU$7,FALSE) -> 838 | AV69: =VLOOKUP($B69,[1]FlowData!$A$3:$PL$215,AV$7,FALSE) -> 581 | AW69: =VLOOKUP($B69,[1]FlowData!$A$3:$PL$215,AW$7,FALSE) -> 402 | AX69: =VLOOKUP($B69,[1]FlowData!$A$3:$PL$215,AX$7,FALSE) -> 630 | AY69: =VLOOKUP($B69,[1]FlowData!$A$3:$PL$215,AY$7,FALSE) -> 664 | AZ69: =VLOOKUP($B69,[1]FlowData!$A$3:$PL$215,AZ$7,FALSE) -> 416 | BA69: =VLOOKUP($B69,[1]FlowData!$A$3:$PL$215,BA$7,FALSE) -> 282 | BB69: =VLOOKUP($B69,[1]FlowData!$A$3:$PL$215,BB$7,FALSE) -> 476 | BC69: =VLOOKUP($B69,[1]FlowData!$A$3:$PL$215,BC$7,FALSE) ->  | BD69: =VLOOKUP($B69,[1]FlowData!$A$3:$PL$215,BD$7,FALSE) ->  | BE69: =VLOOKUP($B69,[1]FlowData!$A$3:$PL$215,BE$7,FALSE) ->  | BF69: =VLOOKUP($B69,[1]FlowData!$A$3:$PL$215,BF$7,FALSE) -> 
A70: =VLOOKUP(B70,'[2]Gages and BCs'!$A$4:$BJ$973,62,FALSE) -> 112 | B70: 6073000 | C70: =VLOOKUP(B70,'[2]Gages and BCs'!$A$4:$BJ$973,60,FALSE) -> Dearborn River near Clemons, Montana | D70: 1921–23, 1929–32, 1934–53 | E70: =VLOOKUP($B70,[1]FlowData!$A$3:$PL$215,E$7,FALSE) -> 10.509 | F70: =VLOOKUP($B70,[1]FlowData!$A$3:$PL$215,F$7,FALSE) -> 11.587 | G70: =VLOOKUP($B70,[1]FlowData!$A$3:$PL$215,G$7,FALSE) -> 161 | H70: =VLOOKUP($B70,[1]FlowData!$A$3:$PL$215,H$7,FALSE) -> 79 | I70: =VLOOKUP($B70,[1]FlowData!$A$3:$PL$215,I$7,FALSE) -> 36 | J70: =VLOOKUP($B70,[1]FlowData!$A$3:$PL$215,J$7,FALSE) -> 131 | K70: =VLOOKUP($B70,[1]FlowData!$A$3:$PL$215,K$7,FALSE) -> 46 | L70: =VLOOKUP($B70,[1]FlowData!$A$3:$PL$215,L$7,FALSE) -> 29 | M70: =VLOOKUP($B70,[1]FlowData!$A$3:$PL$215,M$7,FALSE) -> 23 | N70: =VLOOKUP($B70,[1]FlowData!$A$3:$PL$215,N$7,FALSE) -> 33 | O70: =VLOOKUP($B70,[1]FlowData!$A$3:$PL$215,O$7,FALSE) -> 43 | P70: =VLOOKUP($B70,[1]FlowData!$A$3:$PL$215,P$7,FALSE) -> 31 | Q70: =VLOOKUP($B70,[1]FlowData!$A$3:$PL$215,Q$7,FALSE) -> 23 | R70: =VLOOKUP($B70,[1]FlowData!$A$3:$PL$215,R$7,FALSE) -> 33 | S70: =VLOOKUP($B70,[1]FlowData!$A$3:$PL$215,S$7,FALSE) -> 43 | T70: =VLOOKUP($B70,[1]FlowData!$A$3:$PL$215,T$7,FALSE) -> 32 | U70: =VLOOKUP($B70,[1]FlowData!$A$3:$PL$215,U$7,FALSE) -> 24 | V70: =VLOOKUP($B70,[1]FlowData!$A$3:$PL$215,V$7,FALSE) -> 37 | W70: =VLOOKUP($B70,[1]FlowData!$A$3:$PL$215,W$7,FALSE) -> 197 | X70: =VLOOKUP($B70,[1]FlowData!$A$3:$PL$215,X$7,FALSE) -> 68 | Y70: =VLOOKUP($B70,[1]FlowData!$A$3:$PL$215,Y$7,FALSE) -> 31 | Z70: =VLOOKUP($B70,[1]FlowData!$A$3:$PL$215,Z$7,FALSE) -> 129 | AA70: =VLOOKUP($B70,[1]FlowData!$A$3:$PL$215,AA$7,FALSE) -> 554 | AB70: =VLOOKUP($B70,[1]FlowData!$A$3:$PL$215,AB$7,FALSE) -> 322 | AC70: =VLOOKUP($B70,[1]FlowData!$A$3:$PL$215,AC$7,FALSE) -> 156 | AD70: =VLOOKUP($B70,[1]FlowData!$A$3:$PL$215,AD$7,FALSE) -> 375 | AE70: =VLOOKUP($B70,[1]FlowData!$A$3:$PL$215,AE$7,FALSE) -> 683 | AF70: =VLOOKUP($B70,[1]FlowData!$A$3:$PL$215,AF$7,FALSE) -> 346 | AG70: =VLOOKUP($B70,[1]FlowData!$A$3:$PL$215,AG$7,FALSE) -> 144 | AH70: =VLOOKUP($B70,[1]FlowData!$A$3:$PL$215,AH$7,FALSE) -> 451 | AI70: =VLOOKUP($B70,[1]FlowData!$A$3:$PL$215,AI$7,FALSE) -> 187 | AJ70: =VLOOKUP($B70,[1]FlowData!$A$3:$PL$215,AJ$7,FALSE) -> 82 | AK70: =VLOOKUP($B70,[1]FlowData!$A$3:$PL$215,AK$7,FALSE) -> 31 | AL70: =VLOOKUP($B70,[1]FlowData!$A$3:$PL$215,AL$7,FALSE) -> 123 | AM70: =VLOOKUP($B70,[1]FlowData!$A$3:$PL$215,AM$7,FALSE) -> 68 | AN70: =VLOOKUP($B70,[1]FlowData!$A$3:$PL$215,AN$7,FALSE) -> 35 | AO70: =VLOOKUP($B70,[1]FlowData!$A$3:$PL$215,AO$7,FALSE) -> 18 | AP70: =VLOOKUP($B70,[1]FlowData!$A$3:$PL$215,AP$7,FALSE) -> 47 | AQ70: =VLOOKUP($B70,[1]FlowData!$A$3:$PL$215,AQ$7,FALSE) -> 52 | AR70: =VLOOKUP($B70,[1]FlowData!$A$3:$PL$215,AR$7,FALSE) -> 27 | AS70: =VLOOKUP($B70,[1]FlowData!$A$3:$PL$215,AS$7,FALSE) -> 14 | AT70: =VLOOKUP($B70,[1]FlowData!$A$3:$PL$215,AT$7,FALSE) -> 35 | AU70: =VLOOKUP($B70,[1]FlowData!$A$3:$PL$215,AU$7,FALSE) -> 60 | AV70: =VLOOKUP($B70,[1]FlowData!$A$3:$PL$215,AV$7,FALSE) -> 41 | AW70: =VLOOKUP($B70,[1]FlowData!$A$3:$PL$215,AW$7,FALSE) -> 22 | AX70: =VLOOKUP($B70,[1]FlowData!$A$3:$PL$215,AX$7,FALSE) -> 44 | AY70: =VLOOKUP($B70,[1]FlowData!$A$3:$PL$215,AY$7,FALSE) -> 60 | AZ70: =VLOOKUP($B70,[1]FlowData!$A$3:$PL$215,AZ$7,FALSE) -> 37 | BA70: =VLOOKUP($B70,[1]FlowData!$A$3:$PL$215,BA$7,FALSE) -> 28 | BB70: =VLOOKUP($B70,[1]FlowData!$A$3:$PL$215,BB$7,FALSE) -> 46 | BC70: =VLOOKUP($B70,[1]FlowData!$A$3:$PL$215,BC$7,FALSE) -> 55 | BD70: =VLOOKUP($B70,[1]FlowData!$A$3:$PL$215,BD$7,FALSE) -> 33 | BE70: =VLOOKUP($B70,[1]FlowData!$A$3:$PL$215,BE$7,FALSE) -> 25 | BF70: =VLOOKUP($B70,[1]FlowData!$A$3:$PL$215,BF$7,FALSE) -> 41
A71: =VLOOKUP(B71,'[2]Gages and BCs'!$A$4:$BJ$973,62,FALSE) -> 129 | B71: 6078500 | C71: =VLOOKUP(B71,'[2]Gages and BCs'!$A$4:$BJ$973,60,FALSE) -> North Fork Sun River near Augusta, Montana | D71: 1946–68, 1989–92, 2008 | E71: =VLOOKUP($B71,[1]FlowData!$A$3:$PL$215,E$7,FALSE) -> 36.171 | F71: =VLOOKUP($B71,[1]FlowData!$A$3:$PL$215,F$7,FALSE) -> 80.329 | G71: =VLOOKUP($B71,[1]FlowData!$A$3:$PL$215,G$7,FALSE) -> 712 | H71: =VLOOKUP($B71,[1]FlowData!$A$3:$PL$215,H$7,FALSE) -> 455 | I71: =VLOOKUP($B71,[1]FlowData!$A$3:$PL$215,I$7,FALSE) -> 198 | J71: =VLOOKUP($B71,[1]FlowData!$A$3:$PL$215,J$7,FALSE) -> 363 | K71: =VLOOKUP($B71,[1]FlowData!$A$3:$PL$215,K$7,FALSE) -> 80 | L71: =VLOOKUP($B71,[1]FlowData!$A$3:$PL$215,L$7,FALSE) -> 64 | M71: =VLOOKUP($B71,[1]FlowData!$A$3:$PL$215,M$7,FALSE) -> 53 | N71: =VLOOKUP($B71,[1]FlowData!$A$3:$PL$215,N$7,FALSE) -> 66 | O71: =VLOOKUP($B71,[1]FlowData!$A$3:$PL$215,O$7,FALSE) -> 78 | P71: =VLOOKUP($B71,[1]FlowData!$A$3:$PL$215,P$7,FALSE) -> 63 | Q71: =VLOOKUP($B71,[1]FlowData!$A$3:$PL$215,Q$7,FALSE) -> 52 | R71: =VLOOKUP($B71,[1]FlowData!$A$3:$PL$215,R$7,FALSE) -> 66 | S71: =VLOOKUP($B71,[1]FlowData!$A$3:$PL$215,S$7,FALSE) -> 80 | T71: =VLOOKUP($B71,[1]FlowData!$A$3:$PL$215,T$7,FALSE) -> 63 | U71: =VLOOKUP($B71,[1]FlowData!$A$3:$PL$215,U$7,FALSE) -> 52 | V71: =VLOOKUP($B71,[1]FlowData!$A$3:$PL$215,V$7,FALSE) -> 68 | W71: =VLOOKUP($B71,[1]FlowData!$A$3:$PL$215,W$7,FALSE) -> 383 | X71: =VLOOKUP($B71,[1]FlowData!$A$3:$PL$215,X$7,FALSE) -> 164 | Y71: =VLOOKUP($B71,[1]FlowData!$A$3:$PL$215,Y$7,FALSE) -> 78 | Z71: =VLOOKUP($B71,[1]FlowData!$A$3:$PL$215,Z$7,FALSE) -> 271 | AA71: =VLOOKUP($B71,[1]FlowData!$A$3:$PL$215,AA$7,FALSE) -> 1900 | AB71: =VLOOKUP($B71,[1]FlowData!$A$3:$PL$215,AB$7,FALSE) -> 1160 | AC71: =VLOOKUP($B71,[1]FlowData!$A$3:$PL$215,AC$7,FALSE) -> 585 | AD71: =VLOOKUP($B71,[1]FlowData!$A$3:$PL$215,AD$7,FALSE) -> 1270 | AE71: =VLOOKUP($B71,[1]FlowData!$A$3:$PL$215,AE$7,FALSE) -> 2090 | AF71: =VLOOKUP($B71,[1]FlowData!$A$3:$PL$215,AF$7,FALSE) -> 1350 | AG71: =VLOOKUP($B71,[1]FlowData!$A$3:$PL$215,AG$7,FALSE) -> 757 | AH71: =VLOOKUP($B71,[1]FlowData!$A$3:$PL$215,AH$7,FALSE) -> 1470 | AI71: =VLOOKUP($B71,[1]FlowData!$A$3:$PL$215,AI$7,FALSE) -> 659 | AJ71: =VLOOKUP($B71,[1]FlowData!$A$3:$PL$215,AJ$7,FALSE) -> 371 | AK71: =VLOOKUP($B71,[1]FlowData!$A$3:$PL$215,AK$7,FALSE) -> 241 | AL71: =VLOOKUP($B71,[1]FlowData!$A$3:$PL$215,AL$7,FALSE) -> 487 | AM71: =VLOOKUP($B71,[1]FlowData!$A$3:$PL$215,AM$7,FALSE) -> 212 | AN71: =VLOOKUP($B71,[1]FlowData!$A$3:$PL$215,AN$7,FALSE) -> 162 | AO71: =VLOOKUP($B71,[1]FlowData!$A$3:$PL$215,AO$7,FALSE) -> 128 | AP71: =VLOOKUP($B71,[1]FlowData!$A$3:$PL$215,AP$7,FALSE) -> 172 | AQ71: =VLOOKUP($B71,[1]FlowData!$A$3:$PL$215,AQ$7,FALSE) -> 151 | AR71: =VLOOKUP($B71,[1]FlowData!$A$3:$PL$215,AR$7,FALSE) -> 114 | AS71: =VLOOKUP($B71,[1]FlowData!$A$3:$PL$215,AS$7,FALSE) -> 95 | AT71: =VLOOKUP($B71,[1]FlowData!$A$3:$PL$215,AT$7,FALSE) -> 129 | AU71: =VLOOKUP($B71,[1]FlowData!$A$3:$PL$215,AU$7,FALSE) -> 150 | AV71: =VLOOKUP($B71,[1]FlowData!$A$3:$PL$215,AV$7,FALSE) -> 105 | AW71: =VLOOKUP($B71,[1]FlowData!$A$3:$PL$215,AW$7,FALSE) -> 83 | AX71: =VLOOKUP($B71,[1]FlowData!$A$3:$PL$215,AX$7,FALSE) -> 122 | AY71: =VLOOKUP($B71,[1]FlowData!$A$3:$PL$215,AY$7,FALSE) -> 122 | AZ71: =VLOOKUP($B71,[1]FlowData!$A$3:$PL$215,AZ$7,FALSE) -> 91 | BA71: =VLOOKUP($B71,[1]FlowData!$A$3:$PL$215,BA$7,FALSE) -> 73 | BB71: =VLOOKUP($B71,[1]FlowData!$A$3:$PL$215,BB$7,FALSE) -> 100 | BC71: =VLOOKUP($B71,[1]FlowData!$A$3:$PL$215,BC$7,FALSE) -> 102 | BD71: =VLOOKUP($B71,[1]FlowData!$A$3:$PL$215,BD$7,FALSE) -> 74 | BE71: =VLOOKUP($B71,[1]FlowData!$A$3:$PL$215,BE$7,FALSE) -> 60 | BF71: =VLOOKUP($B71,[1]FlowData!$A$3:$PL$215,BF$7,FALSE) -> 82
A72: =VLOOKUP(B72,'[2]Gages and BCs'!$A$4:$BJ$973,62,FALSE) -> 131 | B72: 6080000 | C72: =VLOOKUP(B72,'[2]Gages and BCs'!$A$4:$BJ$973,60,FALSE) -> Sun River near Augusta, Montana | D72: 1905–22, 1924–25 | E72: =VLOOKUP($B72,[1]FlowData!$A$3:$PL$215,E$7,FALSE) ->  | F72: =VLOOKUP($B72,[1]FlowData!$A$3:$PL$215,F$7,FALSE) -> 164.189 | G72: =VLOOKUP($B72,[1]FlowData!$A$3:$PL$215,G$7,FALSE) ->  | H72: =VLOOKUP($B72,[1]FlowData!$A$3:$PL$215,H$7,FALSE) ->  | I72: =VLOOKUP($B72,[1]FlowData!$A$3:$PL$215,I$7,FALSE) ->  | J72: =VLOOKUP($B72,[1]FlowData!$A$3:$PL$215,J$7,FALSE) ->  | K72: =VLOOKUP($B72,[1]FlowData!$A$3:$PL$215,K$7,FALSE) ->  | L72: =VLOOKUP($B72,[1]FlowData!$A$3:$PL$215,L$7,FALSE) ->  | M72: =VLOOKUP($B72,[1]FlowData!$A$3:$PL$215,M$7,FALSE) ->  | N72: =VLOOKUP($B72,[1]FlowData!$A$3:$PL$215,N$7,FALSE) ->  | O72: =VLOOKUP($B72,[1]FlowData!$A$3:$PL$215,O$7,FALSE) -> 281 | P72: =VLOOKUP($B72,[1]FlowData!$A$3:$PL$215,P$7,FALSE) -> 195 | Q72: =VLOOKUP($B72,[1]FlowData!$A$3:$PL$215,Q$7,FALSE) -> 134 | R72: =VLOOKUP($B72,[1]FlowData!$A$3:$PL$215,R$7,FALSE) -> 224 | S72: =VLOOKUP($B72,[1]FlowData!$A$3:$PL$215,S$7,FALSE) -> 356 | T72: =VLOOKUP($B72,[1]FlowData!$A$3:$PL$215,T$7,FALSE) -> 185 | U72: =VLOOKUP($B72,[1]FlowData!$A$3:$PL$215,U$7,FALSE) -> 132 | V72: =VLOOKUP($B72,[1]FlowData!$A$3:$PL$215,V$7,FALSE) -> 239 | W72: =VLOOKUP($B72,[1]FlowData!$A$3:$PL$215,W$7,FALSE) -> 1180 | X72: =VLOOKUP($B72,[1]FlowData!$A$3:$PL$215,X$7,FALSE) -> 473 | Y72: =VLOOKUP($B72,[1]FlowData!$A$3:$PL$215,Y$7,FALSE) -> 239 | Z72: =VLOOKUP($B72,[1]FlowData!$A$3:$PL$215,Z$7,FALSE) -> 742 | AA72: =VLOOKUP($B72,[1]FlowData!$A$3:$PL$215,AA$7,FALSE) -> 3730 | AB72: =VLOOKUP($B72,[1]FlowData!$A$3:$PL$215,AB$7,FALSE) -> 2330 | AC72: =VLOOKUP($B72,[1]FlowData!$A$3:$PL$215,AC$7,FALSE) -> 1370 | AD72: =VLOOKUP($B72,[1]FlowData!$A$3:$PL$215,AD$7,FALSE) -> 2650 | AE72: =VLOOKUP($B72,[1]FlowData!$A$3:$PL$215,AE$7,FALSE) -> 5240 | AF72: =VLOOKUP($B72,[1]FlowData!$A$3:$PL$215,AF$7,FALSE) -> 3050 | AG72: =VLOOKUP($B72,[1]FlowData!$A$3:$PL$215,AG$7,FALSE) -> 1700 | AH72: =VLOOKUP($B72,[1]FlowData!$A$3:$PL$215,AH$7,FALSE) -> 3660 | AI72: =VLOOKUP($B72,[1]FlowData!$A$3:$PL$215,AI$7,FALSE) -> 1680 | AJ72: =VLOOKUP($B72,[1]FlowData!$A$3:$PL$215,AJ$7,FALSE) -> 979 | AK72: =VLOOKUP($B72,[1]FlowData!$A$3:$PL$215,AK$7,FALSE) -> 569 | AL72: =VLOOKUP($B72,[1]FlowData!$A$3:$PL$215,AL$7,FALSE) -> 1270 | AM72: =VLOOKUP($B72,[1]FlowData!$A$3:$PL$215,AM$7,FALSE) -> 612 | AN72: =VLOOKUP($B72,[1]FlowData!$A$3:$PL$215,AN$7,FALSE) -> 392 | AO72: =VLOOKUP($B72,[1]FlowData!$A$3:$PL$215,AO$7,FALSE) -> 264 | AP72: =VLOOKUP($B72,[1]FlowData!$A$3:$PL$215,AP$7,FALSE) -> 452 | AQ72: =VLOOKUP($B72,[1]FlowData!$A$3:$PL$215,AQ$7,FALSE) -> 443 | AR72: =VLOOKUP($B72,[1]FlowData!$A$3:$PL$215,AR$7,FALSE) -> 316 | AS72: =VLOOKUP($B72,[1]FlowData!$A$3:$PL$215,AS$7,FALSE) -> 243 | AT72: =VLOOKUP($B72,[1]FlowData!$A$3:$PL$215,AT$7,FALSE) -> 344 | AU72: =VLOOKUP($B72,[1]FlowData!$A$3:$PL$215,AU$7,FALSE) -> 386 | AV72: =VLOOKUP($B72,[1]FlowData!$A$3:$PL$215,AV$7,FALSE) -> 316 | AW72: =VLOOKUP($B72,[1]FlowData!$A$3:$PL$215,AW$7,FALSE) -> 208 | AX72: =VLOOKUP($B72,[1]FlowData!$A$3:$PL$215,AX$7,FALSE) -> 305 | AY72: =VLOOKUP($B72,[1]FlowData!$A$3:$PL$215,AY$7,FALSE) -> 414 | AZ72: =VLOOKUP($B72,[1]FlowData!$A$3:$PL$215,AZ$7,FALSE) -> 283 | BA72: =VLOOKUP($B72,[1]FlowData!$A$3:$PL$215,BA$7,FALSE) -> 175 | BB72: =VLOOKUP($B72,[1]FlowData!$A$3:$PL$215,BB$7,FALSE) -> 310 | BC72: =VLOOKUP($B72,[1]FlowData!$A$3:$PL$215,BC$7,FALSE) -> 300 | BD72: =VLOOKUP($B72,[1]FlowData!$A$3:$PL$215,BD$7,FALSE) -> 227 | BE72: =VLOOKUP($B72,[1]FlowData!$A$3:$PL$215,BE$7,FALSE) -> 146 | BF72: =VLOOKUP($B72,[1]FlowData!$A$3:$PL$215,BF$7,FALSE) -> 231
A73: =VLOOKUP(B73,'[2]Gages and BCs'!$A$4:$BJ$973,62,FALSE) -> 133 | B73: 6081500 | C73: =VLOOKUP(B73,'[2]Gages and BCs'!$A$4:$BJ$973,60,FALSE) -> Willow Creek near Augusta, Montana | D73: 1905–25 | E73: =VLOOKUP($B73,[1]FlowData!$A$3:$PL$215,E$7,FALSE) -> 1.233 | F73: =VLOOKUP($B73,[1]FlowData!$A$3:$PL$215,F$7,FALSE) -> 4.635 | G73: =VLOOKUP($B73,[1]FlowData!$A$3:$PL$215,G$7,FALSE) -> 41 | H73: =VLOOKUP($B73,[1]FlowData!$A$3:$PL$215,H$7,FALSE) -> 26 | I73: =VLOOKUP($B73,[1]FlowData!$A$3:$PL$215,I$7,FALSE) -> 10 | J73: =VLOOKUP($B73,[1]FlowData!$A$3:$PL$215,J$7,FALSE) -> 36 | K73: =VLOOKUP($B73,[1]FlowData!$A$3:$PL$215,K$7,FALSE) -> 15 | L73: =VLOOKUP($B73,[1]FlowData!$A$3:$PL$215,L$7,FALSE) -> 8.7 | M73: =VLOOKUP($B73,[1]FlowData!$A$3:$PL$215,M$7,FALSE) -> 5.1 | N73: =VLOOKUP($B73,[1]FlowData!$A$3:$PL$215,N$7,FALSE) -> 12 | O73: =VLOOKUP($B73,[1]FlowData!$A$3:$PL$215,O$7,FALSE) -> 25 | P73: =VLOOKUP($B73,[1]FlowData!$A$3:$PL$215,P$7,FALSE) -> 16 | Q73: =VLOOKUP($B73,[1]FlowData!$A$3:$PL$215,Q$7,FALSE) -> 6.8 | R73: =VLOOKUP($B73,[1]FlowData!$A$3:$PL$215,R$7,FALSE) -> 19 | S73: =VLOOKUP($B73,[1]FlowData!$A$3:$PL$215,S$7,FALSE) -> 21 | T73: =VLOOKUP($B73,[1]FlowData!$A$3:$PL$215,T$7,FALSE) -> 13 | U73: =VLOOKUP($B73,[1]FlowData!$A$3:$PL$215,U$7,FALSE) -> 5.5 | V73: =VLOOKUP($B73,[1]FlowData!$A$3:$PL$215,V$7,FALSE) -> 16 | W73: =VLOOKUP($B73,[1]FlowData!$A$3:$PL$215,W$7,FALSE) -> 35 | X73: =VLOOKUP($B73,[1]FlowData!$A$3:$PL$215,X$7,FALSE) -> 20 | Y73: =VLOOKUP($B73,[1]FlowData!$A$3:$PL$215,Y$7,FALSE) -> 11 | Z73: =VLOOKUP($B73,[1]FlowData!$A$3:$PL$215,Z$7,FALSE) -> 24 | AA73: =VLOOKUP($B73,[1]FlowData!$A$3:$PL$215,AA$7,FALSE) -> 79 | AB73: =VLOOKUP($B73,[1]FlowData!$A$3:$PL$215,AB$7,FALSE) -> 48 | AC73: =VLOOKUP($B73,[1]FlowData!$A$3:$PL$215,AC$7,FALSE) -> 22 | AD73: =VLOOKUP($B73,[1]FlowData!$A$3:$PL$215,AD$7,FALSE) -> 67 | AE73: =VLOOKUP($B73,[1]FlowData!$A$3:$PL$215,AE$7,FALSE) -> 124 | AF73: =VLOOKUP($B73,[1]FlowData!$A$3:$PL$215,AF$7,FALSE) -> 58 | AG73: =VLOOKUP($B73,[1]FlowData!$A$3:$PL$215,AG$7,FALSE) -> 22 | AH73: =VLOOKUP($B73,[1]FlowData!$A$3:$PL$215,AH$7,FALSE) -> 99 | AI73: =VLOOKUP($B73,[1]FlowData!$A$3:$PL$215,AI$7,FALSE) -> 56 | AJ73: =VLOOKUP($B73,[1]FlowData!$A$3:$PL$215,AJ$7,FALSE) -> 26 | AK73: =VLOOKUP($B73,[1]FlowData!$A$3:$PL$215,AK$7,FALSE) -> 9.5 | AL73: =VLOOKUP($B73,[1]FlowData!$A$3:$PL$215,AL$7,FALSE) -> 39 | AM73: =VLOOKUP($B73,[1]FlowData!$A$3:$PL$215,AM$7,FALSE) -> 29 | AN73: =VLOOKUP($B73,[1]FlowData!$A$3:$PL$215,AN$7,FALSE) -> 14 | AO73: =VLOOKUP($B73,[1]FlowData!$A$3:$PL$215,AO$7,FALSE) -> 3 | AP73: =VLOOKUP($B73,[1]FlowData!$A$3:$PL$215,AP$7,FALSE) -> 18 | AQ73: =VLOOKUP($B73,[1]FlowData!$A$3:$PL$215,AQ$7,FALSE) -> 20 | AR73: =VLOOKUP($B73,[1]FlowData!$A$3:$PL$215,AR$7,FALSE) -> 10 | AS73: =VLOOKUP($B73,[1]FlowData!$A$3:$PL$215,AS$7,FALSE) -> 4.7 | AT73: =VLOOKUP($B73,[1]FlowData!$A$3:$PL$215,AT$7,FALSE) -> 13 | AU73: =VLOOKUP($B73,[1]FlowData!$A$3:$PL$215,AU$7,FALSE) -> 22 | AV73: =VLOOKUP($B73,[1]FlowData!$A$3:$PL$215,AV$7,FALSE) -> 14 | AW73: =VLOOKUP($B73,[1]FlowData!$A$3:$PL$215,AW$7,FALSE) -> 7.6 | AX73: =VLOOKUP($B73,[1]FlowData!$A$3:$PL$215,AX$7,FALSE) -> 15 | AY73: =VLOOKUP($B73,[1]FlowData!$A$3:$PL$215,AY$7,FALSE) -> 18 | AZ73: =VLOOKUP($B73,[1]FlowData!$A$3:$PL$215,AZ$7,FALSE) -> 13 | BA73: =VLOOKUP($B73,[1]FlowData!$A$3:$PL$215,BA$7,FALSE) -> 9.2 | BB73: =VLOOKUP($B73,[1]FlowData!$A$3:$PL$215,BB$7,FALSE) -> 14 | BC73: =VLOOKUP($B73,[1]FlowData!$A$3:$PL$215,BC$7,FALSE) -> 14 | BD73: =VLOOKUP($B73,[1]FlowData!$A$3:$PL$215,BD$7,FALSE) -> 9.3 | BE73: =VLOOKUP($B73,[1]FlowData!$A$3:$PL$215,BE$7,FALSE) -> 5.3 | BF73: =VLOOKUP($B73,[1]FlowData!$A$3:$PL$215,BF$7,FALSE) -> 11
A74: =VLOOKUP(B74,'[2]Gages and BCs'!$A$4:$BJ$973,62,FALSE) -> 134 | B74: 6084500 | C74: =VLOOKUP(B74,'[2]Gages and BCs'!$A$4:$BJ$973,60,FALSE) -> Elk Creek at Augusta, Montana | D74: 1905–08, 1910–19, 1921–24 | E74: =VLOOKUP($B74,[1]FlowData!$A$3:$PL$215,E$7,FALSE) ->  | F74: =VLOOKUP($B74,[1]FlowData!$A$3:$PL$215,F$7,FALSE) -> 4.356 | G74: =VLOOKUP($B74,[1]FlowData!$A$3:$PL$215,G$7,FALSE) ->  | H74: =VLOOKUP($B74,[1]FlowData!$A$3:$PL$215,H$7,FALSE) ->  | I74: =VLOOKUP($B74,[1]FlowData!$A$3:$PL$215,I$7,FALSE) ->  | J74: =VLOOKUP($B74,[1]FlowData!$A$3:$PL$215,J$7,FALSE) ->  | K74: =VLOOKUP($B74,[1]FlowData!$A$3:$PL$215,K$7,FALSE) ->  | L74: =VLOOKUP($B74,[1]FlowData!$A$3:$PL$215,L$7,FALSE) ->  | M74: =VLOOKUP($B74,[1]FlowData!$A$3:$PL$215,M$7,FALSE) ->  | N74: =VLOOKUP($B74,[1]FlowData!$A$3:$PL$215,N$7,FALSE) ->  | O74: =VLOOKUP($B74,[1]FlowData!$A$3:$PL$215,O$7,FALSE) ->  | P74: =VLOOKUP($B74,[1]FlowData!$A$3:$PL$215,P$7,FALSE) ->  | Q74: =VLOOKUP($B74,[1]FlowData!$A$3:$PL$215,Q$7,FALSE) ->  | R74: =VLOOKUP($B74,[1]FlowData!$A$3:$PL$215,R$7,FALSE) ->  | S74: =VLOOKUP($B74,[1]FlowData!$A$3:$PL$215,S$7,FALSE) ->  | T74: =VLOOKUP($B74,[1]FlowData!$A$3:$PL$215,T$7,FALSE) ->  | U74: =VLOOKUP($B74,[1]FlowData!$A$3:$PL$215,U$7,FALSE) ->  | V74: =VLOOKUP($B74,[1]FlowData!$A$3:$PL$215,V$7,FALSE) ->  | W74: =VLOOKUP($B74,[1]FlowData!$A$3:$PL$215,W$7,FALSE) -> 97 | X74: =VLOOKUP($B74,[1]FlowData!$A$3:$PL$215,X$7,FALSE) -> 58 | Y74: =VLOOKUP($B74,[1]FlowData!$A$3:$PL$215,Y$7,FALSE) -> 33 | Z74: =VLOOKUP($B74,[1]FlowData!$A$3:$PL$215,Z$7,FALSE) -> 69 | AA74: =VLOOKUP($B74,[1]FlowData!$A$3:$PL$215,AA$7,FALSE) -> 386 | AB74: =VLOOKUP($B74,[1]FlowData!$A$3:$PL$215,AB$7,FALSE) -> 178 | AC74: =VLOOKUP($B74,[1]FlowData!$A$3:$PL$215,AC$7,FALSE) -> 55 | AD74: =VLOOKUP($B74,[1]FlowData!$A$3:$PL$215,AD$7,FALSE) -> 262 | AE74: =VLOOKUP($B74,[1]FlowData!$A$3:$PL$215,AE$7,FALSE) -> 552 | AF74: =VLOOKUP($B74,[1]FlowData!$A$3:$PL$215,AF$7,FALSE) -> 238 | AG74: =VLOOKUP($B74,[1]FlowData!$A$3:$PL$215,AG$7,FALSE) -> 86 | AH74: =VLOOKUP($B74,[1]FlowData!$A$3:$PL$215,AH$7,FALSE) -> 385 | AI74: =VLOOKUP($B74,[1]FlowData!$A$3:$PL$215,AI$7,FALSE) -> 167 | AJ74: =VLOOKUP($B74,[1]FlowData!$A$3:$PL$215,AJ$7,FALSE) -> 68 | AK74: =VLOOKUP($B74,[1]FlowData!$A$3:$PL$215,AK$7,FALSE) -> 26 | AL74: =VLOOKUP($B74,[1]FlowData!$A$3:$PL$215,AL$7,FALSE) -> 105 | AM74: =VLOOKUP($B74,[1]FlowData!$A$3:$PL$215,AM$7,FALSE) -> 67 | AN74: =VLOOKUP($B74,[1]FlowData!$A$3:$PL$215,AN$7,FALSE) -> 34 | AO74: =VLOOKUP($B74,[1]FlowData!$A$3:$PL$215,AO$7,FALSE) -> 12 | AP74: =VLOOKUP($B74,[1]FlowData!$A$3:$PL$215,AP$7,FALSE) -> 45 | AQ74: =VLOOKUP($B74,[1]FlowData!$A$3:$PL$215,AQ$7,FALSE) -> 61 | AR74: =VLOOKUP($B74,[1]FlowData!$A$3:$PL$215,AR$7,FALSE) -> 31 | AS74: =VLOOKUP($B74,[1]FlowData!$A$3:$PL$215,AS$7,FALSE) -> 9 | AT74: =VLOOKUP($B74,[1]FlowData!$A$3:$PL$215,AT$7,FALSE) -> 34 | AU74: =VLOOKUP($B74,[1]FlowData!$A$3:$PL$215,AU$7,FALSE) -> 68 | AV74: =VLOOKUP($B74,[1]FlowData!$A$3:$PL$215,AV$7,FALSE) -> 42 | AW74: =VLOOKUP($B74,[1]FlowData!$A$3:$PL$215,AW$7,FALSE) -> 23 | AX74: =VLOOKUP($B74,[1]FlowData!$A$3:$PL$215,AX$7,FALSE) -> 48 | AY74: =VLOOKUP($B74,[1]FlowData!$A$3:$PL$215,AY$7,FALSE) ->  | AZ74: =VLOOKUP($B74,[1]FlowData!$A$3:$PL$215,AZ$7,FALSE) ->  | BA74: =VLOOKUP($B74,[1]FlowData!$A$3:$PL$215,BA$7,FALSE) ->  | BB74: =VLOOKUP($B74,[1]FlowData!$A$3:$PL$215,BB$7,FALSE) ->  | BC74: =VLOOKUP($B74,[1]FlowData!$A$3:$PL$215,BC$7,FALSE) ->  | BD74: =VLOOKUP($B74,[1]FlowData!$A$3:$PL$215,BD$7,FALSE) ->  | BE74: =VLOOKUP($B74,[1]FlowData!$A$3:$PL$215,BE$7,FALSE) ->  | BF74: =VLOOKUP($B74,[1]FlowData!$A$3:$PL$215,BF$7,FALSE) -> 
A75: =VLOOKUP(B75,'[2]Gages and BCs'!$A$4:$BJ$973,62,FALSE) -> 149 | B75: 6092000 | C75: =VLOOKUP(B75,'[2]Gages and BCs'!$A$4:$BJ$973,60,FALSE) -> Two Medicine River near Browning, Montana | D75: 1910–11, 1913–24, 1951–77 | E75: =VLOOKUP($B75,[1]FlowData!$A$3:$PL$215,E$7,FALSE) -> 2.966 | F75: =VLOOKUP($B75,[1]FlowData!$A$3:$PL$215,F$7,FALSE) -> 9.399 | G75: =VLOOKUP($B75,[1]FlowData!$A$3:$PL$215,G$7,FALSE) -> 1130 | H75: =VLOOKUP($B75,[1]FlowData!$A$3:$PL$215,H$7,FALSE) -> 707 | I75: =VLOOKUP($B75,[1]FlowData!$A$3:$PL$215,I$7,FALSE) -> 284 | J75: =VLOOKUP($B75,[1]FlowData!$A$3:$PL$215,J$7,FALSE) -> 361 | K75: =VLOOKUP($B75,[1]FlowData!$A$3:$PL$215,K$7,FALSE) -> 110 | L75: =VLOOKUP($B75,[1]FlowData!$A$3:$PL$215,L$7,FALSE) -> 66 | M75: =VLOOKUP($B75,[1]FlowData!$A$3:$PL$215,M$7,FALSE) -> 36 | N75: =VLOOKUP($B75,[1]FlowData!$A$3:$PL$215,N$7,FALSE) -> 79 | O75: =VLOOKUP($B75,[1]FlowData!$A$3:$PL$215,O$7,FALSE) -> 114 | P75: =VLOOKUP($B75,[1]FlowData!$A$3:$PL$215,P$7,FALSE) -> 72 | Q75: =VLOOKUP($B75,[1]FlowData!$A$3:$PL$215,Q$7,FALSE) -> 45 | R75: =VLOOKUP($B75,[1]FlowData!$A$3:$PL$215,R$7,FALSE) -> 88 | S75: =VLOOKUP($B75,[1]FlowData!$A$3:$PL$215,S$7,FALSE) -> 177 | T75: =VLOOKUP($B75,[1]FlowData!$A$3:$PL$215,T$7,FALSE) -> 92 | U75: =VLOOKUP($B75,[1]FlowData!$A$3:$PL$215,U$7,FALSE) -> 42 | V75: =VLOOKUP($B75,[1]FlowData!$A$3:$PL$215,V$7,FALSE) -> 135 | W75: =VLOOKUP($B75,[1]FlowData!$A$3:$PL$215,W$7,FALSE) -> 764 | X75: =VLOOKUP($B75,[1]FlowData!$A$3:$PL$215,X$7,FALSE) -> 345 | Y75: =VLOOKUP($B75,[1]FlowData!$A$3:$PL$215,Y$7,FALSE) -> 152 | Z75: =VLOOKUP($B75,[1]FlowData!$A$3:$PL$215,Z$7,FALSE) -> 475 | AA75: =VLOOKUP($B75,[1]FlowData!$A$3:$PL$215,AA$7,FALSE) -> 1860 | AB75: =VLOOKUP($B75,[1]FlowData!$A$3:$PL$215,AB$7,FALSE) -> 1250 | AC75: =VLOOKUP($B75,[1]FlowData!$A$3:$PL$215,AC$7,FALSE) -> 808 | AD75: =VLOOKUP($B75,[1]FlowData!$A$3:$PL$215,AD$7,FALSE) -> 1400 | AE75: =VLOOKUP($B75,[1]FlowData!$A$3:$PL$215,AE$7,FALSE) -> 2200 | AF75: =VLOOKUP($B75,[1]FlowData!$A$3:$PL$215,AF$7,FALSE) -> 1170 | AG75: =VLOOKUP($B75,[1]FlowData!$A$3:$PL$215,AG$7,FALSE) -> 473 | AH75: =VLOOKUP($B75,[1]FlowData!$A$3:$PL$215,AH$7,FALSE) -> 1450 | AI75: =VLOOKUP($B75,[1]FlowData!$A$3:$PL$215,AI$7,FALSE) -> 599 | AJ75: =VLOOKUP($B75,[1]FlowData!$A$3:$PL$215,AJ$7,FALSE) -> 271 | AK75: =VLOOKUP($B75,[1]FlowData!$A$3:$PL$215,AK$7,FALSE) -> 112 | AL75: =VLOOKUP($B75,[1]FlowData!$A$3:$PL$215,AL$7,FALSE) -> 383 | AM75: =VLOOKUP($B75,[1]FlowData!$A$3:$PL$215,AM$7,FALSE) -> 139 | AN75: =VLOOKUP($B75,[1]FlowData!$A$3:$PL$215,AN$7,FALSE) -> 69 | AO75: =VLOOKUP($B75,[1]FlowData!$A$3:$PL$215,AO$7,FALSE) -> 27 | AP75: =VLOOKUP($B75,[1]FlowData!$A$3:$PL$215,AP$7,FALSE) -> 91 | AQ75: =VLOOKUP($B75,[1]FlowData!$A$3:$PL$215,AQ$7,FALSE) -> 142 | AR75: =VLOOKUP($B75,[1]FlowData!$A$3:$PL$215,AR$7,FALSE) -> 65 | AS75: =VLOOKUP($B75,[1]FlowData!$A$3:$PL$215,AS$7,FALSE) -> 24 | AT75: =VLOOKUP($B75,[1]FlowData!$A$3:$PL$215,AT$7,FALSE) -> 101 | AU75: =VLOOKUP($B75,[1]FlowData!$A$3:$PL$215,AU$7,FALSE) -> 205 | AV75: =VLOOKUP($B75,[1]FlowData!$A$3:$PL$215,AV$7,FALSE) -> 92 | AW75: =VLOOKUP($B75,[1]FlowData!$A$3:$PL$215,AW$7,FALSE) -> 40 | AX75: =VLOOKUP($B75,[1]FlowData!$A$3:$PL$215,AX$7,FALSE) -> 131 | AY75: =VLOOKUP($B75,[1]FlowData!$A$3:$PL$215,AY$7,FALSE) -> 171 | AZ75: =VLOOKUP($B75,[1]FlowData!$A$3:$PL$215,AZ$7,FALSE) -> 84 | BA75: =VLOOKUP($B75,[1]FlowData!$A$3:$PL$215,BA$7,FALSE) -> 47 | BB75: =VLOOKUP($B75,[1]FlowData!$A$3:$PL$215,BB$7,FALSE) -> 112 | BC75: =VLOOKUP($B75,[1]FlowData!$A$3:$PL$215,BC$7,FALSE) -> 142 | BD75: =VLOOKUP($B75,[1]FlowData!$A$3:$PL$215,BD$7,FALSE) -> 71 | BE75: =VLOOKUP($B75,[1]FlowData!$A$3:$PL$215,BE$7,FALSE) -> 32 | BF75: =VLOOKUP($B75,[1]FlowData!$A$3:$PL$215,BF$7,FALSE) -> 92
A76: =VLOOKUP(B76,'[2]Gages and BCs'!$A$4:$BJ$973,62,FALSE) -> 150 | B76: 6092500 | C76: =VLOOKUP(B76,'[2]Gages and BCs'!$A$4:$BJ$973,60,FALSE) -> Badger Creek near Browning, Montana | D76: 1951–73 | E76: =VLOOKUP($B76,[1]FlowData!$A$3:$PL$215,E$7,FALSE) -> 36.076 | F76: =VLOOKUP($B76,[1]FlowData!$A$3:$PL$215,F$7,FALSE) -> 93.884 | G76: =VLOOKUP($B76,[1]FlowData!$A$3:$PL$215,G$7,FALSE) -> 544 | H76: =VLOOKUP($B76,[1]FlowData!$A$3:$PL$215,H$7,FALSE) -> 348 | I76: =VLOOKUP($B76,[1]FlowData!$A$3:$PL$215,I$7,FALSE) -> 153 | J76: =VLOOKUP($B76,[1]FlowData!$A$3:$PL$215,J$7,FALSE) -> 229 | K76: =VLOOKUP($B76,[1]FlowData!$A$3:$PL$215,K$7,FALSE) -> 103 | L76: =VLOOKUP($B76,[1]FlowData!$A$3:$PL$215,L$7,FALSE) -> 85 | M76: =VLOOKUP($B76,[1]FlowData!$A$3:$PL$215,M$7,FALSE) -> 61 | N76: =VLOOKUP($B76,[1]FlowData!$A$3:$PL$215,N$7,FALSE) -> 83 | O76: =VLOOKUP($B76,[1]FlowData!$A$3:$PL$215,O$7,FALSE) -> 104 | P76: =VLOOKUP($B76,[1]FlowData!$A$3:$PL$215,P$7,FALSE) -> 90 | Q76: =VLOOKUP($B76,[1]FlowData!$A$3:$PL$215,Q$7,FALSE) -> 70 | R76: =VLOOKUP($B76,[1]FlowData!$A$3:$PL$215,R$7,FALSE) -> 92 | S76: =VLOOKUP($B76,[1]FlowData!$A$3:$PL$215,S$7,FALSE) -> 109 | T76: =VLOOKUP($B76,[1]FlowData!$A$3:$PL$215,T$7,FALSE) -> 89 | U76: =VLOOKUP($B76,[1]FlowData!$A$3:$PL$215,U$7,FALSE) -> 73 | V76: =VLOOKUP($B76,[1]FlowData!$A$3:$PL$215,V$7,FALSE) -> 96 | W76: =VLOOKUP($B76,[1]FlowData!$A$3:$PL$215,W$7,FALSE) -> 233 | X76: =VLOOKUP($B76,[1]FlowData!$A$3:$PL$215,X$7,FALSE) -> 136 | Y76: =VLOOKUP($B76,[1]FlowData!$A$3:$PL$215,Y$7,FALSE) -> 94 | Z76: =VLOOKUP($B76,[1]FlowData!$A$3:$PL$215,Z$7,FALSE) -> 179 | AA76: =VLOOKUP($B76,[1]FlowData!$A$3:$PL$215,AA$7,FALSE) -> 923 | AB76: =VLOOKUP($B76,[1]FlowData!$A$3:$PL$215,AB$7,FALSE) -> 601 | AC76: =VLOOKUP($B76,[1]FlowData!$A$3:$PL$215,AC$7,FALSE) -> 349 | AD76: =VLOOKUP($B76,[1]FlowData!$A$3:$PL$215,AD$7,FALSE) -> 651 | AE76: =VLOOKUP($B76,[1]FlowData!$A$3:$PL$215,AE$7,FALSE) -> 1090 | AF76: =VLOOKUP($B76,[1]FlowData!$A$3:$PL$215,AF$7,FALSE) -> 649 | AG76: =VLOOKUP($B76,[1]FlowData!$A$3:$PL$215,AG$7,FALSE) -> 373 | AH76: =VLOOKUP($B76,[1]FlowData!$A$3:$PL$215,AH$7,FALSE) -> 753 | AI76: =VLOOKUP($B76,[1]FlowData!$A$3:$PL$215,AI$7,FALSE) -> 369 | AJ76: =VLOOKUP($B76,[1]FlowData!$A$3:$PL$215,AJ$7,FALSE) -> 245 | AK76: =VLOOKUP($B76,[1]FlowData!$A$3:$PL$215,AK$7,FALSE) -> 181 | AL76: =VLOOKUP($B76,[1]FlowData!$A$3:$PL$215,AL$7,FALSE) -> 287 | AM76: =VLOOKUP($B76,[1]FlowData!$A$3:$PL$215,AM$7,FALSE) -> 189 | AN76: =VLOOKUP($B76,[1]FlowData!$A$3:$PL$215,AN$7,FALSE) -> 154 | AO76: =VLOOKUP($B76,[1]FlowData!$A$3:$PL$215,AO$7,FALSE) -> 125 | AP76: =VLOOKUP($B76,[1]FlowData!$A$3:$PL$215,AP$7,FALSE) -> 158 | AQ76: =VLOOKUP($B76,[1]FlowData!$A$3:$PL$215,AQ$7,FALSE) -> 147 | AR76: =VLOOKUP($B76,[1]FlowData!$A$3:$PL$215,AR$7,FALSE) -> 123 | AS76: =VLOOKUP($B76,[1]FlowData!$A$3:$PL$215,AS$7,FALSE) -> 105 | AT76: =VLOOKUP($B76,[1]FlowData!$A$3:$PL$215,AT$7,FALSE) -> 128 | AU76: =VLOOKUP($B76,[1]FlowData!$A$3:$PL$215,AU$7,FALSE) -> 157 | AV76: =VLOOKUP($B76,[1]FlowData!$A$3:$PL$215,AV$7,FALSE) -> 122 | AW76: =VLOOKUP($B76,[1]FlowData!$A$3:$PL$215,AW$7,FALSE) -> 109 | AX76: =VLOOKUP($B76,[1]FlowData!$A$3:$PL$215,AX$7,FALSE) -> 132 | AY76: =VLOOKUP($B76,[1]FlowData!$A$3:$PL$215,AY$7,FALSE) -> 136 | AZ76: =VLOOKUP($B76,[1]FlowData!$A$3:$PL$215,AZ$7,FALSE) -> 113 | BA76: =VLOOKUP($B76,[1]FlowData!$A$3:$PL$215,BA$7,FALSE) -> 87 | BB76: =VLOOKUP($B76,[1]FlowData!$A$3:$PL$215,BB$7,FALSE) -> 112 | BC76: =VLOOKUP($B76,[1]FlowData!$A$3:$PL$215,BC$7,FALSE) -> 122 | BD76: =VLOOKUP($B76,[1]FlowData!$A$3:$PL$215,BD$7,FALSE) -> 97 | BE76: =VLOOKUP($B76,[1]FlowData!$A$3:$PL$215,BE$7,FALSE) -> 69 | BF76: =VLOOKUP($B76,[1]FlowData!$A$3:$PL$215,BF$7,FALSE) -> 95
A77: =VLOOKUP(B77,'[2]Gages and BCs'!$A$4:$BJ$973,62,FALSE) -> 158 | B77: 6098500 | C77: =VLOOKUP(B77,'[2]Gages and BCs'!$A$4:$BJ$973,60,FALSE) -> Cut Bank Creek near Browning, Montana | D77: 1920, 1922, 1991–2007, 2009 | E77: =VLOOKUP($B77,[1]FlowData!$A$3:$PL$215,E$7,FALSE) -> 9.496 | F77: =VLOOKUP($B77,[1]FlowData!$A$3:$PL$215,F$7,FALSE) -> 16.102 | G77: =VLOOKUP($B77,[1]FlowData!$A$3:$PL$215,G$7,FALSE) -> 196 | H77: =VLOOKUP($B77,[1]FlowData!$A$3:$PL$215,H$7,FALSE) -> 91 | I77: =VLOOKUP($B77,[1]FlowData!$A$3:$PL$215,I$7,FALSE) -> 40 | J77: =VLOOKUP($B77,[1]FlowData!$A$3:$PL$215,J$7,FALSE) -> 123 | K77: =VLOOKUP($B77,[1]FlowData!$A$3:$PL$215,K$7,FALSE) -> 41 | L77: =VLOOKUP($B77,[1]FlowData!$A$3:$PL$215,L$7,FALSE) -> 28 | M77: =VLOOKUP($B77,[1]FlowData!$A$3:$PL$215,M$7,FALSE) -> 21 | N77: =VLOOKUP($B77,[1]FlowData!$A$3:$PL$215,N$7,FALSE) -> 34 | O77: =VLOOKUP($B77,[1]FlowData!$A$3:$PL$215,O$7,FALSE) -> 42 | P77: =VLOOKUP($B77,[1]FlowData!$A$3:$PL$215,P$7,FALSE) -> 27 | Q77: =VLOOKUP($B77,[1]FlowData!$A$3:$PL$215,Q$7,FALSE) -> 19 | R77: =VLOOKUP($B77,[1]FlowData!$A$3:$PL$215,R$7,FALSE) -> 37 | S77: =VLOOKUP($B77,[1]FlowData!$A$3:$PL$215,S$7,FALSE) -> 70 | T77: =VLOOKUP($B77,[1]FlowData!$A$3:$PL$215,T$7,FALSE) -> 43 | U77: =VLOOKUP($B77,[1]FlowData!$A$3:$PL$215,U$7,FALSE) -> 24 | V77: =VLOOKUP($B77,[1]FlowData!$A$3:$PL$215,V$7,FALSE) -> 59 | W77: =VLOOKUP($B77,[1]FlowData!$A$3:$PL$215,W$7,FALSE) -> 196 | X77: =VLOOKUP($B77,[1]FlowData!$A$3:$PL$215,X$7,FALSE) -> 106 | Y77: =VLOOKUP($B77,[1]FlowData!$A$3:$PL$215,Y$7,FALSE) -> 58 | Z77: =VLOOKUP($B77,[1]FlowData!$A$3:$PL$215,Z$7,FALSE) -> 133 | AA77: =VLOOKUP($B77,[1]FlowData!$A$3:$PL$215,AA$7,FALSE) -> 577 | AB77: =VLOOKUP($B77,[1]FlowData!$A$3:$PL$215,AB$7,FALSE) -> 335 | AC77: =VLOOKUP($B77,[1]FlowData!$A$3:$PL$215,AC$7,FALSE) -> 196 | AD77: =VLOOKUP($B77,[1]FlowData!$A$3:$PL$215,AD$7,FALSE) -> 399 | AE77: =VLOOKUP($B77,[1]FlowData!$A$3:$PL$215,AE$7,FALSE) -> 685 | AF77: =VLOOKUP($B77,[1]FlowData!$A$3:$PL$215,AF$7,FALSE) -> 415 | AG77: =VLOOKUP($B77,[1]FlowData!$A$3:$PL$215,AG$7,FALSE) -> 255 | AH77: =VLOOKUP($B77,[1]FlowData!$A$3:$PL$215,AH$7,FALSE) -> 475 | AI77: =VLOOKUP($B77,[1]FlowData!$A$3:$PL$215,AI$7,FALSE) -> 256 | AJ77: =VLOOKUP($B77,[1]FlowData!$A$3:$PL$215,AJ$7,FALSE) -> 141 | AK77: =VLOOKUP($B77,[1]FlowData!$A$3:$PL$215,AK$7,FALSE) -> 75 | AL77: =VLOOKUP($B77,[1]FlowData!$A$3:$PL$215,AL$7,FALSE) -> 172 | AM77: =VLOOKUP($B77,[1]FlowData!$A$3:$PL$215,AM$7,FALSE) -> 85 | AN77: =VLOOKUP($B77,[1]FlowData!$A$3:$PL$215,AN$7,FALSE) -> 49 | AO77: =VLOOKUP($B77,[1]FlowData!$A$3:$PL$215,AO$7,FALSE) -> 23 | AP77: =VLOOKUP($B77,[1]FlowData!$A$3:$PL$215,AP$7,FALSE) -> 55 | AQ77: =VLOOKUP($B77,[1]FlowData!$A$3:$PL$215,AQ$7,FALSE) -> 59 | AR77: =VLOOKUP($B77,[1]FlowData!$A$3:$PL$215,AR$7,FALSE) -> 35 | AS77: =VLOOKUP($B77,[1]FlowData!$A$3:$PL$215,AS$7,FALSE) -> 19 | AT77: =VLOOKUP($B77,[1]FlowData!$A$3:$PL$215,AT$7,FALSE) -> 39 | AU77: =VLOOKUP($B77,[1]FlowData!$A$3:$PL$215,AU$7,FALSE) -> 75 | AV77: =VLOOKUP($B77,[1]FlowData!$A$3:$PL$215,AV$7,FALSE) -> 43 | AW77: =VLOOKUP($B77,[1]FlowData!$A$3:$PL$215,AW$7,FALSE) -> 28 | AX77: =VLOOKUP($B77,[1]FlowData!$A$3:$PL$215,AX$7,FALSE) -> 56 | AY77: =VLOOKUP($B77,[1]FlowData!$A$3:$PL$215,AY$7,FALSE) -> 81 | AZ77: =VLOOKUP($B77,[1]FlowData!$A$3:$PL$215,AZ$7,FALSE) -> 58 | BA77: =VLOOKUP($B77,[1]FlowData!$A$3:$PL$215,BA$7,FALSE) -> 34 | BB77: =VLOOKUP($B77,[1]FlowData!$A$3:$PL$215,BB$7,FALSE) -> 69 | BC77: =VLOOKUP($B77,[1]FlowData!$A$3:$PL$215,BC$7,FALSE) -> 48 | BD77: =VLOOKUP($B77,[1]FlowData!$A$3:$PL$215,BD$7,FALSE) -> 33 | BE77: =VLOOKUP($B77,[1]FlowData!$A$3:$PL$215,BE$7,FALSE) -> 24 | BF77: =VLOOKUP($B77,[1]FlowData!$A$3:$PL$215,BF$7,FALSE) -> 41
A78: =VLOOKUP(B78,'[2]Gages and BCs'!$A$4:$BJ$973,62,FALSE) -> 178 | B78: 6102500 | C78: =VLOOKUP(B78,'[2]Gages and BCs'!$A$4:$BJ$973,60,FALSE) -> Teton River below South Fork, near Choteau, Montana | D78: 1948–54, 1998–2001, 2004–8 | E78: =VLOOKUP($B78,[1]FlowData!$A$3:$PL$215,E$7,FALSE) ->  | F78: =VLOOKUP($B78,[1]FlowData!$A$3:$PL$215,F$7,FALSE) -> 57.679 | G78: =VLOOKUP($B78,[1]FlowData!$A$3:$PL$215,G$7,FALSE) ->  | H78: =VLOOKUP($B78,[1]FlowData!$A$3:$PL$215,H$7,FALSE) ->  | I78: =VLOOKUP($B78,[1]FlowData!$A$3:$PL$215,I$7,FALSE) ->  | J78: =VLOOKUP($B78,[1]FlowData!$A$3:$PL$215,J$7,FALSE) ->  | K78: =VLOOKUP($B78,[1]FlowData!$A$3:$PL$215,K$7,FALSE) ->  | L78: =VLOOKUP($B78,[1]FlowData!$A$3:$PL$215,L$7,FALSE) ->  | M78: =VLOOKUP($B78,[1]FlowData!$A$3:$PL$215,M$7,FALSE) ->  | N78: =VLOOKUP($B78,[1]FlowData!$A$3:$PL$215,N$7,FALSE) ->  | O78: =VLOOKUP($B78,[1]FlowData!$A$3:$PL$215,O$7,FALSE) ->  | P78: =VLOOKUP($B78,[1]FlowData!$A$3:$PL$215,P$7,FALSE) ->  | Q78: =VLOOKUP($B78,[1]FlowData!$A$3:$PL$215,Q$7,FALSE) ->  | R78: =VLOOKUP($B78,[1]FlowData!$A$3:$PL$215,R$7,FALSE) ->  | S78: =VLOOKUP($B78,[1]FlowData!$A$3:$PL$215,S$7,FALSE) ->  | T78: =VLOOKUP($B78,[1]FlowData!$A$3:$PL$215,T$7,FALSE) ->  | U78: =VLOOKUP($B78,[1]FlowData!$A$3:$PL$215,U$7,FALSE) ->  | V78: =VLOOKUP($B78,[1]FlowData!$A$3:$PL$215,V$7,FALSE) ->  | W78: =VLOOKUP($B78,[1]FlowData!$A$3:$PL$215,W$7,FALSE) -> 95 | X78: =VLOOKUP($B78,[1]FlowData!$A$3:$PL$215,X$7,FALSE) -> 66 | Y78: =VLOOKUP($B78,[1]FlowData!$A$3:$PL$215,Y$7,FALSE) -> 49 | Z78: =VLOOKUP($B78,[1]FlowData!$A$3:$PL$215,Z$7,FALSE) -> 78 | AA78: =VLOOKUP($B78,[1]FlowData!$A$3:$PL$215,AA$7,FALSE) -> 457 | AB78: =VLOOKUP($B78,[1]FlowData!$A$3:$PL$215,AB$7,FALSE) -> 245 | AC78: =VLOOKUP($B78,[1]FlowData!$A$3:$PL$215,AC$7,FALSE) -> 130 | AD78: =VLOOKUP($B78,[1]FlowData!$A$3:$PL$215,AD$7,FALSE) -> 312 | AE78: =VLOOKUP($B78,[1]FlowData!$A$3:$PL$215,AE$7,FALSE) -> 630 | AF78: =VLOOKUP($B78,[1]FlowData!$A$3:$PL$215,AF$7,FALSE) -> 333 | AG78: =VLOOKUP($B78,[1]FlowData!$A$3:$PL$215,AG$7,FALSE) -> 210 | AH78: =VLOOKUP($B78,[1]FlowData!$A$3:$PL$215,AH$7,FALSE) -> 447 | AI78: =VLOOKUP($B78,[1]FlowData!$A$3:$PL$215,AI$7,FALSE) -> 302 | AJ78: =VLOOKUP($B78,[1]FlowData!$A$3:$PL$215,AJ$7,FALSE) -> 147 | AK78: =VLOOKUP($B78,[1]FlowData!$A$3:$PL$215,AK$7,FALSE) -> 99 | AL78: =VLOOKUP($B78,[1]FlowData!$A$3:$PL$215,AL$7,FALSE) -> 208 | AM78: =VLOOKUP($B78,[1]FlowData!$A$3:$PL$215,AM$7,FALSE) -> 133 | AN78: =VLOOKUP($B78,[1]FlowData!$A$3:$PL$215,AN$7,FALSE) -> 97 | AO78: =VLOOKUP($B78,[1]FlowData!$A$3:$PL$215,AO$7,FALSE) -> 73 | AP78: =VLOOKUP($B78,[1]FlowData!$A$3:$PL$215,AP$7,FALSE) -> 106 | AQ78: =VLOOKUP($B78,[1]FlowData!$A$3:$PL$215,AQ$7,FALSE) -> 98 | AR78: =VLOOKUP($B78,[1]FlowData!$A$3:$PL$215,AR$7,FALSE) -> 79 | AS78: =VLOOKUP($B78,[1]FlowData!$A$3:$PL$215,AS$7,FALSE) -> 63 | AT78: =VLOOKUP($B78,[1]FlowData!$A$3:$PL$215,AT$7,FALSE) -> 82 | AU78: =VLOOKUP($B78,[1]FlowData!$A$3:$PL$215,AU$7,FALSE) -> 87 | AV78: =VLOOKUP($B78,[1]FlowData!$A$3:$PL$215,AV$7,FALSE) -> 73 | AW78: =VLOOKUP($B78,[1]FlowData!$A$3:$PL$215,AW$7,FALSE) -> 58 | AX78: =VLOOKUP($B78,[1]FlowData!$A$3:$PL$215,AX$7,FALSE) -> 75 | AY78: =VLOOKUP($B78,[1]FlowData!$A$3:$PL$215,AY$7,FALSE) ->  | AZ78: =VLOOKUP($B78,[1]FlowData!$A$3:$PL$215,AZ$7,FALSE) ->  | BA78: =VLOOKUP($B78,[1]FlowData!$A$3:$PL$215,BA$7,FALSE) ->  | BB78: =VLOOKUP($B78,[1]FlowData!$A$3:$PL$215,BB$7,FALSE) ->  | BC78: =VLOOKUP($B78,[1]FlowData!$A$3:$PL$215,BC$7,FALSE) ->  | BD78: =VLOOKUP($B78,[1]FlowData!$A$3:$PL$215,BD$7,FALSE) ->  | BE78: =VLOOKUP($B78,[1]FlowData!$A$3:$PL$215,BE$7,FALSE) ->  | BF78: =VLOOKUP($B78,[1]FlowData!$A$3:$PL$215,BF$7,FALSE) -> 
A79: =VLOOKUP(B79,'[2]Gages and BCs'!$A$4:$BJ$973,62,FALSE) -> 268 | B79: 6132200 | C79: =VLOOKUP(B79,'[2]Gages and BCs'!$A$4:$BJ$973,60,FALSE) -> South Fork Milk River near Babb, Montana | D79: 1961–2007, 2009 | E79: =VLOOKUP($B79,[1]FlowData!$A$3:$PL$215,E$7,FALSE) ->  | F79: =VLOOKUP($B79,[1]FlowData!$A$3:$PL$215,F$7,FALSE) -> 2.747 | G79: =VLOOKUP($B79,[1]FlowData!$A$3:$PL$215,G$7,FALSE) ->  | H79: =VLOOKUP($B79,[1]FlowData!$A$3:$PL$215,H$7,FALSE) ->  | I79: =VLOOKUP($B79,[1]FlowData!$A$3:$PL$215,I$7,FALSE) ->  | J79: =VLOOKUP($B79,[1]FlowData!$A$3:$PL$215,J$7,FALSE) ->  | K79: =VLOOKUP($B79,[1]FlowData!$A$3:$PL$215,K$7,FALSE) ->  | L79: =VLOOKUP($B79,[1]FlowData!$A$3:$PL$215,L$7,FALSE) ->  | M79: =VLOOKUP($B79,[1]FlowData!$A$3:$PL$215,M$7,FALSE) ->  | N79: =VLOOKUP($B79,[1]FlowData!$A$3:$PL$215,N$7,FALSE) ->  | O79: =VLOOKUP($B79,[1]FlowData!$A$3:$PL$215,O$7,FALSE) ->  | P79: =VLOOKUP($B79,[1]FlowData!$A$3:$PL$215,P$7,FALSE) ->  | Q79: =VLOOKUP($B79,[1]FlowData!$A$3:$PL$215,Q$7,FALSE) ->  | R79: =VLOOKUP($B79,[1]FlowData!$A$3:$PL$215,R$7,FALSE) ->  | S79: =VLOOKUP($B79,[1]FlowData!$A$3:$PL$215,S$7,FALSE) -> 38 | T79: =VLOOKUP($B79,[1]FlowData!$A$3:$PL$215,T$7,FALSE) -> 17 | U79: =VLOOKUP($B79,[1]FlowData!$A$3:$PL$215,U$7,FALSE) -> 7.5 | V79: =VLOOKUP($B79,[1]FlowData!$A$3:$PL$215,V$7,FALSE) -> 31 | W79: =VLOOKUP($B79,[1]FlowData!$A$3:$PL$215,W$7,FALSE) -> 89 | X79: =VLOOKUP($B79,[1]FlowData!$A$3:$PL$215,X$7,FALSE) -> 49 | Y79: =VLOOKUP($B79,[1]FlowData!$A$3:$PL$215,Y$7,FALSE) -> 25 | Z79: =VLOOKUP($B79,[1]FlowData!$A$3:$PL$215,Z$7,FALSE) -> 63 | AA79: =VLOOKUP($B79,[1]FlowData!$A$3:$PL$215,AA$7,FALSE) -> 122 | AB79: =VLOOKUP($B79,[1]FlowData!$A$3:$PL$215,AB$7,FALSE) -> 60 | AC79: =VLOOKUP($B79,[1]FlowData!$A$3:$PL$215,AC$7,FALSE) -> 31 | AD79: =VLOOKUP($B79,[1]FlowData!$A$3:$PL$215,AD$7,FALSE) -> 82 | AE79: =VLOOKUP($B79,[1]FlowData!$A$3:$PL$215,AE$7,FALSE) -> 175 | AF79: =VLOOKUP($B79,[1]FlowData!$A$3:$PL$215,AF$7,FALSE) -> 109 | AG79: =VLOOKUP($B79,[1]FlowData!$A$3:$PL$215,AG$7,FALSE) -> 43 | AH79: =VLOOKUP($B79,[1]FlowData!$A$3:$PL$215,AH$7,FALSE) -> 86 | AI79: =VLOOKUP($B79,[1]FlowData!$A$3:$PL$215,AI$7,FALSE) -> 53 | AJ79: =VLOOKUP($B79,[1]FlowData!$A$3:$PL$215,AJ$7,FALSE) -> 27 | AK79: =VLOOKUP($B79,[1]FlowData!$A$3:$PL$215,AK$7,FALSE) -> 10 | AL79: =VLOOKUP($B79,[1]FlowData!$A$3:$PL$215,AL$7,FALSE) -> 35 | AM79: =VLOOKUP($B79,[1]FlowData!$A$3:$PL$215,AM$7,FALSE) -> 26 | AN79: =VLOOKUP($B79,[1]FlowData!$A$3:$PL$215,AN$7,FALSE) -> 14 | AO79: =VLOOKUP($B79,[1]FlowData!$A$3:$PL$215,AO$7,FALSE) -> 4.5 | AP79: =VLOOKUP($B79,[1]FlowData!$A$3:$PL$215,AP$7,FALSE) -> 17 | AQ79: =VLOOKUP($B79,[1]FlowData!$A$3:$PL$215,AQ$7,FALSE) -> 21 | AR79: =VLOOKUP($B79,[1]FlowData!$A$3:$PL$215,AR$7,FALSE) -> 11 | AS79: =VLOOKUP($B79,[1]FlowData!$A$3:$PL$215,AS$7,FALSE) -> 4.7 | AT79: =VLOOKUP($B79,[1]FlowData!$A$3:$PL$215,AT$7,FALSE) -> 14 | AU79: =VLOOKUP($B79,[1]FlowData!$A$3:$PL$215,AU$7,FALSE) -> 23 | AV79: =VLOOKUP($B79,[1]FlowData!$A$3:$PL$215,AV$7,FALSE) -> 15 | AW79: =VLOOKUP($B79,[1]FlowData!$A$3:$PL$215,AW$7,FALSE) -> 8.2 | AX79: =VLOOKUP($B79,[1]FlowData!$A$3:$PL$215,AX$7,FALSE) -> 17 | AY79: =VLOOKUP($B79,[1]FlowData!$A$3:$PL$215,AY$7,FALSE) ->  | AZ79: =VLOOKUP($B79,[1]FlowData!$A$3:$PL$215,AZ$7,FALSE) ->  | BA79: =VLOOKUP($B79,[1]FlowData!$A$3:$PL$215,BA$7,FALSE) ->  | BB79: =VLOOKUP($B79,[1]FlowData!$A$3:$PL$215,BB$7,FALSE) ->  | BC79: =VLOOKUP($B79,[1]FlowData!$A$3:$PL$215,BC$7,FALSE) ->  | BD79: =VLOOKUP($B79,[1]FlowData!$A$3:$PL$215,BD$7,FALSE) ->  | BE79: =VLOOKUP($B79,[1]FlowData!$A$3:$PL$215,BE$7,FALSE) ->  | BF79: =VLOOKUP($B79,[1]FlowData!$A$3:$PL$215,BF$7,FALSE) -> 
A80: =VLOOKUP(B80,'[2]Gages and BCs'!$A$4:$BJ$973,62,FALSE) -> 272 | B80: 6133500 | C80: =VLOOKUP(B80,'[2]Gages and BCs'!$A$4:$BJ$973,60,FALSE) -> North Fork Milk River above St. Mary Canal, near Browning, Montana | D80: 1929, 1931, 1933, 1936–37, 1939–46, 1950, 1952–53, 1956, 1961, 1965–2009 | E80: =VLOOKUP($B80,[1]FlowData!$A$3:$PL$215,E$7,FALSE) ->  | F80: =VLOOKUP($B80,[1]FlowData!$A$3:$PL$215,F$7,FALSE) -> 6.45 | G80: =VLOOKUP($B80,[1]FlowData!$A$3:$PL$215,G$7,FALSE) ->  | H80: =VLOOKUP($B80,[1]FlowData!$A$3:$PL$215,H$7,FALSE) ->  | I80: =VLOOKUP($B80,[1]FlowData!$A$3:$PL$215,I$7,FALSE) ->  | J80: =VLOOKUP($B80,[1]FlowData!$A$3:$PL$215,J$7,FALSE) ->  | K80: =VLOOKUP($B80,[1]FlowData!$A$3:$PL$215,K$7,FALSE) ->  | L80: =VLOOKUP($B80,[1]FlowData!$A$3:$PL$215,L$7,FALSE) ->  | M80: =VLOOKUP($B80,[1]FlowData!$A$3:$PL$215,M$7,FALSE) ->  | N80: =VLOOKUP($B80,[1]FlowData!$A$3:$PL$215,N$7,FALSE) ->  | O80: =VLOOKUP($B80,[1]FlowData!$A$3:$PL$215,O$7,FALSE) ->  | P80: =VLOOKUP($B80,[1]FlowData!$A$3:$PL$215,P$7,FALSE) ->  | Q80: =VLOOKUP($B80,[1]FlowData!$A$3:$PL$215,Q$7,FALSE) ->  | R80: =VLOOKUP($B80,[1]FlowData!$A$3:$PL$215,R$7,FALSE) ->  | S80: =VLOOKUP($B80,[1]FlowData!$A$3:$PL$215,S$7,FALSE) -> 31 | T80: =VLOOKUP($B80,[1]FlowData!$A$3:$PL$215,T$7,FALSE) -> 21 | U80: =VLOOKUP($B80,[1]FlowData!$A$3:$PL$215,U$7,FALSE) -> 10 | V80: =VLOOKUP($B80,[1]FlowData!$A$3:$PL$215,V$7,FALSE) -> 23 | W80: =VLOOKUP($B80,[1]FlowData!$A$3:$PL$215,W$7,FALSE) -> 49 | X80: =VLOOKUP($B80,[1]FlowData!$A$3:$PL$215,X$7,FALSE) -> 32 | Y80: =VLOOKUP($B80,[1]FlowData!$A$3:$PL$215,Y$7,FALSE) -> 15 | Z80: =VLOOKUP($B80,[1]FlowData!$A$3:$PL$215,Z$7,FALSE) -> 36 | AA80: =VLOOKUP($B80,[1]FlowData!$A$3:$PL$215,AA$7,FALSE) -> 46 | AB80: =VLOOKUP($B80,[1]FlowData!$A$3:$PL$215,AB$7,FALSE) -> 30 | AC80: =VLOOKUP($B80,[1]FlowData!$A$3:$PL$215,AC$7,FALSE) -> 13 | AD80: =VLOOKUP($B80,[1]FlowData!$A$3:$PL$215,AD$7,FALSE) -> 33 | AE80: =VLOOKUP($B80,[1]FlowData!$A$3:$PL$215,AE$7,FALSE) -> 39 | AF80: =VLOOKUP($B80,[1]FlowData!$A$3:$PL$215,AF$7,FALSE) -> 25 | AG80: =VLOOKUP($B80,[1]FlowData!$A$3:$PL$215,AG$7,FALSE) -> 12 | AH80: =VLOOKUP($B80,[1]FlowData!$A$3:$PL$215,AH$7,FALSE) -> 30 | AI80: =VLOOKUP($B80,[1]FlowData!$A$3:$PL$215,AI$7,FALSE) -> 26 | AJ80: =VLOOKUP($B80,[1]FlowData!$A$3:$PL$215,AJ$7,FALSE) -> 15 | AK80: =VLOOKUP($B80,[1]FlowData!$A$3:$PL$215,AK$7,FALSE) -> 7.3 | AL80: =VLOOKUP($B80,[1]FlowData!$A$3:$PL$215,AL$7,FALSE) -> 19 | AM80: =VLOOKUP($B80,[1]FlowData!$A$3:$PL$215,AM$7,FALSE) -> 23 | AN80: =VLOOKUP($B80,[1]FlowData!$A$3:$PL$215,AN$7,FALSE) -> 13 | AO80: =VLOOKUP($B80,[1]FlowData!$A$3:$PL$215,AO$7,FALSE) -> 7.7 | AP80: =VLOOKUP($B80,[1]FlowData!$A$3:$PL$215,AP$7,FALSE) -> 16 | AQ80: =VLOOKUP($B80,[1]FlowData!$A$3:$PL$215,AQ$7,FALSE) -> 25 | AR80: =VLOOKUP($B80,[1]FlowData!$A$3:$PL$215,AR$7,FALSE) -> 14 | AS80: =VLOOKUP($B80,[1]FlowData!$A$3:$PL$215,AS$7,FALSE) -> 6.3 | AT80: =VLOOKUP($B80,[1]FlowData!$A$3:$PL$215,AT$7,FALSE) -> 17 | AU80: =VLOOKUP($B80,[1]FlowData!$A$3:$PL$215,AU$7,FALSE) -> 24 | AV80: =VLOOKUP($B80,[1]FlowData!$A$3:$PL$215,AV$7,FALSE) -> 15 | AW80: =VLOOKUP($B80,[1]FlowData!$A$3:$PL$215,AW$7,FALSE) -> 10 | AX80: =VLOOKUP($B80,[1]FlowData!$A$3:$PL$215,AX$7,FALSE) -> 17 | AY80: =VLOOKUP($B80,[1]FlowData!$A$3:$PL$215,AY$7,FALSE) ->  | AZ80: =VLOOKUP($B80,[1]FlowData!$A$3:$PL$215,AZ$7,FALSE) ->  | BA80: =VLOOKUP($B80,[1]FlowData!$A$3:$PL$215,BA$7,FALSE) ->  | BB80: =VLOOKUP($B80,[1]FlowData!$A$3:$PL$215,BB$7,FALSE) ->  | BC80: =VLOOKUP($B80,[1]FlowData!$A$3:$PL$215,BC$7,FALSE) ->  | BD80: =VLOOKUP($B80,[1]FlowData!$A$3:$PL$215,BD$7,FALSE) ->  | BE80: =VLOOKUP($B80,[1]FlowData!$A$3:$PL$215,BE$7,FALSE) ->  | BF80: =VLOOKUP($B80,[1]FlowData!$A$3:$PL$215,BF$7,FALSE) -> 
A81: =VLOOKUP(B81,'[2]Gages and BCs'!$A$4:$BJ$973,62,FALSE) -> 651 | B81: 12335000 | C81: =VLOOKUP(B81,'[2]Gages and BCs'!$A$4:$BJ$973,60,FALSE) -> Blackfoot River near Helmville, Montana | D81: 1941–53 | E81: =VLOOKUP($B81,[1]FlowData!$A$3:$PL$215,E$7,FALSE) -> 71.613 | F81: =VLOOKUP($B81,[1]FlowData!$A$3:$PL$215,F$7,FALSE) -> 128.962 | G81: =VLOOKUP($B81,[1]FlowData!$A$3:$PL$215,G$7,FALSE) -> 430 | H81: =VLOOKUP($B81,[1]FlowData!$A$3:$PL$215,H$7,FALSE) -> 193 | I81: =VLOOKUP($B81,[1]FlowData!$A$3:$PL$215,I$7,FALSE) -> 104 | J81: =VLOOKUP($B81,[1]FlowData!$A$3:$PL$215,J$7,FALSE) -> 352 | K81: =VLOOKUP($B81,[1]FlowData!$A$3:$PL$215,K$7,FALSE) -> 139 | L81: =VLOOKUP($B81,[1]FlowData!$A$3:$PL$215,L$7,FALSE) -> 121 | M81: =VLOOKUP($B81,[1]FlowData!$A$3:$PL$215,M$7,FALSE) -> 95 | N81: =VLOOKUP($B81,[1]FlowData!$A$3:$PL$215,N$7,FALSE) -> 119 | O81: =VLOOKUP($B81,[1]FlowData!$A$3:$PL$215,O$7,FALSE) -> 138 | P81: =VLOOKUP($B81,[1]FlowData!$A$3:$PL$215,P$7,FALSE) -> 119 | Q81: =VLOOKUP($B81,[1]FlowData!$A$3:$PL$215,Q$7,FALSE) -> 95 | R81: =VLOOKUP($B81,[1]FlowData!$A$3:$PL$215,R$7,FALSE) -> 121 | S81: =VLOOKUP($B81,[1]FlowData!$A$3:$PL$215,S$7,FALSE) -> 142 | T81: =VLOOKUP($B81,[1]FlowData!$A$3:$PL$215,T$7,FALSE) -> 116 | U81: =VLOOKUP($B81,[1]FlowData!$A$3:$PL$215,U$7,FALSE) -> 100 | V81: =VLOOKUP($B81,[1]FlowData!$A$3:$PL$215,V$7,FALSE) -> 125 | W81: =VLOOKUP($B81,[1]FlowData!$A$3:$PL$215,W$7,FALSE) -> 358 | X81: =VLOOKUP($B81,[1]FlowData!$A$3:$PL$215,X$7,FALSE) -> 174 | Y81: =VLOOKUP($B81,[1]FlowData!$A$3:$PL$215,Y$7,FALSE) -> 113 | Z81: =VLOOKUP($B81,[1]FlowData!$A$3:$PL$215,Z$7,FALSE) -> 271 | AA81: =VLOOKUP($B81,[1]FlowData!$A$3:$PL$215,AA$7,FALSE) -> 1530 | AB81: =VLOOKUP($B81,[1]FlowData!$A$3:$PL$215,AB$7,FALSE) -> 798 | AC81: =VLOOKUP($B81,[1]FlowData!$A$3:$PL$215,AC$7,FALSE) -> 298 | AD81: =VLOOKUP($B81,[1]FlowData!$A$3:$PL$215,AD$7,FALSE) -> 970 | AE81: =VLOOKUP($B81,[1]FlowData!$A$3:$PL$215,AE$7,FALSE) -> 1790 | AF81: =VLOOKUP($B81,[1]FlowData!$A$3:$PL$215,AF$7,FALSE) -> 1130 | AG81: =VLOOKUP($B81,[1]FlowData!$A$3:$PL$215,AG$7,FALSE) -> 605 | AH81: =VLOOKUP($B81,[1]FlowData!$A$3:$PL$215,AH$7,FALSE) -> 1260 | AI81: =VLOOKUP($B81,[1]FlowData!$A$3:$PL$215,AI$7,FALSE) -> 676 | AJ81: =VLOOKUP($B81,[1]FlowData!$A$3:$PL$215,AJ$7,FALSE) -> 415 | AK81: =VLOOKUP($B81,[1]FlowData!$A$3:$PL$215,AK$7,FALSE) -> 267 | AL81: =VLOOKUP($B81,[1]FlowData!$A$3:$PL$215,AL$7,FALSE) -> 500 | AM81: =VLOOKUP($B81,[1]FlowData!$A$3:$PL$215,AM$7,FALSE) -> 298 | AN81: =VLOOKUP($B81,[1]FlowData!$A$3:$PL$215,AN$7,FALSE) -> 222 | AO81: =VLOOKUP($B81,[1]FlowData!$A$3:$PL$215,AO$7,FALSE) -> 168 | AP81: =VLOOKUP($B81,[1]FlowData!$A$3:$PL$215,AP$7,FALSE) -> 235 | AQ81: =VLOOKUP($B81,[1]FlowData!$A$3:$PL$215,AQ$7,FALSE) -> 206 | AR81: =VLOOKUP($B81,[1]FlowData!$A$3:$PL$215,AR$7,FALSE) -> 171 | AS81: =VLOOKUP($B81,[1]FlowData!$A$3:$PL$215,AS$7,FALSE) -> 144 | AT81: =VLOOKUP($B81,[1]FlowData!$A$3:$PL$215,AT$7,FALSE) -> 173 | AU81: =VLOOKUP($B81,[1]FlowData!$A$3:$PL$215,AU$7,FALSE) -> 191 | AV81: =VLOOKUP($B81,[1]FlowData!$A$3:$PL$215,AV$7,FALSE) -> 161 | AW81: =VLOOKUP($B81,[1]FlowData!$A$3:$PL$215,AW$7,FALSE) -> 123 | AX81: =VLOOKUP($B81,[1]FlowData!$A$3:$PL$215,AX$7,FALSE) -> 159 | AY81: =VLOOKUP($B81,[1]FlowData!$A$3:$PL$215,AY$7,FALSE) -> 178 | AZ81: =VLOOKUP($B81,[1]FlowData!$A$3:$PL$215,AZ$7,FALSE) -> 150 | BA81: =VLOOKUP($B81,[1]FlowData!$A$3:$PL$215,BA$7,FALSE) -> 124 | BB81: =VLOOKUP($B81,[1]FlowData!$A$3:$PL$215,BB$7,FALSE) -> 149 | BC81: =VLOOKUP($B81,[1]FlowData!$A$3:$PL$215,BC$7,FALSE) -> 155 | BD81: =VLOOKUP($B81,[1]FlowData!$A$3:$PL$215,BD$7,FALSE) -> 134 | BE81: =VLOOKUP($B81,[1]FlowData!$A$3:$PL$215,BE$7,FALSE) -> 103 | BF81: =VLOOKUP($B81,[1]FlowData!$A$3:$PL$215,BF$7,FALSE) -> 132
A82: =VLOOKUP(B82,'[2]Gages and BCs'!$A$4:$BJ$973,62,FALSE) -> 700 | B82: 12355500 | C82: =VLOOKUP(B82,'[2]Gages and BCs'!$A$4:$BJ$973,60,FALSE) -> North Fork Flathead River near Columbia Falls, Montana | D82: 1911–17, 1931–32, 1934–2009 | E82: =VLOOKUP($B82,[1]FlowData!$A$3:$PL$215,E$7,FALSE) -> 327.838 | F82: =VLOOKUP($B82,[1]FlowData!$A$3:$PL$215,F$7,FALSE) -> 667.264 | G82: =VLOOKUP($B82,[1]FlowData!$A$3:$PL$215,G$7,FALSE) -> 4550 | H82: =VLOOKUP($B82,[1]FlowData!$A$3:$PL$215,H$7,FALSE) -> 1710 | I82: =VLOOKUP($B82,[1]FlowData!$A$3:$PL$215,I$7,FALSE) -> 787 | J82: =VLOOKUP($B82,[1]FlowData!$A$3:$PL$215,J$7,FALSE) -> 2960 | K82: =VLOOKUP($B82,[1]FlowData!$A$3:$PL$215,K$7,FALSE) -> 982 | L82: =VLOOKUP($B82,[1]FlowData!$A$3:$PL$215,L$7,FALSE) -> 659 | M82: =VLOOKUP($B82,[1]FlowData!$A$3:$PL$215,M$7,FALSE) -> 476 | N82: =VLOOKUP($B82,[1]FlowData!$A$3:$PL$215,N$7,FALSE) -> 775 | O82: =VLOOKUP($B82,[1]FlowData!$A$3:$PL$215,O$7,FALSE) -> 876 | P82: =VLOOKUP($B82,[1]FlowData!$A$3:$PL$215,P$7,FALSE) -> 646 | Q82: =VLOOKUP($B82,[1]FlowData!$A$3:$PL$215,Q$7,FALSE) -> 486 | R82: =VLOOKUP($B82,[1]FlowData!$A$3:$PL$215,R$7,FALSE) -> 737 | S82: =VLOOKUP($B82,[1]FlowData!$A$3:$PL$215,S$7,FALSE) -> 1160 | T82: =VLOOKUP($B82,[1]FlowData!$A$3:$PL$215,T$7,FALSE) -> 767 | U82: =VLOOKUP($B82,[1]FlowData!$A$3:$PL$215,U$7,FALSE) -> 504 | V82: =VLOOKUP($B82,[1]FlowData!$A$3:$PL$215,V$7,FALSE) -> 922 | W82: =VLOOKUP($B82,[1]FlowData!$A$3:$PL$215,W$7,FALSE) -> 4910 | X82: =VLOOKUP($B82,[1]FlowData!$A$3:$PL$215,X$7,FALSE) -> 2490 | Y82: =VLOOKUP($B82,[1]FlowData!$A$3:$PL$215,Y$7,FALSE) -> 1150 | Z82: =VLOOKUP($B82,[1]FlowData!$A$3:$PL$215,Z$7,FALSE) -> 3250 | AA82: =VLOOKUP($B82,[1]FlowData!$A$3:$PL$215,AA$7,FALSE) -> 13400 | AB82: =VLOOKUP($B82,[1]FlowData!$A$3:$PL$215,AB$7,FALSE) -> 8820 | AC82: =VLOOKUP($B82,[1]FlowData!$A$3:$PL$215,AC$7,FALSE) -> 5680 | AD82: =VLOOKUP($B82,[1]FlowData!$A$3:$PL$215,AD$7,FALSE) -> 9710 | AE82: =VLOOKUP($B82,[1]FlowData!$A$3:$PL$215,AE$7,FALSE) -> 13800 | AF82: =VLOOKUP($B82,[1]FlowData!$A$3:$PL$215,AF$7,FALSE) -> 9270 | AG82: =VLOOKUP($B82,[1]FlowData!$A$3:$PL$215,AG$7,FALSE) -> 5620 | AH82: =VLOOKUP($B82,[1]FlowData!$A$3:$PL$215,AH$7,FALSE) -> 9970 | AI82: =VLOOKUP($B82,[1]FlowData!$A$3:$PL$215,AI$7,FALSE) -> 5520 | AJ82: =VLOOKUP($B82,[1]FlowData!$A$3:$PL$215,AJ$7,FALSE) -> 3350 | AK82: =VLOOKUP($B82,[1]FlowData!$A$3:$PL$215,AK$7,FALSE) -> 2100 | AL82: =VLOOKUP($B82,[1]FlowData!$A$3:$PL$215,AL$7,FALSE) -> 3990 | AM82: =VLOOKUP($B82,[1]FlowData!$A$3:$PL$215,AM$7,FALSE) -> 2070 | AN82: =VLOOKUP($B82,[1]FlowData!$A$3:$PL$215,AN$7,FALSE) -> 1460 | AO82: =VLOOKUP($B82,[1]FlowData!$A$3:$PL$215,AO$7,FALSE) -> 1080 | AP82: =VLOOKUP($B82,[1]FlowData!$A$3:$PL$215,AP$7,FALSE) -> 1600 | AQ82: =VLOOKUP($B82,[1]FlowData!$A$3:$PL$215,AQ$7,FALSE) -> 1410 | AR82: =VLOOKUP($B82,[1]FlowData!$A$3:$PL$215,AR$7,FALSE) -> 1030 | AS82: =VLOOKUP($B82,[1]FlowData!$A$3:$PL$215,AS$7,FALSE) -> 823 | AT82: =VLOOKUP($B82,[1]FlowData!$A$3:$PL$215,AT$7,FALSE) -> 1150 | AU82: =VLOOKUP($B82,[1]FlowData!$A$3:$PL$215,AU$7,FALSE) -> 1450 | AV82: =VLOOKUP($B82,[1]FlowData!$A$3:$PL$215,AV$7,FALSE) -> 957 | AW82: =VLOOKUP($B82,[1]FlowData!$A$3:$PL$215,AW$7,FALSE) -> 749 | AX82: =VLOOKUP($B82,[1]FlowData!$A$3:$PL$215,AX$7,FALSE) -> 1160 | AY82: =VLOOKUP($B82,[1]FlowData!$A$3:$PL$215,AY$7,FALSE) -> 1530 | AZ82: =VLOOKUP($B82,[1]FlowData!$A$3:$PL$215,AZ$7,FALSE) -> 1020 | BA82: =VLOOKUP($B82,[1]FlowData!$A$3:$PL$215,BA$7,FALSE) -> 519 | BB82: =VLOOKUP($B82,[1]FlowData!$A$3:$PL$215,BB$7,FALSE) -> 1230 | BC82: =VLOOKUP($B82,[1]FlowData!$A$3:$PL$215,BC$7,FALSE) -> 1130 | BD82: =VLOOKUP($B82,[1]FlowData!$A$3:$PL$215,BD$7,FALSE) -> 771 | BE82: =VLOOKUP($B82,[1]FlowData!$A$3:$PL$215,BE$7,FALSE) -> 564 | BF82: =VLOOKUP($B82,[1]FlowData!$A$3:$PL$215,BF$7,FALSE) -> 912
A83: =VLOOKUP(B83,'[2]Gages and BCs'!$A$4:$BJ$973,62,FALSE) -> 704 | B83: 12357000 | C83: =VLOOKUP(B83,'[2]Gages and BCs'!$A$4:$BJ$973,60,FALSE) -> Middle Fork Flathead River at Essex, Montana | D83: 1940–53, 1956–64 | E83: =VLOOKUP($B83,[1]FlowData!$A$3:$PL$215,E$7,FALSE) -> 84.693 | F83: =VLOOKUP($B83,[1]FlowData!$A$3:$PL$215,F$7,FALSE) -> 152.934 | G83: =VLOOKUP($B83,[1]FlowData!$A$3:$PL$215,G$7,FALSE) -> 1480 | H83: =VLOOKUP($B83,[1]FlowData!$A$3:$PL$215,H$7,FALSE) -> 897 | I83: =VLOOKUP($B83,[1]FlowData!$A$3:$PL$215,I$7,FALSE) -> 386 | J83: =VLOOKUP($B83,[1]FlowData!$A$3:$PL$215,J$7,FALSE) -> 1090 | K83: =VLOOKUP($B83,[1]FlowData!$A$3:$PL$215,K$7,FALSE) -> 287 | L83: =VLOOKUP($B83,[1]FlowData!$A$3:$PL$215,L$7,FALSE) -> 195 | M83: =VLOOKUP($B83,[1]FlowData!$A$3:$PL$215,M$7,FALSE) -> 127 | N83: =VLOOKUP($B83,[1]FlowData!$A$3:$PL$215,N$7,FALSE) -> 223 | O83: =VLOOKUP($B83,[1]FlowData!$A$3:$PL$215,O$7,FALSE) -> 303 | P83: =VLOOKUP($B83,[1]FlowData!$A$3:$PL$215,P$7,FALSE) -> 197 | Q83: =VLOOKUP($B83,[1]FlowData!$A$3:$PL$215,Q$7,FALSE) -> 128 | R83: =VLOOKUP($B83,[1]FlowData!$A$3:$PL$215,R$7,FALSE) -> 238 | S83: =VLOOKUP($B83,[1]FlowData!$A$3:$PL$215,S$7,FALSE) -> 318 | T83: =VLOOKUP($B83,[1]FlowData!$A$3:$PL$215,T$7,FALSE) -> 209 | U83: =VLOOKUP($B83,[1]FlowData!$A$3:$PL$215,U$7,FALSE) -> 150 | V83: =VLOOKUP($B83,[1]FlowData!$A$3:$PL$215,V$7,FALSE) -> 251 | W83: =VLOOKUP($B83,[1]FlowData!$A$3:$PL$215,W$7,FALSE) -> 1970 | X83: =VLOOKUP($B83,[1]FlowData!$A$3:$PL$215,X$7,FALSE) -> 896 | Y83: =VLOOKUP($B83,[1]FlowData!$A$3:$PL$215,Y$7,FALSE) -> 394 | Z83: =VLOOKUP($B83,[1]FlowData!$A$3:$PL$215,Z$7,FALSE) -> 1320 | AA83: =VLOOKUP($B83,[1]FlowData!$A$3:$PL$215,AA$7,FALSE) -> 6130 | AB83: =VLOOKUP($B83,[1]FlowData!$A$3:$PL$215,AB$7,FALSE) -> 4080 | AC83: =VLOOKUP($B83,[1]FlowData!$A$3:$PL$215,AC$7,FALSE) -> 2360 | AD83: =VLOOKUP($B83,[1]FlowData!$A$3:$PL$215,AD$7,FALSE) -> 4350 | AE83: =VLOOKUP($B83,[1]FlowData!$A$3:$PL$215,AE$7,FALSE) -> 5640 | AF83: =VLOOKUP($B83,[1]FlowData!$A$3:$PL$215,AF$7,FALSE) -> 3240 | AG83: =VLOOKUP($B83,[1]FlowData!$A$3:$PL$215,AG$7,FALSE) -> 1730 | AH83: =VLOOKUP($B83,[1]FlowData!$A$3:$PL$215,AH$7,FALSE) -> 3790 | AI83: =VLOOKUP($B83,[1]FlowData!$A$3:$PL$215,AI$7,FALSE) -> 1460 | AJ83: =VLOOKUP($B83,[1]FlowData!$A$3:$PL$215,AJ$7,FALSE) -> 744 | AK83: =VLOOKUP($B83,[1]FlowData!$A$3:$PL$215,AK$7,FALSE) -> 447 | AL83: =VLOOKUP($B83,[1]FlowData!$A$3:$PL$215,AL$7,FALSE) -> 1040 | AM83: =VLOOKUP($B83,[1]FlowData!$A$3:$PL$215,AM$7,FALSE) -> 410 | AN83: =VLOOKUP($B83,[1]FlowData!$A$3:$PL$215,AN$7,FALSE) -> 304 | AO83: =VLOOKUP($B83,[1]FlowData!$A$3:$PL$215,AO$7,FALSE) -> 227 | AP83: =VLOOKUP($B83,[1]FlowData!$A$3:$PL$215,AP$7,FALSE) -> 326 | AQ83: =VLOOKUP($B83,[1]FlowData!$A$3:$PL$215,AQ$7,FALSE) -> 285 | AR83: =VLOOKUP($B83,[1]FlowData!$A$3:$PL$215,AR$7,FALSE) -> 225 | AS83: =VLOOKUP($B83,[1]FlowData!$A$3:$PL$215,AS$7,FALSE) -> 189 | AT83: =VLOOKUP($B83,[1]FlowData!$A$3:$PL$215,AT$7,FALSE) -> 244 | AU83: =VLOOKUP($B83,[1]FlowData!$A$3:$PL$215,AU$7,FALSE) -> 500 | AV83: =VLOOKUP($B83,[1]FlowData!$A$3:$PL$215,AV$7,FALSE) -> 243 | AW83: =VLOOKUP($B83,[1]FlowData!$A$3:$PL$215,AW$7,FALSE) -> 165 | AX83: =VLOOKUP($B83,[1]FlowData!$A$3:$PL$215,AX$7,FALSE) -> 357 | AY83: =VLOOKUP($B83,[1]FlowData!$A$3:$PL$215,AY$7,FALSE) -> 492 | AZ83: =VLOOKUP($B83,[1]FlowData!$A$3:$PL$215,AZ$7,FALSE) -> 277 | BA83: =VLOOKUP($B83,[1]FlowData!$A$3:$PL$215,BA$7,FALSE) -> 155 | BB83: =VLOOKUP($B83,[1]FlowData!$A$3:$PL$215,BB$7,FALSE) -> 355 | BC83: =VLOOKUP($B83,[1]FlowData!$A$3:$PL$215,BC$7,FALSE) -> 493 | BD83: =VLOOKUP($B83,[1]FlowData!$A$3:$PL$215,BD$7,FALSE) -> 248 | BE83: =VLOOKUP($B83,[1]FlowData!$A$3:$PL$215,BE$7,FALSE) -> 151 | BF83: =VLOOKUP($B83,[1]FlowData!$A$3:$PL$215,BF$7,FALSE) -> 333
A84: =VLOOKUP(B84,'[2]Gages and BCs'!$A$4:$BJ$973,62,FALSE) -> 708 | B84: 12358500 | C84: =VLOOKUP(B84,'[2]Gages and BCs'!$A$4:$BJ$973,60,FALSE) -> Middle Fork Flathead River near West Glacier, Montana | D84: 1940–2000, 2005–9 | E84: =VLOOKUP($B84,[1]FlowData!$A$3:$PL$215,E$7,FALSE) -> 279.291 | F84: =VLOOKUP($B84,[1]FlowData!$A$3:$PL$215,F$7,FALSE) -> 469.908 | G84: =VLOOKUP($B84,[1]FlowData!$A$3:$PL$215,G$7,FALSE) -> 4640 | H84: =VLOOKUP($B84,[1]FlowData!$A$3:$PL$215,H$7,FALSE) -> 2380 | I84: =VLOOKUP($B84,[1]FlowData!$A$3:$PL$215,I$7,FALSE) -> 1050 | J84: =VLOOKUP($B84,[1]FlowData!$A$3:$PL$215,J$7,FALSE) -> 2890 | K84: =VLOOKUP($B84,[1]FlowData!$A$3:$PL$215,K$7,FALSE) -> 954 | L84: =VLOOKUP($B84,[1]FlowData!$A$3:$PL$215,L$7,FALSE) -> 615 | M84: =VLOOKUP($B84,[1]FlowData!$A$3:$PL$215,M$7,FALSE) -> 358 | N84: =VLOOKUP($B84,[1]FlowData!$A$3:$PL$215,N$7,FALSE) -> 736 | O84: =VLOOKUP($B84,[1]FlowData!$A$3:$PL$215,O$7,FALSE) -> 901 | P84: =VLOOKUP($B84,[1]FlowData!$A$3:$PL$215,P$7,FALSE) -> 578 | Q84: =VLOOKUP($B84,[1]FlowData!$A$3:$PL$215,Q$7,FALSE) -> 370 | R84: =VLOOKUP($B84,[1]FlowData!$A$3:$PL$215,R$7,FALSE) -> 720 | S84: =VLOOKUP($B84,[1]FlowData!$A$3:$PL$215,S$7,FALSE) -> 1130 | T84: =VLOOKUP($B84,[1]FlowData!$A$3:$PL$215,T$7,FALSE) -> 688 | U84: =VLOOKUP($B84,[1]FlowData!$A$3:$PL$215,U$7,FALSE) -> 413 | V84: =VLOOKUP($B84,[1]FlowData!$A$3:$PL$215,V$7,FALSE) -> 893 | W84: =VLOOKUP($B84,[1]FlowData!$A$3:$PL$215,W$7,FALSE) -> 4750 | X84: =VLOOKUP($B84,[1]FlowData!$A$3:$PL$215,X$7,FALSE) -> 2390 | Y84: =VLOOKUP($B84,[1]FlowData!$A$3:$PL$215,Y$7,FALSE) -> 1180 | Z84: =VLOOKUP($B84,[1]FlowData!$A$3:$PL$215,Z$7,FALSE) -> 3190 | AA84: =VLOOKUP($B84,[1]FlowData!$A$3:$PL$215,AA$7,FALSE) -> 13700 | AB84: =VLOOKUP($B84,[1]FlowData!$A$3:$PL$215,AB$7,FALSE) -> 8750 | AC84: =VLOOKUP($B84,[1]FlowData!$A$3:$PL$215,AC$7,FALSE) -> 5400 | AD84: =VLOOKUP($B84,[1]FlowData!$A$3:$PL$215,AD$7,FALSE) -> 9630 | AE84: =VLOOKUP($B84,[1]FlowData!$A$3:$PL$215,AE$7,FALSE) -> 13900 | AF84: =VLOOKUP($B84,[1]FlowData!$A$3:$PL$215,AF$7,FALSE) -> 9340 | AG84: =VLOOKUP($B84,[1]FlowData!$A$3:$PL$215,AG$7,FALSE) -> 5930 | AH84: =VLOOKUP($B84,[1]FlowData!$A$3:$PL$215,AH$7,FALSE) -> 10000 | AI84: =VLOOKUP($B84,[1]FlowData!$A$3:$PL$215,AI$7,FALSE) -> 5640 | AJ84: =VLOOKUP($B84,[1]FlowData!$A$3:$PL$215,AJ$7,FALSE) -> 3270 | AK84: =VLOOKUP($B84,[1]FlowData!$A$3:$PL$215,AK$7,FALSE) -> 1950 | AL84: =VLOOKUP($B84,[1]FlowData!$A$3:$PL$215,AL$7,FALSE) -> 3910 | AM84: =VLOOKUP($B84,[1]FlowData!$A$3:$PL$215,AM$7,FALSE) -> 1760 | AN84: =VLOOKUP($B84,[1]FlowData!$A$3:$PL$215,AN$7,FALSE) -> 1250 | AO84: =VLOOKUP($B84,[1]FlowData!$A$3:$PL$215,AO$7,FALSE) -> 882 | AP84: =VLOOKUP($B84,[1]FlowData!$A$3:$PL$215,AP$7,FALSE) -> 1350 | AQ84: =VLOOKUP($B84,[1]FlowData!$A$3:$PL$215,AQ$7,FALSE) -> 1170 | AR84: =VLOOKUP($B84,[1]FlowData!$A$3:$PL$215,AR$7,FALSE) -> 809 | AS84: =VLOOKUP($B84,[1]FlowData!$A$3:$PL$215,AS$7,FALSE) -> 613 | AT84: =VLOOKUP($B84,[1]FlowData!$A$3:$PL$215,AT$7,FALSE) -> 934 | AU84: =VLOOKUP($B84,[1]FlowData!$A$3:$PL$215,AU$7,FALSE) -> 1450 | AV84: =VLOOKUP($B84,[1]FlowData!$A$3:$PL$215,AV$7,FALSE) -> 803 | AW84: =VLOOKUP($B84,[1]FlowData!$A$3:$PL$215,AW$7,FALSE) -> 512 | AX84: =VLOOKUP($B84,[1]FlowData!$A$3:$PL$215,AX$7,FALSE) -> 1070 | AY84: =VLOOKUP($B84,[1]FlowData!$A$3:$PL$215,AY$7,FALSE) -> 1760 | AZ84: =VLOOKUP($B84,[1]FlowData!$A$3:$PL$215,AZ$7,FALSE) -> 949 | BA84: =VLOOKUP($B84,[1]FlowData!$A$3:$PL$215,BA$7,FALSE) -> 481 | BB84: =VLOOKUP($B84,[1]FlowData!$A$3:$PL$215,BB$7,FALSE) -> 1230 | BC84: =VLOOKUP($B84,[1]FlowData!$A$3:$PL$215,BC$7,FALSE) -> 1240 | BD84: =VLOOKUP($B84,[1]FlowData!$A$3:$PL$215,BD$7,FALSE) -> 725 | BE84: =VLOOKUP($B84,[1]FlowData!$A$3:$PL$215,BE$7,FALSE) -> 389 | BF84: =VLOOKUP($B84,[1]FlowData!$A$3:$PL$215,BF$7,FALSE) -> 938
A85: =VLOOKUP(B85,'[2]Gages and BCs'!$A$4:$BJ$973,62,FALSE) -> 711 | B85: 12359800 | C85: =VLOOKUP(B85,'[2]Gages and BCs'!$A$4:$BJ$973,60,FALSE) -> South Fork Flathead River above Twin Creek, near Hungry Horse, Montana | D85: 1965–82, 1985–2005, 2007–8 | E85: =VLOOKUP($B85,[1]FlowData!$A$3:$PL$215,E$7,FALSE) -> 178.882 | F85: =VLOOKUP($B85,[1]FlowData!$A$3:$PL$215,F$7,FALSE) -> 287.66 | G85: =VLOOKUP($B85,[1]FlowData!$A$3:$PL$215,G$7,FALSE) -> 3460 | H85: =VLOOKUP($B85,[1]FlowData!$A$3:$PL$215,H$7,FALSE) -> 925 | I85: =VLOOKUP($B85,[1]FlowData!$A$3:$PL$215,I$7,FALSE) -> 443 | J85: =VLOOKUP($B85,[1]FlowData!$A$3:$PL$215,J$7,FALSE) -> 2310 | K85: =VLOOKUP($B85,[1]FlowData!$A$3:$PL$215,K$7,FALSE) -> 610 | L85: =VLOOKUP($B85,[1]FlowData!$A$3:$PL$215,L$7,FALSE) -> 370 | M85: =VLOOKUP($B85,[1]FlowData!$A$3:$PL$215,M$7,FALSE) -> 216 | N85: =VLOOKUP($B85,[1]FlowData!$A$3:$PL$215,N$7,FALSE) -> 479 | O85: =VLOOKUP($B85,[1]FlowData!$A$3:$PL$215,O$7,FALSE) -> 628 | P85: =VLOOKUP($B85,[1]FlowData!$A$3:$PL$215,P$7,FALSE) -> 380 | Q85: =VLOOKUP($B85,[1]FlowData!$A$3:$PL$215,Q$7,FALSE) -> 227 | R85: =VLOOKUP($B85,[1]FlowData!$A$3:$PL$215,R$7,FALSE) -> 520 | S85: =VLOOKUP($B85,[1]FlowData!$A$3:$PL$215,S$7,FALSE) -> 729 | T85: =VLOOKUP($B85,[1]FlowData!$A$3:$PL$215,T$7,FALSE) -> 473 | U85: =VLOOKUP($B85,[1]FlowData!$A$3:$PL$215,U$7,FALSE) -> 301 | V85: =VLOOKUP($B85,[1]FlowData!$A$3:$PL$215,V$7,FALSE) -> 588 | W85: =VLOOKUP($B85,[1]FlowData!$A$3:$PL$215,W$7,FALSE) -> 3890 | X85: =VLOOKUP($B85,[1]FlowData!$A$3:$PL$215,X$7,FALSE) -> 1830 | Y85: =VLOOKUP($B85,[1]FlowData!$A$3:$PL$215,Y$7,FALSE) -> 853 | Z85: =VLOOKUP($B85,[1]FlowData!$A$3:$PL$215,Z$7,FALSE) -> 2490 | AA85: =VLOOKUP($B85,[1]FlowData!$A$3:$PL$215,AA$7,FALSE) -> 11100 | AB85: =VLOOKUP($B85,[1]FlowData!$A$3:$PL$215,AB$7,FALSE) -> 6760 | AC85: =VLOOKUP($B85,[1]FlowData!$A$3:$PL$215,AC$7,FALSE) -> 4010 | AD85: =VLOOKUP($B85,[1]FlowData!$A$3:$PL$215,AD$7,FALSE) -> 7710 | AE85: =VLOOKUP($B85,[1]FlowData!$A$3:$PL$215,AE$7,FALSE) -> 11800 | AF85: =VLOOKUP($B85,[1]FlowData!$A$3:$PL$215,AF$7,FALSE) -> 7290 | AG85: =VLOOKUP($B85,[1]FlowData!$A$3:$PL$215,AG$7,FALSE) -> 4380 | AH85: =VLOOKUP($B85,[1]FlowData!$A$3:$PL$215,AH$7,FALSE) -> 8190 | AI85: =VLOOKUP($B85,[1]FlowData!$A$3:$PL$215,AI$7,FALSE) -> 3900 | AJ85: =VLOOKUP($B85,[1]FlowData!$A$3:$PL$215,AJ$7,FALSE) -> 2000 | AK85: =VLOOKUP($B85,[1]FlowData!$A$3:$PL$215,AK$7,FALSE) -> 1120 | AL85: =VLOOKUP($B85,[1]FlowData!$A$3:$PL$215,AL$7,FALSE) -> 2630 | AM85: =VLOOKUP($B85,[1]FlowData!$A$3:$PL$215,AM$7,FALSE) -> 1000 | AN85: =VLOOKUP($B85,[1]FlowData!$A$3:$PL$215,AN$7,FALSE) -> 690 | AO85: =VLOOKUP($B85,[1]FlowData!$A$3:$PL$215,AO$7,FALSE) -> 481 | AP85: =VLOOKUP($B85,[1]FlowData!$A$3:$PL$215,AP$7,FALSE) -> 759 | AQ85: =VLOOKUP($B85,[1]FlowData!$A$3:$PL$215,AQ$7,FALSE) -> 652 | AR85: =VLOOKUP($B85,[1]FlowData!$A$3:$PL$215,AR$7,FALSE) -> 456 | AS85: =VLOOKUP($B85,[1]FlowData!$A$3:$PL$215,AS$7,FALSE) -> 338 | AT85: =VLOOKUP($B85,[1]FlowData!$A$3:$PL$215,AT$7,FALSE) -> 559 | AU85: =VLOOKUP($B85,[1]FlowData!$A$3:$PL$215,AU$7,FALSE) -> 715 | AV85: =VLOOKUP($B85,[1]FlowData!$A$3:$PL$215,AV$7,FALSE) -> 469 | AW85: =VLOOKUP($B85,[1]FlowData!$A$3:$PL$215,AW$7,FALSE) -> 302 | AX85: =VLOOKUP($B85,[1]FlowData!$A$3:$PL$215,AX$7,FALSE) -> 573 | AY85: =VLOOKUP($B85,[1]FlowData!$A$3:$PL$215,AY$7,FALSE) -> 975 | AZ85: =VLOOKUP($B85,[1]FlowData!$A$3:$PL$215,AZ$7,FALSE) -> 529 | BA85: =VLOOKUP($B85,[1]FlowData!$A$3:$PL$215,BA$7,FALSE) -> 296 | BB85: =VLOOKUP($B85,[1]FlowData!$A$3:$PL$215,BB$7,FALSE) -> 706 | BC85: =VLOOKUP($B85,[1]FlowData!$A$3:$PL$215,BC$7,FALSE) -> 614 | BD85: =VLOOKUP($B85,[1]FlowData!$A$3:$PL$215,BD$7,FALSE) -> 409 | BE85: =VLOOKUP($B85,[1]FlowData!$A$3:$PL$215,BE$7,FALSE) -> 255 | BF85: =VLOOKUP($B85,[1]FlowData!$A$3:$PL$215,BF$7,FALSE) -> 514
A86: =VLOOKUP(B86,'[2]Gages and BCs'!$A$4:$BJ$973,62,FALSE) -> 712 | B86: 12360000 | C86: =VLOOKUP(B86,'[2]Gages and BCs'!$A$4:$BJ$973,60,FALSE) -> Twin Creek near Hungry Horse, Montana | D86: 1949–56, 1965–67 | E86: =VLOOKUP($B86,[1]FlowData!$A$3:$PL$215,E$7,FALSE) ->  | F86: =VLOOKUP($B86,[1]FlowData!$A$3:$PL$215,F$7,FALSE) ->  | G86: =VLOOKUP($B86,[1]FlowData!$A$3:$PL$215,G$7,FALSE) -> 177 | H86: =VLOOKUP($B86,[1]FlowData!$A$3:$PL$215,H$7,FALSE) -> 52 | I86: =VLOOKUP($B86,[1]FlowData!$A$3:$PL$215,I$7,FALSE) -> 23 | J86: =VLOOKUP($B86,[1]FlowData!$A$3:$PL$215,J$7,FALSE) -> 124 | K86: =VLOOKUP($B86,[1]FlowData!$A$3:$PL$215,K$7,FALSE) -> 35 | L86: =VLOOKUP($B86,[1]FlowData!$A$3:$PL$215,L$7,FALSE) -> 20 | M86: =VLOOKUP($B86,[1]FlowData!$A$3:$PL$215,M$7,FALSE) -> 13 | N86: =VLOOKUP($B86,[1]FlowData!$A$3:$PL$215,N$7,FALSE) -> 23 | O86: =VLOOKUP($B86,[1]FlowData!$A$3:$PL$215,O$7,FALSE) -> 32 | P86: =VLOOKUP($B86,[1]FlowData!$A$3:$PL$215,P$7,FALSE) -> 21 | Q86: =VLOOKUP($B86,[1]FlowData!$A$3:$PL$215,Q$7,FALSE) -> 15 | R86: =VLOOKUP($B86,[1]FlowData!$A$3:$PL$215,R$7,FALSE) -> 27 | S86: =VLOOKUP($B86,[1]FlowData!$A$3:$PL$215,S$7,FALSE) -> 38 | T86: =VLOOKUP($B86,[1]FlowData!$A$3:$PL$215,T$7,FALSE) -> 27 | U86: =VLOOKUP($B86,[1]FlowData!$A$3:$PL$215,U$7,FALSE) -> 14 | V86: =VLOOKUP($B86,[1]FlowData!$A$3:$PL$215,V$7,FALSE) -> 31 | W86: =VLOOKUP($B86,[1]FlowData!$A$3:$PL$215,W$7,FALSE) -> 323 | X86: =VLOOKUP($B86,[1]FlowData!$A$3:$PL$215,X$7,FALSE) -> 152 | Y86: =VLOOKUP($B86,[1]FlowData!$A$3:$PL$215,Y$7,FALSE) -> 58 | Z86: =VLOOKUP($B86,[1]FlowData!$A$3:$PL$215,Z$7,FALSE) -> 205 | AA86: =VLOOKUP($B86,[1]FlowData!$A$3:$PL$215,AA$7,FALSE) -> 766 | AB86: =VLOOKUP($B86,[1]FlowData!$A$3:$PL$215,AB$7,FALSE) -> 482 | AC86: =VLOOKUP($B86,[1]FlowData!$A$3:$PL$215,AC$7,FALSE) -> 318 | AD86: =VLOOKUP($B86,[1]FlowData!$A$3:$PL$215,AD$7,FALSE) -> 545 | AE86: =VLOOKUP($B86,[1]FlowData!$A$3:$PL$215,AE$7,FALSE) -> 592 | AF86: =VLOOKUP($B86,[1]FlowData!$A$3:$PL$215,AF$7,FALSE) -> 355 | AG86: =VLOOKUP($B86,[1]FlowData!$A$3:$PL$215,AG$7,FALSE) -> 192 | AH86: =VLOOKUP($B86,[1]FlowData!$A$3:$PL$215,AH$7,FALSE) -> 385 | AI86: =VLOOKUP($B86,[1]FlowData!$A$3:$PL$215,AI$7,FALSE) -> 127 | AJ86: =VLOOKUP($B86,[1]FlowData!$A$3:$PL$215,AJ$7,FALSE) -> 65 | AK86: =VLOOKUP($B86,[1]FlowData!$A$3:$PL$215,AK$7,FALSE) -> 38 | AL86: =VLOOKUP($B86,[1]FlowData!$A$3:$PL$215,AL$7,FALSE) -> 87 | AM86: =VLOOKUP($B86,[1]FlowData!$A$3:$PL$215,AM$7,FALSE) -> 29 | AN86: =VLOOKUP($B86,[1]FlowData!$A$3:$PL$215,AN$7,FALSE) -> 22 | AO86: =VLOOKUP($B86,[1]FlowData!$A$3:$PL$215,AO$7,FALSE) -> 16 | AP86: =VLOOKUP($B86,[1]FlowData!$A$3:$PL$215,AP$7,FALSE) -> 23 | AQ86: =VLOOKUP($B86,[1]FlowData!$A$3:$PL$215,AQ$7,FALSE) -> 19 | AR86: =VLOOKUP($B86,[1]FlowData!$A$3:$PL$215,AR$7,FALSE) -> 13 | AS86: =VLOOKUP($B86,[1]FlowData!$A$3:$PL$215,AS$7,FALSE) -> 9.9 | AT86: =VLOOKUP($B86,[1]FlowData!$A$3:$PL$215,AT$7,FALSE) -> 18 | AU86: =VLOOKUP($B86,[1]FlowData!$A$3:$PL$215,AU$7,FALSE) -> 47 | AV86: =VLOOKUP($B86,[1]FlowData!$A$3:$PL$215,AV$7,FALSE) -> 24 | AW86: =VLOOKUP($B86,[1]FlowData!$A$3:$PL$215,AW$7,FALSE) -> 10 | AX86: =VLOOKUP($B86,[1]FlowData!$A$3:$PL$215,AX$7,FALSE) -> 31 | AY86: =VLOOKUP($B86,[1]FlowData!$A$3:$PL$215,AY$7,FALSE) -> 49 | AZ86: =VLOOKUP($B86,[1]FlowData!$A$3:$PL$215,AZ$7,FALSE) -> 31 | BA86: =VLOOKUP($B86,[1]FlowData!$A$3:$PL$215,BA$7,FALSE) -> 12 | BB86: =VLOOKUP($B86,[1]FlowData!$A$3:$PL$215,BB$7,FALSE) -> 35 | BC86: =VLOOKUP($B86,[1]FlowData!$A$3:$PL$215,BC$7,FALSE) -> 44 | BD86: =VLOOKUP($B86,[1]FlowData!$A$3:$PL$215,BD$7,FALSE) -> 27 | BE86: =VLOOKUP($B86,[1]FlowData!$A$3:$PL$215,BE$7,FALSE) -> 14 | BF86: =VLOOKUP($B86,[1]FlowData!$A$3:$PL$215,BF$7,FALSE) -> 36
A87: =VLOOKUP(B87,'[2]Gages and BCs'!$A$4:$BJ$973,62,FALSE) -> 713 | B87: 12361000 | C87: =VLOOKUP(B87,'[2]Gages and BCs'!$A$4:$BJ$973,60,FALSE) -> Sullivan Creek near Hungry Horse, Montana | D87: 1949–56, 1960–76 | E87: =VLOOKUP($B87,[1]FlowData!$A$3:$PL$215,E$7,FALSE) -> 17.726 | F87: =VLOOKUP($B87,[1]FlowData!$A$3:$PL$215,F$7,FALSE) -> 24.779 | G87: =VLOOKUP($B87,[1]FlowData!$A$3:$PL$215,G$7,FALSE) -> 338 | H87: =VLOOKUP($B87,[1]FlowData!$A$3:$PL$215,H$7,FALSE) -> 101 | I87: =VLOOKUP($B87,[1]FlowData!$A$3:$PL$215,I$7,FALSE) -> 46 | J87: =VLOOKUP($B87,[1]FlowData!$A$3:$PL$215,J$7,FALSE) -> 225 | K87: =VLOOKUP($B87,[1]FlowData!$A$3:$PL$215,K$7,FALSE) -> 88 | L87: =VLOOKUP($B87,[1]FlowData!$A$3:$PL$215,L$7,FALSE) -> 48 | M87: =VLOOKUP($B87,[1]FlowData!$A$3:$PL$215,M$7,FALSE) -> 26 | N87: =VLOOKUP($B87,[1]FlowData!$A$3:$PL$215,N$7,FALSE) -> 64 | O87: =VLOOKUP($B87,[1]FlowData!$A$3:$PL$215,O$7,FALSE) -> 86 | P87: =VLOOKUP($B87,[1]FlowData!$A$3:$PL$215,P$7,FALSE) -> 47 | Q87: =VLOOKUP($B87,[1]FlowData!$A$3:$PL$215,Q$7,FALSE) -> 28 | R87: =VLOOKUP($B87,[1]FlowData!$A$3:$PL$215,R$7,FALSE) -> 69 | S87: =VLOOKUP($B87,[1]FlowData!$A$3:$PL$215,S$7,FALSE) -> 93 | T87: =VLOOKUP($B87,[1]FlowData!$A$3:$PL$215,T$7,FALSE) -> 54 | U87: =VLOOKUP($B87,[1]FlowData!$A$3:$PL$215,U$7,FALSE) -> 37 | V87: =VLOOKUP($B87,[1]FlowData!$A$3:$PL$215,V$7,FALSE) -> 75 | W87: =VLOOKUP($B87,[1]FlowData!$A$3:$PL$215,W$7,FALSE) -> 403 | X87: =VLOOKUP($B87,[1]FlowData!$A$3:$PL$215,X$7,FALSE) -> 199 | Y87: =VLOOKUP($B87,[1]FlowData!$A$3:$PL$215,Y$7,FALSE) -> 97 | Z87: =VLOOKUP($B87,[1]FlowData!$A$3:$PL$215,Z$7,FALSE) -> 272 | AA87: =VLOOKUP($B87,[1]FlowData!$A$3:$PL$215,AA$7,FALSE) -> 1180 | AB87: =VLOOKUP($B87,[1]FlowData!$A$3:$PL$215,AB$7,FALSE) -> 770 | AC87: =VLOOKUP($B87,[1]FlowData!$A$3:$PL$215,AC$7,FALSE) -> 477 | AD87: =VLOOKUP($B87,[1]FlowData!$A$3:$PL$215,AD$7,FALSE) -> 837 | AE87: =VLOOKUP($B87,[1]FlowData!$A$3:$PL$215,AE$7,FALSE) -> 1130 | AF87: =VLOOKUP($B87,[1]FlowData!$A$3:$PL$215,AF$7,FALSE) -> 725 | AG87: =VLOOKUP($B87,[1]FlowData!$A$3:$PL$215,AG$7,FALSE) -> 454 | AH87: =VLOOKUP($B87,[1]FlowData!$A$3:$PL$215,AH$7,FALSE) -> 797 | AI87: =VLOOKUP($B87,[1]FlowData!$A$3:$PL$215,AI$7,FALSE) -> 282 | AJ87: =VLOOKUP($B87,[1]FlowData!$A$3:$PL$215,AJ$7,FALSE) -> 153 | AK87: =VLOOKUP($B87,[1]FlowData!$A$3:$PL$215,AK$7,FALSE) -> 91 | AL87: =VLOOKUP($B87,[1]FlowData!$A$3:$PL$215,AL$7,FALSE) -> 197 | AM87: =VLOOKUP($B87,[1]FlowData!$A$3:$PL$215,AM$7,FALSE) -> 75 | AN87: =VLOOKUP($B87,[1]FlowData!$A$3:$PL$215,AN$7,FALSE) -> 54 | AO87: =VLOOKUP($B87,[1]FlowData!$A$3:$PL$215,AO$7,FALSE) -> 39 | AP87: =VLOOKUP($B87,[1]FlowData!$A$3:$PL$215,AP$7,FALSE) -> 60 | AQ87: =VLOOKUP($B87,[1]FlowData!$A$3:$PL$215,AQ$7,FALSE) -> 68 | AR87: =VLOOKUP($B87,[1]FlowData!$A$3:$PL$215,AR$7,FALSE) -> 40 | AS87: =VLOOKUP($B87,[1]FlowData!$A$3:$PL$215,AS$7,FALSE) -> 27 | AT87: =VLOOKUP($B87,[1]FlowData!$A$3:$PL$215,AT$7,FALSE) -> 59 | AU87: =VLOOKUP($B87,[1]FlowData!$A$3:$PL$215,AU$7,FALSE) -> 129 | AV87: =VLOOKUP($B87,[1]FlowData!$A$3:$PL$215,AV$7,FALSE) -> 54 | AW87: =VLOOKUP($B87,[1]FlowData!$A$3:$PL$215,AW$7,FALSE) -> 29 | AX87: =VLOOKUP($B87,[1]FlowData!$A$3:$PL$215,AX$7,FALSE) -> 89 | AY87: =VLOOKUP($B87,[1]FlowData!$A$3:$PL$215,AY$7,FALSE) -> 143 | AZ87: =VLOOKUP($B87,[1]FlowData!$A$3:$PL$215,AZ$7,FALSE) -> 75 | BA87: =VLOOKUP($B87,[1]FlowData!$A$3:$PL$215,BA$7,FALSE) -> 35 | BB87: =VLOOKUP($B87,[1]FlowData!$A$3:$PL$215,BB$7,FALSE) -> 96 | BC87: =VLOOKUP($B87,[1]FlowData!$A$3:$PL$215,BC$7,FALSE) -> 109 | BD87: =VLOOKUP($B87,[1]FlowData!$A$3:$PL$215,BD$7,FALSE) -> 62 | BE87: =VLOOKUP($B87,[1]FlowData!$A$3:$PL$215,BE$7,FALSE) -> 29 | BF87: =VLOOKUP($B87,[1]FlowData!$A$3:$PL$215,BF$7,FALSE) -> 80
A88: =VLOOKUP(B88,'[2]Gages and BCs'!$A$4:$BJ$973,62,FALSE) -> 714 | B88: 12361500 | C88: =VLOOKUP(B88,'[2]Gages and BCs'!$A$4:$BJ$973,60,FALSE) -> Graves Creek near Hungry Horse, Montana | D88: 1949–56, 1965–67 | E88: =VLOOKUP($B88,[1]FlowData!$A$3:$PL$215,E$7,FALSE) ->  | F88: =VLOOKUP($B88,[1]FlowData!$A$3:$PL$215,F$7,FALSE) ->  | G88: =VLOOKUP($B88,[1]FlowData!$A$3:$PL$215,G$7,FALSE) -> 206 | H88: =VLOOKUP($B88,[1]FlowData!$A$3:$PL$215,H$7,FALSE) -> 60 | I88: =VLOOKUP($B88,[1]FlowData!$A$3:$PL$215,I$7,FALSE) -> 26 | J88: =VLOOKUP($B88,[1]FlowData!$A$3:$PL$215,J$7,FALSE) -> 135 | K88: =VLOOKUP($B88,[1]FlowData!$A$3:$PL$215,K$7,FALSE) -> 41 | L88: =VLOOKUP($B88,[1]FlowData!$A$3:$PL$215,L$7,FALSE) -> 27 | M88: =VLOOKUP($B88,[1]FlowData!$A$3:$PL$215,M$7,FALSE) -> 19 | N88: =VLOOKUP($B88,[1]FlowData!$A$3:$PL$215,N$7,FALSE) -> 31 | O88: =VLOOKUP($B88,[1]FlowData!$A$3:$PL$215,O$7,FALSE) -> 35 | P88: =VLOOKUP($B88,[1]FlowData!$A$3:$PL$215,P$7,FALSE) -> 24 | Q88: =VLOOKUP($B88,[1]FlowData!$A$3:$PL$215,Q$7,FALSE) -> 15 | R88: =VLOOKUP($B88,[1]FlowData!$A$3:$PL$215,R$7,FALSE) -> 31 | S88: =VLOOKUP($B88,[1]FlowData!$A$3:$PL$215,S$7,FALSE) -> 36 | T88: =VLOOKUP($B88,[1]FlowData!$A$3:$PL$215,T$7,FALSE) -> 24 | U88: =VLOOKUP($B88,[1]FlowData!$A$3:$PL$215,U$7,FALSE) -> 19 | V88: =VLOOKUP($B88,[1]FlowData!$A$3:$PL$215,V$7,FALSE) -> 29 | W88: =VLOOKUP($B88,[1]FlowData!$A$3:$PL$215,W$7,FALSE) -> 175 | X88: =VLOOKUP($B88,[1]FlowData!$A$3:$PL$215,X$7,FALSE) -> 82 | Y88: =VLOOKUP($B88,[1]FlowData!$A$3:$PL$215,Y$7,FALSE) -> 34 | Z88: =VLOOKUP($B88,[1]FlowData!$A$3:$PL$215,Z$7,FALSE) -> 117 | AA88: =VLOOKUP($B88,[1]FlowData!$A$3:$PL$215,AA$7,FALSE) -> 643 | AB88: =VLOOKUP($B88,[1]FlowData!$A$3:$PL$215,AB$7,FALSE) -> 393 | AC88: =VLOOKUP($B88,[1]FlowData!$A$3:$PL$215,AC$7,FALSE) -> 198 | AD88: =VLOOKUP($B88,[1]FlowData!$A$3:$PL$215,AD$7,FALSE) -> 429 | AE88: =VLOOKUP($B88,[1]FlowData!$A$3:$PL$215,AE$7,FALSE) -> 722 | AF88: =VLOOKUP($B88,[1]FlowData!$A$3:$PL$215,AF$7,FALSE) -> 504 | AG88: =VLOOKUP($B88,[1]FlowData!$A$3:$PL$215,AG$7,FALSE) -> 331 | AH88: =VLOOKUP($B88,[1]FlowData!$A$3:$PL$215,AH$7,FALSE) -> 532 | AI88: =VLOOKUP($B88,[1]FlowData!$A$3:$PL$215,AI$7,FALSE) -> 295 | AJ88: =VLOOKUP($B88,[1]FlowData!$A$3:$PL$215,AJ$7,FALSE) -> 146 | AK88: =VLOOKUP($B88,[1]FlowData!$A$3:$PL$215,AK$7,FALSE) -> 71 | AL88: =VLOOKUP($B88,[1]FlowData!$A$3:$PL$215,AL$7,FALSE) -> 193 | AM88: =VLOOKUP($B88,[1]FlowData!$A$3:$PL$215,AM$7,FALSE) -> 51 | AN88: =VLOOKUP($B88,[1]FlowData!$A$3:$PL$215,AN$7,FALSE) -> 34 | AO88: =VLOOKUP($B88,[1]FlowData!$A$3:$PL$215,AO$7,FALSE) -> 24 | AP88: =VLOOKUP($B88,[1]FlowData!$A$3:$PL$215,AP$7,FALSE) -> 41 | AQ88: =VLOOKUP($B88,[1]FlowData!$A$3:$PL$215,AQ$7,FALSE) -> 47 | AR88: =VLOOKUP($B88,[1]FlowData!$A$3:$PL$215,AR$7,FALSE) -> 24 | AS88: =VLOOKUP($B88,[1]FlowData!$A$3:$PL$215,AS$7,FALSE) -> 16 | AT88: =VLOOKUP($B88,[1]FlowData!$A$3:$PL$215,AT$7,FALSE) -> 33 | AU88: =VLOOKUP($B88,[1]FlowData!$A$3:$PL$215,AU$7,FALSE) -> 109 | AV88: =VLOOKUP($B88,[1]FlowData!$A$3:$PL$215,AV$7,FALSE) -> 40 | AW88: =VLOOKUP($B88,[1]FlowData!$A$3:$PL$215,AW$7,FALSE) -> 17 | AX88: =VLOOKUP($B88,[1]FlowData!$A$3:$PL$215,AX$7,FALSE) -> 63 | AY88: =VLOOKUP($B88,[1]FlowData!$A$3:$PL$215,AY$7,FALSE) -> 97 | AZ88: =VLOOKUP($B88,[1]FlowData!$A$3:$PL$215,AZ$7,FALSE) -> 53 | BA88: =VLOOKUP($B88,[1]FlowData!$A$3:$PL$215,BA$7,FALSE) -> 23 | BB88: =VLOOKUP($B88,[1]FlowData!$A$3:$PL$215,BB$7,FALSE) -> 60 | BC88: =VLOOKUP($B88,[1]FlowData!$A$3:$PL$215,BC$7,FALSE) -> 66 | BD88: =VLOOKUP($B88,[1]FlowData!$A$3:$PL$215,BD$7,FALSE) -> 42 | BE88: =VLOOKUP($B88,[1]FlowData!$A$3:$PL$215,BE$7,FALSE) -> 21 | BF88: =VLOOKUP($B88,[1]FlowData!$A$3:$PL$215,BF$7,FALSE) -> 54
A89: Upper Yellowstone-Central Mountain hydrologic region
